Workbook

Sheet Submission Checker Notes
A2: GP Friends and Family Test (FFT) Data Submission Checker - April 2017

Sheet Submission Checker Summary
A7: Region Code | B7: Region Name | C7: Region (Geo) Code | D7: Region (Geography) | E7: "no data" for previous 3 months | F7: Zero responses for previous 3 months | G7: Breakdown of responses same for previous 3 months
D9: England | E9: 1739 | F9: 55 | G9: 2
D10: Selection | E10: =SUBTOTAL(9,E11:E31) -> 1739 | F10: =SUBTOTAL(9,F11:F31) -> 55 | G10: =SUBTOTAL(9,G11:G31) -> 2
A11: Y54 | B11: North of England Region | C11: Q72 | D11: NHS England Yorkshire & Humber | E11: 161 | F11: 6 | G11: 0
A12: Y54 | B12: North of England Region | C12: Q74 | D12: NHS England Cumbria & North East | E12: 118 | F12: 3 | G12: 0
A13: Y54 | B13: North of England Region | C13: Q75 | D13: NHS England Cheshire & Merseyside | E13: 74 | F13: 4 | G13: 0
A14: Y54 | B14: North of England Region | C14: Q83 | D14: NHS England Greater Manchester | E14: 18 | F14: 10 | G14: 0
A15: Y54 | B15: North of England Region | C15: Q84 | D15: NHS England Lancashire | E15: 44 | F15: 1 | G15: 0
A16: Y55 | B16: Midlands & East Region | C16: Q76 | D16: NHS England North Midlands | E16: 150 | F16: 4 | G16: 0
A17: Y55 | B17: Midlands & East Region | C17: Q77 | D17: NHS England West Midlands | E17: 161 | F17: 6 | G17: 0
A18: Y55 | B18: Midlands & East Region | C18: Q78 | D18: NHS England Central Midlands | E18: 61 | F18: 9 | G18: 1
A19: Y55 | B19: Midlands & East Region | C19: Q79 | D19: NHS England East | E19: 90 | F19: 6 | G19: 0
A20: Y57 | B20: South Region | C20: Q80 | D20: NHS England South West | E20: 124 | F20: 1 | G20: 0
A21: Y57 | B21: South Region | C21: Q81 | D21: NHS England South East | E21: 225 | F21: 1 | G21: 0
A22: Y57 | B22: South Region | C22: Q82 | D22: NHS England South Central | E22: 126 | F22: 2 | G22: 0
A23: Y57 | B23: South Region | C23: Q70 | D23: NHS England Wessex | E23: 41 | F23: 0 | G23: 0
A24: Y56 | B24: London Region | C24: Q71 | D24: NHS England London | E24: 346 | F24: 2 | G24: 1

Sheet Submission Checker Practices
A7: Region Code | B7: Region (Geo) Code | C7: CCG Code | D7: Practice Code | E7: Name | F7: Address | G7: Postcode | H7: "no data" for previous 3 months | I7: Zero responses for previous 3 months | J7: Breakdown of responses same for previous 3 months | K7: Apr 2017 | M7: Mar 2017 | O7: Feb 2017 | Q7: Dec 2016 | S7: Nov 2016 | U7: Oct 2016 | W7: Sep 2016 | Y7: Aug 2016 | AA7: Jul 2016 | AC7: Jun 2016 | AE7: May 2016 | AG7: Apr 2016 | AI7: Mar 2016 | AK7: Feb 2016 | AM7: Jan 2016 | AO7: Dec 2015 | AQ7: Nov 2015 | AS7: Oct 2015 | AU7: Sep 2015 | AW7: Aug 2015 | AY7: Jul 2015 | BA7: Jun 2015 | BC7: May 2015 | BE7: Apr 2015
K8: Responses | L8: Breakdown | M8: Responses | N8: Breakdown | O8: Responses | P8: Breakdown | Q8: Responses | R8: Breakdown | S8: Responses | T8: Breakdown | U8: Responses | V8: Breakdown | W8: Responses | X8: Breakdown | Y8: Responses | Z8: Breakdown | AA8: Responses | AB8: Breakdown | AC8: Responses | AD8: Breakdown | AE8: Responses | AF8: Breakdown | AG8: Responses | AH8: Breakdown | AI8: Responses | AJ8: Breakdown | AK8: Responses | AL8: Breakdown | AM8: Responses | AN8: Breakdown | AO8: Responses | AP8: Breakdown | AQ8: Responses | AR8: Breakdown | AS8: Responses | AT8: Breakdown | AU8: Responses | AV8: Breakdown | AW8: Responses | AX8: Breakdown | AY8: Responses | AZ8: Breakdown | BA8: Responses | BB8: Breakdown | BC8: Responses | BD8: Breakdown | BE8: Responses | BF8: Breakdown
G9: England | H9: 1739 | I9: 55 | J9: 2 | K9: 183373 | M9: 253832 | O9: 195972 | Q9: 164648 | S9: 170791 | U9: 195700 | W9: 168779 | Y9: 166075 | AA9: 154278 | AC9: 164477 | AE9: 163271 | AG9: 157646 | AI9: 167102 | AK9: 159197 | AM9: 147914 | AO9: 134152 | AQ9: 150648 | AS9: 177948 | AU9: 155267 | AW9: 134228 | AY9: 148964 | BA9: 149454 | BC9: 138005 | BE9: 143060
G10: Selection | H10: =SUMPRODUCT(SUBTOTAL(3,OFFSET(H11:H10000,ROW(H11:H10000)-ROW(H11),0,1)),--(H11:H10000="Yes")) -> 1739 | I10: =SUMPRODUCT(SUBTOTAL(3,OFFSET(I11:I10000,ROW(I11:I10000)-ROW(I11),0,1)),--(I11:I10000="Yes")) -> 55 | J10: =SUMPRODUCT(SUBTOTAL(3,OFFSET(J11:J10000,ROW(J11:J10000)-ROW(J11),0,1)),--(J11:J10000="Yes")) -> 2 | K10: =SUBTOTAL(9,K11:K10000) -> 183373 | M10: =SUBTOTAL(9,M11:M10000) -> 253832 | O10: =SUBTOTAL(9,O11:O10000) -> 195972 | Q10: =SUBTOTAL(9,Q11:Q10000) -> 164648 | S10: =SUBTOTAL(9,S11:S10000) -> 170791 | U10: =SUBTOTAL(9,U11:U10000) -> 195700 | W10: =SUBTOTAL(9,W11:W10000) -> 168779 | Y10: =SUBTOTAL(9,Y11:Y10000) -> 166075 | AA10: =SUBTOTAL(9,AA11:AA10000) -> 154278 | AC10: =SUBTOTAL(9,AC11:AC10000) -> 164477 | AE10: =SUBTOTAL(9,AE11:AE10000) -> 163271 | AG10: =SUBTOTAL(9,AG11:AG10000) -> 157646 | AI10: =SUBTOTAL(9,AI11:AI10000) -> 167102 | AK10: =SUBTOTAL(9,AK11:AK10000) -> 159197 | AM10: =SUBTOTAL(9,AM11:AM10000) -> 147914 | AO10: =SUBTOTAL(9,AO11:AO10000) -> 134152 | AQ10: =SUBTOTAL(9,AQ11:AQ10000) -> 150648 | AS10: =SUBTOTAL(9,AS11:AS10000) -> 177948 | AU10: =SUBTOTAL(9,AU11:AU10000) -> 155267 | AW10: =SUBTOTAL(9,AW11:AW10000) -> 134228 | AY10: =SUBTOTAL(9,AY11:AY10000) -> 148964 | BA10: =SUBTOTAL(9,BA11:BA10000) -> 149454 | BC10: =SUBTOTAL(9,BC11:BC10000) -> 138005 | BE10: =SUBTOTAL(9,BE11:BE10000) -> 143060
A11: Y54 | B11: Q72 | C11: 02N | D11: B82007 | E11: TOWNHEAD SURGERY | F11: TOWNHEAD, SETTLE, NORTH YORKSHIRE | G11: BD24 9JA | K11: no data | M11: 15 | N11: 13, 1, 0, 0, 0, 1 | O11: 11 | P11: 9, 0, 0, 1, 1, 0 | Q11: no data | S11: 12 | T11: 11, 0, 0, 0, 0, 1 | U11: 21 | V11: 17, 2, 1, 0, 1, 0 | W11: 37 | X11: 32, 0, 3, 1, 0, 1 | Y11: 21 | Z11: 18, 0, 2, 1, 0, 0 | AA11: 9 | AB11: 6, 1, 0, 1, 1, 0 | AC11: no data | AE11: 14 | AF11: 12, 1, 0, 1, 0, 0 | AG11: 9 | AH11: 8, 0, 0, 0, 0, 1 | AI11: 8 | AJ11: 6, 0, 1, 0, 1, 0 | AK11: 14 | AL11: 14, 0, 0, 0, 0, 0 | AM11: 9 | AN11: 8, 0, 0, 0, 1, 0 | AO11: 17 | AP11: 17, 0, 0, 0, 0, 0 | AQ11: 46 | AR11: 43, 2, 1, 0, 0, 0 | AS11: 62 | AT11: 55, 6, 0, 0, 1, 0 | AU11: 82 | AV11: 80, 2, 0, 0, 0, 0 | AW11: 0 | AX11: 0, 0, 0, 0, 0, 0 | AY11: no data | BA11: 52 | BB11: 47, 4, 0, 0, 0, 1 | BC11: 22 | BD11: 21, 0, 0, 0, 0, 1 | BE11: 21 | BF11: 18, 1, 1, 0, 0, 1 | BG11: =VLOOKUP(D11,'[1]Apr-17'!$E$2:$Q$7375,13,FALSE) ->  | BH11: =BG11-K11 -> 
A12: Y54 | B12: Q72 | C12: 02N | D12: B82020 | E12: CROSS HILLS GROUP PRACTICE | F12: CROSS HILLS HEALTH CENTRE, HOLME LANE, CROSS HILLS, KEIGHLEY, WEST YORKSHIRE | G12: BD20 7LG | K12: 38 | L12: 15, 7, 4, 5, 7, 0 | M12: 55 | N12: 26, 11, 5, 3, 9, 1 | O12: 53 | P12: 27, 6, 7, 6, 4, 3 | Q12: 8 | R12: 6, 1, 0, 1, 0, 0 | S12: 5 | T12: 3, 1, 0, 1, 0, 0 | U12: 32 | V12: 17, 8, 3, 3, 1, 0 | W12: 12 | X12: 5, 5, 1, 0, 0, 1 | Y12: 11 | Z12: 8, 2, 1, 0, 0, 0 | AA12: 27 | AB12: 15, 5, 2, 2, 2, 1 | AC12: 21 | AD12: 15, 3, 2, 1, 0, 0 | AE12: 8 | AF12: 6, 1, 0, 0, 1, 0 | AG12: 20 | AH12: 9, 6, 3, 1, 1, 0 | AI12: 64 | AJ12: 37, 16, 3, 3, 2, 3 | AK12: 55 | AL12: 36, 12, 4, 1, 1, 1 | AM12: 23 | AN12: 13, 5, 3, 0, 2, 0 | AO12: 19 | AP12: 12, 2, 1, 1, 3, 0 | AQ12: no data | AS12: 20 | AT12: 11, 4, 2, 2, 0, 1 | AU12: 1 | AV12: * | AW12: no data | AY12: no data | BA12: no data | BC12: no data | BE12: no data | BG12: =VLOOKUP(D12,'[1]Apr-17'!$E$2:$Q$7375,13,FALSE) -> 38 | BH12: =BG12-K12 -> 0
A13: Y54 | B13: Q72 | C13: 02N | D13: B82028 | E13: FISHER MEDICAL CENTRE | F13: MILLFIELDS, COACH ST, SKIPTON, NORTH YORKSHIRE | G13: BD23 1EU | K13: 43 | L13: 32, 8, 1, 1, 1, 0 | M13: 36 | N13: 31, 4, 0, 0, 1, 0 | O13: 57 | P13: 41, 8, 5, 2, 1, 0 | Q13: 29 | R13: 24, 3, 0, 0, 2, 0 | S13: no data | U13: 89 | V13: 64, 16, 3, 2, 3, 1 | W13: 81 | X13: 69, 10, 1, 0, 1, 0 | Y13: 83 | Z13: 51, 27, 1, 0, 4, 0 | AA13: 48 | AB13: 35, 9, 3, 1, 0, 0 | AC13: 73 | AD13: 54, 15, 0, 2, 2, 0 | AE13: 77 | AF13: 50, 19, 3, 2, 1, 2 | AG13: 67 | AH13: 47, 12, 6, 1, 1, 0 | AI13: 101 | AJ13: 80, 14, 1, 0, 5, 1 | AK13: 72 | AL13: 50, 15, 1, 0, 5, 1 | AM13: 60 | AN13: 45, 11, 3, 1, 0, 0 | AO13: 86 | AP13: 61, 13, 6, 1, 4, 1 | AQ13: 153 | AR13: 71, 69, 5, 5, 2, 1 | AS13: 140 | AT13: 102, 25, 5, 3, 4, 1 | AU13: no data | AW13: 60 | AX13: 44, 11, 1, 3, 1, 0 | AY13: 103 | AZ13: 80, 16, 2, 1, 1, 3 | BA13: 100 | BB13: 53, 15, 5, 3, 24, 0 | BC13: 124 | BD13: 65, 22, 4, 10, 22, 1 | BE13: 73 | BF13: 47, 7, 8, 2, 7, 2 | BG13: =VLOOKUP(D13,'[1]Apr-17'!$E$2:$Q$7375,13,FALSE) -> 43 | BH13: 0
A14: Y54 | B14: Q72 | C14: 02N | D14: B82053 | E14: DYNELEY HOUSE SURGERY | F14: NEWMARKET STREET, SKIPTON, NORTH YORKSHIRE | G14: BD23 2HZ | K14: 13 | L14: 10, 2, 0, 0, 0, 1 | M14: 43 | N14: 29, 11, 2, 0, 1, 0 | O14: 10 | P14: 9, 1, 0, 0, 0, 0 | Q14: 27 | R14: 16, 9, 0, 0, 1, 1 | S14: 44 | T14: 25, 18, 1, 0, 0, 0 | U14: 23 | V14: 19, 2, 2, 0, 0, 0 | W14: 7 | X14: 6, 0, 1, 0, 0, 0 | Y14: 31 | Z14: 21, 9, 1, 0, 0, 0 | AA14: 4 | AB14: * | AC14: 5 | AD14: 4, 0, 1, 0, 0, 0 | AE14: 21 | AF14: 12, 8, 1, 0, 0, 0 | AG14: 3 | AH14: * | AI14: 17 | AJ14: 9, 6, 2, 0, 0, 0 | AK14: 27 | AL14: 17, 4, 1, 0, 4, 1 | AM14: 12 | AN14: 7, 4, 0, 0, 0, 1 | AO14: 15 | AP14: 11, 4, 0, 0, 0, 0 | AQ14: 38 | AR14: 21, 16, 1, 0, 0, 0 | AS14: 1 | AT14: * | AU14: 1 | AV14: * | AW14: 1 | AX14: * | AY14: 1 | AZ14: * | BA14: 2 | BB14: * | BC14: 5 | BD14: 4, 1, 0, 0, 0, 0 | BE14: 3 | BF14: * | BG14: =VLOOKUP(D14,'[1]Apr-17'!$E$2:$Q$7375,13,FALSE) -> 13 | BH14: 0
A15: Y54 | B15: Q72 | C15: 02N | D15: B83002 | E15: ILKLEY & WHARFEDALE MEDICAL PRACTICE | F15: ILKLEY & WHARFEDALE MED, SPRINGS M.C, SPRINGS LANE, ILKLEY | G15: LS29 8TQ | I15: Yes | K15: 0 | L15: 0, 0, 0, 0, 0, 0 | M15: 0 | N15: 0, 0, 0, 0, 0, 0 | O15: 0 | P15: 0, 0, 0, 0, 0, 0 | Q15: 0 | R15: 0, 0, 0, 0, 0, 0 | S15: no data | U15: 13 | V15: 12, 0, 1, 0, 0, 0 | W15: 15 | X15: 10, 5, 0, 0, 0, 0 | Y15: 0 | Z15: 0, 0, 0, 0, 0, 0 | AA15: 0 | AB15: 0, 0, 0, 0, 0, 0 | AC15: no data | AE15: 0 | AF15: 0, 0, 0, 0, 0, 0 | AG15: 2 | AH15: * | AI15: 0 | AJ15: 0, 0, 0, 0, 0, 0 | AK15: 0 | AL15: 0, 0, 0, 0, 0, 0 | AM15: 0 | AN15: 0, 0, 0, 0, 0, 0 | AO15: 1 | AP15: * | AQ15: 15 | AR15: 14, 1, 0, 0, 0, 0 | AS15: 0 | AT15: 0, 0, 0, 0, 0, 0 | AU15: 6 | AV15: 6, 0, 0, 0, 0, 0 | AW15: 0 | AX15: 0, 0, 0, 0, 0, 0 | AY15: 2 | AZ15: * | BA15: 2 | BB15: * | BC15: 9 | BD15: 7, 2, 0, 0, 0, 0 | BE15: 3 | BF15: * | BG15: =VLOOKUP(D15,'[1]Apr-17'!$E$2:$Q$7375,13,FALSE) -> 0 | BH15: 0
A16: Y54 | B16: Q72 | C16: 02N | D16: B83006 | E16: SILSDEN & STEETON MEDICAL PRACTICE | F16: SILSDEN HEALTH CENTRE, ELLIOTT STREET, SILSDEN, KEIGHLEY, WEST YORKSHIRE | G16: BD20 0DG | K16: 2 | L16: * | M16: 1 | N16: * | O16: 0 | P16: 0, 0, 0, 0, 0, 0 | Q16: 0 | R16: 0, 0, 0, 0, 0, 0 | S16: 1 | T16: * | U16: no data | W16: no data | Y16: no data | AA16: no data | AC16: no data | AE16: 8 | AF16: 6, 1, 0, 1, 0, 0 | AG16: 5 | AH16: 3, 1, 0, 0, 1, 0 | AI16: 11 | AJ16: 7, 0, 0, 2, 2, 0 | AK16: 5 | AL16: 2, 1, 0, 0, 1, 1 | AM16: 8 | AN16: 6, 1, 0, 0, 0, 1 | AO16: 4 | AP16: * | AQ16: 12 | AR16: 6, 0, 3, 1, 2, 0 | AS16: 13 | AT16: 11, 2, 0, 0, 0, 0 | AU16: 9 | AV16: 9, 0, 0, 0, 0, 0 | AW16: 16 | AX16: 14, 2, 0, 0, 0, 0 | AY16: 12 | AZ16: 11, 0, 1, 0, 0, 0 | BA16: 18 | BB16: 15, 3, 0, 0, 0, 0 | BC16: 29 | BD16: 16, 13, 0, 0, 0, 0 | BE16: 0 | BF16: 0, 0, 0, 0, 0, 0 | BG16: =VLOOKUP(D16,'[1]Apr-17'!$E$2:$Q$7375,13,FALSE) -> 2 | BH16: 0
A17: Y54 | B17: Q72 | C17: 02N | D17: B83008 | E17: LING HOUSE MEDICAL CENTRE | F17: 49 SCOTT STREET, KEIGHLEY, BRADFORD, WEST YORKSHIRE | G17: BD21 2JH | H17: Yes | K17: no data | M17: no data | O17: no data | Q17: no data | S17: no data | U17: 2 | V17: * | W17: 1 | X17: * | Y17: 0 | Z17: 0, 0, 0, 0, 0, 0 | AA17: 2 | AB17: * | AC17: no data | AE17: 2 | AF17: * | AG17: 1 | AH17: * | AI17: 4 | AJ17: * | AK17: 7 | AL17: 2, 0, 1, 1, 1, 2 | AM17: 3 | AN17: * | AO17: 0 | AP17: 0, 0, 0, 0, 0, 0 | AQ17: 4 | AR17: * | AS17: 10 | AT17: 4, 2, 2, 2, 0, 0 | AU17: 3 | AV17: * | AW17: no data | AY17: no data | BA17: no data | BC17: no data | BE17: 2 | BF17: * | BG17: =VLOOKUP(D17,'[1]Apr-17'!$E$2:$Q$7375,13,FALSE) -> 
A18: Y54 | B18: Q72 | C18: 02N | D18: B83019 | E18: GRANGE PARK SURGERY | F18: GRANGE ROAD, BURLEY-IN-WHARFEDALE, ILKLEY | G18: LS29 7HG | K18: 1 | L18: * | M18: 10 | N18: 6, 2, 0, 0, 1, 1 | O18: no data | Q18: no data | S18: no data | U18: 5 | V18: 4, 0, 0, 0, 1, 0 | W18: 3 | X18: * | Y18: 2 | Z18: * | AA18: 5 | AB18: 4, 0, 0, 0, 1, 0 | AC18: 4 | AD18: * | AE18: 5 | AF18: 5, 0, 0, 0, 0, 0 | AG18: 5 | AH18: 2, 1, 2, 0, 0, 0 | AI18: 1 | AJ18: * | AK18: 4 | AL18: * | AM18: 4 | AN18: * | AO18: 2 | AP18: * | AQ18: 1 | AR18: * | AS18: 4 | AT18: * | AU18: 2 | AV18: * | AW18: 2 | AX18: * | AY18: no data | BA18: 3 | BB18: * | BC18: 7 | BD18: 4, 1, 0, 0, 0, 2 | BE18: 3 | BF18: * | BG18: =VLOOKUP(D18,'[1]Apr-17'!$E$2:$Q$7375,13,FALSE) -> 1 | BH18: 0
A19: Y54 | B19: Q72 | C19: 02N | D19: B83021 | E19: FARFIELD GROUP PRACTICE | F19: ST.ANDREWS SURGERIES, WEST LANE,KEIGHLEY, WEST YORKSHIRE | G19: BD21 2LD | K19: 3 | L19: * | M19: 2 | N19: * | O19: no data | Q19: no data | S19: 2 | T19: * | U19: 7 | V19: 5, 1, 0, 1, 0, 0 | W19: 2 | X19: * | Y19: 5 | Z19: 3, 0, 1, 0, 1, 0 | AA19: 8 | AB19: 4, 2, 0, 0, 2, 0 | AC19: 4 | AD19: * | AE19: 5 | AF19: 1, 2, 1, 0, 1, 0 | AG19: 2 | AH19: * | AI19: 10 | AJ19: 5, 2, 0, 1, 0, 2 | AK19: 2 | AL19: * | AM19: 4 | AN19: * | AO19: 2 | AP19: * | AQ19: 5 | AR19: 3, 1, 0, 1, 0, 0 | AS19: 6 | AT19: 6, 0, 0, 0, 0, 0 | AU19: 4 | AV19: * | AW19: 5 | AX19: 3, 1, 1, 0, 0, 0 | AY19: 2 | AZ19: * | BA19: 7 | BB19: 3, 1, 0, 0, 2, 1 | BC19: 7 | BD19: 4, 1, 1, 0, 1, 0 | BE19: 9 | BF19: 4, 0, 1, 2, 2, 0 | BG19: =VLOOKUP(D19,'[1]Apr-17'!$E$2:$Q$7375,13,FALSE) -> 3 | BH19: 0
A20: Y54 | B20: Q72 | C20: 02N | D20: B83023 | E20: HOLYCROFT SURGERY | F20: THE HLTH CTR, OAKWORTH RD, KEIGHLEY, WEST YORKSHIRE | G20: BD21 1SA | K20: no data | M20: 3 | N20: * | O20: 2 | P20: * | Q20: no data | S20: no data | U20: no data | W20: 3 | X20: * | Y20: 3 | Z20: * | AA20: no data | AC20: 4 | AD20: * | AE20: 6 | AF20: 3, 0, 0, 1, 2, 0 | AG20: 4 | AH20: * | AI20: 6 | AJ20: 0, 0, 1, 1, 4, 0 | AK20: 2 | AL20: * | AM20: 3 | AN20: * | AO20: 4 | AP20: * | AQ20: no data | AS20: 6 | AT20: 2, 1, 1, 2, 0, 0 | AU20: no data | AW20: no data | AY20: 3 | AZ20: * | BA20: 6 | BB20: 0, 2, 0, 0, 3, 1 | BC20: 4 | BD20: * | BE20: 4 | BF20: * | BG20: =VLOOKUP(D20,'[1]Apr-17'!$E$2:$Q$7375,13,FALSE) -> 
A21: Y54 | B21: Q72 | C21: 02N | D21: B83027 | E21: HAWORTH MEDICAL PRACTICE | F21: HEATHCLIFFE MEWS, HAWORTH, KEIGHLEY | G21: BD22 8DH | K21: 5 | L21: 2, 0, 1, 1, 1, 0 | M21: 2 | N21: * | O21: 8 | P21: 5, 1, 1, 0, 1, 0 | Q21: 7 | R21: 4, 0, 1, 0, 0, 2 | S21: 2 | T21: * | U21: 4 | V21: * | W21: 2 | X21: * | Y21: 6 | Z21: 5, 0, 1, 0, 0, 0 | AA21: 5 | AB21: 5, 0, 0, 0, 0, 0 | AC21: 4 | AD21: * | AE21: 4 | AF21: * | AG21: 21 | AH21: 12, 8, 0, 1, 0, 0 | AI21: 15 | AJ21: 13, 1, 0, 0, 1, 0 | AK21: 17 | AL21: 13, 4, 0, 0, 0, 0 | AM21: no data | AO21: no data | AQ21: no data | AS21: 3 | AT21: * | AU21: 1 | AV21: * | AW21: 4 | AX21: * | AY21: 3 | AZ21: * | BA21: no data | BC21: 16 | BD21: 13, 1, 1, 1, 0, 0 | BE21: 0 | BF21: 0, 0, 0, 0, 0, 0 | BG21: =VLOOKUP(D21,'[1]Apr-17'!$E$2:$Q$7375,13,FALSE) -> 5 | BH21: 0
A22: Y54 | B22: Q72 | C22: 02N | D22: B83033 | E22: KILMENY GROUP MEDICAL PRACTICE | F22: KILMENY SURGERY, 50 ASHBOURNE ROAD,INGROW, KEIGHLEY, WEST YORKSHIRE | G22: BD21 1LA | K22: 6 | L22: 3, 2, 1, 0, 0, 0 | M22: no data | O22: 3 | P22: * | Q22: 3 | R22: * | S22: no data | U22: no data | W22: 9 | X22: 5, 0, 3, 1, 0, 0 | Y22: no data | AA22: no data | AC22: 8 | AD22: 4, 3, 0, 1, 0, 0 | AE22: no data | AG22: 1 | AH22: * | AI22: 3 | AJ22: * | AK22: no data | AM22: no data | AO22: 9 | AP22: 7, 2, 0, 0, 0, 0 | AQ22: no data | AS22: no data | AU22: 4 | AV22: * | AW22: no data | AY22: 3 | AZ22: * | BA22: no data | BC22: 2 | BD22: * | BE22: no data | BG22: =VLOOKUP(D22,'[1]Apr-17'!$E$2:$Q$7375,13,FALSE) -> 6 | BH22: 0
A23: Y54 | B23: Q72 | C23: 02N | D23: B83061 | E23: OAKWORTH MEDICAL PRACTICE | F23: 3 LIDGET MILL, OAKWORTH, KEIGHLEY, WEST YORKSHIRE | G23: BD22 7HN | K23: 4 | L23: * | M23: 4 | N23: * | O23: 3 | P23: * | Q23: 15 | R23: 13, 0, 1, 1, 0, 0 | S23: no data | U23: no data | W23: no data | Y23: no data | AA23: no data | AC23: 19 | AD23: 16, 2, 1, 0, 0, 0 | AE23: no data | AG23: 12 | AH23: 11, 0, 1, 0, 0, 0 | AI23: 10 | AJ23: 9, 1, 0, 0, 0, 0 | AK23: no data | AM23: no data | AO23: no data | AQ23: no data | AS23: 5 | AT23: 5, 0, 0, 0, 0, 0 | AU23: 1 | AV23: * | AW23: 1 | AX23: * | AY23: 1 | AZ23: * | BA23: 0 | BB23: 0, 0, 0, 0, 0, 0 | BC23: 7 | BD23: 6, 0, 1, 0, 0, 0 | BE23: 9 | BF23: 9, 0, 0, 0, 0, 0 | BG23: =VLOOKUP(D23,'[1]Apr-17'!$E$2:$Q$7375,13,FALSE) -> 4 | BH23: 0
A24: Y54 | B24: Q72 | C24: 02N | D24: B83602 | E24: NORTH STREET MEDICAL PRACTICE | F24: 151 NORTH STREET, KEIGHLEY, BRADFORD | G24: BD21 3AU | K24: no data | M24: 12 | N24: 5, 7, 0, 0, 0, 0 | O24: 3 | P24: * | Q24: 32 | R24: 13, 18, 1, 0, 0, 0 | S24: 38 | T24: 14, 18, 3, 1, 1, 1 | U24: 26 | V24: 9, 13, 1, 0, 2, 1 | W24: 17 | X24: 6, 11, 0, 0, 0, 0 | Y24: 17 | Z24: 9, 5, 0, 1, 0, 2 | AA24: 11 | AB24: 8, 2, 0, 0, 1, 0 | AC24: 0 | AD24: 0, 0, 0, 0, 0, 0 | AE24: no data | AG24: no data | AI24: 9 | AJ24: 6, 3, 0, 0, 0, 0 | AK24: no data | AM24: 4 | AN24: * | AO24: 20 | AP24: 7, 12, 1, 0, 0, 0 | AQ24: 29 | AR24: 16, 6, 1, 0, 6, 0 | AS24: 47 | AT24: 14, 13, 6, 2, 11, 1 | AU24: 33 | AV24: 13, 10, 6, 0, 4, 0 | AW24: 25 | AX24: 10, 9, 2, 1, 2, 1 | AY24: 35 | AZ24: 15, 8, 2, 1, 7, 2 | BA24: 31 | BB24: 14, 13, 3, 0, 1, 0 | BC24: 12 | BD24: 4, 3, 1, 0, 4, 0 | BE24: 17 | BF24: 8, 2, 0, 1, 5, 1 | BG24: =VLOOKUP(D24,'[1]Apr-17'!$E$2:$Q$7375,13,FALSE) -> 
A25: Y54 | B25: Q72 | C25: 02N | D25: B83620 | E25: ADDINGHAM SURGERY | F25: ADDINGHAM MEDICAL CENTRE, 151A MAIN ST, ADDINGHAM, ILKLEY | G25: LS29 0LZ | H25: Yes | K25: no data | M25: no data | O25: no data | Q25: no data | S25: 1 | T25: * | U25: no data | W25: 1 | X25: * | Y25: 0 | Z25: 0, 0, 0, 0, 0, 0 | AA25: 0 | AB25: 0, 0, 0, 0, 0, 0 | AC25: 1 | AD25: * | AE25: 4 | AF25: * | AG25: 0 | AH25: 0, 0, 0, 0, 0, 0 | AI25: 1 | AJ25: * | AK25: 3 | AL25: * | AM25: 1 | AN25: * | AO25: 0 | AP25: 0, 0, 0, 0, 0, 0 | AQ25: 2 | AR25: * | AS25: 2 | AT25: * | AU25: 2 | AV25: * | AW25: 0 | AX25: 0, 0, 0, 0, 0, 0 | AY25: 1 | AZ25: * | BA25: 3 | BB25: * | BC25: 1 | BD25: * | BE25: 0 | BF25: 0, 0, 0, 0, 0, 0 | BG25: =VLOOKUP(D25,'[1]Apr-17'!$E$2:$Q$7375,13,FALSE) -> 
A26: Y54 | B26: Q72 | C26: 02N | D26: B83624 | E26: I G MEDICAL | F26: ILKLEY MOOR MEDICAL PRACT, SPRINGS LANE, ILKLEY, WEST YORKSHIRE | G26: LS29 8TH | K26: 4 | L26: * | M26: 1 | N26: * | O26: 7 | P26: 5, 1, 0, 0, 1, 0 | Q26: 4 | R26: * | S26: no data | U26: 11 | V26: 6, 1, 0, 3, 1, 0 | W26: no data | Y26: 2 | Z26: * | AA26: 0 | AB26: 0, 0, 0, 0, 0, 0 | AC26: 7 | AD26: 6, 0, 1, 0, 0, 0 | AE26: 5 | AF26: 5, 0, 0, 0, 0, 0 | AG26: 7 | AH26: 5, 0, 0, 2, 0, 0 | AI26: 9 | AJ26: 7, 0, 0, 0, 1, 1 | AK26: no data | AM26: 2 | AN26: * | AO26: 9 | AP26: 6, 0, 1, 0, 1, 1 | AQ26: 7 | AR26: 4, 0, 1, 0, 1, 1 | AS26: 7 | AT26: 5, 1, 0, 1, 0, 0 | AU26: 6 | AV26: 5, 0, 1, 0, 0, 0 | AW26: 5 | AX26: 4, 0, 0, 1, 0, 0 | AY26: 3 | AZ26: * | BA26: 16 | BB26: 11, 2, 1, 1, 1, 0 | BC26: 12 | BD26: 10, 1, 1, 0, 0, 0 | BE26: 8 | BF26: 6, 0, 1, 0, 0, 1 | BG26: =VLOOKUP(D26,'[1]Apr-17'!$E$2:$Q$7375,13,FALSE) -> 4 | BH26: 0
A27: Y54 | B27: Q72 | C27: 02P | D27: C85001 | E27: GOLDTHORPE MEDICAL CENTRE PMS PRACTICE | F27: THE GOLDTHORPE CENTRE, GOLDTHORPE GRN,GOLDTHORPE, ROTHERHAM, SOUTH YORKSHIRE | G27: S63 9EH | K27: 9 | L27: 5, 4, 0, 0, 0, 0 | M27: no data | O27: 20 | P27: 15, 5, 0, 0, 0, 0 | Q27: no data | S27: no data | U27: no data | W27: 4 | X27: * | Y27: 2 | Z27: * | AA27: 1 | AB27: * | AC27: 9 | AD27: 4, 3, 2, 0, 0, 0 | AE27: no data | AG27: 4 | AH27: * | AI27: 2 | AJ27: * | AK27: 8 | AL27: 2, 3, 1, 2, 0, 0 | AM27: 20 | AN27: 10, 7, 2, 0, 0, 1 | AO27: 2 | AP27: * | AQ27: 22 | AR27: 10, 9, 3, 0, 0, 0 | AS27: 7 | AT27: 4, 2, 1, 0, 0, 0 | AU27: 6 | AV27: 2, 1, 2, 1, 0, 0 | AW27: 0 | AX27: 0, 0, 0, 0, 0, 0 | AY27: 11 | AZ27: 2, 0, 0, 2, 7, 0 | BA27: no data | BC27: no data | BE27: 10 | BF27: 2, 1, 0, 3, 4, 0 | BG27: =VLOOKUP(D27,'[1]Apr-17'!$E$2:$Q$7375,13,FALSE) -> 9 | BH27: 0
A28: Y54 | B28: Q72 | C28: 02P | D28: C85003 | E28: ASHVILLE MEDICAL CENTRE PMS PRACTICE | F28: OAKS PARK PRIMARY CC, THORNTON ROAD, KENDRAY, BARNSLEY, SOUTH YORKSHIRE | G28: S70 3NE | K28: 61 | L28: 42, 17, 2, 0, 0, 0 | M28: 60 | N28: 40, 19, 0, 1, 0, 0 | O28: 55 | P28: 40, 11, 2, 1, 0, 1 | Q28: 36 | R28: 17, 13, 0, 3, 2, 1 | S28: 63 | T28: 34, 18, 4, 3, 1, 3 | U28: 7 | V28: 1, 5, 0, 0, 0, 1 | W28: 101 | X28: 65, 29, 2, 2, 2, 1 | Y28: 96 | Z28: 55, 31, 6, 0, 1, 3 | AA28: 95 | AB28: 55, 26, 9, 4, 0, 1 | AC28: 96 | AD28: 64, 24, 5, 0, 2, 1 | AE28: 87 | AF28: 43, 32, 3, 5, 2, 2 | AG28: 96 | AH28: 43, 36, 6, 4, 4, 3 | AI28: 40 | AJ28: 14, 18, 1, 5, 0, 2 | AK28: 86 | AL28: 43, 29, 7, 4, 1, 2 | AM28: 84 | AN28: 40, 34, 4, 1, 2, 3 | AO28: 99 | AP28: 47, 36, 10, 4, 1, 1 | AQ28: 84 | AR28: 53, 26, 3, 1, 0, 1 | AS28: 94 | AT28: 38, 40, 6, 2, 3, 5 | AU28: 72 | AV28: 33, 24, 7, 6, 1, 1 | AW28: 87 | AX28: 41, 34, 6, 2, 2, 2 | AY28: 92 | AZ28: 32, 35, 9, 9, 7, 0 | BA28: 83 | BB28: 34, 29, 13, 4, 1, 2 | BC28: 46 | BD28: 21, 17, 1, 1, 4, 2 | BE28: 76 | BF28: 32, 30, 10, 0, 1, 3 | BG28: =VLOOKUP(D28,'[1]Apr-17'!$E$2:$Q$7375,13,FALSE) -> 61 | BH28: 0
A29: Y54 | B29: Q72 | C29: 02P | D29: C85004 | E29: PENISTONE GROUP PMS PRACTICE | F29: PENISTONE GROUP PRACTICE, THE SURGERY,19 HIGH ST, PENISTONE, SHEFFIELD, SOUTH YORKSHIRE | G29: S36 6BR | K29: 5 | L29: 3, 1, 1, 0, 0, 0 | M29: 1 | N29: * | O29: 1 | P29: * | Q29: 1 | R29: * | S29: no data | U29: 9 | V29: 7, 0, 0, 2, 0, 0 | W29: 17 | X29: 14, 0, 0, 1, 1, 1 | Y29: 19 | Z29: 15, 1, 3, 0, 0, 0 | AA29: 23 | AB29: 20, 2, 1, 0, 0, 0 | AC29: 25 | AD29: 14, 8, 0, 1, 2, 0 | AE29: 28 | AF29: 23, 2, 0, 2, 1, 0 | AG29: 31 | AH29: 22, 3, 2, 2, 1, 1 | AI29: 44 | AJ29: 31, 9, 2, 1, 1, 0 | AK29: 50 | AL29: 44, 4, 1, 0, 1, 0 | AM29: 62 | AN29: 44, 18, 0, 0, 0, 0 | AO29: 73 | AP29: 56, 15, 1, 1, 0, 0 | AQ29: 89 | AR29: 58, 21, 5, 2, 3, 0 | AS29: 77 | AT29: 67, 9, 1, 0, 0, 0 | AU29: 43 | AV29: 23, 19, 1, 0, 0, 0 | AW29: 51 | AX29: 29, 21, 1, 0, 0, 0 | AY29: 61 | AZ29: 39, 21, 0, 1, 0, 0 | BA29: 72 | BB29: 45, 19, 8, 0, 0, 0 | BC29: no data | BE29: 42 | BF29: 33, 6, 1, 1, 1, 0 | BG29: =VLOOKUP(D29,'[1]Apr-17'!$E$2:$Q$7375,13,FALSE) -> 5 | BH29: 0
A30: Y54 | B30: Q72 | C30: 02P | D30: C85005 | E30: ROYSTON GROUP PRACTICE | F30: 65D MIDLAND ROAD, ROYSTON, BARNSLEY, SOUTH YORKSHIRE | G30: S71 4QW | H30: Yes | K30: no data | M30: no data | O30: no data | Q30: no data | S30: 11 | T30: 6, 2, 3, 0, 0, 0 | U30: 25 | V30: 12, 7, 1, 3, 1, 1 | W30: no data | Y30: 17 | Z30: 7, 9, 0, 1, 0, 0 | AA30: 36 | AB30: 18, 9, 5, 4, 0, 0 | AC30: 19 | AD30: 11, 6, 2, 0, 0, 0 | AE30: 24 | AF30: 8, 13, 2, 0, 1, 0 | AG30: 19 | AH30: 5, 8, 3, 0, 3, 0 | AI30: 16 | AJ30: 8, 6, 1, 0, 1, 0 | AK30: 26 | AL30: 9, 12, 4, 0, 0, 1 | AM30: 32 | AN30: 21, 7, 2, 1, 1, 0 | AO30: 34 | AP30: 16, 12, 3, 1, 1, 1 | AQ30: 46 | AR30: 18, 18, 6, 3, 1, 0 | AS30: 5 | AT30: 3, 1, 1, 0, 0, 0 | AU30: 47 | AV30: 20, 20, 2, 2, 3, 0 | AW30: 31 | AX30: 15, 12, 1, 1, 2, 0 | AY30: 26 | AZ30: 13, 11, 1, 0, 1, 0 | BA30: 20 | BB30: 14, 5, 0, 0, 1, 0 | BC30: 26 | BD30: 11, 12, 3, 0, 0, 0 | BE30: 17 | BF30: 16, 0, 1, 0, 0, 0 | BG30: =VLOOKUP(D30,'[1]Apr-17'!$E$2:$Q$7375,13,FALSE) -> 
A31: Y54 | B31: Q72 | C31: 02P | D31: C85006 | E31: WOODLAND DRIVE MEDICAL CENTRE | F31: WOODLAND DRIVE, BARNSLEY | G31: S70 6QW | H31: Yes | K31: no data | M31: no data | O31: no data | Q31: no data | S31: no data | U31: no data | W31: no data | Y31: 10 | Z31: 3, 5, 0, 1, 0, 1 | AA31: no data | AC31: 3 | AD31: * | AE31: 4 | AF31: * | AG31: no data | AI31: 7 | AJ31: 3, 3, 0, 1, 0, 0 | AK31: 6 | AL31: 2, 4, 0, 0, 0, 0 | AM31: 3 | AN31: * | AO31: no data | AQ31: 3 | AR31: * | AS31: 7 | AT31: 5, 1, 0, 0, 0, 1 | AU31: 8 | AV31: 3, 1, 1, 0, 2, 1 | AW31: 4 | AX31: * | AY31: 8 | AZ31: 5, 2, 0, 0, 1, 0 | BA31: 3 | BB31: * | BC31: 10 | BD31: 5, 4, 0, 0, 1, 0 | BE31: no data | BG31: =VLOOKUP(D31,'[1]Apr-17'!$E$2:$Q$7375,13,FALSE) -> 
A32: Y54 | B32: Q72 | C32: 02P | D32: C85007 | E32: THE DOVE VALLEY PMS PRACTICE | F32: WORSBROUGH HEALTH CENTRE, POWELL STREET, WORSBROUGH, BARNSLEY, SOUTH YORKSHIRE | G32: S70 5NZ | K32: 12 | L32: 7, 5, 0, 0, 0, 0 | M32: 0 | N32: 0, 0, 0, 0, 0, 0 | O32: 6 | P32: 5, 0, 0, 1, 0, 0 | Q32: 1 | R32: * | S32: 3 | T32: * | U32: 8 | V32: 4, 3, 1, 0, 0, 0 | W32: 8 | X32: 4, 3, 1, 0, 0, 0 | Y32: 10 | Z32: 4, 2, 3, 0, 0, 1 | AA32: 9 | AB32: 5, 3, 0, 1, 0, 0 | AC32: 9 | AD32: 1, 3, 3, 0, 0, 2 | AE32: 0 | AF32: 0, 0, 0, 0, 0, 0 | AG32: 10 | AH32: 7, 1, 0, 1, 0, 1 | AI32: 10 | AJ32: 7, 1, 1, 0, 0, 1 | AK32: 11 | AL32: 6, 3, 2, 0, 0, 0 | AM32: 13 | AN32: 3, 6, 2, 1, 1, 0 | AO32: 12 | AP32: 7, 5, 0, 0, 0, 0 | AQ32: 11 | AR32: 6, 4, 0, 0, 1, 0 | AS32: 1 | AT32: * | AU32: 7 | AV32: 1, 2, 2, 1, 0, 1 | AW32: no data | AY32: 25 | AZ32: 8, 11, 2, 2, 1, 1 | BA32: 45 | BB32: 29, 13, 1, 0, 1, 1 | BC32: 37 | BD32: 25, 9, 2, 0, 0, 1 | BE32: 64 | BF32: 30, 26, 2, 2, 2, 2 | BG32: =VLOOKUP(D32,'[1]Apr-17'!$E$2:$Q$7375,13,FALSE) -> 12 | BH32: 0
A33: Y54 | B33: Q72 | C33: 02P | D33: C85008 | E33: WALDERSLADE SURGERY | F33: HIGH CROFT, HOYLAND, BARNSLEY | G33: S74 9AF | K33: 75 | L33: 55, 6, 4, 3, 1, 6 | M33: 114 | N33: 85, 10, 1, 2, 2, 14 | O33: 83 | P33: 63, 8, 1, 0, 2, 9 | Q33: 76 | R33: 58, 8, 2, 1, 2, 5 | S33: 75 | T33: 52, 7, 8, 2, 4, 2 | U33: 96 | V33: 80, 10, 2, 1, 0, 3 | W33: 97 | X33: 84, 9, 0, 1, 3, 0 | Y33: 97 | Z33: 84, 4, 0, 3, 5, 1 | AA33: 78 | AB33: 58, 13, 6, 0, 1, 0 | AC33: 88 | AD33: 66, 15, 1, 0, 0, 6 | AE33: 44 | AF33: 38, 1, 0, 1, 1, 3 | AG33: 59 | AH33: 48, 3, 6, 0, 2, 0 | AI33: 62 | AJ33: 34, 16, 11, 0, 1, 0 | AK33: 52 | AL33: 30, 5, 3, 2, 3, 9 | AM33: 62 | AN33: 43, 9, 3, 2, 0, 5 | AO33: 60 | AP33: 38, 12, 1, 2, 0, 7 | AQ33: 49 | AR33: 31, 7, 6, 1, 2, 2 | AS33: 80 | AT33: 45, 18, 4, 1, 6, 6 | AU33: 46 | AV33: 38, 3, 3, 0, 1, 1 | AW33: 51 | AX33: 33, 10, 3, 1, 2, 2 | AY33: 24 | AZ33: 12, 7, 5, 0, 0, 0 | BA33: 20 | BB33: 8, 6, 4, 0, 2, 0 | BC33: 9 | BD33: 4, 2, 1, 1, 1, 0 | BE33: 14 | BF33: 11, 1, 2, 0, 0, 0 | BG33: =VLOOKUP(D33,'[1]Apr-17'!$E$2:$Q$7375,13,FALSE) -> 75 | BH33: 0
A34: Y54 | B34: Q72 | C34: 02P | D34: C85009 | E34: THE KAKOTY PRACTICE | F34: 170 SHEFFIELD ROAD, BARNSLEY, SOUTH YORKSHIRE | G34: S70 4NW | K34: 11 | L34: 6, 3, 1, 1, 0, 0 | M34: 14 | N34: 8, 5, 0, 1, 0, 0 | O34: 12 | P34: 9, 2, 1, 0, 0, 0 | Q34: 5 | R34: 3, 2, 0, 0, 0, 0 | S34: no data | U34: 6 | V34: 5, 0, 0, 0, 1, 0 | W34: 13 | X34: 6, 2, 2, 0, 3, 0 | Y34: 5 | Z34: 4, 0, 0, 0, 1, 0 | AA34: 12 | AB34: 8, 4, 0, 0, 0, 0 | AC34: 8 | AD34: 6, 1, 0, 1, 0, 0 | AE34: 6 | AF34: 5, 0, 0, 1, 0, 0 | AG34: 6 | AH34: 5, 1, 0, 0, 0, 0 | AI34: 7 | AJ34: 2, 0, 1, 0, 4, 0 | AK34: 9 | AL34: 3, 2, 0, 1, 3, 0 | AM34: 5 | AN34: 3, 1, 0, 0, 0, 1 | AO34: 1 | AP34: * | AQ34: 14 | AR34: 8, 5, 0, 1, 0, 0 | AS34: 7 | AT34: 3, 2, 1, 0, 1, 0 | AU34: 24 | AV34: 7, 12, 1, 1, 3, 0 | AW34: no data | AY34: no data | BA34: 29 | BB34: 14, 8, 1, 1, 4, 1 | BC34: 6 | BD34: 2, 1, 1, 0, 1, 1 | BE34: 34 | BF34: 15, 7, 0, 2, 8, 2 | BG34: =VLOOKUP(D34,'[1]Apr-17'!$E$2:$Q$7375,13,FALSE) -> 11 | BH34: 0
A35: Y54 | B35: Q72 | C35: 02P | D35: C85010 | E35: HILL BROW SURGERY PMS PRACTICE | F35: HILL BROW SURGERY, LONG CROFT, STAINCROSS, BARNSLEY, SOUTH YORKSHIRE | G35: S75 6FH | K35: 83 | L35: 71, 5, 3, 0, 4, 0 | M35: 104 | N35: 81, 14, 3, 3, 3, 0 | O35: 103 | P35: 81, 12, 1, 3, 6, 0 | Q35: 82 | R35: 69, 7, 0, 1, 5, 0 | S35: no data | U35: 74 | V35: 60, 6, 2, 1, 5, 0 | W35: 67 | X35: 57, 4, 1, 2, 3, 0 | Y35: 74 | Z35: 53, 9, 6, 1, 5, 0 | AA35: 74 | AB35: 59, 8, 1, 2, 4, 0 | AC35: 91 | AD35: 74, 7, 1, 1, 8, 0 | AE35: 90 | AF35: 67, 8, 2, 2, 11, 0 | AG35: no data | AI35: 100 | AJ35: 76, 14, 2, 3, 5, 0 | AK35: 93 | AL35: 76, 9, 1, 4, 3, 0 | AM35: 79 | AN35: 66, 4, 3, 2, 4, 0 | AO35: 89 | AP35: 74, 10, 4, 1, 0, 0 | AQ35: 205 | AR35: 169, 22, 4, 8, 2, 0 | AS35: 109 | AT35: 84, 14, 0, 5, 5, 1 | AU35: 4 | AV35: * | AW35: 4 | AX35: * | AY35: 8 | AZ35: 5, 0, 0, 0, 3, 0 | BA35: 0 | BB35: 0, 0, 0, 0, 0, 0 | BC35: 7 | BD35: 3, 3, 0, 0, 1, 0 | BE35: 7 | BF35: 5, 0, 0, 0, 2, 0 | BG35: =VLOOKUP(D35,'[1]Apr-17'!$E$2:$Q$7375,13,FALSE) -> 83 | BH35: 0
A36: Y54 | B36: Q72 | C36: 02P | D36: C85013 | E36: WOMBWELL GMS PRACTICE | F36: CHAPELFIELD MEDICAL CTR, MAYFLOWER WAY, WOMBWELL, BARNSLEY, SOUTH YORKSHIRE | G36: S73 0AJ | H36: Yes | K36: no data | M36: no data | O36: no data | Q36: no data | S36: no data | U36: 11 | V36: 7, 4, 0, 0, 0, 0 | W36: 10 | X36: 7, 3, 0, 0, 0, 0 | Y36: 11 | Z36: 7, 4, 0, 0, 0, 0 | AA36: 9 | AB36: 6, 3, 0, 0, 0, 0 | AC36: 6 | AD36: 4, 2, 0, 0, 0, 0 | AE36: 13 | AF36: 8, 5, 0, 0, 0, 0 | AG36: 11 | AH36: 7, 4, 0, 0, 0, 0 | AI36: 14 | AJ36: 8, 6, 0, 0, 0, 0 | AK36: 13 | AL36: 8, 5, 0, 0, 0, 0 | AM36: 14 | AN36: 9, 5, 0, 0, 0, 0 | AO36: 21 | AP36: 12, 9, 0, 0, 0, 0 | AQ36: 17 | AR36: 9, 7, 1, 0, 0, 0 | AS36: 15 | AT36: 9, 5, 0, 1, 0, 0 | AU36: 10 | AV36: 7, 2, 0, 1, 0, 0 | AW36: 11 | AX36: 11, 0, 0, 0, 0, 0 | AY36: no data | BA36: 15 | BB36: 9, 6, 0, 0, 0, 0 | BC36: no data | BE36: no data | BG36: =VLOOKUP(D36,'[1]Apr-17'!$E$2:$Q$7375,13,FALSE) -> 
A37: Y54 | B37: Q72 | C37: 02P | D37: C85014 | E37: THE ROSE TREE PMS PRACTICE | F37: WHITE ROSE MED PRACTICE, CUDWORTH CTR,CARLTON ST, BARNSLEY, SOUTH YORKSHIRE | G37: S72 8SU | H37: Yes | K37: no data | M37: no data | O37: no data | Q37: no data | S37: no data | U37: 4 | V37: * | W37: no data | Y37: no data | AA37: no data | AC37: no data | AE37: no data | AG37: no data | AI37: 2 | AJ37: * | AK37: 1 | AL37: * | AM37: 2 | AN37: * | AO37: 7 | AP37: 3, 4, 0, 0, 0, 0 | AQ37: no data | AS37: no data | AU37: 32 | AV37: 16, 11, 2, 2, 1, 0 | AW37: 6 | AX37: 3, 1, 0, 1, 1, 0 | AY37: 27 | AZ37: 9, 12, 2, 3, 1, 0 | BA37: 0 | BB37: 0, 0, 0, 0, 0, 0 | BC37: no data | BE37: no data | BG37: =VLOOKUP(D37,'[1]Apr-17'!$E$2:$Q$7375,13,FALSE) -> 
A38: Y54 | B38: Q72 | C38: 02P | D38: C85015 | E38: ROTHERHAM ROAD MED CENTRE PMS | F38: ROTHERHAM RD MED PRACTICE, 100 ROTHERHAM ROAD, BARNSLEY, SOUTH YORKSHIRE | G38: S71 1UT | H38: Yes | K38: no data | M38: no data | O38: no data | Q38: no data | S38: 3 | T38: * | U38: 0 | V38: 0, 0, 0, 0, 0, 0 | W38: 5 | X38: 0, 4, 0, 1, 0, 0 | Y38: 4 | Z38: * | AA38: 6 | AB38: 2, 3, 1, 0, 0, 0 | AC38: 2 | AD38: * | AE38: 0 | AF38: 0, 0, 0, 0, 0, 0 | AG38: no data | AI38: 0 | AJ38: 0, 0, 0, 0, 0, 0 | AK38: 6 | AL38: 3, 3, 0, 0, 0, 0 | AM38: no data | AO38: 1 | AP38: * | AQ38: 0 | AR38: 0, 0, 0, 0, 0, 0 | AS38: 2 | AT38: * | AU38: 1 | AV38: * | AW38: 2 | AX38: * | AY38: no data | BA38: 1 | BB38: * | BC38: 1 | BD38: * | BE38: 8 | BF38: 4, 1, 0, 0, 2, 1 | BG38: =VLOOKUP(D38,'[1]Apr-17'!$E$2:$Q$7375,13,FALSE) -> 
A39: Y54 | B39: Q72 | C39: 02P | D39: C85016 | E39: DR MELLOR & PARTNERS | F39: GARLAND HOUSE, 1 CHURCH STREET, DARFIELD, BARNSLEY, SOUTH YORKSHIRE | G39: S73 9JX | K39: 3 | L39: * | M39: 8 | N39: 6, 1, 1, 0, 0, 0 | O39: 6 | P39: 3, 2, 0, 0, 1, 0 | Q39: 3 | R39: * | S39: 2 | T39: * | U39: 5 | V39: 4, 0, 0, 1, 0, 0 | W39: 6 | X39: 2, 1, 2, 0, 1, 0 | Y39: 8 | Z39: 5, 2, 1, 0, 0, 0 | AA39: 8 | AB39: 5, 2, 0, 0, 0, 1 | AC39: 11 | AD39: 7, 2, 1, 1, 0, 0 | AE39: 0 | AF39: 0, 0, 0, 0, 0, 0 | AG39: 11 | AH39: 7, 3, 0, 0, 1, 0 | AI39: 7 | AJ39: 5, 1, 0, 0, 1, 0 | AK39: 10 | AL39: 5, 1, 2, 0, 2, 0 | AM39: 10 | AN39: 8, 1, 0, 1, 0, 0 | AO39: no data | AQ39: 2 | AR39: * | AS39: 18 | AT39: 16, 2, 0, 0, 0, 0 | AU39: 27 | AV39: 20, 3, 2, 2, 0, 0 | AW39: 19 | AX39: 17, 1, 0, 1, 0, 0 | AY39: 40 | AZ39: 28, 9, 1, 0, 2, 0 | BA39: 14 | BB39: 9, 1, 3, 0, 0, 1 | BC39: 41 | BD39: 28, 11, 1, 0, 1, 0 | BE39: 11 | BF39: 10, 0, 1, 0, 0, 0 | BG39: =VLOOKUP(D39,'[1]Apr-17'!$E$2:$Q$7375,13,FALSE) -> 3 | BH39: 0
A40: Y54 | B40: Q72 | C40: 02P | D40: C85017 | E40: PARK GROVE SURGERY | F40: 94 PARK GROVE, BARNSLEY, SOUTH YORKSHIRE | G40: S70 1QE | K40: no data | M40: no data | O40: 36 | P40: 20, 8, 2, 3, 2, 1 | Q40: no data | S40: 4 | T40: * | U40: no data | W40: 9 | X40: 4, 4, 0, 1, 0, 0 | Y40: 4 | Z40: * | AA40: no data | AC40: 8 | AD40: 5, 3, 0, 0, 0, 0 | AE40: 22 | AF40: 12, 6, 1, 2, 1, 0 | AG40: no data | AI40: 7 | AJ40: 4, 2, 0, 0, 0, 1 | AK40: 4 | AL40: * | AM40: 2 | AN40: * | AO40: 15 | AP40: 9, 5, 0, 1, 0, 0 | AQ40: 20 | AR40: 11, 6, 1, 0, 1, 1 | AS40: 13 | AT40: 11, 1, 1, 0, 0, 0 | AU40: 14 | AV40: 4, 6, 2, 1, 1, 0 | AW40: 3 | AX40: * | AY40: no data | BA40: 6 | BB40: 3, 3, 0, 0, 0, 0 | BC40: 19 | BD40: 7, 9, 1, 0, 0, 2 | BE40: 12 | BF40: 4, 7, 0, 1, 0, 0 | BG40: =VLOOKUP(D40,'[1]Apr-17'!$E$2:$Q$7375,13,FALSE) -> 
A41: Y54 | B41: Q72 | C41: 02P | D41: C85018 | E41: GRIMETHORPE SURGERY | F41: THE GRIMETHORPE CENTRE, ACORN WAY, GRIMETHORPE, BARNSLEY, SOUTH YORKSHIRE | G41: S72 7NZ | H41: Yes | K41: no data | M41: no data | O41: no data | Q41: no data | S41: 27 | T41: 23, 4, 0, 0, 0, 0 | U41: no data | W41: 3 | X41: * | Y41: 3 | Z41: * | AA41: 8 | AB41: 6, 2, 0, 0, 0, 0 | AC41: no data | AE41: 5 | AF41: 3, 2, 0, 0, 0, 0 | AG41: 12 | AH41: 7, 4, 0, 0, 1, 0 | AI41: 5 | AJ41: 1, 4, 0, 0, 0, 0 | AK41: 8 | AL41: 5, 3, 0, 0, 0, 0 | AM41: 20 | AN41: 14, 3, 2, 1, 0, 0 | AO41: 7 | AP41: 5, 1, 1, 0, 0, 0 | AQ41: 10 | AR41: 5, 5, 0, 0, 0, 0 | AS41: 9 | AT41: 5, 4, 0, 0, 0, 0 | AU41: 5 | AV41: 4, 1, 0, 0, 0, 0 | AW41: 5 | AX41: 4, 1, 0, 0, 0, 0 | AY41: 8 | AZ41: 6, 0, 0, 1, 0, 1 | BA41: no data | BC41: 5 | BD41: 5, 0, 0, 0, 0, 0 | BE41: 21 | BF41: 18, 3, 0, 0, 0, 0 | BG41: =VLOOKUP(D41,'[1]Apr-17'!$E$2:$Q$7375,13,FALSE) -> 
A42: Y54 | B42: Q72 | C42: 02P | D42: C85019 | E42: THE GROVE MEDICAL PRACTICE | F42: 124-126 PARK GROVE, BARNSLEY, SOUTH YORKSHIRE | G42: S70 1QE | K42: 0 | L42: 0, 0, 0, 0, 0, 0 | M42: no data | O42: no data | Q42: no data | S42: 0 | T42: 0, 0, 0, 0, 0, 0 | U42: no data | W42: no data | Y42: 8 | Z42: 5, 2, 1, 0, 0, 0 | AA42: no data | AC42: 0 | AD42: 0, 0, 0, 0, 0, 0 | AE42: no data | AG42: no data | AI42: 0 | AJ42: 0, 0, 0, 0, 0, 0 | AK42: 10 | AL42: 4, 5, 0, 1, 0, 0 | AM42: no data | AO42: 0 | AP42: 0, 0, 0, 0, 0, 0 | AQ42: 0 | AR42: 0, 0, 0, 0, 0, 0 | AS42: no data | AU42: no data | AW42: 3 | AX42: * | AY42: 8 | AZ42: 7, 0, 1, 0, 0, 0 | BA42: 11 | BB42: 8, 2, 0, 0, 1, 0 | BC42: 19 | BD42: 11, 3, 2, 2, 0, 1 | BE42: 2 | BF42: * | BG42: =VLOOKUP(D42,'[1]Apr-17'!$E$2:$Q$7375,13,FALSE) -> 0 | BH42: 0
A43: Y54 | B43: Q72 | C43: 02P | D43: C85020 | E43: HUDDERSFIELD ROAD SURGERY | F43: 6 HUDDERSFIELD ROAD, BARNSLEY, SOUTH YORKSHIRE | G43: S70 2LT | H43: Yes | K43: no data | M43: no data | O43: no data | Q43: no data | S43: no data | U43: no data | W43: no data | Y43: no data | AA43: no data | AC43: no data | AE43: 10 | AF43: 6, 4, 0, 0, 0, 0 | AG43: 44 | AH43: 27, 11, 0, 5, 1, 0 | AI43: 0 | AJ43: 0, 0, 0, 0, 0, 0 | AK43: 22 | AL43: 18, 3, 1, 0, 0, 0 | AM43: 4 | AN43: * | AO43: 34 | AP43: 34, 0, 0, 0, 0, 0 | AQ43: 11 | AR43: 0, 9, 1, 0, 1, 0 | AS43: 5 | AT43: 4, 1, 0, 0, 0, 0 | AU43: 68 | AV43: 49, 17, 2, 0, 0, 0 | AW43: 10 | AX43: 5, 3, 0, 1, 0, 1 | AY43: 3 | AZ43: * | BA43: 9 | BB43: 5, 0, 0, 0, 4, 0 | BC43: no data | BE43: 10 | BF43: 8, 2, 0, 0, 0, 0 | BG43: =VLOOKUP(D43,'[1]Apr-17'!$E$2:$Q$7375,13,FALSE) -> 
A44: Y54 | B44: Q72 | C44: 02P | D44: C85022 | E44: HOYLAND MEDICAL PRACTICE | F44: THE HOYLAND CENTRE, HIGH CROFT, HOYLAND, BARNSLEY, SOUTH YORKSHIRE | G44: S74 9AF | K44: 3 | L44: * | M44: 5 | N44: 4, 0, 0, 0, 1, 0 | O44: 7 | P44: 5, 0, 1, 0, 1, 0 | Q44: 3 | R44: * | S44: 2 | T44: * | U44: 3 | V44: * | W44: 1 | X44: * | Y44: 3 | Z44: * | AA44: 32 | AB44: 22, 6, 2, 1, 0, 1 | AC44: 2 | AD44: * | AE44: 2 | AF44: * | AG44: 12 | AH44: 8, 4, 0, 0, 0, 0 | AI44: 4 | AJ44: * | AK44: 9 | AL44: 6, 1, 0, 0, 2, 0 | AM44: 10 | AN44: 8, 1, 0, 0, 1, 0 | AO44: no data | AQ44: 1 | AR44: * | AS44: 9 | AT44: 7, 0, 0, 1, 1, 0 | AU44: 30 | AV44: 21, 4, 3, 1, 0, 1 | AW44: 22 | AX44: 19, 1, 1, 1, 0, 0 | AY44: 11 | AZ44: 8, 2, 0, 0, 1, 0 | BA44: 3 | BB44: * | BC44: 13 | BD44: 7, 5, 0, 1, 0, 0 | BE44: 1 | BF44: * | BG44: =VLOOKUP(D44,'[1]Apr-17'!$E$2:$Q$7375,13,FALSE) -> 3 | BH44: 0
A45: Y54 | B45: Q72 | C45: 02P | D45: C85023 | E45: HOLLYGREEN PRACTICE | F45: THE GOLDTHORPE CENTRE, GOLDTHORPE GRN,GOLDTHORPE, ROTHERHAM, SOUTH YORKSHIRE | G45: S63 9EH | K45: 11 | L45: 6, 3, 0, 2, 0, 0 | M45: 0 | N45: 0, 0, 0, 0, 0, 0 | O45: no data | Q45: 1 | R45: * | S45: 10 | T45: 6, 1, 1, 1, 1, 0 | U45: 8 | V45: 2, 6, 0, 0, 0, 0 | W45: 2 | X45: * | Y45: 0 | Z45: 0, 0, 0, 0, 0, 0 | AA45: 2 | AB45: * | AC45: 5 | AD45: 0, 1, 1, 1, 2, 0 | AE45: 2 | AF45: * | AG45: 5 | AH45: 0, 0, 2, 2, 1, 0 | AI45: no data | AK45: 3 | AL45: * | AM45: 5 | AN45: 2, 1, 1, 0, 1, 0 | AO45: 10 | AP45: 5, 3, 2, 0, 0, 0 | AQ45: 0 | AR45: 0, 0, 0, 0, 0, 0 | AS45: 2 | AT45: * | AU45: 16 | AV45: 9, 3, 2, 2, 0, 0 | AW45: 12 | AX45: 6, 5, 1, 0, 0, 0 | AY45: 3 | AZ45: * | BA45: 2 | BB45: * | BC45: 7 | BD45: 4, 2, 0, 0, 0, 1 | BE45: 2 | BF45: * | BG45: =VLOOKUP(D45,'[1]Apr-17'!$E$2:$Q$7375,13,FALSE) -> 11 | BH45: 0
A46: Y54 | B46: Q72 | C46: 02P | D46: C85024 | E46: HIGH STREET PRACTICE | F46: 48 HIGH STREET, ROYSTON, BARNSLEY | G46: S71 4RF | K46: 10 | L46: 7, 2, 0, 0, 0, 1 | M46: 16 | N46: 14, 2, 0, 0, 0, 0 | O46: 29 | P46: 23, 6, 0, 0, 0, 0 | Q46: 13 | R46: 8, 4, 1, 0, 0, 0 | S46: 13 | T46: 8, 3, 1, 0, 1, 0 | U46: 22 | V46: 16, 4, 2, 0, 0, 0 | W46: 31 | X46: 21, 9, 0, 0, 1, 0 | Y46: 24 | Z46: 14, 4, 4, 1, 0, 1 | AA46: 21 | AB46: 14, 5, 1, 1, 0, 0 | AC46: 25 | AD46: 15, 9, 1, 0, 0, 0 | AE46: 16 | AF46: 6, 7, 1, 0, 1, 1 | AG46: 26 | AH46: 18, 4, 0, 0, 2, 2 | AI46: 21 | AJ46: 15, 4, 1, 1, 0, 0 | AK46: 0 | AL46: 0, 0, 0, 0, 0, 0 | AM46: 19 | AN46: 15, 2, 1, 0, 1, 0 | AO46: 35 | AP46: 15, 20, 0, 0, 0, 0 | AQ46: 61 | AR46: 47, 10, 3, 0, 1, 0 | AS46: 5 | AT46: 5, 0, 0, 0, 0, 0 | AU46: 9 | AV46: 9, 0, 0, 0, 0, 0 | AW46: no data | AY46: 2 | AZ46: * | BA46: 6 | BB46: 3, 3, 0, 0, 0, 0 | BC46: 9 | BD46: 9, 0, 0, 0, 0, 0 | BE46: 4 | BF46: * | BG46: =VLOOKUP(D46,'[1]Apr-17'!$E$2:$Q$7375,13,FALSE) -> 10 | BH46: 0
A47: Y54 | B47: Q72 | C47: 02P | D47: C85026 | E47: APOLLO COURT MEDICAL CENTRE | F47: APOLLO COURT MEDICAL CTR, HIGH STREET, DODWORTH, BARNSLEY, SOUTH YORKSHIRE | G47: S75 3RF | H47: Yes | K47: no data | M47: no data | O47: no data | Q47: no data | S47: no data | U47: no data | W47: no data | Y47: 14 | Z47: 5, 3, 0, 3, 3, 0 | AA47: 16 | AB47: 6, 6, 2, 0, 1, 1 | AC47: 34 | AD47: 19, 6, 3, 2, 3, 1 | AE47: 36 | AF47: 20, 10, 2, 0, 4, 0 | AG47: 56 | AH47: 23, 17, 5, 5, 6, 0 | AI47: no data | AK47: 61 | AL47: 33, 8, 7, 4, 7, 2 | AM47: 72 | AN47: 32, 25, 7, 4, 4, 0 | AO47: 129 | AP47: 57, 32, 14, 10, 15, 1 | AQ47: 98 | AR47: 49, 25, 6, 5, 11, 2 | AS47: 37 | AT47: 23, 10, 2, 1, 1, 0 | AU47: 3 | AV47: * | AW47: 4 | AX47: * | AY47: 8 | AZ47: 4, 3, 0, 1, 0, 0 | BA47: 7 | BB47: 3, 2, 0, 1, 1, 0 | BC47: 4 | BD47: * | BE47: 18 | BF47: 11, 6, 0, 0, 1, 0 | BG47: =VLOOKUP(D47,'[1]Apr-17'!$E$2:$Q$7375,13,FALSE) -> 
A48: Y54 | B48: Q72 | C48: 02P | D48: C85028 | E48: LUNDWOOD MEDICAL CENTRE PMS PRACTICE | F48: THE MEDICAL CENTRE, PONTEFRACT RD, LUNDWOOD, BARNSLEY, SOUTH YORKSHIRE | G48: S71 5PN | K48: 0 | L48: 0, 0, 0, 0, 0, 0 | M48: 1 | N48: * | O48: 1 | P48: * | Q48: 0 | R48: 0, 0, 0, 0, 0, 0 | S48: 3 | T48: * | U48: 0 | V48: 0, 0, 0, 0, 0, 0 | W48: 0 | X48: 0, 0, 0, 0, 0, 0 | Y48: 1 | Z48: * | AA48: 0 | AB48: 0, 0, 0, 0, 0, 0 | AC48: 2 | AD48: * | AE48: 1 | AF48: * | AG48: 2 | AH48: * | AI48: 0 | AJ48: 0, 0, 0, 0, 0, 0 | AK48: 1 | AL48: * | AM48: 0 | AN48: 0, 0, 0, 0, 0, 0 | AO48: 0 | AP48: 0, 0, 0, 0, 0, 0 | AQ48: 1 | AR48: * | AS48: 4 | AT48: * | AU48: 5 | AV48: 4, 0, 0, 0, 1, 0 | AW48: no data | AY48: 1 | AZ48: * | BA48: 3 | BB48: * | BC48: 2 | BD48: * | BE48: 4 | BF48: * | BG48: =VLOOKUP(D48,'[1]Apr-17'!$E$2:$Q$7375,13,FALSE) -> 0 | BH48: 0
A49: Y54 | B49: Q72 | C49: 02P | D49: C85030 | E49: WOMBWELL MEDICAL CENTRE PRACTICE | F49: WOMBWELL MEDICAL CENTRE, GEORGE STREET, WOMBWELL, BARNSLEY, SOUTH YORKSHIRE | G49: S73 0DD | K49: 59 | L49: 21, 28, 4, 0, 3, 3 | M49: 76 | N49: 28, 32, 8, 2, 3, 3 | O49: 64 | P49: 23, 26, 9, 3, 3, 0 | Q49: 53 | R49: 23, 21, 3, 0, 5, 1 | S49: 115 | T49: 51, 45, 8, 3, 7, 1 | U49: 115 | V49: 59, 42, 4, 3, 4, 3 | W49: 169 | X49: 98, 56, 6, 1, 7, 1 | Y49: 72 | Z49: 25, 34, 6, 3, 4, 0 | AA49: 43 | AB49: 12, 18, 8, 1, 4, 0 | AC49: 23 | AD49: 9, 5, 4, 2, 3, 0 | AE49: 43 | AF49: 17, 15, 8, 3, 0, 0 | AG49: 53 | AH49: 18, 19, 11, 2, 3, 0 | AI49: 13 | AJ49: 6, 4, 0, 1, 2, 0 | AK49: 37 | AL49: 16, 16, 3, 1, 1, 0 | AM49: 80 | AN49: 31, 19, 7, 8, 14, 1 | AO49: 26 | AP49: 7, 11, 4, 3, 1, 0 | AQ49: 39 | AR49: 15, 11, 7, 2, 4, 0 | AS49: 134 | AT49: 67, 37, 16, 4, 2, 8 | AU49: 50 | AV49: 19, 15, 8, 5, 3, 0 | AW49: 68 | AX49: 22, 27, 8, 6, 4, 1 | AY49: 110 | AZ49: 40, 36, 19, 10, 2, 3 | BA49: 10 | BB49: 6, 2, 2, 0, 0, 0 | BC49: 24 | BD49: 9, 8, 2, 1, 3, 1 | BE49: 17 | BF49: 5, 4, 1, 0, 7, 0 | BG49: =VLOOKUP(D49,'[1]Apr-17'!$E$2:$Q$7375,13,FALSE) -> 59 | BH49: 0
A50: Y54 | B50: Q72 | C50: 02P | D50: C85033 | E50: VICTORIA MEDICAL CENTRE PMS PRACTICE | F50: VICTORIA MEDICAL CENTRE, 7 VICTORIA CRESCENT WEST, BARNSLEY | G50: S75 2AE | K50: no data | M50: 8 | N50: 4, 2, 0, 0, 2, 0 | O50: no data | Q50: no data | S50: no data | U50: no data | W50: 3 | X50: * | Y50: no data | AA50: no data | AC50: 7 | AD50: 1, 3, 2, 1, 0, 0 | AE50: no data | AG50: 3 | AH50: * | AI50: no data | AK50: 4 | AL50: * | AM50: 8 | AN50: 3, 3, 1, 0, 0, 1 | AO50: 7 | AP50: 2, 3, 1, 0, 0, 1 | AQ50: 5 | AR50: 1, 3, 1, 0, 0, 0 | AS50: 5 | AT50: 1, 3, 0, 0, 0, 1 | AU50: 5 | AV50: 1, 3, 1, 0, 0, 0 | AW50: 10 | AX50: 8, 1, 1, 0, 0, 0 | AY50: 10 | AZ50: 9, 1, 0, 0, 0, 0 | BA50: 8 | BB50: 6, 1, 0, 0, 1, 0 | BC50: 8 | BD50: 6, 1, 0, 1, 0, 0 | BE50: 9 | BF50: 8, 0, 0, 0, 0, 1 | BG50: =VLOOKUP(D50,'[1]Apr-17'!$E$2:$Q$7375,13,FALSE) -> 
A51: Y54 | B51: Q72 | C51: 02P | D51: C85614 | E51: DARTON HEALTH CENTRE PRACTICE | F51: THE HEALTH CENTRE, CHURCH ST, DARTON, BARNSLEY | G51: S75 5HQ | H51: Yes | K51: no data | M51: no data | O51: no data | Q51: no data | S51: no data | U51: no data | W51: 28 | X51: 23, 4, 1, 0, 0, 0 | Y51: 9 | Z51: 4, 5, 0, 0, 0, 0 | AA51: 18 | AB51: 13, 4, 0, 0, 1, 0 | AC51: 26 | AD51: 15, 8, 1, 0, 0, 2 | AE51: no data | AG51: 35 | AH51: 25, 6, 3, 1, 0, 0 | AI51: 20 | AJ51: 10, 5, 3, 2, 0, 0 | AK51: 42 | AL51: 32, 7, 1, 0, 0, 2 | AM51: 29 | AN51: 16, 8, 1, 2, 1, 1 | AO51: 27 | AP51: 19, 7, 1, 0, 0, 0 | AQ51: 33 | AR51: 16, 13, 3, 0, 0, 1 | AS51: 32 | AT51: 25, 6, 1, 0, 0, 0 | AU51: 23 | AV51: 16, 6, 0, 1, 0, 0 | AW51: 56 | AX51: 43, 12, 0, 1, 0, 0 | AY51: no data | BA51: 36 | BB51: 22, 9, 2, 0, 2, 1 | BC51: 27 | BD51: 20, 4, 0, 2, 0, 1 | BE51: 54 | BF51: 35, 15, 1, 1, 0, 2 | BG51: =VLOOKUP(D51,'[1]Apr-17'!$E$2:$Q$7375,13,FALSE) -> 
A52: Y54 | B52: Q72 | C52: 02P | D52: C85619 | E52: ST GEORGE'S MEDICAL CENTRE PMS PRACTICE | F52: ROUNDHOUSE MEDICAL CENTRE, LANGSETT COURT, NEW LODGE, BARNSLEY | G52: S71 1RY | K52: 12 | L52: 6, 6, 0, 0, 0, 0 | M52: 10 | N52: 7, 2, 1, 0, 0, 0 | O52: 15 | P52: 11, 4, 0, 0, 0, 0 | Q52: 18 | R52: 11, 4, 3, 0, 0, 0 | S52: 29 | T52: 17, 8, 0, 1, 1, 2 | U52: 12 | V52: 7, 4, 0, 0, 1, 0 | W52: 30 | X52: 16, 12, 0, 0, 0, 2 | Y52: 14 | Z52: 8, 5, 0, 0, 1, 0 | AA52: 30 | AB52: 14, 12, 1, 0, 1, 2 | AC52: 33 | AD52: 20, 13, 0, 0, 0, 0 | AE52: 42 | AF52: 21, 17, 1, 1, 0, 2 | AG52: 43 | AH52: 18, 19, 3, 2, 0, 1 | AI52: 44 | AJ52: 27, 12, 4, 1, 0, 0 | AK52: 29 | AL52: 17, 9, 1, 0, 1, 1 | AM52: 16 | AN52: 11, 4, 0, 1, 0, 0 | AO52: 37 | AP52: 15, 14, 4, 1, 2, 1 | AQ52: 24 | AR52: 14, 6, 3, 1, 0, 0 | AS52: 39 | AT52: 17, 15, 4, 1, 2, 0 | AU52: 33 | AV52: 22, 8, 1, 1, 1, 0 | AW52: 14 | AX52: 7, 7, 0, 0, 0, 0 | AY52: 17 | AZ52: 10, 7, 0, 0, 0, 0 | BA52: 20 | BB52: 13, 6, 0, 1, 0, 0 | BC52: 10 | BD52: 6, 3, 1, 0, 0, 0 | BE52: 19 | BF52: 7, 11, 1, 0, 0, 0 | BG52: =VLOOKUP(D52,'[1]Apr-17'!$E$2:$Q$7375,13,FALSE) -> 12 | BH52: 0
A53: Y54 | B53: Q72 | C53: 02P | D53: C85622 | E53: MONK BRETTON HEALTH CENTRE PRACTICE | F53: MONK BRETTON HEALTH CTR., HIGH STREET, MONK BRETTON, BARNSLEY, SOUTH YORKSHIRE | G53: S71 2EQ | H53: Yes | K53: no data | M53: no data | O53: no data | Q53: no data | S53: no data | U53: 2 | V53: * | W53: no data | Y53: no data | AA53: no data | AC53: 0 | AD53: 0, 0, 0, 0, 0, 0 | AE53: no data | AG53: no data | AI53: no data | AK53: 0 | AL53: 0, 0, 0, 0, 0, 0 | AM53: no data | AO53: no data | AQ53: 6 | AR53: 4, 2, 0, 0, 0, 0 | AS53: no data | AU53: 4 | AV53: * | AW53: 6 | AX53: 4, 2, 0, 0, 0, 0 | AY53: 3 | AZ53: * | BA53: 0 | BB53: 0, 0, 0, 0, 0, 0 | BC53: no data | BE53: 4 | BF53: * | BG53: =VLOOKUP(D53,'[1]Apr-17'!$E$2:$Q$7375,13,FALSE) -> 
A54: Y54 | B54: Q72 | C54: 02P | D54: C85623 | E54: KINGSWELL SURGERY PMS PRACTICE | F54: KINGSWELL SURGERY, 40 SHREWSBURY ROAD, PENISTONE,SHEFFIELD, SOUTH YORKSHIRE | G54: S36 6DY | K54: 3 | L54: * | M54: 2 | N54: * | O54: 0 | P54: 0, 0, 0, 0, 0, 0 | Q54: 0 | R54: 0, 0, 0, 0, 0, 0 | S54: 0 | T54: 0, 0, 0, 0, 0, 0 | U54: 0 | V54: 0, 0, 0, 0, 0, 0 | W54: 0 | X54: 0, 0, 0, 0, 0, 0 | Y54: 2 | Z54: * | AA54: 1 | AB54: * | AC54: 2 | AD54: * | AE54: 0 | AF54: 0, 0, 0, 0, 0, 0 | AG54: no data | AI54: 0 | AJ54: 0, 0, 0, 0, 0, 0 | AK54: 1 | AL54: * | AM54: 7 | AN54: 6, 1, 0, 0, 0, 0 | AO54: 2 | AP54: * | AQ54: 1 | AR54: * | AS54: 0 | AT54: 0, 0, 0, 0, 0, 0 | AU54: 1 | AV54: * | AW54: 0 | AX54: 0, 0, 0, 0, 0, 0 | AY54: 1 | AZ54: * | BA54: 3 | BB54: * | BC54: no data | BE54: no data | BG54: =VLOOKUP(D54,'[1]Apr-17'!$E$2:$Q$7375,13,FALSE) -> 3 | BH54: 0
A55: Y54 | B55: Q72 | C55: 02P | D55: C85628 | E55: CAXTON HOUSE SURGERY | F55: 53 HIGH STREET, GRIMETHORPE, BARNSLEY | G55: S72 7BB | H55: Yes | K55: no data | M55: no data | O55: no data | Q55: no data | S55: no data | U55: no data | W55: no data | Y55: no data | AA55: no data | AC55: no data | AE55: no data | AG55: no data | AI55: 9 | AJ55: 6, 3, 0, 0, 0, 0 | AK55: 15 | AL55: 8, 5, 1, 0, 1, 0 | AM55: 10 | AN55: 7, 3, 0, 0, 0, 0 | AO55: 11 | AP55: 8, 3, 0, 0, 0, 0 | AQ55: no data | AS55: no data | AU55: 15 | AV55: 10, 4, 1, 0, 0, 0 | AW55: 15 | AX55: 13, 1, 1, 0, 0, 0 | AY55: 26 | AZ55: 20, 5, 1, 0, 0, 0 | BA55: no data | BC55: no data | BE55: no data | BG55: =VLOOKUP(D55,'[1]Apr-17'!$E$2:$Q$7375,13,FALSE) -> 
A56: Y54 | B56: Q72 | C56: 02P | D56: Y00411 | E56: DEARNE VALLEY GROUP PRACTICE | F56: THE THURNSCOE CENTRE, HOLLY BUSH DR, THURNSCOE, ROTHERHAM, SOUTH YORKSHIRE | G56: S63 0LT | H56: Yes | K56: no data | M56: no data | O56: no data | Q56: no data | S56: no data | U56: no data | W56: no data | Y56: no data | AA56: no data | AC56: 9 | AD56: 1, 2, 2, 0, 4, 0 | AE56: 19 | AF56: 13, 3, 1, 2, 0, 0 | AG56: no data | AI56: no data | AK56: no data | AM56: 15 | AN56: 8, 5, 2, 0, 0, 0 | AO56: 26 | AP56: 14, 9, 2, 1, 0, 0 | AQ56: 18 | AR56: 13, 4, 1, 0, 0, 0 | AS56: 26 | AT56: 18, 4, 0, 3, 0, 1 | AU56: 28 | AV56: 14, 10, 2, 1, 0, 1 | AW56: 30 | AX56: 13, 8, 5, 3, 1, 0 | AY56: 22 | AZ56: 8, 9, 2, 1, 0, 2 | BA56: 17 | BB56: 7, 4, 4, 1, 1, 0 | BC56: no data | BE56: 21 | BF56: 10, 8, 2, 0, 0, 1 | BG56: =VLOOKUP(D56,'[1]Apr-17'!$E$2:$Q$7375,13,FALSE) -> 
A57: Y54 | B57: Q72 | C57: 02P | D57: Y04809 | E57: LAKESIDE SURGERY | F57: THE GOLDTHORPE CENTRE, GOLDTHORPE GRN,GOLDTHORPE, ROTHERHAM, SOUTH YORKSHIRE | G57: S63 9EH | K57: 0 | L57: 0, 0, 0, 0, 0, 0 | M57: no data | O57: no data | Q57: no data | S57: no data | U57: no data | W57: no data | Y57: no data | AA57: no data | AC57: 11 | AD57: 4, 1, 3, 2, 1, 0 | AE57: no data | AG57: no data | AI57: 0 | AJ57: 0, 0, 0, 0, 0, 0 | AK57: no data | AM57: no data | AO57: - | AP57: - | AQ57: - | AR57: - | AS57: - | AT57: - | AU57: - | AV57: - | AW57: 0 | AX57: 0, 0, 0, 0, 0, 0 | AY57: 10 | AZ57: 8, 1, 0, 1, 0, 0 | BA57: - | BB57: - | BC57: 8 | BD57: 7, 1, 0, 0, 0, 0 | BE57: 9 | BF57: 8, 0, 0, 1, 0, 0 | BG57: =VLOOKUP(D57,'[1]Apr-17'!$E$2:$Q$7375,13,FALSE) -> 0 | BH57: 0
A58: Y54 | B58: Q72 | C58: 02P | D58: Y05248 | E58: BRIERLEY MEDICAL CENTRE | F58: CHURCH DRIVE, BRIERLEY, BARNSLEY, SOUTH YORKSHIRE | G58: S72 9HZ | K58: no data | M58: no data | O58: 22 | P58: 14, 7, 0, 0, 0, 1 | Q58: no data | S58: no data | U58: no data | W58: - | X58: - | Y58: - | Z58: - | AA58: - | AB58: - | AC58: - | AD58: - | AE58: - | AF58: - | AG58: 22 | AH58: 19, 3, 0, 0, 0, 0 | AI58: - | AJ58: - | AK58: - | AL58: - | AM58: - | AN58: - | AO58: - | AP58: - | AQ58: - | AR58: - | AS58: - | AT58: - | AU58: - | AV58: - | AW58: - | AX58: - | AY58: - | AZ58: - | BA58: - | BB58: - | BC58: - | BD58: - | BE58: - | BF58: - | BG58: =VLOOKUP(D58,'[1]Apr-17'!$E$2:$Q$7375,13,FALSE) -> 
A59: Y54 | B59: Q72 | C59: 02P | D59: Y05363 | E59: BHF HIGHGATE SURGERY | F59: THE GRIMETHOPRE CENTRE, ACORN WAY, GRIMETHORPE, BARNSLEY, SOUTH YORKSHIRE | G59: S72 7NZ | H59: Yes | K59: no data | M59: no data | O59: no data | Q59: no data | S59: no data | U59: no data | W59: - | X59: - | Y59: - | Z59: - | AA59: - | AB59: - | AC59: - | AD59: - | AE59: - | AF59: - | AG59: - | AH59: - | AI59: - | AJ59: - | AK59: - | AL59: - | AM59: - | AN59: - | AO59: - | AP59: - | AQ59: - | AR59: - | AS59: - | AT59: - | AU59: - | AV59: - | AW59: - | AX59: - | AY59: - | AZ59: - | BA59: - | BB59: - | BC59: - | BD59: - | BE59: - | BF59: - | BG59: =VLOOKUP(D59,'[1]Apr-17'!$E$2:$Q$7375,13,FALSE) -> 
A60: Y54 | B60: Q72 | C60: 02P | D60: Y05364 | E60: BHF LUNDWOOD SURGERY | F60: LUNDWOOD PRIORY CAMPUS, PONTEFRACT ROAD,LUNDWOOD, BARNSLEY, SOUTH YORKSHIRE | G60: S71 5PN | H60: Yes | K60: no data | M60: no data | O60: no data | Q60: no data | S60: no data | U60: no data | W60: - | X60: - | Y60: - | Z60: - | AA60: - | AB60: - | AC60: - | AD60: - | AE60: - | AF60: - | AG60: - | AH60: - | AI60: - | AJ60: - | AK60: - | AL60: - | AM60: - | AN60: - | AO60: - | AP60: - | AQ60: - | AR60: - | AS60: - | AT60: - | AU60: - | AV60: - | AW60: - | AX60: - | AY60: - | AZ60: - | BA60: - | BB60: - | BC60: - | BD60: - | BE60: - | BF60: - | BG60: =VLOOKUP(D60,'[1]Apr-17'!$E$2:$Q$7375,13,FALSE) -> 
A61: Y54 | B61: Q72 | C61: 02Q | D61: C84001 | E61: LARWOOD SURGERY | F61: 56 LARWOOD AVE, WORKSOP, NOTTINGHAM, NOTTINGHAMSHIRE | G61: S81 0HH | K61: 11 | L61: 10, 0, 0, 0, 1, 0 | M61: 243 | N61: 150, 77, 9, 3, 1, 3 | O61: 101 | P61: 67, 28, 1, 0, 2, 3 | Q61: 14 | R61: 13, 0, 0, 0, 0, 1 | S61: no data | U61: no data | W61: 32 | X61: 21, 6, 0, 4, 0, 1 | Y61: no data | AA61: 8 | AB61: 7, 1, 0, 0, 0, 0 | AC61: 58 | AD61: 53, 5, 0, 0, 0, 0 | AE61: 47 | AF61: 38, 7, 0, 0, 1, 1 | AG61: 7 | AH61: 3, 0, 1, 0, 0, 3 | AI61: 0 | AJ61: 0, 0, 0, 0, 0, 0 | AK61: 7 | AL61: 7, 0, 0, 0, 0, 0 | AM61: 164 | AN61: 99, 56, 7, 0, 0, 2 | AO61: 209 | AP61: 129, 69, 6, 1, 2, 2 | AQ61: 123 | AR61: 79, 38, 3, 1, 0, 2 | AS61: 383 | AT61: 258, 107, 10, 2, 0, 6 | AU61: 43 | AV61: 30, 8, 5, 0, 0, 0 | AW61: 3 | AX61: * | AY61: 13 | AZ61: 10, 2, 0, 0, 1, 0 | BA61: 22 | BB61: 16, 1, 2, 0, 0, 3 | BC61: 31 | BD61: 26, 3, 1, 1, 0, 0 | BE61: 8 | BF61: 6, 2, 0, 0, 0, 0 | BG61: =VLOOKUP(D61,'[1]Apr-17'!$E$2:$Q$7375,13,FALSE) -> 11 | BH61: 0
A62: Y54 | B62: Q72 | C62: 02Q | D62: C84008 | E62: TUXFORD MEDICAL CENTRE | F62: THE SURGERY, FARADAY AVENUE, TUXFORD, NEWARK, NOTTINGHAMSHIRE | G62: NG22 0HT | H62: Yes | K62: no data | M62: no data | O62: no data | Q62: no data | S62: no data | U62: no data | W62: no data | Y62: 1 | Z62: * | AA62: 0 | AB62: 0, 0, 0, 0, 0, 0 | AC62: 1 | AD62: * | AE62: 7 | AF62: 7, 0, 0, 0, 0, 0 | AG62: 1 | AH62: * | AI62: 0 | AJ62: 0, 0, 0, 0, 0, 0 | AK62: 3 | AL62: * | AM62: 1 | AN62: * | AO62: 3 | AP62: * | AQ62: 3 | AR62: * | AS62: 6 | AT62: 3, 1, 1, 0, 1, 0 | AU62: 32 | AV62: 12, 10, 7, 1, 2, 0 | AW62: 8 | AX62: 4, 1, 0, 1, 2, 0 | AY62: no data | BA62: 3 | BB62: * | BC62: 5 | BD62: 4, 1, 0, 0, 0, 0 | BE62: 6 | BF62: 5, 0, 0, 0, 1, 0 | BG62: =VLOOKUP(D62,'[1]Apr-17'!$E$2:$Q$7375,13,FALSE) -> 
A63: Y54 | B63: Q72 | C63: 02Q | D63: C84013 | E63: KINGFISHER FAMILY PRACTICE | F63: RETFORD PRIMARY CARE CTR, RETFORD HOSPITAL,NORTH RD, RETFORD, NOTTINGHAMSHIRE | G63: DN22 7XF | H63: Yes | K63: no data | M63: no data | O63: no data | Q63: no data | S63: no data | U63: no data | W63: 14 | X63: 7, 4, 1, 1, 1, 0 | Y63: no data | AA63: no data | AC63: 8 | AD63: 3, 3, 1, 0, 1, 0 | AE63: no data | AG63: no data | AI63: 87 | AJ63: 46, 23, 0, 10, 4, 4 | AK63: 13 | AL63: 7, 4, 1, 1, 0, 0 | AM63: no data | AO63: 1 | AP63: * | AQ63: 2 | AR63: * | AS63: no data | AU63: no data | AW63: 3 | AX63: * | AY63: no data | BA63: 7 | BB63: 3, 2, 1, 1, 0, 0 | BC63: 54 | BD63: 50, 3, 0, 1, 0, 0 | BE63: 10 | BF63: 9, 1, 0, 0, 0, 0 | BG63: =VLOOKUP(D63,'[1]Apr-17'!$E$2:$Q$7375,13,FALSE) -> 
A64: Y54 | B64: Q72 | C64: 02Q | D64: C84024 | E64: NEWGATE MEDICAL GROUP | F64: HEALTH CENTRE, NEWGATE ST, WORKSOP, NOTTINGHAMSHIRE | G64: S80 1HP | H64: Yes | K64: no data | M64: no data | O64: no data | Q64: no data | S64: no data | U64: 4 | V64: * | W64: 1 | X64: * | Y64: no data | AA64: no data | AC64: 4 | AD64: * | AE64: 9 | AF64: 8, 1, 0, 0, 0, 0 | AG64: no data | AI64: no data | AK64: 5 | AL64: 4, 1, 0, 0, 0, 0 | AM64: 3 | AN64: * | AO64: 3 | AP64: * | AQ64: 9 | AR64: 6, 3, 0, 0, 0, 0 | AS64: no data | AU64: 1 | AV64: * | AW64: 5 | AX64: 4, 1, 0, 0, 0, 0 | AY64: 18 | AZ64: 15, 3, 0, 0, 0, 0 | BA64: 8 | BB64: 7, 1, 0, 0, 0, 0 | BC64: 29 | BD64: 24, 2, 2, 1, 0, 0 | BE64: 29 | BF64: 23, 2, 2, 1, 0, 1 | BG64: =VLOOKUP(D64,'[1]Apr-17'!$E$2:$Q$7375,13,FALSE) -> 
A65: Y54 | B65: Q72 | C65: 02Q | D65: C84035 | E65: CROWN HOUSE SURGERY | F65: RETFORD PRIMARY CARE CTR, RETFORD HOSPITAL,NORTH RD, RETFORD, NOTTINGHAMSHIRE | G65: DN22 7XF | K65: 8 | L65: 5, 1, 0, 1, 1, 0 | M65: 46 | N65: 35, 4, 2, 1, 4, 0 | O65: 113 | P65: 89, 11, 7, 0, 5, 1 | Q65: no data | S65: no data | U65: 26 | V65: 20, 4, 0, 1, 1, 0 | W65: 26 | X65: 19, 3, 3, 0, 0, 1 | Y65: 42 | Z65: 31, 3, 6, 0, 0, 2 | AA65: 22 | AB65: 15, 4, 1, 0, 2, 0 | AC65: 30 | AD65: 21, 6, 1, 0, 2, 0 | AE65: 40 | AF65: 30, 5, 1, 2, 1, 1 | AG65: 43 | AH65: 34, 5, 1, 2, 1, 0 | AI65: 70 | AJ65: 38, 21, 3, 5, 3, 0 | AK65: 125 | AL65: 95, 11, 4, 5, 7, 3 | AM65: 73 | AN65: 49, 17, 4, 1, 2, 0 | AO65: 92 | AP65: 69, 14, 2, 3, 3, 1 | AQ65: 123 | AR65: 76, 27, 11, 5, 3, 1 | AS65: 94 | AT65: 67, 16, 6, 2, 3, 0 | AU65: 96 | AV65: 68, 21, 5, 1, 1, 0 | AW65: 55 | AX65: 45, 5, 3, 2, 0, 0 | AY65: 55 | AZ65: 38, 9, 5, 0, 3, 0 | BA65: 5 | BB65: 4, 1, 0, 0, 0, 0 | BC65: 10 | BD65: 8, 0, 0, 0, 1, 1 | BE65: 31 | BF65: 23, 3, 1, 1, 3, 0 | BG65: =VLOOKUP(D65,'[1]Apr-17'!$E$2:$Q$7375,13,FALSE) -> 8 | BH65: 0
A66: Y54 | B66: Q72 | C66: 02Q | D66: C84052 | E66: THE MISTERTON GROUP PRACT | F66: MARSH LANE, MISTERTON, DONCASTER, SOUTH YORKSHIRE | G66: DN10 4DL | H66: Yes | K66: no data | M66: no data | O66: no data | Q66: no data | S66: no data | U66: no data | W66: no data | Y66: 5 | Z66: 5, 0, 0, 0, 0, 0 | AA66: no data | AC66: no data | AE66: no data | AG66: 1 | AH66: * | AI66: 3 | AJ66: * | AK66: 5 | AL66: 4, 0, 1, 0, 0, 0 | AM66: no data | AO66: no data | AQ66: no data | AS66: 1 | AT66: * | AU66: 17 | AV66: 8, 3, 2, 3, 1, 0 | AW66: no data | AY66: no data | BA66: 0 | BB66: 0, 0, 0, 0, 0, 0 | BC66: no data | BE66: 6 | BF66: 4, 1, 0, 1, 0, 0 | BG66: =VLOOKUP(D66,'[1]Apr-17'!$E$2:$Q$7375,13,FALSE) -> 
A67: Y54 | B67: Q72 | C67: 02Q | D67: C84094 | E67: RIVERSIDE HEALTH CENTRE | F67: RIVERSIDE WALK, RETFORD, NOTTINGHAMSHIRE | G67: DN22 6FB | H67: Yes | K67: no data | M67: no data | O67: no data | Q67: no data | S67: no data | U67: no data | W67: no data | Y67: no data | AA67: 0 | AB67: 0, 0, 0, 0, 0, 0 | AC67: no data | AE67: no data | AG67: no data | AI67: 0 | AJ67: 0, 0, 0, 0, 0, 0 | AK67: no data | AM67: no data | AO67: 0 | AP67: 0, 0, 0, 0, 0, 0 | AQ67: 0 | AR67: 0, 0, 0, 0, 0, 0 | AS67: 0 | AT67: 0, 0, 0, 0, 0, 0 | AU67: 0 | AV67: 0, 0, 0, 0, 0, 0 | AW67: 0 | AX67: 0, 0, 0, 0, 0, 0 | AY67: 44 | AZ67: 41, 3, 0, 0, 0, 0 | BA67: 107 | BB67: 94, 10, 1, 0, 2, 0 | BC67: 16 | BD67: 13, 3, 0, 0, 0, 0 | BE67: 17 | BF67: 14, 3, 0, 0, 0, 0 | BG67: =VLOOKUP(D67,'[1]Apr-17'!$E$2:$Q$7375,13,FALSE) -> 
A68: Y54 | B68: Q72 | C68: 02Q | D68: C84101 | E68: BAWTRY AND BLYTH MEDICAL | F68: HEALTH CENTRE, STATION ROAD, BAWTRY, DONCASTER, SOUTH YORKSHIRE | G68: DN10 6RQ | H68: Yes | K68: no data | M68: no data | O68: no data | Q68: no data | S68: no data | U68: no data | W68: no data | Y68: no data | AA68: no data | AC68: no data | AE68: no data | AG68: 0 | AH68: 0, 0, 0, 0, 0, 0 | AI68: no data | AK68: no data | AM68: 0 | AN68: 0, 0, 0, 0, 0, 0 | AO68: no data | AQ68: no data | AS68: 0 | AT68: 0, 0, 0, 0, 0, 0 | AU68: 0 | AV68: 0, 0, 0, 0, 0, 0 | AW68: 0 | AX68: 0, 0, 0, 0, 0, 0 | AY68: 0 | AZ68: 0, 0, 0, 0, 0, 0 | BA68: 0 | BB68: 0, 0, 0, 0, 0, 0 | BC68: no data | BE68: no data | BG68: =VLOOKUP(D68,'[1]Apr-17'!$E$2:$Q$7375,13,FALSE) -> 
A69: Y54 | B69: Q72 | C69: 02Q | D69: C84692 | E69: NORTH LEVERTON SURGERY | F69: THE SURGERY, STURTON ROAD, NORTH LEVERTON, RETFORD, NOTTINGHAMSHIRE | G69: DN22 0AB | K69: 3 | L69: * | M69: 7 | N69: 6, 1, 0, 0, 0, 0 | O69: no data | Q69: 4 | R69: * | S69: 13 | T69: 6, 4, 0, 1, 0, 2 | U69: 14 | V69: 6, 7, 0, 1, 0, 0 | W69: no data | Y69: 11 | Z69: 3, 7, 0, 0, 0, 1 | AA69: 7 | AB69: 7, 0, 0, 0, 0, 0 | AC69: 11 | AD69: 4, 7, 0, 0, 0, 0 | AE69: 16 | AF69: 9, 6, 0, 1, 0, 0 | AG69: 15 | AH69: 8, 6, 0, 1, 0, 0 | AI69: 48 | AJ69: 37, 11, 0, 0, 0, 0 | AK69: 3 | AL69: * | AM69: 5 | AN69: 4, 1, 0, 0, 0, 0 | AO69: 32 | AP69: 21, 7, 1, 2, 0, 1 | AQ69: no data | AS69: 34 | AT69: 31, 2, 1, 0, 0, 0 | AU69: 26 | AV69: 23, 2, 0, 1, 0, 0 | AW69: 13 | AX69: 12, 0, 0, 0, 1, 0 | AY69: 22 | AZ69: 14, 7, 1, 0, 0, 0 | BA69: 20 | BB69: 13, 4, 3, 0, 0, 0 | BC69: 28 | BD69: 0, 27, 1, 0, 0, 0 | BE69: 10 | BF69: 9, 0, 0, 0, 1, 0 | BG69: =VLOOKUP(D69,'[1]Apr-17'!$E$2:$Q$7375,13,FALSE) -> 3 | BH69: 0
A70: Y54 | B70: Q72 | C70: 02Q | D70: Y05346 | E70: WESTWOOD PRIMARY CARE CENTRE | F70: PELHAM STREET, MANTON, WORKSOP, NOTTINGHAMSHIRE | G70: S80 2TR | K70: 11 | L70: 3, 7, 0, 0, 0, 1 | M70: 6 | N70: 4, 0, 0, 0, 2, 0 | O70: 23 | P70: 9, 13, 0, 1, 0, 0 | Q70: 7 | R70: 2, 2, 0, 1, 1, 1 | S70: no data | U70: no data | W70: - | X70: - | Y70: - | Z70: - | AA70: - | AB70: - | AC70: - | AD70: - | AE70: - | AF70: - | AG70: - | AH70: - | AI70: - | AJ70: - | AK70: - | AL70: - | AM70: - | AN70: - | AO70: - | AP70: - | AQ70: - | AR70: - | AS70: - | AT70: - | AU70: - | AV70: - | AW70: - | AX70: - | AY70: - | AZ70: - | BA70: - | BB70: - | BC70: - | BD70: - | BE70: - | BF70: - | BG70: =VLOOKUP(D70,'[1]Apr-17'!$E$2:$Q$7375,13,FALSE) -> 11 | BH70: 0
A71: Y54 | B71: Q72 | C71: 02R | D71: B83007 | E71: THE HEATON MEDICAL PRACTICE | F71: THE HEATON MEDICAL PRACT, HAWORTH RD H.C,HAWORTH RD, BRADFORD | G71: BD9 6LL | K71: 28 | L71: 14, 13, 0, 1, 0, 0 | M71: 32 | N71: 12, 14, 3, 1, 2, 0 | O71: 22 | P71: 15, 5, 0, 1, 1, 0 | Q71: 18 | R71: 2, 5, 5, 4, 2, 0 | S71: 45 | T71: 16, 11, 7, 7, 3, 1 | U71: 51 | V71: 15, 16, 9, 9, 0, 2 | W71: 2 | X71: * | Y71: 50 | Z71: 15, 23, 6, 3, 3, 0 | AA71: 11 | AB71: 2, 4, 1, 1, 3, 0 | AC71: 82 | AD71: 15, 36, 13, 11, 4, 3 | AE71: 32 | AF71: 8, 13, 4, 2, 1, 4 | AG71: no data | AI71: 7 | AJ71: 1, 3, 1, 1, 0, 1 | AK71: 2 | AL71: * | AM71: 11 | AN71: 1, 4, 4, 1, 1, 0 | AO71: 6 | AP71: 0, 2, 3, 0, 0, 1 | AQ71: 3 | AR71: * | AS71: 5 | AT71: 0, 0, 2, 2, 1, 0 | AU71: 6 | AV71: 0, 2, 2, 1, 0, 1 | AW71: 3 | AX71: * | AY71: 3 | AZ71: * | BA71: 7 | BB71: 0, 1, 4, 2, 0, 0 | BC71: 3 | BD71: * | BE71: 0 | BF71: 0, 0, 0, 0, 0, 0 | BG71: =VLOOKUP(D71,'[1]Apr-17'!$E$2:$Q$7375,13,FALSE) -> 28 | BH71: 0
A72: Y54 | B72: Q72 | C72: 02R | D72: B83009 | E72: SUNNYBANK MEDICAL CENTRE | F72: TOWNGATE, WYKE, BRADFORD, WEST YORKSHIRE | G72: BD12 9NG | K72: 53 | L72: 31, 7, 2, 2, 11, 0 | M72: 18 | N72: 11, 2, 2, 2, 0, 1 | O72: 105 | P72: 71, 22, 3, 5, 3, 1 | Q72: 108 | R72: 5, 69, 3, 30, 1, 0 | S72: 13 | T72: 4, 7, 1, 0, 1, 0 | U72: 16 | V72: 12, 0, 0, 4, 0, 0 | W72: 5 | X72: 1, 4, 0, 0, 0, 0 | Y72: 3 | Z72: * | AA72: 44 | AB72: 17, 17, 2, 3, 4, 1 | AC72: 40 | AD72: 18, 21, 0, 1, 0, 0 | AE72: 2 | AF72: * | AG72: 9 | AH72: 6, 3, 0, 0, 0, 0 | AI72: 4 | AJ72: * | AK72: no data | AM72: 1 | AN72: * | AO72: 12 | AP72: 4, 1, 0, 3, 4, 0 | AQ72: 1 | AR72: * | AS72: 1 | AT72: * | AU72: 0 | AV72: 0, 0, 0, 0, 0, 0 | AW72: no data | AY72: no data | BA72: no data | BC72: 5 | BD72: 2, 2, 0, 0, 0, 1 | BE72: 5 | BF72: 2, 1, 0, 2, 0, 0 | BG72: =VLOOKUP(D72,'[1]Apr-17'!$E$2:$Q$7375,13,FALSE) -> 53 | BH72: 0
A73: Y54 | B73: Q72 | C73: 02R | D73: B83010 | E73: PARKLANDS MEDICAL PRACTICE | F73: PARKLANDS MEDICAL PRAC, 30 BUTTERSHAW LANE, BRADFORD, WEST YORKSHIRE | G73: BD6 2DD | K73: 47 | L73: 11, 22, 5, 6, 2, 1 | M73: 49 | N73: 15, 19, 4, 6, 3, 2 | O73: 48 | P73: 10, 26, 4, 6, 1, 1 | Q73: 31 | R73: 14, 11, 4, 0, 1, 1 | S73: 50 | T73: 14, 20, 8, 2, 4, 2 | U73: 52 | V73: 18, 19, 8, 2, 3, 2 | W73: 46 | X73: 16, 20, 3, 4, 2, 1 | Y73: 49 | Z73: 23, 15, 2, 6, 1, 2 | AA73: 48 | AB73: 13, 23, 6, 1, 3, 2 | AC73: 53 | AD73: 16, 28, 6, 2, 1, 0 | AE73: 49 | AF73: 19, 19, 4, 4, 3, 0 | AG73: 46 | AH73: 16, 18, 4, 4, 1, 3 | AI73: 51 | AJ73: 12, 19, 11, 3, 5, 1 | AK73: 44 | AL73: 8, 24, 5, 5, 1, 1 | AM73: 47 | AN73: 15, 27, 3, 0, 1, 1 | AO73: 0 | AP73: 0, 0, 0, 0, 0, 0 | AQ73: 68 | AR73: 23, 36, 4, 2, 3, 0 | AS73: 96 | AT73: 53, 33, 4, 2, 3, 1 | AU73: 48 | AV73: 18, 21, 1, 4, 3, 1 | AW73: 24 | AX73: 6, 15, 1, 2, 0, 0 | AY73: 28 | AZ73: 16, 9, 2, 1, 0, 0 | BA73: 2 | BB73: * | BC73: 1 | BD73: * | BE73: 1 | BF73: * | BG73: =VLOOKUP(D73,'[1]Apr-17'!$E$2:$Q$7375,13,FALSE) -> 47 | BH73: 0
A74: Y54 | B74: Q72 | C74: 02R | D74: B83011 | E74: WOODROYD MEDICAL PRACTICE | F74: WOODROYD CTR, WOODROYD RD, OFF GREENWAY ROAD, BRADFORD, WEST YORKSHIRE | G74: BD5 8EL | K74: 6 | L74: 0, 3, 2, 1, 0, 0 | M74: 5 | N74: 0, 5, 0, 0, 0, 0 | O74: 10 | P74: 4, 3, 3, 0, 0, 0 | Q74: 5 | R74: 2, 3, 0, 0, 0, 0 | S74: 5 | T74: 4, 0, 0, 0, 1, 0 | U74: 9 | V74: 8, 1, 0, 0, 0, 0 | W74: 9 | X74: 7, 2, 0, 0, 0, 0 | Y74: 4 | Z74: * | AA74: 8 | AB74: 8, 0, 0, 0, 0, 0 | AC74: 4 | AD74: * | AE74: 13 | AF74: 9, 3, 0, 0, 1, 0 | AG74: 14 | AH74: 10, 4, 0, 0, 0, 0 | AI74: 8 | AJ74: 5, 3, 0, 0, 0, 0 | AK74: 9 | AL74: 6, 3, 0, 0, 0, 0 | AM74: 13 | AN74: 8, 5, 0, 0, 0, 0 | AO74: 10 | AP74: 6, 4, 0, 0, 0, 0 | AQ74: 23 | AR74: 18, 4, 0, 1, 0, 0 | AS74: 21 | AT74: 17, 4, 0, 0, 0, 0 | AU74: 27 | AV74: 18, 8, 0, 1, 0, 0 | AW74: 86 | AX74: 42, 37, 0, 4, 1, 2 | AY74: 40 | AZ74: 23, 15, 0, 2, 0, 0 | BA74: 57 | BB74: 38, 17, 1, 1, 0, 0 | BC74: 79 | BD74: 38, 27, 9, 2, 2, 1 | BE74: 37 | BF74: 23, 11, 0, 2, 0, 1 | BG74: =VLOOKUP(D74,'[1]Apr-17'!$E$2:$Q$7375,13,FALSE) -> 6 | BH74: 0
A75: Y54 | B75: Q72 | C75: 02R | D75: B83012 | E75: CARLTON MEDICAL PRACTICE | F75: 195 GIRLINGTON ROAD, BRADFORD | G75: BD8 9PB | K75: 45 | L75: 8, 32, 2, 1, 2, 0 | M75: 23 | N75: 0, 19, 0, 4, 0, 0 | O75: 20 | P75: 0, 16, 0, 4, 0, 0 | Q75: 18 | R75: 11, 5, 1, 0, 1, 0 | S75: 26 | T75: 16, 7, 1, 0, 2, 0 | U75: 40 | V75: 0, 33, 0, 7, 0, 0 | W75: 25 | X75: 0, 22, 0, 3, 0, 0 | Y75: 18 | Z75: 10, 5, 1, 0, 2, 0 | AA75: 20 | AB75: 8, 6, 2, 0, 4, 0 | AC75: 21 | AD75: 12, 5, 1, 1, 2, 0 | AE75: 20 | AF75: 12, 5, 1, 0, 2, 0 | AG75: 20 | AH75: 12, 5, 1, 0, 2, 0 | AI75: 16 | AJ75: 6, 5, 0, 0, 5, 0 | AK75: 3 | AL75: * | AM75: 14 | AN75: 8, 4, 1, 1, 0, 0 | AO75: no data | AQ75: 15 | AR75: 1, 9, 4, 1, 0, 0 | AS75: 4 | AT75: * | AU75: no data | AW75: no data | AY75: no data | BA75: no data | BC75: no data | BE75: 10 | BF75: 8, 2, 0, 0, 0, 0 | BG75: =VLOOKUP(D75,'[1]Apr-17'!$E$2:$Q$7375,13,FALSE) -> 45 | BH75: 0
A76: Y54 | B76: Q72 | C76: 02R | D76: B83013 | E76: WESTCLIFFE MEDICAL CENTRE | F76: 157 WESTCLIFFE RD,SHIPLEY, BRADFORD, WEST YORKSHIRE | G76: BD18 3EE | K76: 106 | L76: 70, 17, 5, 0, 12, 2 | M76: 102 | N76: 72, 11, 6, 5, 8, 0 | O76: 127 | P76: 97, 10, 4, 5, 9, 2 | Q76: 113 | R76: 88, 13, 3, 3, 5, 1 | S76: 2 | T76: * | U76: 3 | V76: * | W76: 3 | X76: * | Y76: 27 | Z76: 22, 3, 1, 0, 0, 1 | AA76: 9 | AB76: 3, 4, 1, 1, 0, 0 | AC76: 3 | AD76: * | AE76: 87 | AF76: 53, 27, 5, 0, 2, 0 | AG76: 0 | AH76: 0, 0, 0, 0, 0, 0 | AI76: 2 | AJ76: * | AK76: 2 | AL76: * | AM76: 2 | AN76: * | AO76: 3 | AP76: * | AQ76: no data | AS76: 0 | AT76: 0, 0, 0, 0, 0, 0 | AU76: 2 | AV76: * | AW76: no data | AY76: 0 | AZ76: 0, 0, 0, 0, 0, 0 | BA76: 0 | BB76: 0, 0, 0, 0, 0, 0 | BC76: 3 | BD76: * | BE76: 2 | BF76: * | BG76: =VLOOKUP(D76,'[1]Apr-17'!$E$2:$Q$7375,13,FALSE) -> 106 | BH76: =BG76-K76 -> 0
A77: Y54 | B77: Q72 | C77: 02R | D77: B83014 | E77: BINGLEY MEDICAL PRACTICE | F77: CANALSIDE HEALTHCARE CTR, 2 KINGSWAY, BINGLEY, WEST YORKSHIRE | G77: BD16 4RP | K77: 7 | L77: 6, 1, 0, 0, 0, 0 | M77: 10 | N77: 8, 2, 0, 0, 0, 0 | O77: 8 | P77: 6, 2, 0, 0, 0, 0 | Q77: 5 | R77: 3, 1, 0, 0, 1, 0 | S77: 1 | T77: * | U77: 3 | V77: * | W77: 2 | X77: * | Y77: 0 | Z77: 0, 0, 0, 0, 0, 0 | AA77: 3 | AB77: * | AC77: 3 | AD77: * | AE77: 2 | AF77: * | AG77: 4 | AH77: * | AI77: 3 | AJ77: * | AK77: 515 | AL77: 219, 233, 44, 13, 5, 1 | AM77: 4 | AN77: * | AO77: 4 | AP77: * | AQ77: no data | AS77: 4 | AT77: * | AU77: 3 | AV77: * | AW77: 1 | AX77: * | AY77: 6 | AZ77: 3, 3, 0, 0, 0, 0 | BA77: 8 | BB77: 4, 1, 0, 1, 2, 0 | BC77: 8 | BD77: 5, 0, 0, 2, 0, 1 | BE77: 7 | BF77: 4, 0, 0, 2, 1, 0 | BG77: =VLOOKUP(D77,'[1]Apr-17'!$E$2:$Q$7375,13,FALSE) -> 7 | BH77: 0
A78: Y54 | B78: Q72 | C78: 02R | D78: B83015 | E78: TONG MEDICAL PRACTICE | F78: 2 PROCTER STREET, BRADFORD, WEST YORKSHIRE | G78: BD4 9QA | K78: no data | M78: 26 | N78: 10, 7, 3, 0, 6, 0 | O78: 21 | P78: 6, 10, 2, 0, 3, 0 | Q78: 30 | R78: 15, 10, 0, 3, 1, 1 | S78: 23 | T78: 9, 10, 3, 1, 0, 0 | U78: 6 | V78: 5, 1, 0, 0, 0, 0 | W78: 14 | X78: 7, 1, 0, 2, 2, 2 | Y78: 8 | Z78: 6, 0, 0, 2, 0, 0 | AA78: 7 | AB78: 2, 0, 1, 2, 2, 0 | AC78: 4 | AD78: * | AE78: no data | AG78: no data | AI78: 0 | AJ78: 0, 0, 0, 0, 0, 0 | AK78: 0 | AL78: 0, 0, 0, 0, 0, 0 | AM78: no data | AO78: 2 | AP78: * | AQ78: 0 | AR78: 0, 0, 0, 0, 0, 0 | AS78: 5 | AT78: 0, 1, 1, 3, 0, 0 | AU78: 10 | AV78: 2, 2, 2, 2, 2, 0 | AW78: 12 | AX78: 7, 2, 0, 1, 2, 0 | AY78: 0 | AZ78: 0, 0, 0, 0, 0, 0 | BA78: 0 | BB78: 0, 0, 0, 0, 0, 0 | BC78: 1 | BD78: * | BE78: 7 | BF78: 1, 2, 0, 1, 3, 0 | BG78: =VLOOKUP(D78,'[1]Apr-17'!$E$2:$Q$7375,13,FALSE) -> 
A79: Y54 | B79: Q72 | C79: 02R | D79: B83017 | E79: HORTON BANK PRACTICE | F79: 1220 GREAT HORTON ROAD, BRADFORD, WEST YORKSHIRE | G79: BD7 4PL | K79: no data | M79: 5 | N79: 2, 0, 1, 0, 2, 0 | O79: 8 | P79: 2, 5, 0, 0, 1, 0 | Q79: 6 | R79: 0, 4, 1, 0, 1, 0 | S79: 5 | T79: 2, 2, 0, 0, 1, 0 | U79: 6 | V79: 1, 4, 0, 1, 0, 0 | W79: 11 | X79: 5, 5, 1, 0, 0, 0 | Y79: 15 | Z79: 9, 4, 1, 1, 0, 0 | AA79: 10 | AB79: 6, 1, 0, 3, 0, 0 | AC79: 12 | AD79: 6, 4, 1, 0, 0, 1 | AE79: 9 | AF79: 1, 5, 0, 2, 0, 1 | AG79: 6 | AH79: 0, 3, 3, 0, 0, 0 | AI79: 8 | AJ79: 0, 2, 1, 3, 1, 1 | AK79: 7 | AL79: 1, 2, 1, 0, 3, 0 | AM79: 4 | AN79: * | AO79: no data | AQ79: 4 | AR79: * | AS79: no data | AU79: 4 | AV79: * | AW79: no data | AY79: no data | BA79: 3 | BB79: * | BC79: 3 | BD79: * | BE79: 2 | BF79: * | BG79: =VLOOKUP(D79,'[1]Apr-17'!$E$2:$Q$7375,13,FALSE) -> 
A80: Y54 | B80: Q72 | C80: 02R | D80: B83018 | E80: IDLE MEDICAL CENTRE | F80: 440 HIGHFIELD ROAD, IDLE, BRADFORD, WEST YORKSHIRE | G80: BD10 8RU | K80: no data | M80: 19 | N80: 17, 2, 0, 0, 0, 0 | O80: 17 | P80: 17, 0, 0, 0, 0, 0 | Q80: 13 | R80: 7, 6, 0, 0, 0, 0 | S80: 9 | T80: 5, 4, 0, 0, 0, 0 | U80: 12 | V80: 10, 2, 0, 0, 0, 0 | W80: 127 | X80: 73, 41, 7, 5, 0, 1 | Y80: 9 | Z80: 6, 2, 0, 1, 0, 0 | AA80: no data | AC80: 7 | AD80: 5, 2, 0, 0, 0, 0 | AE80: 9 | AF80: 5, 4, 0, 0, 0, 0 | AG80: no data | AI80: 11 | AJ80: 5, 5, 1, 0, 0, 0 | AK80: no data | AM80: 2 | AN80: * | AO80: 0 | AP80: 0, 0, 0, 0, 0, 0 | AQ80: no data | AS80: no data | AU80: 0 | AV80: 0, 0, 0, 0, 0, 0 | AW80: no data | AY80: no data | BA80: 1 | BB80: * | BC80: 2 | BD80: * | BE80: 4 | BF80: * | BG80: =VLOOKUP(D80,'[1]Apr-17'!$E$2:$Q$7375,13,FALSE) -> 
A81: Y54 | B81: Q72 | C81: 02R | D81: B83020 | E81: THE WILLOWS MEDICAL CTR. | F81: OSBOURNE DRIVE,QUEENSBURY, BRADFORD, WEST YORKSHIRE | G81: BD13 2GD | K81: 29 | L81: 22, 5, 0, 1, 0, 1 | M81: 65 | N81: 57, 4, 1, 0, 3, 0 | O81: 61 | P81: 56, 4, 1, 0, 0, 0 | Q81: 51 | R81: 47, 2, 0, 0, 2, 0 | S81: 6 | T81: 4, 1, 1, 0, 0, 0 | U81: 32 | V81: 18, 12, 2, 0, 0, 0 | W81: 4 | X81: * | Y81: 2 | Z81: * | AA81: 15 | AB81: 11, 3, 0, 1, 0, 0 | AC81: 0 | AD81: 0, 0, 0, 0, 0, 0 | AE81: 8 | AF81: 4, 2, 1, 1, 0, 0 | AG81: 6 | AH81: 5, 0, 1, 0, 0, 0 | AI81: 3 | AJ81: * | AK81: 3 | AL81: * | AM81: 2 | AN81: * | AO81: 1 | AP81: * | AQ81: 3 | AR81: * | AS81: 2 | AT81: * | AU81: 4 | AV81: * | AW81: 4 | AX81: * | AY81: 22 | AZ81: 8, 5, 1, 4, 4, 0 | BA81: 25 | BB81: 15, 4, 2, 4, 0, 0 | BC81: 4 | BD81: * | BE81: 9 | BF81: 6, 3, 0, 0, 0, 0 | BG81: =VLOOKUP(D81,'[1]Apr-17'!$E$2:$Q$7375,13,FALSE) -> 29 | BH81: 0
A82: Y54 | B82: Q72 | C82: 02R | D82: B83022 | E82: DR N DRIVER & PARTNERS | F82: BAILDON MEDICAL PRACTICE, 10 NEWTON WAY, BAILDON | G82: BD17 5NH | K82: 40 | L82: 38, 2, 0, 0, 0, 0 | M82: 35 | N82: 31, 3, 0, 0, 1, 0 | O82: 25 | P82: 23, 1, 1, 0, 0, 0 | Q82: 17 | R82: 16, 1, 0, 0, 0, 0 | S82: 25 | T82: 18, 6, 1, 0, 0, 0 | U82: 12 | V82: 9, 3, 0, 0, 0, 0 | W82: 14 | X82: 10, 3, 0, 0, 0, 1 | Y82: 13 | Z82: 11, 1, 1, 0, 0, 0 | AA82: 19 | AB82: 16, 2, 0, 0, 1, 0 | AC82: 1 | AD82: * | AE82: 10 | AF82: 7, 1, 0, 0, 2, 0 | AG82: 16 | AH82: 12, 3, 1, 0, 0, 0 | AI82: 8 | AJ82: 6, 2, 0, 0, 0, 0 | AK82: 25 | AL82: 21, 4, 0, 0, 0, 0 | AM82: 17 | AN82: 7, 8, 2, 0, 0, 0 | AO82: 7 | AP82: 4, 2, 0, 1, 0, 0 | AQ82: 13 | AR82: 10, 3, 0, 0, 0, 0 | AS82: 7 | AT82: 7, 0, 0, 0, 0, 0 | AU82: 27 | AV82: 23, 3, 1, 0, 0, 0 | AW82: 10 | AX82: 8, 2, 0, 0, 0, 0 | AY82: 32 | AZ82: 24, 6, 1, 0, 1, 0 | BA82: 38 | BB82: 34, 3, 0, 1, 0, 0 | BC82: 35 | BD82: 30, 4, 1, 0, 0, 0 | BE82: 38 | BF82: 29, 4, 1, 2, 2, 0 | BG82: =VLOOKUP(D82,'[1]Apr-17'!$E$2:$Q$7375,13,FALSE) -> 40 | BH82: 0
A83: Y54 | B83: Q72 | C83: 02R | D83: B83028 | E83: WIBSEY & QUEENSBURY MED P | F83: FAIR ROAD, WIBSEY, BRADFORD, WEST YORKSHIRE | G83: BD6 1TD | K83: 10 | L83: 8, 1, 0, 1, 0, 0 | M83: 8 | N83: 6, 1, 1, 0, 0, 0 | O83: 12 | P83: 6, 3, 2, 0, 0, 1 | Q83: 7 | R83: 6, 1, 0, 0, 0, 0 | S83: 20 | T83: 10, 0, 0, 0, 10, 0 | U83: 29 | V83: 19, 8, 0, 0, 2, 0 | W83: 7 | X83: 6, 1, 0, 0, 0, 0 | Y83: 53 | Z83: 37, 13, 1, 0, 0, 2 | AA83: 13 | AB83: 9, 3, 1, 0, 0, 0 | AC83: 29 | AD83: 19, 9, 0, 0, 1, 0 | AE83: 22 | AF83: 12, 5, 0, 1, 1, 3 | AG83: 15 | AH83: 14, 0, 0, 0, 1, 0 | AI83: 24 | AJ83: 14, 8, 0, 1, 1, 0 | AK83: 63 | AL83: 41, 19, 0, 2, 1, 0 | AM83: 25 | AN83: 11, 8, 2, 2, 1, 1 | AO83: 19 | AP83: 12, 6, 0, 1, 0, 0 | AQ83: 17 | AR83: 10, 6, 0, 1, 0, 0 | AS83: 12 | AT83: 5, 5, 2, 0, 0, 0 | AU83: 44 | AV83: 22, 14, 7, 1, 0, 0 | AW83: 39 | AX83: 31, 7, 0, 1, 0, 0 | AY83: 15 | AZ83: 10, 4, 0, 1, 0, 0 | BA83: 18 | BB83: 9, 7, 1, 0, 0, 1 | BC83: 19 | BD83: 12, 4, 0, 1, 0, 2 | BE83: 14 | BF83: 8, 3, 1, 1, 1, 0 | BG83: =VLOOKUP(D83,'[1]Apr-17'!$E$2:$Q$7375,13,FALSE) -> 10 | BH83: 0
A84: Y54 | B84: Q72 | C84: 02R | D84: B83029 | E84: LOW MOOR SURGERY | F84: LOW MOOR MEDICAL CENTRE, 29 THE PLANTATIONS, BRADFORD, WEST YORKSHIRE | G84: BD12 0TH | K84: 19 | L84: 12, 6, 0, 0, 0, 1 | M84: no data | O84: 2 | P84: * | Q84: 0 | R84: 0, 0, 0, 0, 0, 0 | S84: 75 | T84: 65, 9, 0, 1, 0, 0 | U84: 383 | V84: 249, 118, 6, 6, 2, 2 | W84: 101 | X84: 72, 24, 3, 2, 0, 0 | Y84: no data | AA84: 86 | AB84: 49, 28, 4, 4, 1, 0 | AC84: 25 | AD84: 15, 9, 1, 0, 0, 0 | AE84: 8 | AF84: 5, 3, 0, 0, 0, 0 | AG84: 2 | AH84: * | AI84: 0 | AJ84: 0, 0, 0, 0, 0, 0 | AK84: 3 | AL84: * | AM84: 7 | AN84: 1, 5, 1, 0, 0, 0 | AO84: 3 | AP84: * | AQ84: 138 | AR84: 99, 33, 5, 0, 1, 0 | AS84: 203 | AT84: 150, 44, 4, 0, 1, 4 | AU84: 11 | AV84: 5, 6, 0, 0, 0, 0 | AW84: 9 | AX84: 4, 5, 0, 0, 0, 0 | AY84: no data | BA84: no data | BC84: no data | BE84: no data | BG84: =VLOOKUP(D84,'[1]Apr-17'!$E$2:$Q$7375,13,FALSE) -> 19 | BH84: 0
A85: Y54 | B85: Q72 | C85: 02R | D85: B83030 | E85: THORNTON & DENHOLME MEDICAL PRACTICE | F85: 4 CRAVEN AVENUE, OFF MARKET ST, THORNTON, BRADFORD, WEST YORKSHIRE | G85: BD13 3LG | K85: 38 | L85: 20, 9, 1, 0, 6, 2 | M85: 67 | N85: 42, 20, 0, 3, 2, 0 | O85: 46 | P85: 31, 10, 1, 1, 3, 0 | Q85: 42 | R85: 21, 12, 2, 1, 6, 0 | S85: 37 | T85: 9, 11, 2, 8, 4, 3 | U85: 13 | V85: 2, 3, 7, 1, 0, 0 | W85: 19 | X85: 7, 5, 2, 0, 1, 4 | Y85: 7 | Z85: 2, 2, 0, 0, 3, 0 | AA85: 8 | AB85: 3, 2, 1, 2, 0, 0 | AC85: 11 | AD85: 3, 1, 2, 1, 1, 3 | AE85: 6 | AF85: 2, 1, 3, 0, 0, 0 | AG85: 16 | AH85: 6, 7, 1, 1, 1, 0 | AI85: 10 | AJ85: 3, 4, 2, 0, 1, 0 | AK85: 12 | AL85: 4, 4, 2, 2, 0, 0 | AM85: 16 | AN85: 4, 9, 1, 1, 0, 1 | AO85: 9 | AP85: 5, 3, 1, 0, 0, 0 | AQ85: 43 | AR85: 15, 22, 3, 2, 1, 0 | AS85: 42 | AT85: 13, 22, 4, 2, 1, 0 | AU85: no data | AW85: no data | AY85: no data | BA85: 10 | BB85: 4, 5, 1, 0, 0, 0 | BC85: 21 | BD85: 6, 12, 0, 2, 0, 1 | BE85: 92 | BF85: 36, 41, 11, 1, 1, 2 | BG85: =VLOOKUP(D85,'[1]Apr-17'!$E$2:$Q$7375,13,FALSE) -> 38 | BH85: 0
A86: Y54 | B86: Q72 | C86: 02R | D86: B83031 | E86: OAK GLEN SURGERY | F86: ELDWICK & GILSTEAD H/C, 196 SWAN AVENUE, BINGLEY | G86: BD16 3PA | K86: 11 | L86: 7, 2, 0, 1, 0, 1 | M86: 21 | N86: 17, 3, 1, 0, 0, 0 | O86: 15 | P86: 12, 3, 0, 0, 0, 0 | Q86: 9 | R86: 9, 0, 0, 0, 0, 0 | S86: 9 | T86: 6, 2, 1, 0, 0, 0 | U86: 15 | V86: 10, 5, 0, 0, 0, 0 | W86: 22 | X86: 15, 6, 1, 0, 0, 0 | Y86: 11 | Z86: 10, 1, 0, 0, 0, 0 | AA86: 6 | AB86: 5, 1, 0, 0, 0, 0 | AC86: 8 | AD86: 7, 0, 1, 0, 0, 0 | AE86: 7 | AF86: 6, 1, 0, 0, 0, 0 | AG86: 4 | AH86: * | AI86: 0 | AJ86: 0, 0, 0, 0, 0, 0 | AK86: 0 | AL86: 0, 0, 0, 0, 0, 0 | AM86: 1 | AN86: * | AO86: 5 | AP86: 4, 1, 0, 0, 0, 0 | AQ86: no data | AS86: no data | AU86: no data | AW86: no data | AY86: no data | BA86: 2 | BB86: * | BC86: 1 | BD86: * | BE86: 0 | BF86: 0, 0, 0, 0, 0, 0 | BG86: =VLOOKUP(D86,'[1]Apr-17'!$E$2:$Q$7375,13,FALSE) -> 11 | BH86: 0
A87: Y54 | B87: Q72 | C87: 02R | D87: B83032 | E87: BRADFORD MOOR PRACTICE | F87: THE BRADFORD MOOR PRACT, BARKEREND HEALTH CENTRE, BRADFORD | G87: BD3 8QH | K87: no data | M87: 28 | N87: 20, 6, 0, 1, 1, 0 | O87: 21 | P87: 12, 8, 1, 0, 0, 0 | Q87: 12 | R87: 6, 4, 0, 1, 1, 0 | S87: 19 | T87: 10, 5, 1, 1, 1, 1 | U87: 33 | V87: 22, 9, 0, 2, 0, 0 | W87: 22 | X87: 15, 3, 2, 1, 1, 0 | Y87: 22 | Z87: 13, 5, 2, 2, 0, 0 | AA87: 15 | AB87: 11, 2, 1, 0, 1, 0 | AC87: 0 | AD87: 0, 0, 0, 0, 0, 0 | AE87: 1 | AF87: * | AG87: no data | AI87: no data | AK87: no data | AM87: no data | AO87: no data | AQ87: 0 | AR87: 0, 0, 0, 0, 0, 0 | AS87: no data | AU87: no data | AW87: 37 | AX87: 16, 3, 2, 4, 12, 0 | AY87: 0 | AZ87: 0, 0, 0, 0, 0, 0 | BA87: no data | BC87: 1 | BD87: * | BE87: 2 | BF87: * | BG87: =VLOOKUP(D87,'[1]Apr-17'!$E$2:$Q$7375,13,FALSE) -> 
A88: Y54 | B88: Q72 | C88: 02R | D88: B83035 | E88: HORTON PARK MEDICAL PRACTICE | F88: HORTON PARK SURGERY, 99 HORTON PARK AVENUE, BRADFORD | G88: BD7 3EG | K88: 105 | L88: 56, 36, 4, 1, 5, 3 | M88: 0 | N88: 0, 0, 0, 0, 0, 0 | O88: no data | Q88: no data | S88: no data | U88: 44 | V88: 25, 15, 1, 0, 2, 1 | W88: 106 | X88: 53, 37, 7, 4, 4, 1 | Y88: 6 | Z88: 4, 1, 1, 0, 0, 0 | AA88: 163 | AB88: 64, 75, 9, 7, 4, 4 | AC88: 515 | AD88: 243, 217, 25, 12, 9, 9 | AE88: 802 | AF88: 382, 334, 38, 26, 7, 15 | AG88: 63 | AH88: 35, 22, 2, 2, 2, 0 | AI88: 6 | AJ88: 4, 2, 0, 0, 0, 0 | AK88: 210 | AL88: 91, 88, 10, 12, 4, 5 | AM88: 37 | AN88: 20, 12, 4, 1, 0, 0 | AO88: 5 | AP88: 2, 2, 1, 0, 0, 0 | AQ88: 5 | AR88: 3, 1, 0, 0, 1, 0 | AS88: 8 | AT88: 2, 5, 0, 0, 0, 1 | AU88: 61 | AV88: 32, 24, 3, 0, 0, 2 | AW88: 22 | AX88: 15, 6, 0, 0, 1, 0 | AY88: no data | BA88: 14 | BB88: 7, 5, 2, 0, 0, 0 | BC88: 51 | BD88: 20, 21, 3, 3, 3, 1 | BE88: 18 | BF88: 8, 6, 3, 1, 0, 0 | BG88: =VLOOKUP(D88,'[1]Apr-17'!$E$2:$Q$7375,13,FALSE) -> 105 | BH88: 0
A89: Y54 | B89: Q72 | C89: 02R | D89: B83037 | E89: THE WILSDEN MEDICAL PRACTICE | F89: WILSDEN MEDICAL PRACTICE, 2 LING BOB COURT, WILSDEN, BRADFORD, WEST YORKSHIRE | G89: BD15 0NJ | K89: 9 | L89: 8, 1, 0, 0, 0, 0 | M89: 22 | N89: 12, 7, 0, 0, 1, 2 | O89: 15 | P89: 9, 3, 3, 0, 0, 0 | Q89: 26 | R89: 18, 8, 0, 0, 0, 0 | S89: 23 | T89: 15, 6, 1, 1, 0, 0 | U89: 15 | V89: 9, 3, 1, 0, 2, 0 | W89: 161 | X89: 137, 19, 4, 0, 1, 0 | Y89: 21 | Z89: 16, 4, 0, 0, 1, 0 | AA89: 20 | AB89: 13, 6, 0, 0, 1, 0 | AC89: 39 | AD89: 30, 7, 2, 0, 0, 0 | AE89: 32 | AF89: 23, 5, 1, 1, 2, 0 | AG89: 5 | AH89: 5, 0, 0, 0, 0, 0 | AI89: 9 | AJ89: 7, 2, 0, 0, 0, 0 | AK89: 8 | AL89: 5, 2, 0, 1, 0, 0 | AM89: 11 | AN89: 8, 2, 0, 0, 0, 1 | AO89: 10 | AP89: 10, 0, 0, 0, 0, 0 | AQ89: 35 | AR89: 28, 5, 2, 0, 0, 0 | AS89: 35 | AT89: 26, 6, 3, 0, 0, 0 | AU89: 3 | AV89: * | AW89: no data | AY89: 22 | AZ89: 17, 3, 1, 1, 0, 0 | BA89: 16 | BB89: 10, 2, 1, 2, 1, 0 | BC89: no data | BE89: 23 | BF89: 15, 6, 0, 0, 0, 2 | BG89: =VLOOKUP(D89,'[1]Apr-17'!$E$2:$Q$7375,13,FALSE) -> 9 | BH89: 0
A90: Y54 | B90: Q72 | C90: 02R | D90: B83038 | E90: LEYLANDS LANE MEDICAL PRACTICE | F90: LEYLANDS LANE MED PRACT, 81 LEYLANDS LANE, HEATON, BRADFORD, WEST YORKSHIRE | G90: BD9 5PZ | K90: no data | M90: 0 | N90: 0, 0, 0, 0, 0, 0 | O90: 262 | P90: 159, 95, 0, 8, 0, 0 | Q90: 0 | R90: 0, 0, 0, 0, 0, 0 | S90: no data | U90: 21 | V90: 15, 5, 1, 0, 0, 0 | W90: no data | Y90: 0 | Z90: 0, 0, 0, 0, 0, 0 | AA90: 0 | AB90: 0, 0, 0, 0, 0, 0 | AC90: 0 | AD90: 0, 0, 0, 0, 0, 0 | AE90: 1 | AF90: * | AG90: 2 | AH90: * | AI90: no data | AK90: 0 | AL90: 0, 0, 0, 0, 0, 0 | AM90: 0 | AN90: 0, 0, 0, 0, 0, 0 | AO90: 0 | AP90: 0, 0, 0, 0, 0, 0 | AQ90: 0 | AR90: 0, 0, 0, 0, 0, 0 | AS90: 42 | AT90: 21, 17, 2, 0, 2, 0 | AU90: 13 | AV90: 7, 5, 1, 0, 0, 0 | AW90: 92 | AX90: 48, 32, 9, 3, 0, 0 | AY90: 0 | AZ90: 0, 0, 0, 0, 0, 0 | BA90: 0 | BB90: 0, 0, 0, 0, 0, 0 | BC90: 0 | BD90: 0, 0, 0, 0, 0, 0 | BE90: 0 | BF90: 0, 0, 0, 0, 0, 0 | BG90: =VLOOKUP(D90,'[1]Apr-17'!$E$2:$Q$7375,13,FALSE) -> 
A91: Y54 | B91: Q72 | C91: 02R | D91: B83039 | E91: WINDHILL GREEN MEDICAL CENTRE | F91: 2 THACKLEY OLD ROAD, SHIPLEY, BRADFORD | G91: BD18 1QB | K91: 37 | L91: 26, 8, 2, 0, 0, 1 | M91: 44 | N91: 32, 10, 1, 1, 0, 0 | O91: 53 | P91: 35, 14, 0, 0, 3, 1 | Q91: 71 | R91: 53, 13, 2, 1, 0, 2 | S91: 111 | T91: 96, 13, 2, 0, 0, 0 | U91: 163 | V91: 131, 29, 1, 0, 2, 0 | W91: 103 | X91: 81, 15, 3, 1, 0, 3 | Y91: no data | AA91: 45 | AB91: 32, 12, 0, 0, 0, 1 | AC91: 73 | AD91: 55, 12, 1, 0, 2, 3 | AE91: 3 | AF91: * | AG91: 0 | AH91: 0, 0, 0, 0, 0, 0 | AI91: 40 | AJ91: 31, 4, 0, 1, 0, 4 | AK91: no data | AM91: 2 | AN91: * | AO91: 36 | AP91: 23, 11, 1, 0, 0, 1 | AQ91: 123 | AR91: 71, 38, 5, 6, 1, 2 | AS91: 76 | AT91: 54, 18, 0, 1, 0, 3 | AU91: no data | AW91: no data | AY91: 5 | AZ91: 5, 0, 0, 0, 0, 0 | BA91: 8 | BB91: 8, 0, 0, 0, 0, 0 | BC91: no data | BE91: 8 | BF91: 7, 0, 0, 1, 0, 0 | BG91: =VLOOKUP(D91,'[1]Apr-17'!$E$2:$Q$7375,13,FALSE) -> 37 | BH91: 0
A92: Y54 | B92: Q72 | C92: 02R | D92: B83040 | E92: SALTAIRE MEDICAL PRACTICE | F92: RICHMOND ROAD, SHIPLEY, BRADFORD, WEST YORKSHIRE | G92: BD18 4RX | K92: 3 | L92: * | M92: 1 | N92: * | O92: 3 | P92: * | Q92: 3 | R92: * | S92: 1 | T92: * | U92: 2 | V92: * | W92: 2 | X92: * | Y92: 3 | Z92: * | AA92: 2 | AB92: * | AC92: 2 | AD92: * | AE92: 3 | AF92: * | AG92: 3 | AH92: * | AI92: 0 | AJ92: 0, 0, 0, 0, 0, 0 | AK92: 3 | AL92: * | AM92: 3 | AN92: * | AO92: 4 | AP92: * | AQ92: 4 | AR92: * | AS92: 3 | AT92: * | AU92: 1 | AV92: * | AW92: 13 | AX92: 8, 4, 0, 0, 1, 0 | AY92: 4 | AZ92: * | BA92: 4 | BB92: * | BC92: no data | BE92: 10 | BF92: 7, 1, 1, 1, 0, 0 | BG92: =VLOOKUP(D92,'[1]Apr-17'!$E$2:$Q$7375,13,FALSE) -> 3 | BH92: 0
A93: Y54 | B93: Q72 | C93: 02R | D93: B83041 | E93: BOWLING HALL MED PRACTICE | F93: ROOLEY LANE,FARSLEY, BRADFORD, WEST YORKSHIRE | G93: BD4 7SS | K93: 5 | L93: 3, 1, 1, 0, 0, 0 | M93: 18 | N93: 4, 5, 3, 1, 0, 5 | O93: 20 | P93: 9, 5, 1, 1, 2, 2 | Q93: 34 | R93: 17, 9, 8, 0, 0, 0 | S93: 12 | T93: 5, 4, 1, 1, 1, 0 | U93: 140 | V93: 71, 57, 5, 3, 2, 2 | W93: 135 | X93: 81, 44, 3, 2, 3, 2 | Y93: 41 | Z93: 26, 11, 2, 2, 0, 0 | AA93: 20 | AB93: 12, 7, 0, 1, 0, 0 | AC93: 8 | AD93: 5, 2, 0, 1, 0, 0 | AE93: 8 | AF93: 1, 2, 4, 0, 1, 0 | AG93: 56 | AH93: 31, 20, 2, 1, 2, 0 | AI93: 3 | AJ93: * | AK93: 10 | AL93: 5, 1, 1, 0, 2, 1 | AM93: 4 | AN93: * | AO93: 0 | AP93: 0, 0, 0, 0, 0, 0 | AQ93: 9 | AR93: 2, 3, 2, 1, 0, 1 | AS93: 96 | AT93: 50, 28, 2, 7, 7, 2 | AU93: 115 | AV93: 81, 25, 0, 3, 3, 3 | AW93: 27 | AX93: 14, 2, 8, 0, 3, 0 | AY93: 10 | AZ93: 8, 0, 0, 0, 2, 0 | BA93: 4 | BB93: * | BC93: 1 | BD93: * | BE93: 2 | BF93: * | BG93: =VLOOKUP(D93,'[1]Apr-17'!$E$2:$Q$7375,13,FALSE) -> 5 | BH93: 0
A94: Y54 | B94: Q72 | C94: 02R | D94: B83042 | E94: ROOLEY LANE MED. CENTRE | F94: ROOLEY LANE MEDICAL CTR, ROOLEY LANE, BRADFORD, WEST YORKSHIRE | G94: BD4 7SS | K94: 6 | L94: 4, 2, 0, 0, 0, 0 | M94: 6 | N94: 3, 3, 0, 0, 0, 0 | O94: 7 | P94: 4, 3, 0, 0, 0, 0 | Q94: 7 | R94: 2, 5, 0, 0, 0, 0 | S94: 6 | T94: 4, 2, 0, 0, 0, 0 | U94: 6 | V94: 3, 3, 0, 0, 0, 0 | W94: 6 | X94: 4, 2, 0, 0, 0, 0 | Y94: no data | AA94: 6 | AB94: 3, 3, 0, 0, 0, 0 | AC94: 6 | AD94: 2, 3, 1, 0, 0, 0 | AE94: 7 | AF94: 5, 2, 0, 0, 0, 0 | AG94: 6 | AH94: 4, 2, 0, 0, 0, 0 | AI94: 5 | AJ94: 4, 1, 0, 0, 0, 0 | AK94: 6 | AL94: 2, 3, 1, 0, 0, 0 | AM94: 0 | AN94: 0, 0, 0, 0, 0, 0 | AO94: 1 | AP94: * | AQ94: 6 | AR94: 1, 4, 0, 0, 0, 1 | AS94: 8 | AT94: 6, 2, 0, 0, 0, 0 | AU94: 6 | AV94: 3, 3, 0, 0, 0, 0 | AW94: 6 | AX94: 5, 0, 0, 0, 1, 0 | AY94: 5 | AZ94: 1, 2, 1, 0, 1, 0 | BA94: 6 | BB94: 3, 2, 1, 0, 0, 0 | BC94: no data | BE94: 6 | BF94: 4, 2, 0, 0, 0, 0 | BG94: =VLOOKUP(D94,'[1]Apr-17'!$E$2:$Q$7375,13,FALSE) -> 6 | BH94: 0
A95: Y54 | B95: Q72 | C95: 02R | D95: B83043 | E95: WOODROYD CENTRE - DE HAAR | F95: WOODROYD CENTRE, WOODROYD ROAD, BRADFORD, WEST YORKSHIRE | G95: BD5 8EL | K95: no data | M95: 3 | N95: * | O95: 1 | P95: * | Q95: 1 | R95: * | S95: 42 | T95: 17, 19, 2, 1, 2, 1 | U95: 18 | V95: 6, 8, 2, 0, 0, 2 | W95: 16 | X95: 12, 3, 0, 0, 0, 1 | Y95: 31 | Z95: 15, 8, 2, 1, 5, 0 | AA95: 54 | AB95: 28, 20, 5, 1, 0, 0 | AC95: 5 | AD95: 3, 1, 1, 0, 0, 0 | AE95: 0 | AF95: 0, 0, 0, 0, 0, 0 | AG95: 2 | AH95: * | AI95: 0 | AJ95: 0, 0, 0, 0, 0, 0 | AK95: 4 | AL95: * | AM95: 0 | AN95: 0, 0, 0, 0, 0, 0 | AO95: no data | AQ95: no data | AS95: no data | AU95: 0 | AV95: 0, 0, 0, 0, 0, 0 | AW95: no data | AY95: no data | BA95: 1 | BB95: * | BC95: 2 | BD95: * | BE95: 1 | BF95: * | BG95: =VLOOKUP(D95,'[1]Apr-17'!$E$2:$Q$7375,13,FALSE) -> 
A96: Y54 | B96: Q72 | C96: 02R | D96: B83044 | E96: DR HUTCHINGS & PARTNERS | F96: HIGHFIELD HEALTH CENTRE, 2 PROCTER STREET, OFF TONG STREET, BRADFORD | G96: BD4 9QA | K96: 34 | L96: 25, 7, 1, 1, 0, 0 | M96: 77 | N96: 41, 30, 5, 0, 1, 0 | O96: 78 | P96: 40, 26, 0, 6, 6, 0 | Q96: 1 | R96: * | S96: 36 | T96: 22, 12, 2, 0, 0, 0 | U96: 41 | V96: 18, 16, 3, 3, 1, 0 | W96: 14 | X96: 6, 7, 1, 0, 0, 0 | Y96: 42 | Z96: 25, 14, 0, 2, 1, 0 | AA96: 120 | AB96: 50, 41, 6, 11, 10, 2 | AC96: 63 | AD96: 29, 23, 5, 3, 2, 1 | AE96: 8 | AF96: 1, 2, 4, 0, 1, 0 | AG96: 57 | AH96: 28, 23, 3, 1, 1, 1 | AI96: no data | AK96: 1 | AL96: * | AM96: 4 | AN96: * | AO96: 1 | AP96: * | AQ96: 1 | AR96: * | AS96: 1 | AT96: * | AU96: 2 | AV96: * | AW96: 1 | AX96: * | AY96: no data | BA96: 0 | BB96: 0, 0, 0, 0, 0, 0 | BC96: 2 | BD96: * | BE96: 6 | BF96: 3, 2, 0, 1, 0, 0 | BG96: =VLOOKUP(D96,'[1]Apr-17'!$E$2:$Q$7375,13,FALSE) -> 34 | BH96: 0
A97: Y54 | B97: Q72 | C97: 02R | D97: B83045 | E97: MAYFIELD MEDICAL CENTRE | F97: 4 GLENHOLME PARK, PASTURE LANE, CLAYTON | G97: BD14 6NF | K97: 5 | L97: 2, 2, 0, 0, 1, 0 | M97: 22 | N97: 6, 10, 2, 1, 2, 1 | O97: 32 | P97: 10, 17, 2, 1, 2, 0 | Q97: 13 | R97: 4, 8, 1, 0, 0, 0 | S97: 10 | T97: 5, 3, 2, 0, 0, 0 | U97: 21 | V97: 6, 5, 5, 1, 4, 0 | W97: 24 | X97: 6, 12, 0, 2, 4, 0 | Y97: 34 | Z97: 11, 9, 4, 5, 3, 2 | AA97: 39 | AB97: 10, 20, 3, 5, 1, 0 | AC97: 11 | AD97: 9, 2, 0, 0, 0, 0 | AE97: 29 | AF97: 7, 10, 6, 1, 2, 3 | AG97: 30 | AH97: 7, 12, 8, 0, 3, 0 | AI97: 28 | AJ97: 4, 13, 3, 2, 6, 0 | AK97: 19 | AL97: 4, 11, 2, 1, 1, 0 | AM97: 35 | AN97: 14, 13, 5, 1, 1, 1 | AO97: 33 | AP97: 10, 8, 3, 8, 2, 2 | AQ97: 19 | AR97: 6, 5, 0, 6, 2, 0 | AS97: 33 | AT97: 12, 12, 5, 1, 2, 1 | AU97: 25 | AV97: 9, 9, 4, 1, 1, 1 | AW97: 12 | AX97: 5, 1, 1, 2, 1, 2 | AY97: 15 | AZ97: 4, 6, 1, 2, 1, 1 | BA97: 30 | BB97: 10, 12, 3, 3, 2, 0 | BC97: 38 | BD97: 9, 13, 4, 6, 4, 2 | BE97: 28 | BF97: 11, 10, 4, 0, 3, 0 | BG97: =VLOOKUP(D97,'[1]Apr-17'!$E$2:$Q$7375,13,FALSE) -> 5 | BH97: 0
A98: Y54 | B98: Q72 | C98: 02R | D98: B83049 | E98: COWGILL SURGERY | F98: THORNABY DRIVE, CLAYTON, BRADFORD | G98: BD14 6ES | K98: 14 | L98: 6, 1, 0, 2, 4, 1 | M98: 26 | N98: 17, 7, 1, 0, 1, 0 | O98: 21 | P98: 14, 4, 0, 1, 2, 0 | Q98: 16 | R98: 11, 3, 0, 0, 2, 0 | S98: 3 | T98: * | U98: 8 | V98: 3, 4, 0, 0, 1, 0 | W98: 1 | X98: * | Y98: 1 | Z98: * | AA98: 1 | AB98: * | AC98: 2 | AD98: * | AE98: 8 | AF98: 4, 2, 1, 1, 0, 0 | AG98: 3 | AH98: * | AI98: 0 | AJ98: 0, 0, 0, 0, 0, 0 | AK98: 0 | AL98: 0, 0, 0, 0, 0, 0 | AM98: 1 | AN98: * | AO98: 2 | AP98: * | AQ98: 0 | AR98: 0, 0, 0, 0, 0, 0 | AS98: 1 | AT98: * | AU98: 5 | AV98: 1, 1, 1, 1, 1, 0 | AW98: 5 | AX98: 1, 1, 0, 2, 1, 0 | AY98: 5 | AZ98: 1, 1, 0, 2, 1, 0 | BA98: 6 | BB98: 3, 2, 0, 1, 0, 0 | BC98: no data | BE98: 10 | BF98: 3, 4, 0, 2, 1, 0 | BG98: =VLOOKUP(D98,'[1]Apr-17'!$E$2:$Q$7375,13,FALSE) -> 14 | BH98: 0
A99: Y54 | B99: Q72 | C99: 02R | D99: B83050 | E99: THE GRANGE PRACTICE | F99: ALLERTON HEALTH CENTRE, BELL DEAN ROAD, ALLERTON, BRADFORD, WEST YORKSHIRE | G99: BD15 7WA | K99: 18 | L99: 9, 7, 1, 0, 1, 0 | M99: 16 | N99: 7, 8, 1, 0, 0, 0 | O99: 18 | P99: 7, 9, 1, 0, 1, 0 | Q99: 3 | R99: * | S99: 12 | T99: 6, 2, 2, 1, 1, 0 | U99: 3 | V99: * | W99: 13 | X99: 6, 4, 0, 1, 2, 0 | Y99: 14 | Z99: 8, 3, 2, 0, 1, 0 | AA99: 7 | AB99: 2, 5, 0, 0, 0, 0 | AC99: 9 | AD99: 6, 2, 0, 1, 0, 0 | AE99: 10 | AF99: 5, 2, 3, 0, 0, 0 | AG99: 10 | AH99: 5, 2, 1, 2, 0, 0 | AI99: 13 | AJ99: 5, 5, 2, 0, 1, 0 | AK99: 10 | AL99: 3, 2, 2, 1, 2, 0 | AM99: 13 | AN99: 6, 4, 2, 1, 0, 0 | AO99: 6 | AP99: 2, 1, 1, 1, 1, 0 | AQ99: 14 | AR99: 8, 3, 2, 0, 1, 0 | AS99: 4 | AT99: * | AU99: 0 | AV99: 0, 0, 0, 0, 0, 0 | AW99: 3 | AX99: * | AY99: 20 | AZ99: 10, 7, 2, 0, 1, 0 | BA99: 28 | BB99: 15, 10, 2, 0, 1, 0 | BC99: 13 | BD99: 10, 3, 0, 0, 0, 0 | BE99: 15 | BF99: 8, 4, 1, 0, 1, 1 | BG99: =VLOOKUP(D99,'[1]Apr-17'!$E$2:$Q$7375,13,FALSE) -> 18 | BH99: 0
A100: Y54 | B100: Q72 | C100: 02R | D100: B83054 | E100: DR WSG PASSANT'S PRACTICE | F100: HAIGH HALL MEDICAL CENTRE, HAIGH HALL ROAD, GREENGATES, BRADFORD | G100: BD10 9AZ | K100: 40 | L100: 36, 3, 0, 0, 1, 0 | M100: 42 | N100: 37, 5, 0, 0, 0, 0 | O100: 46 | P100: 42, 3, 0, 0, 1, 0 | Q100: 33 | R100: 28, 3, 0, 1, 1, 0 | S100: 29 | T100: 27, 1, 0, 0, 1, 0 | U100: 2 | V100: * | W100: 2 | X100: * | Y100: 1 | Z100: * | AA100: 8 | AB100: 5, 2, 0, 1, 0, 0 | AC100: 12 | AD100: 10, 2, 0, 0, 0, 0 | AE100: 25 | AF100: 19, 5, 0, 0, 1, 0 | AG100: no data | AI100: 33 | AJ100: 17, 11, 2, 3, 0, 0 | AK100: 42 | AL100: 25, 13, 2, 1, 0, 1 | AM100: 25 | AN100: 15, 5, 3, 1, 0, 1 | AO100: no data | AQ100: no data | AS100: no data | AU100: no data | AW100: no data | AY100: no data | BA100: no data | BC100: no data | BE100: 7 | BF100: 2, 4, 1, 0, 0, 0 | BG100: =VLOOKUP(D100,'[1]Apr-17'!$E$2:$Q$7375,13,FALSE) -> 40 | BH100: 0
A101: Y54 | B101: Q72 | C101: 02R | D101: B83055 | E101: THE RIDGE MEDICAL PRACT. | F101: THE RIDGE MEDICAL CENTRE, COUSEN ROAD,GREAT HORTON, BRADFORD, WEST YORKSHIRE | G101: BD7 3JX | K101: 348 | L101: 129, 160, 30, 14, 9, 6 | M101: 545 | N101: 230, 205, 71, 19, 10, 10 | O101: 6 | P101: 0, 2, 1, 3, 0, 0 | Q101: 6 | R101: 2, 3, 0, 0, 1, 0 | S101: no data | U101: no data | W101: 22 | X101: 18, 3, 0, 1, 0, 0 | Y101: 13 | Z101: 7, 3, 2, 1, 0, 0 | AA101: 60 | AB101: 37, 17, 3, 0, 1, 2 | AC101: 16 | AD101: 1, 4, 2, 7, 1, 1 | AE101: 37 | AF101: 3, 17, 4, 7, 4, 2 | AG101: 8 | AH101: 2, 2, 1, 2, 0, 1 | AI101: 10 | AJ101: 1, 2, 1, 0, 1, 5 | AK101: 7 | AL101: 1, 4, 0, 0, 2, 0 | AM101: 0 | AN101: 0, 0, 0, 0, 0, 0 | AO101: no data | AQ101: 4 | AR101: * | AS101: 68 | AT101: 30, 22, 4, 3, 5, 4 | AU101: 1 | AV101: * | AW101: 1 | AX101: * | AY101: 0 | AZ101: 0, 0, 0, 0, 0, 0 | BA101: 0 | BB101: 0, 0, 0, 0, 0, 0 | BC101: 0 | BD101: 0, 0, 0, 0, 0, 0 | BE101: 5 | BF101: 1, 0, 0, 1, 3, 0 | BG101: =VLOOKUP(D101,'[1]Apr-17'!$E$2:$Q$7375,13,FALSE) -> 348 | BH101: 0
A102: Y54 | B102: Q72 | C102: 02R | D102: B83056 | E102: MOORSIDE SURGERY | F102: 370 DUDLEY HILL, BRADFORD, WEST YORKSHIRE | G102: BD2 3AA | K102: 60 | L102: 28, 28, 2, 2, 0, 0 | M102: 83 | N102: 56, 21, 3, 2, 0, 1 | O102: 101 | P102: 69, 25, 4, 1, 1, 1 | Q102: 83 | R102: 52, 19, 8, 1, 2, 1 | S102: 86 | T102: 64, 15, 6, 1, 0, 0 | U102: 127 | V102: 72, 37, 11, 3, 3, 1 | W102: 92 | X102: 61, 22, 4, 2, 2, 1 | Y102: 18 | Z102: 9, 7, 1, 0, 0, 1 | AA102: 53 | AB102: 36, 12, 1, 1, 3, 0 | AC102: 106 | AD102: 72, 27, 1, 2, 2, 2 | AE102: 2 | AF102: * | AG102: 2 | AH102: * | AI102: 43 | AJ102: 28, 10, 0, 2, 3, 0 | AK102: no data | AM102: no data | AO102: 0 | AP102: 0, 0, 0, 0, 0, 0 | AQ102: 1 | AR102: * | AS102: 0 | AT102: 0, 0, 0, 0, 0, 0 | AU102: 54 | AV102: 35, 16, 2, 1, 0, 0 | AW102: 4 | AX102: * | AY102: 100 | AZ102: 55, 37, 1, 1, 3, 3 | BA102: 174 | BB102: 115, 47, 9, 1, 0, 2 | BC102: 80 | BD102: 44, 31, 2, 2, 0, 1 | BE102: 21 | BF102: 15, 6, 0, 0, 0, 0 | BG102: =VLOOKUP(D102,'[1]Apr-17'!$E$2:$Q$7375,13,FALSE) -> 60 | BH102: 0
A103: Y54 | B103: Q72 | C103: 02R | D103: B83062 | E103: ASHCROFT SURGERY | F103: NEWLANDS WAY, ECCLESHILL, BRADFORD | G103: BD10 0JE | K103: 4 | L103: * | M103: 11 | N103: 6, 1, 0, 2, 0, 2 | O103: 3 | P103: * | Q103: 2 | R103: * | S103: no data | U103: 1 | V103: * | W103: 1 | X103: * | Y103: 3 | Z103: * | AA103: 7 | AB103: 6, 0, 0, 0, 1, 0 | AC103: 23 | AD103: 20, 3, 0, 0, 0, 0 | AE103: 4 | AF103: * | AG103: 0 | AH103: 0, 0, 0, 0, 0, 0 | AI103: 1 | AJ103: * | AK103: 3 | AL103: * | AM103: 2 | AN103: * | AO103: 1 | AP103: * | AQ103: 2 | AR103: * | AS103: 5 | AT103: 2, 0, 0, 0, 3, 0 | AU103: 0 | AV103: 0, 0, 0, 0, 0, 0 | AW103: 1 | AX103: * | AY103: no data | BA103: 3 | BB103: * | BC103: 3 | BD103: * | BE103: 2 | BF103: * | BG103: =VLOOKUP(D103,'[1]Apr-17'!$E$2:$Q$7375,13,FALSE) -> 4 | BH103: 0
A104: Y54 | B104: Q72 | C104: 02R | D104: B83063 | E104: DR NSE HAYWARD & PARTNERS | F104: SHIPLEY MEDICAL PRACTICE, ALEXANDRA ROAD, SHIPLEY, BRADFORD | G104: BD18 3EG | K104: 62 | L104: 53, 4, 1, 1, 3, 0 | M104: 72 | N104: 63, 5, 2, 1, 1, 0 | O104: 69 | P104: 57, 10, 0, 0, 2, 0 | Q104: 75 | R104: 65, 7, 1, 1, 1, 0 | S104: 72 | T104: 63, 6, 0, 0, 1, 2 | U104: 5 | V104: 3, 2, 0, 0, 0, 0 | W104: 6 | X104: 6, 0, 0, 0, 0, 0 | Y104: 7 | Z104: 6, 0, 0, 1, 0, 0 | AA104: 6 | AB104: 6, 0, 0, 0, 0, 0 | AC104: 1 | AD104: * | AE104: 3 | AF104: * | AG104: 4 | AH104: * | AI104: 5 | AJ104: 4, 1, 0, 0, 0, 0 | AK104: no data | AM104: no data | AO104: no data | AQ104: no data | AS104: 1 | AT104: * | AU104: no data | AW104: 1 | AX104: * | AY104: no data | BA104: no data | BC104: no data | BE104: no data | BG104: =VLOOKUP(D104,'[1]Apr-17'!$E$2:$Q$7375,13,FALSE) -> 62 | BH104: 0
A105: Y54 | B105: Q72 | C105: 02R | D105: B83064 | E105: THE ROCKWELL AND WROSE PRACTICE | F105: WROSE HEALTH CENTRE, KINGS ROAD, BRADFORD | G105: BD2 1QG | K105: 9 | L105: 5, 2, 2, 0, 0, 0 | M105: 9 | N105: 8, 0, 0, 1, 0, 0 | O105: 8 | P105: 6, 0, 0, 0, 2, 0 | Q105: 10 | R105: 5, 4, 0, 0, 1, 0 | S105: 13 | T105: 8, 4, 1, 0, 0, 0 | U105: 6 | V105: 4, 1, 1, 0, 0, 0 | W105: 9 | X105: 4, 5, 0, 0, 0, 0 | Y105: 19 | Z105: 13, 5, 1, 0, 0, 0 | AA105: 10 | AB105: 6, 0, 0, 0, 4, 0 | AC105: 24 | AD105: 18, 4, 1, 1, 0, 0 | AE105: 7 | AF105: 6, 1, 0, 0, 0, 0 | AG105: 24 | AH105: 23, 1, 0, 0, 0, 0 | AI105: 13 | AJ105: 8, 4, 1, 0, 0, 0 | AK105: 17 | AL105: 12, 3, 2, 0, 0, 0 | AM105: 14 | AN105: 11, 3, 0, 0, 0, 0 | AO105: 9 | AP105: 6, 2, 0, 1, 0, 0 | AQ105: 11 | AR105: 10, 1, 0, 0, 0, 0 | AS105: 26 | AT105: 17, 6, 3, 0, 0, 0 | AU105: no data | AW105: 8 | AX105: 5, 1, 1, 1, 0, 0 | AY105: 19 | AZ105: 10, 6, 1, 0, 1, 1 | BA105: 21 | BB105: 13, 8, 0, 0, 0, 0 | BC105: 11 | BD105: 9, 2, 0, 0, 0, 0 | BE105: 44 | BF105: 24, 17, 1, 2, 0, 0 | BG105: =VLOOKUP(D105,'[1]Apr-17'!$E$2:$Q$7375,13,FALSE) -> 9 | BH105: 0
A106: Y54 | B106: Q72 | C106: 02R | D106: B83067 | E106: THE SPRINGFIELD SURGERY (BINGLEY) | F106: SPRINGFIELD SURGERY, CANALSIDE HEALTHCARE CTR, BINGLEY | G106: BD16 4RP | K106: 0 | L106: 0, 0, 0, 0, 0, 0 | M106: no data | O106: 1 | P106: * | Q106: 1 | R106: * | S106: 0 | T106: 0, 0, 0, 0, 0, 0 | U106: 1 | V106: * | W106: 2 | X106: * | Y106: 2 | Z106: * | AA106: 1 | AB106: * | AC106: 2 | AD106: * | AE106: 1 | AF106: * | AG106: 332 | AH106: 195, 102, 26, 6, 3, 0 | AI106: 0 | AJ106: 0, 0, 0, 0, 0, 0 | AK106: 2 | AL106: * | AM106: 7 | AN106: 6, 1, 0, 0, 0, 0 | AO106: 2 | AP106: * | AQ106: 5 | AR106: 3, 1, 0, 0, 1, 0 | AS106: 2 | AT106: * | AU106: 5 | AV106: 1, 3, 0, 0, 0, 1 | AW106: 2 | AX106: * | AY106: 1 | AZ106: * | BA106: 3 | BB106: * | BC106: 3 | BD106: * | BE106: 2 | BF106: * | BG106: =VLOOKUP(D106,'[1]Apr-17'!$E$2:$Q$7375,13,FALSE) -> 0 | BH106: 0
A107: Y54 | B107: Q72 | C107: 02R | D107: B83641 | E107: ASHWELL MEDICAL CENTRE | F107: ASHWELL ROAD, MANNINGHAM, BRADFORD, WEST YORKSHIRE | G107: BD8 9DP | K107: 40 | L107: 7, 18, 11, 2, 2, 0 | M107: 16 | N107: 2, 7, 6, 1, 0, 0 | O107: 25 | P107: 3, 8, 8, 5, 1, 0 | Q107: 12 | R107: 2, 4, 4, 2, 0, 0 | S107: 49 | T107: 13, 19, 5, 7, 5, 0 | U107: 18 | V107: 7, 5, 2, 0, 4, 0 | W107: 14 | X107: 3, 5, 2, 0, 4, 0 | Y107: 55 | Z107: 17, 9, 4, 7, 18, 0 | AA107: 39 | AB107: 7, 11, 0, 5, 16, 0 | AC107: 41 | AD107: 12, 13, 2, 6, 8, 0 | AE107: 30 | AF107: 10, 6, 1, 2, 11, 0 | AG107: no data | AI107: 81 | AJ107: 27, 37, 5, 1, 11, 0 | AK107: 79 | AL107: 14, 27, 8, 9, 19, 2 | AM107: 45 | AN107: 8, 15, 5, 4, 10, 3 | AO107: 46 | AP107: 27, 4, 3, 1, 11, 0 | AQ107: 76 | AR107: 30, 20, 5, 8, 11, 2 | AS107: 82 | AT107: 19, 21, 11, 12, 17, 2 | AU107: 74 | AV107: 11, 40, 11, 7, 5, 0 | AW107: 100 | AX107: 26, 37, 20, 10, 5, 2 | AY107: 287 | AZ107: 108, 79, 26, 18, 46, 10 | BA107: 29 | BB107: 15, 7, 2, 1, 4, 0 | BC107: 41 | BD107: 19, 11, 1, 1, 9, 0 | BE107: 87 | BF107: 47, 17, 9, 2, 11, 1 | BG107: =VLOOKUP(D107,'[1]Apr-17'!$E$2:$Q$7375,13,FALSE) -> 40 | BH107: 0
A108: Y54 | B108: Q72 | C108: 02R | D108: Y01118 | E108: ECCLESHILL VILLAGE SURGERY | F108: 14 INSTITUTE ROAD, ECCLESHILL, BRADFORD | G108: BD2 2HX | K108: 31 | L108: 27, 3, 0, 1, 0, 0 | M108: 16 | N108: 9, 6, 0, 1, 0, 0 | O108: 24 | P108: 14, 7, 0, 3, 0, 0 | Q108: 21 | R108: 16, 4, 0, 1, 0, 0 | S108: 29 | T108: 24, 5, 0, 0, 0, 0 | U108: 32 | V108: 28, 4, 0, 0, 0, 0 | W108: 55 | X108: 48, 7, 0, 0, 0, 0 | Y108: 24 | Z108: 18, 5, 1, 0, 0, 0 | AA108: 18 | AB108: 14, 3, 0, 0, 0, 1 | AC108: 46 | AD108: 42, 3, 0, 1, 0, 0 | AE108: 16 | AF108: 14, 2, 0, 0, 0, 0 | AG108: 11 | AH108: 8, 3, 0, 0, 0, 0 | AI108: 26 | AJ108: 10, 13, 2, 1, 0, 0 | AK108: 21 | AL108: 8, 13, 0, 0, 0, 0 | AM108: 25 | AN108: 21, 4, 0, 0, 0, 0 | AO108: 21 | AP108: 12, 8, 1, 0, 0, 0 | AQ108: 24 | AR108: 19, 4, 0, 1, 0, 0 | AS108: 15 | AT108: 4, 10, 1, 0, 0, 0 | AU108: no data | AW108: no data | AY108: no data | BA108: 13 | BB108: 5, 7, 1, 0, 0, 0 | BC108: 25 | BD108: 10, 13, 0, 1, 1, 0 | BE108: 16 | BF108: 12, 4, 0, 0, 0, 0 | BG108: =VLOOKUP(D108,'[1]Apr-17'!$E$2:$Q$7375,13,FALSE) -> 31 | BH108: 0
A109: Y54 | B109: Q72 | C109: 02T | D109: B84001 | E109: STATION ROAD SURGERY | F109: STATION ROAD, SOWERBY BRIDGE, WEST YORKSHIRE | G109: HX6 3AB | K109: 24 | L109: 16, 8, 0, 0, 0, 0 | M109: no data | O109: 11 | P109: 2, 3, 1, 1, 4, 0 | Q109: 17 | R109: 8, 5, 2, 0, 2, 0 | S109: 6 | T109: 2, 1, 1, 2, 0, 0 | U109: no data | W109: no data | Y109: no data | AA109: no data | AC109: 65 | AD109: 29, 6, 2, 6, 21, 1 | AE109: no data | AG109: no data | AI109: 42 | AJ109: 32, 6, 0, 1, 2, 1 | AK109: 15 | AL109: 9, 0, 0, 1, 5, 0 | AM109: no data | AO109: 39 | AP109: 19, 4, 5, 1, 5, 5 | AQ109: no data | AS109: 71 | AT109: 47, 15, 3, 2, 4, 0 | AU109: 71 | AV109: 61, 4, 0, 3, 3, 0 | AW109: 60 | AX109: 49, 5, 1, 1, 3, 1 | AY109: 89 | AZ109: 74, 11, 0, 1, 3, 0 | BA109: 91 | BB109: 74, 10, 0, 2, 4, 1 | BC109: 266 | BD109: 107, 85, 29, 12, 0, 33 | BE109: 142 | BF109: 76, 28, 10, 1, 4, 23 | BG109: =VLOOKUP(D109,'[1]Apr-17'!$E$2:$Q$7375,13,FALSE) -> 24 | BH109: 0
A110: Y54 | B110: Q72 | C110: 02T | D110: B84002 | E110: QUEENS ROAD SURGERY | F110: 252 QUEENS ROAD, HALIFAX, WEST YORKSHIRE | G110: HX1 4NJ | K110: 0 | L110: 0, 0, 0, 0, 0, 0 | M110: 17 | N110: 15, 0, 0, 1, 1, 0 | O110: no data | Q110: no data | S110: no data | U110: 55 | V110: 37, 15, 1, 0, 2, 0 | W110: 57 | X110: 25, 22, 4, 3, 3, 0 | Y110: 20 | Z110: 13, 2, 1, 2, 1, 1 | AA110: 14 | AB110: 8, 2, 2, 0, 2, 0 | AC110: 47 | AD110: 19, 13, 5, 0, 7, 3 | AE110: 54 | AF110: 17, 16, 3, 2, 3, 13 | AG110: 27 | AH110: 21, 2, 0, 1, 2, 1 | AI110: 44 | AJ110: 30, 8, 2, 1, 2, 1 | AK110: 60 | AL110: 19, 20, 8, 3, 5, 5 | AM110: no data | AO110: 178 | AP110: 93, 32, 18, 6, 12, 17 | AQ110: 147 | AR110: 42, 28, 16, 8, 9, 44 | AS110: 41 | AT110: 24, 9, 2, 1, 3, 2 | AU110: 55 | AV110: 20, 23, 3, 4, 4, 1 | AW110: 98 | AX110: 53, 32, 7, 4, 2, 0 | AY110: 10 | AZ110: 6, 2, 0, 0, 2, 0 | BA110: 28 | BB110: 17, 6, 1, 1, 3, 0 | BC110: 32 | BD110: 11, 5, 4, 1, 2, 9 | BE110: 7 | BF110: 3, 2, 1, 0, 1, 0 | BG110: =VLOOKUP(D110,'[1]Apr-17'!$E$2:$Q$7375,13,FALSE) -> 0 | BH110: 0
A111: Y54 | B111: Q72 | C111: 02T | D111: B84003 | E111: RYDINGS HALL SURGERY | F111: CHURCH LANE, BRIGHOUSE, WEST YORKSHIRE | G111: HD6 1AT | K111: 56 | L111: 49, 7, 0, 0, 0, 0 | M111: 40 | N111: 34, 5, 0, 0, 1, 0 | O111: 76 | P111: 64, 8, 0, 0, 2, 2 | Q111: no data | S111: 61 | T111: 49, 6, 2, 1, 1, 2 | U111: 90 | V111: 68, 12, 4, 0, 5, 1 | W111: 59 | X111: 43, 8, 3, 0, 0, 5 | Y111: 100 | Z111: 75, 13, 3, 3, 2, 4 | AA111: no data | AC111: no data | AE111: no data | AG111: no data | AI111: 95 | AJ111: 55, 23, 4, 4, 4, 5 | AK111: no data | AM111: no data | AO111: no data | AQ111: no data | AS111: 101 | AT111: 86, 8, 2, 2, 2, 1 | AU111: 85 | AV111: 75, 8, 0, 1, 0, 1 | AW111: 55 | AX111: 48, 5, 1, 1, 0, 0 | AY111: 67 | AZ111: 55, 8, 1, 1, 2, 0 | BA111: 75 | BB111: 66, 9, 0, 0, 0, 0 | BC111: 7 | BD111: 6, 0, 1, 0, 0, 0 | BE111: no data | BG111: =VLOOKUP(D111,'[1]Apr-17'!$E$2:$Q$7375,13,FALSE) -> 56 | BH111: 0
A112: Y54 | B112: Q72 | C112: 02T | D112: B84004 | E112: HEBDEN BRIDGE GROUP PRACTICE | F112: VALLEY MEDICAL CENTRE, VALLEY ROAD,HEBDEN BRIDGE, HALIFAX | G112: HX7 7BZ | K112: 2 | L112: * | M112: 35 | N112: 23, 10, 1, 0, 0, 1 | O112: 4 | P112: * | Q112: 39 | R112: 27, 10, 1, 0, 1, 0 | S112: 7 | T112: 5, 1, 1, 0, 0, 0 | U112: 8 | V112: 7, 0, 1, 0, 0, 0 | W112: 30 | X112: 21, 7, 1, 1, 0, 0 | Y112: 5 | Z112: 3, 1, 0, 1, 0, 0 | AA112: no data | AC112: no data | AE112: 34 | AF112: 15, 14, 1, 1, 0, 3 | AG112: 16 | AH112: 7, 4, 1, 0, 3, 1 | AI112: 15 | AJ112: 4, 3, 0, 2, 3, 3 | AK112: 23 | AL112: 10, 6, 4, 2, 0, 1 | AM112: 12 | AN112: 9, 1, 0, 0, 1, 1 | AO112: 34 | AP112: 8, 7, 5, 4, 7, 3 | AQ112: 51 | AR112: 22, 12, 3, 4, 2, 8 | AS112: 6 | AT112: 4, 0, 1, 0, 0, 1 | AU112: 6 | AV112: 3, 1, 0, 0, 2, 0 | AW112: 5 | AX112: 3, 1, 1, 0, 0, 0 | AY112: 65 | AZ112: 29, 26, 0, 4, 6, 0 | BA112: 5 | BB112: 4, 0, 1, 0, 0, 0 | BC112: 7 | BD112: 2, 1, 0, 1, 3, 0 | BE112: 8 | BF112: 5, 3, 0, 0, 0, 0 | BG112: =VLOOKUP(D112,'[1]Apr-17'!$E$2:$Q$7375,13,FALSE) -> 2 | BH112: 0
A113: Y54 | B113: Q72 | C113: 02T | D113: B84005 | E113: ROSEGARTH SURGERY | F113: ROTHWELL MOUNT, HALIFAX, WEST YORKSHIRE | G113: HX1 2HB | K113: 63 | L113: 54, 7, 1, 1, 0, 0 | M113: 117 | N113: 108, 5, 2, 0, 2, 0 | O113: 119 | P113: 102, 12, 1, 1, 3, 0 | Q113: no data | S113: no data | U113: no data | W113: no data | Y113: no data | AA113: no data | AC113: no data | AE113: no data | AG113: 96 | AH113: 69, 13, 6, 2, 5, 1 | AI113: no data | AK113: no data | AM113: 86 | AN113: 52, 17, 2, 6, 7, 2 | AO113: 70 | AP113: 52, 9, 2, 2, 5, 0 | AQ113: 90 | AR113: 74, 9, 1, 1, 4, 1 | AS113: 95 | AT113: 76, 10, 2, 3, 3, 1 | AU113: 68 | AV113: 58, 6, 2, 2, 0, 0 | AW113: 84 | AX113: 69, 8, 1, 1, 5, 0 | AY113: 51 | AZ113: 35, 7, 0, 2, 7, 0 | BA113: 93 | BB113: 72, 14, 3, 2, 1, 1 | BC113: 25 | BD113: 21, 2, 0, 0, 2, 0 | BE113: 3 | BF113: * | BG113: =VLOOKUP(D113,'[1]Apr-17'!$E$2:$Q$7375,13,FALSE) -> 63 | BH113: 0
A114: Y54 | B114: Q72 | C114: 02T | D114: B84006 | E114: TODMORDEN GROUP PRACTICE | F114: TODMORDEN HEALTH CENTRE, LOWER GEORGE STREET, TODMORDEN, WEST YORKSHIRE | G114: OL14 5RN | K114: 76 | L114: 44, 10, 6, 0, 6, 10 | M114: 110 | N114: 64, 14, 7, 2, 6, 17 | O114: 95 | P114: 50, 20, 8, 1, 7, 9 | Q114: 12 | R114: 8, 1, 2, 0, 1, 0 | S114: no data | U114: 13 | V114: 8, 5, 0, 0, 0, 0 | W114: 12 | X114: 8, 1, 2, 0, 1, 0 | Y114: no data | AA114: no data | AC114: no data | AE114: no data | AG114: no data | AI114: 17 | AJ114: 5, 5, 2, 5, 0, 0 | AK114: 7 | AL114: 6, 0, 0, 1, 0, 0 | AM114: no data | AO114: 10 | AP114: 6, 3, 0, 1, 0, 0 | AQ114: no data | AS114: 6 | AT114: 1, 3, 1, 0, 1, 0 | AU114: 8 | AV114: 6, 1, 1, 0, 0, 0 | AW114: 25 | AX114: 14, 9, 1, 1, 0, 0 | AY114: 75 | AZ114: 41, 27, 3, 2, 2, 0 | BA114: no data | BC114: 1 | BD114: * | BE114: 14 | BF114: 11, 1, 0, 0, 2, 0 | BG114: =VLOOKUP(D114,'[1]Apr-17'!$E$2:$Q$7375,13,FALSE) -> 76 | BH114: 0
A115: Y54 | B115: Q72 | C115: 02T | D115: B84007 | E115: BRIG ROYD SURGERY | F115: HIRSTWOOD, RIPPONDEN | G115: HX6 4BN | K115: 4 | L115: * | M115: 23 | N115: 22, 1, 0, 0, 0, 0 | O115: 13 | P115: 13, 0, 0, 0, 0, 0 | Q115: 14 | R115: 14, 0, 0, 0, 0, 0 | S115: 5 | T115: 4, 0, 0, 1, 0, 0 | U115: 11 | V115: 11, 0, 0, 0, 0, 0 | W115: 15 | X115: 15, 0, 0, 0, 0, 0 | Y115: no data | AA115: 25 | AB115: 25, 0, 0, 0, 0, 0 | AC115: 32 | AD115: 31, 0, 0, 1, 0, 0 | AE115: no data | AG115: no data | AI115: 28 | AJ115: 28, 0, 0, 0, 0, 0 | AK115: 2 | AL115: * | AM115: 6 | AN115: 6, 0, 0, 0, 0, 0 | AO115: 41 | AP115: 41, 0, 0, 0, 0, 0 | AQ115: 6 | AR115: 6, 0, 0, 0, 0, 0 | AS115: 16 | AT115: 15, 1, 0, 0, 0, 0 | AU115: 20 | AV115: 20, 0, 0, 0, 0, 0 | AW115: 9 | AX115: 8, 0, 0, 1, 0, 0 | AY115: 13 | AZ115: 12, 1, 0, 0, 0, 0 | BA115: 25 | BB115: 25, 0, 0, 0, 0, 0 | BC115: 18 | BD115: 16, 0, 1, 1, 0, 0 | BE115: 13 | BF115: 11, 1, 0, 0, 1, 0 | BG115: =VLOOKUP(D115,'[1]Apr-17'!$E$2:$Q$7375,13,FALSE) -> 4 | BH115: 0
A116: Y54 | B116: Q72 | C116: 02T | D116: B84008 | E116: DR CHIN AND PARTNERS | F116: KOS CLINIC, 4 ROYDLANDS STREET, HIPPERHOLME, HALIFAX, WEST YORKSHIRE | G116: HX3 8AF | K116: 146 | L116: 130, 11, 3, 0, 2, 0 | M116: no data | O116: 166 | P116: 144, 16, 1, 0, 2, 3 | Q116: 173 | R116: 152, 12, 2, 3, 3, 1 | S116: 157 | T116: 137, 13, 0, 1, 3, 3 | U116: 159 | V116: 144, 12, 3, 0, 0, 0 | W116: 171 | X116: 147, 12, 1, 3, 4, 4 | Y116: 174 | Z116: 146, 23, 0, 2, 1, 2 | AA116: 154 | AB116: 118, 17, 6, 0, 6, 7 | AC116: 201 | AD116: 171, 17, 3, 2, 3, 5 | AE116: 257 | AF116: 203, 34, 4, 6, 4, 6 | AG116: 241 | AH116: 189, 31, 2, 4, 6, 9 | AI116: 249 | AJ116: 194, 34, 3, 3, 3, 12 | AK116: 245 | AL116: 190, 32, 7, 3, 9, 4 | AM116: 230 | AN116: 203, 17, 3, 3, 4, 0 | AO116: 211 | AP116: 185, 17, 4, 0, 4, 1 | AQ116: no data | AS116: 201 | AT116: 157, 34, 4, 2, 4, 0 | AU116: 147 | AV116: 147, 0, 0, 0, 0, 0 | AW116: 174 | AX116: 151, 17, 2, 1, 3, 0 | AY116: 266 | AZ116: 234, 26, 4, 0, 2, 0 | BA116: no data | BC116: 271 | BD116: 226, 36, 4, 2, 3, 0 | BE116: 192 | BF116: 148, 40, 2, 1, 0, 1 | BG116: =VLOOKUP(D116,'[1]Apr-17'!$E$2:$Q$7375,13,FALSE) -> 146 | BH116: 0
A117: Y54 | B117: Q72 | C117: 02T | D117: B84009 | E117: STAINLAND ROAD MEDICAL CENTRE | F117: STAINLAND RD MEDICAL CTR, 70 STAINLAND RD,GREETLAND, HALIFAX | G117: HX4 8BD | H117: Yes | K117: no data | M117: no data | O117: no data | Q117: no data | S117: no data | U117: no data | W117: no data | Y117: no data | AA117: no data | AC117: no data | AE117: 26 | AF117: 17, 8, 1, 0, 0, 0 | AG117: 16 | AH117: 10, 6, 0, 0, 0, 0 | AI117: no data | AK117: no data | AM117: no data | AO117: 63 | AP117: 40, 11, 4, 2, 2, 4 | AQ117: no data | AS117: 5 | AT117: 4, 1, 0, 0, 0, 0 | AU117: 45 | AV117: 31, 14, 0, 0, 0, 0 | AW117: 7 | AX117: 4, 3, 0, 0, 0, 0 | AY117: 16 | AZ117: 8, 5, 0, 2, 1, 0 | BA117: 24 | BB117: 22, 2, 0, 0, 0, 0 | BC117: no data | BE117: 15 | BF117: 11, 2, 0, 1, 1, 0 | BG117: =VLOOKUP(D117,'[1]Apr-17'!$E$2:$Q$7375,13,FALSE) -> 
A118: Y54 | B118: Q72 | C118: 02T | D118: B84010 | E118: KEIGHLEY ROAD SURGERY | F118: KEIGHLEY ROAD, ILLINGWORTH, HALIFAX, WEST YORKSHIRE | G118: HX2 9LL | K118: no data | M118: 46 | N118: 39, 2, 0, 2, 3, 0 | O118: 80 | P118: 57, 11, 2, 2, 7, 1 | Q118: 59 | R118: 45, 9, 0, 0, 5, 0 | S118: 53 | T118: 37, 8, 2, 1, 5, 0 | U118: 56 | V118: 38, 9, 3, 2, 4, 0 | W118: 66 | X118: 48, 10, 2, 2, 4, 0 | Y118: 48 | Z118: 38, 7, 0, 0, 3, 0 | AA118: 34 | AB118: 27, 4, 0, 2, 1, 0 | AC118: no data | AE118: 31 | AF118: 24, 2, 0, 1, 4, 0 | AG118: 71 | AH118: 46, 7, 2, 3, 13, 0 | AI118: 95 | AJ118: 61, 19, 1, 2, 4, 8 | AK118: 100 | AL118: 62, 16, 1, 9, 4, 8 | AM118: 60 | AN118: 45, 6, 2, 3, 4, 0 | AO118: 65 | AP118: 47, 11, 2, 1, 3, 1 | AQ118: 84 | AR118: 58, 7, 4, 6, 9, 0 | AS118: no data | AU118: 54 | AV118: 32, 13, 4, 0, 5, 0 | AW118: no data | AY118: 80 | AZ118: 49, 17, 9, 2, 2, 1 | BA118: no data | BC118: 11 | BD118: 7, 2, 0, 2, 0, 0 | BE118: 5 | BF118: 2, 0, 0, 1, 2, 0 | BG118: =VLOOKUP(D118,'[1]Apr-17'!$E$2:$Q$7375,13,FALSE) -> 
A119: Y54 | B119: Q72 | C119: 02T | D119: B84011 | E119: CHURCH LANE SURGERY | F119: THE CHURCH LANE SURGERY, 24 CHURCH LANE, BRIGHOUSE, WEST YORKSHIRE | G119: HD6 1AT | K119: 53 | L119: 43, 6, 0, 1, 3, 0 | M119: 65 | N119: 50, 6, 2, 1, 6, 0 | O119: 76 | P119: 61, 10, 1, 1, 2, 1 | Q119: 65 | R119: 55, 6, 1, 2, 1, 0 | S119: 70 | T119: 57, 10, 0, 2, 1, 0 | U119: 43 | V119: 37, 1, 1, 3, 1, 0 | W119: 45 | X119: 33, 7, 2, 1, 2, 0 | Y119: 54 | Z119: 43, 6, 1, 1, 3, 0 | AA119: 80 | AB119: 65, 10, 1, 2, 2, 0 | AC119: 69 | AD119: 56, 7, 4, 0, 2, 0 | AE119: 77 | AF119: 54, 13, 1, 2, 2, 5 | AG119: 92 | AH119: 61, 14, 7, 4, 4, 2 | AI119: 83 | AJ119: 61, 12, 1, 0, 7, 2 | AK119: 224 | AL119: 150, 44, 7, 4, 4, 15 | AM119: no data | AO119: 71 | AP119: 48, 7, 3, 1, 6, 6 | AQ119: no data | AS119: 75 | AT119: 55, 11, 1, 2, 3, 3 | AU119: 152 | AV119: 116, 16, 4, 4, 11, 1 | AW119: 471 | AX119: 375, 62, 14, 8, 10, 2 | AY119: 61 | AZ119: 47, 7, 1, 3, 2, 1 | BA119: 340 | BB119: 264, 44, 10, 10, 10, 2 | BC119: 267 | BD119: 212, 33, 8, 8, 5, 1 | BE119: no data | BG119: =VLOOKUP(D119,'[1]Apr-17'!$E$2:$Q$7375,13,FALSE) -> 53 | BH119: 0
A120: Y54 | B120: Q72 | C120: 02T | D120: B84012 | E120: SPRING HALL GROUP PRACTICE | F120: SPRING HALL GROUP PRACT, SPRING HALL MEDICAL CTR, SPRING HALL LANE, HALIFAX | G120: HX1 4JG | K120: 217 | L120: 56, 160, 0, 1, 0, 0 | M120: 73 | N120: 41, 31, 1, 0, 0, 0 | O120: 218 | P120: 98, 93, 10, 3, 13, 1 | Q120: no data | S120: no data | U120: no data | W120: 139 | X120: 62, 61, 14, 0, 2, 0 | Y120: 31 | Z120: 15, 11, 3, 1, 1, 0 | AA120: no data | AC120: 118 | AD120: 39, 69, 6, 3, 0, 1 | AE120: 309 | AF120: 56, 196, 6, 6, 0, 45 | AG120: 37 | AH120: 20, 6, 2, 3, 4, 2 | AI120: 100 | AJ120: 53, 35, 4, 0, 1, 7 | AK120: 329 | AL120: 203, 83, 10, 7, 17, 9 | AM120: 128 | AN120: 59, 48, 5, 2, 8, 6 | AO120: 93 | AP120: 73, 14, 2, 1, 1, 2 | AQ120: 49 | AR120: 33, 10, 1, 1, 2, 2 | AS120: 221 | AT120: 126, 63, 15, 9, 4, 4 | AU120: 163 | AV120: 92, 58, 6, 4, 1, 2 | AW120: 103 | AX120: 57, 30, 7, 2, 0, 7 | AY120: 103 | AZ120: 15, 76, 7, 1, 0, 4 | BA120: 80 | BB120: 18, 51, 6, 0, 0, 5 | BC120: 46 | BD120: 25, 14, 4, 0, 1, 2 | BE120: 211 | BF120: 115, 75, 8, 2, 1, 10 | BG120: =VLOOKUP(D120,'[1]Apr-17'!$E$2:$Q$7375,13,FALSE) -> 217 | BH120: 0
A121: Y54 | B121: Q72 | C121: 02T | D121: B84013 | E121: PLANE TREES GROUP PRACTICE | F121: THE PLANE TREES GRP PRACT, 51 SANDBEDS ROAD, PELLON, HALIFAX, WEST YORKSHIRE | G121: HX2 0QL | K121: 76 | L121: 46, 10, 2, 5, 1, 12 | M121: 86 | N121: 66, 8, 2, 2, 6, 2 | O121: no data | Q121: 68 | R121: 47, 7, 1, 0, 6, 7 | S121: 85 | T121: 53, 16, 3, 2, 6, 5 | U121: 77 | V121: 66, 8, 0, 0, 2, 1 | W121: 76 | X121: 51, 7, 2, 2, 7, 7 | Y121: no data | AA121: 55 | AB121: 36, 8, 1, 1, 5, 4 | AC121: 32 | AD121: 27, 2, 1, 1, 1, 0 | AE121: 78 | AF121: 60, 10, 0, 2, 4, 2 | AG121: 86 | AH121: 50, 18, 5, 2, 6, 5 | AI121: 75 | AJ121: 49, 15, 1, 3, 6, 1 | AK121: 115 | AL121: 67, 18, 4, 11, 12, 3 | AM121: 116 | AN121: 65, 23, 8, 5, 8, 7 | AO121: 114 | AP121: 66, 19, 10, 2, 8, 9 | AQ121: 69 | AR121: 49, 8, 0, 2, 6, 4 | AS121: 118 | AT121: 89, 12, 2, 4, 9, 2 | AU121: 89 | AV121: 69, 11, 2, 3, 4, 0 | AW121: no data | AY121: 7 | AZ121: 4, 0, 0, 0, 3, 0 | BA121: no data | BC121: 86 | BD121: 67, 11, 6, 1, 1, 0 | BE121: 7 | BF121: 2, 2, 2, 0, 1, 0 | BG121: =VLOOKUP(D121,'[1]Apr-17'!$E$2:$Q$7375,13,FALSE) -> 76 | BH121: 0
A122: Y54 | B122: Q72 | C122: 02T | D122: B84014 | E122: RASTRICK HEALTH CENTRE | F122: CHAPEL CROFT, RASTRICK, BRIGHOUSE, WEST YORKSHIRE | G122: HD6 3NA | K122: 7 | L122: 6, 1, 0, 0, 0, 0 | M122: no data | O122: 8 | P122: 7, 1, 0, 0, 0, 0 | Q122: 3 | R122: * | S122: no data | U122: 3 | V122: * | W122: 7 | X122: 7, 0, 0, 0, 0, 0 | Y122: 5 | Z122: 2, 1, 0, 2, 0, 0 | AA122: 4 | AB122: * | AC122: 16 | AD122: 12, 2, 0, 0, 2, 0 | AE122: no data | AG122: no data | AI122: 11 | AJ122: 7, 4, 0, 0, 0, 0 | AK122: no data | AM122: no data | AO122: 15 | AP122: 14, 1, 0, 0, 0, 0 | AQ122: 13 | AR122: 13, 0, 0, 0, 0, 0 | AS122: no data | AU122: 3 | AV122: * | AW122: 7 | AX122: 6, 0, 1, 0, 0, 0 | AY122: 13 | AZ122: 10, 3, 0, 0, 0, 0 | BA122: 38 | BB122: 17, 2, 0, 0, 0, 19 | BC122: 23 | BD122: 21, 2, 0, 0, 0, 0 | BE122: no data | BG122: =VLOOKUP(D122,'[1]Apr-17'!$E$2:$Q$7375,13,FALSE) -> 7 | BH122: 0
A123: Y54 | B123: Q72 | C123: 02T | D123: B84016 | E123: BANKFIELD SURGERY | F123: HUDDERSFIELD ROAD, ELLAND, WEST YORKSHIRE | G123: HX5 9BA | K123: 1 | L123: * | M123: 25 | N123: 21, 4, 0, 0, 0, 0 | O123: 9 | P123: 8, 0, 0, 0, 1, 0 | Q123: no data | S123: no data | U123: no data | W123: no data | Y123: 58 | Z123: 35, 17, 4, 0, 0, 2 | AA123: 71 | AB123: 44, 21, 1, 3, 0, 2 | AC123: 1 | AD123: * | AE123: 1 | AF123: * | AG123: 12 | AH123: 9, 3, 0, 0, 0, 0 | AI123: no data | AK123: 25 | AL123: 14, 4, 0, 6, 1, 0 | AM123: no data | AO123: no data | AQ123: no data | AS123: 8 | AT123: 7, 0, 0, 0, 1, 0 | AU123: 22 | AV123: 20, 0, 2, 0, 0, 0 | AW123: no data | AY123: 10 | AZ123: 10, 0, 0, 0, 0, 0 | BA123: 12 | BB123: 7, 2, 0, 2, 0, 1 | BC123: 18 | BD123: 7, 6, 0, 2, 3, 0 | BE123: 31 | BF123: 23, 5, 1, 1, 0, 1 | BG123: =VLOOKUP(D123,'[1]Apr-17'!$E$2:$Q$7375,13,FALSE) -> 1 | BH123: 0
A124: Y54 | B124: Q72 | C124: 02T | D124: B84017 | E124: BURLEY STREET SURGERY | F124: BURLEY STREET, ELLAND, WEST YORKSHIRE | G124: HX5 0AQ | K124: 13 | L124: 9, 4, 0, 0, 0, 0 | M124: 6 | N124: 2, 4, 0, 0, 0, 0 | O124: 9 | P124: 4, 3, 2, 0, 0, 0 | Q124: 11 | R124: 7, 4, 0, 0, 0, 0 | S124: no data | U124: 9 | V124: 5, 3, 1, 0, 0, 0 | W124: 31 | X124: 28, 3, 0, 0, 0, 0 | Y124: 18 | Z124: 8, 6, 4, 0, 0, 0 | AA124: 15 | AB124: 5, 10, 0, 0, 0, 0 | AC124: 29 | AD124: 23, 6, 0, 0, 0, 0 | AE124: 0 | AF124: 0, 0, 0, 0, 0, 0 | AG124: 7 | AH124: 3, 3, 0, 0, 0, 1 | AI124: 6 | AJ124: 1, 4, 1, 0, 0, 0 | AK124: 6 | AL124: 6, 0, 0, 0, 0, 0 | AM124: 10 | AN124: 4, 6, 0, 0, 0, 0 | AO124: 43 | AP124: 19, 21, 3, 0, 0, 0 | AQ124: 17 | AR124: 12, 5, 0, 0, 0, 0 | AS124: 25 | AT124: 12, 9, 3, 0, 0, 1 | AU124: 62 | AV124: 25, 29, 7, 1, 0, 0 | AW124: 42 | AX124: 19, 15, 4, 2, 0, 2 | AY124: 25 | AZ124: 17, 6, 1, 1, 0, 0 | BA124: 82 | BB124: 46, 29, 6, 0, 0, 1 | BC124: 17 | BD124: 10, 6, 1, 0, 0, 0 | BE124: 34 | BF124: 24, 6, 4, 0, 0, 0 | BG124: =VLOOKUP(D124,'[1]Apr-17'!$E$2:$Q$7375,13,FALSE) -> 13 | BH124: 0
A125: Y54 | B125: Q72 | C125: 02T | D125: B84019 | E125: THE BOULEVARD MEDICAL PRACTICE | F125: BOULEVARD MED PRACTICE, SAVILE PARK ROAD, HALIFAX, WEST YORKSHIRE | G125: HX1 2ES | K125: 3 | L125: * | M125: 1 | N125: * | O125: no data | Q125: 3 | R125: * | S125: no data | U125: no data | W125: 4 | X125: * | Y125: 4 | Z125: * | AA125: 23 | AB125: 19, 3, 0, 0, 1, 0 | AC125: 27 | AD125: 12, 12, 0, 1, 0, 2 | AE125: no data | AG125: 11 | AH125: 11, 0, 0, 0, 0, 0 | AI125: 5 | AJ125: 4, 0, 0, 0, 1, 0 | AK125: 3 | AL125: * | AM125: 13 | AN125: 13, 0, 0, 0, 0, 0 | AO125: 17 | AP125: 13, 3, 0, 1, 0, 0 | AQ125: 5 | AR125: 4, 0, 0, 0, 0, 1 | AS125: 218 | AT125: 167, 43, 3, 3, 0, 2 | AU125: 4 | AV125: * | AW125: 9 | AX125: 7, 2, 0, 0, 0, 0 | AY125: 10 | AZ125: 7, 3, 0, 0, 0, 0 | BA125: 20 | BB125: 16, 3, 1, 0, 0, 0 | BC125: 22 | BD125: 19, 2, 1, 0, 0, 0 | BE125: 22 | BF125: 19, 0, 0, 1, 1, 1 | BG125: =VLOOKUP(D125,'[1]Apr-17'!$E$2:$Q$7375,13,FALSE) -> 3 | BH125: 0
A126: Y54 | B126: Q72 | C126: 02T | D126: B84021 | E126: KING CROSS PRACTICE | F126: KING CROSS SURGERY, 199 KING CROSS ROAD, KING CROSS, HALIFAX, WEST YORKSHIRE | G126: HX1 3LW | K126: 67 | L126: 58, 2, 2, 1, 3, 1 | M126: 56 | N126: 48, 7, 0, 0, 1, 0 | O126: 25 | P126: 23, 2, 0, 0, 0, 0 | Q126: no data | S126: 72 | T126: 64, 3, 1, 1, 1, 2 | U126: 62 | V126: 54, 2, 0, 3, 3, 0 | W126: no data | Y126: 72 | Z126: 63, 5, 0, 2, 2, 0 | AA126: 60 | AB126: 50, 4, 1, 2, 3, 0 | AC126: 79 | AD126: 69, 8, 1, 0, 1, 0 | AE126: 57 | AF126: 48, 5, 1, 3, 0, 0 | AG126: 72 | AH126: 58, 5, 3, 2, 2, 2 | AI126: 61 | AJ126: 52, 1, 2, 2, 2, 2 | AK126: 63 | AL126: 56, 4, 0, 1, 2, 0 | AM126: 95 | AN126: 77, 7, 2, 2, 6, 1 | AO126: 99 | AP126: 89, 7, 2, 0, 1, 0 | AQ126: 108 | AR126: 93, 6, 1, 2, 6, 0 | AS126: 134 | AT126: 114, 13, 0, 1, 5, 1 | AU126: 63 | AV126: 58, 4, 0, 0, 1, 0 | AW126: 103 | AX126: 93, 7, 0, 1, 2, 0 | AY126: 68 | AZ126: 57, 6, 0, 3, 2, 0 | BA126: 106 | BB126: 96, 7, 0, 0, 3, 0 | BC126: 130 | BD126: 118, 5, 0, 2, 5, 0 | BE126: 27 | BF126: 23, 4, 0, 0, 0, 0 | BG126: =VLOOKUP(D126,'[1]Apr-17'!$E$2:$Q$7375,13,FALSE) -> 67 | BH126: 0
A127: Y54 | B127: Q72 | C127: 02T | D127: B84610 | E127: HORNE STREET SURGERY | F127: HORNE STREET HEALTH CTR, HANSON LANE, HALIFAX | G127: HX1 5UA | K127: 17 | L127: 8, 6, 0, 2, 1, 0 | M127: 40 | N127: 17, 21, 1, 1, 0, 0 | O127: 64 | P127: 18, 37, 5, 1, 2, 1 | Q127: no data | S127: no data | U127: no data | W127: no data | Y127: no data | AA127: no data | AC127: 14 | AD127: 5, 7, 1, 0, 0, 1 | AE127: no data | AG127: no data | AI127: 28 | AJ127: 14, 12, 2, 0, 0, 0 | AK127: 48 | AL127: 30, 13, 0, 0, 5, 0 | AM127: 100 | AN127: 37, 0, 51, 12, 0, 0 | AO127: 35 | AP127: 16, 6, 2, 0, 2, 9 | AQ127: 127 | AR127: 66, 44, 7, 10, 0, 0 | AS127: 25 | AT127: 7, 17, 0, 1, 0, 0 | AU127: no data | AW127: 16 | AX127: 12, 3, 0, 1, 0, 0 | AY127: 15 | AZ127: 8, 4, 1, 2, 0, 0 | BA127: 8 | BB127: 7, 0, 0, 1, 0, 0 | BC127: 7 | BD127: 3, 3, 0, 1, 0, 0 | BE127: no data | BG127: =VLOOKUP(D127,'[1]Apr-17'!$E$2:$Q$7375,13,FALSE) -> 17 | BH127: 0
A128: Y54 | B128: Q72 | C128: 02T | D128: B84612 | E128: LISTER LANE SURGERY | F128: 30 LISTER LANE, HALIFAX, WEST YORKSHIRE | G128: HX1 5AX | K128: 0 | L128: 0, 0, 0, 0, 0, 0 | M128: no data | O128: no data | Q128: no data | S128: 0 | T128: 0, 0, 0, 0, 0, 0 | U128: no data | W128: 3 | X128: * | Y128: 0 | Z128: 0, 0, 0, 0, 0, 0 | AA128: 13 | AB128: 3, 9, 0, 0, 0, 1 | AC128: 14 | AD128: 14, 0, 0, 0, 0, 0 | AE128: no data | AG128: no data | AI128: no data | AK128: no data | AM128: 5 | AN128: 3, 1, 1, 0, 0, 0 | AO128: 31 | AP128: 5, 19, 0, 1, 0, 6 | AQ128: 0 | AR128: 0, 0, 0, 0, 0, 0 | AS128: no data | AU128: no data | AW128: 13 | AX128: 9, 4, 0, 0, 0, 0 | AY128: no data | BA128: no data | BC128: 24 | BD128: 13, 11, 0, 0, 0, 0 | BE128: no data | BG128: =VLOOKUP(D128,'[1]Apr-17'!$E$2:$Q$7375,13,FALSE) -> 0 | BH128: 0
A129: Y54 | B129: Q72 | C129: 02T | D129: B84613 | E129: BEECHWOOD MEDICAL CENTRE | F129: 60A KEIGHLEY ROAD,OVENDEN, HALIFAX, WEST YORKSHIRE | G129: HX2 8AL | K129: 38 | L129: 30, 3, 0, 0, 4, 1 | M129: no data | O129: no data | Q129: no data | S129: 59 | T129: 37, 12, 2, 3, 1, 4 | U129: 73 | V129: 28, 9, 4, 6, 9, 17 | W129: 44 | X129: 23, 6, 3, 5, 3, 4 | Y129: no data | AA129: no data | AC129: no data | AE129: no data | AG129: 32 | AH129: 21, 4, 0, 2, 4, 1 | AI129: 48 | AJ129: 31, 2, 2, 3, 7, 3 | AK129: no data | AM129: no data | AO129: 23 | AP129: 13, 7, 2, 1, 0, 0 | AQ129: 33 | AR129: 19, 10, 3, 0, 1, 0 | AS129: 23 | AT129: 15, 7, 1, 0, 0, 0 | AU129: 26 | AV129: 12, 9, 2, 3, 0, 0 | AW129: 21 | AX129: 15, 4, 0, 0, 2, 0 | AY129: 61 | AZ129: 33, 24, 1, 2, 1, 0 | BA129: no data | BC129: 11 | BD129: 9, 1, 0, 0, 1, 0 | BE129: no data | BG129: =VLOOKUP(D129,'[1]Apr-17'!$E$2:$Q$7375,13,FALSE) -> 38 | BH129: 0
A130: Y54 | B130: Q72 | C130: 02T | D130: B84615 | E130: SOUTHOWRAM SURGERY | F130: LAW LANE, SOUTHOWRAM, HALIFAX | G130: HX3 9QB | K130: 20 | L130: 19, 1, 0, 0, 0, 0 | M130: 19 | N130: 18, 1, 0, 0, 0, 0 | O130: 17 | P130: 17, 0, 0, 0, 0, 0 | Q130: 11 | R130: 9, 2, 0, 0, 0, 0 | S130: 16 | T130: 14, 0, 0, 0, 2, 0 | U130: 48 | V130: 42, 5, 1, 0, 0, 0 | W130: 25 | X130: 22, 2, 0, 1, 0, 0 | Y130: 19 | Z130: 18, 1, 0, 0, 0, 0 | AA130: 15 | AB130: 14, 0, 0, 0, 0, 1 | AC130: no data | AE130: 30 | AF130: 25, 4, 0, 0, 1, 0 | AG130: 26 | AH130: 19, 2, 2, 2, 1, 0 | AI130: 30 | AJ130: 26, 3, 0, 0, 1, 0 | AK130: 32 | AL130: 25, 5, 0, 0, 2, 0 | AM130: 37 | AN130: 28, 4, 0, 0, 3, 2 | AO130: 45 | AP130: 28, 9, 3, 2, 3, 0 | AQ130: 55 | AR130: 39, 8, 0, 3, 3, 2 | AS130: 61 | AT130: 54, 6, 1, 0, 0, 0 | AU130: 15 | AV130: 14, 0, 0, 1, 0, 0 | AW130: 34 | AX130: 31, 3, 0, 0, 0, 0 | AY130: 13 | AZ130: 13, 0, 0, 0, 0, 0 | BA130: 33 | BB130: 29, 2, 0, 0, 2, 0 | BC130: 33 | BD130: 31, 2, 0, 0, 0, 0 | BE130: 26 | BF130: 22, 3, 1, 0, 0, 0 | BG130: =VLOOKUP(D130,'[1]Apr-17'!$E$2:$Q$7375,13,FALSE) -> 20 | BH130: 0
A131: Y54 | B131: Q72 | C131: 02T | D131: B84618 | E131: CARITAS GROUP PRACTICE | F131: MIXENDEN STONES SURGERY, MIXENDEN RD, MIXENDEN, HALIFAX, WEST YORKSHIRE | G131: HX2 8RQ | K131: 5 | L131: 3, 2, 0, 0, 0, 0 | M131: no data | O131: no data | Q131: no data | S131: 28 | T131: 24, 2, 1, 1, 0, 0 | U131: no data | W131: 71 | X131: 53, 14, 1, 1, 1, 1 | Y131: no data | AA131: 67 | AB131: 40, 7, 4, 1, 11, 4 | AC131: no data | AE131: 43 | AF131: 36, 3, 1, 1, 0, 2 | AG131: 68 | AH131: 53, 6, 1, 3, 3, 2 | AI131: 61 | AJ131: 36, 8, 1, 2, 2, 12 | AK131: 56 | AL131: 37, 8, 3, 3, 1, 4 | AM131: 62 | AN131: 49, 3, 0, 3, 3, 4 | AO131: 38 | AP131: 20, 10, 3, 2, 1, 2 | AQ131: 122 | AR131: 81, 15, 3, 3, 11, 9 | AS131: 55 | AT131: 45, 6, 0, 1, 2, 1 | AU131: 58 | AV131: 43, 11, 2, 0, 2, 0 | AW131: 45 | AX131: 35, 6, 1, 0, 3, 0 | AY131: 26 | AZ131: 19, 2, 1, 0, 3, 1 | BA131: 68 | BB131: 49, 9, 1, 3, 6, 0 | BC131: 165 | BD131: 134, 14, 4, 2, 9, 2 | BE131: 91 | BF131: 79, 7, 1, 0, 3, 1 | BG131: =VLOOKUP(D131,'[1]Apr-17'!$E$2:$Q$7375,13,FALSE) -> 5 | BH131: 0
A132: Y54 | B132: Q72 | C132: 02T | D132: B84623 | E132: LONGROYDE SURGERY | F132: 38 CASTLE AVENUE, RASTRICK,BRIGHOUSE, WEST YORKSHIRE | G132: HD6 3HT | K132: 0 | L132: 0, 0, 0, 0, 0, 0 | M132: 4 | N132: * | O132: 14 | P132: 12, 2, 0, 0, 0, 0 | Q132: 5 | R132: 4, 1, 0, 0, 0, 0 | S132: 6 | T132: 5, 1, 0, 0, 0, 0 | U132: 12 | V132: 12, 0, 0, 0, 0, 0 | W132: 10 | X132: 9, 1, 0, 0, 0, 0 | Y132: 2 | Z132: * | AA132: 13 | AB132: 11, 2, 0, 0, 0, 0 | AC132: 1 | AD132: * | AE132: 4 | AF132: * | AG132: 25 | AH132: 14, 4, 1, 3, 2, 1 | AI132: 9 | AJ132: 8, 0, 0, 0, 0, 1 | AK132: 5 | AL132: 5, 0, 0, 0, 0, 0 | AM132: 27 | AN132: 25, 2, 0, 0, 0, 0 | AO132: 5 | AP132: 5, 0, 0, 0, 0, 0 | AQ132: 12 | AR132: 12, 0, 0, 0, 0, 0 | AS132: 32 | AT132: 25, 7, 0, 0, 0, 0 | AU132: 4 | AV132: * | AW132: 12 | AX132: 10, 1, 0, 0, 1, 0 | AY132: 15 | AZ132: 13, 2, 0, 0, 0, 0 | BA132: 30 | BB132: 25, 5, 0, 0, 0, 0 | BC132: 7 | BD132: 7, 0, 0, 0, 0, 0 | BE132: 32 | BF132: 31, 1, 0, 0, 0, 0 | BG132: =VLOOKUP(D132,'[1]Apr-17'!$E$2:$Q$7375,13,FALSE) -> 0 | BH132: 0
A133: Y54 | B133: Q72 | C133: 02T | D133: Y02572 | E133: PARK COMMUNITY PRACTICE | F133: HORNE STREET HEALTH CTR, HORNE STREET, HALIFAX | G133: HX1 5UA | K133: 10 | L133: 7, 3, 0, 0, 0, 0 | M133: no data | O133: 8 | P133: 5, 2, 0, 1, 0, 0 | Q133: 10 | R133: 9, 1, 0, 0, 0, 0 | S133: 16 | T133: 12, 4, 0, 0, 0, 0 | U133: no data | W133: 11 | X133: 5, 6, 0, 0, 0, 0 | Y133: 15 | Z133: 12, 2, 1, 0, 0, 0 | AA133: 8 | AB133: 2, 5, 1, 0, 0, 0 | AC133: 11 | AD133: 8, 3, 0, 0, 0, 0 | AE133: 4 | AF133: * | AG133: 6 | AH133: 4, 2, 0, 0, 0, 0 | AI133: 2 | AJ133: * | AK133: no data | AM133: 0 | AN133: 0, 0, 0, 0, 0, 0 | AO133: 1 | AP133: * | AQ133: 2 | AR133: * | AS133: 13 | AT133: 8, 3, 2, 0, 0, 0 | AU133: 1 | AV133: * | AW133: 4 | AX133: * | AY133: 13 | AZ133: 8, 3, 0, 1, 1, 0 | BA133: 16 | BB133: 10, 5, 0, 1, 0, 0 | BC133: 31 | BD133: 18, 11, 0, 0, 2, 0 | BE133: 40 | BF133: 36, 3, 1, 0, 0, 0 | BG133: =VLOOKUP(D133,'[1]Apr-17'!$E$2:$Q$7375,13,FALSE) -> 10 | BH133: 0
A134: Y54 | B134: Q72 | C134: 02T | D134: Y03112 | E134: MEADOW DALE GROUP PRACTICE | F134: 120 NURSERY LANE, OVENDEN, HALIFAX, WEST YORKSHIRE | G134: HX3 5SX | K134: 98 | L134: 80, 8, 2, 1, 1, 6 | M134: 185 | N134: 143, 22, 4, 3, 6, 7 | O134: no data | Q134: no data | S134: no data | U134: 83 | V134: 61, 10, 4, 0, 3, 5 | W134: no data | Y134: 126 | Z134: 94, 10, 3, 4, 5, 10 | AA134: 56 | AB134: 37, 10, 4, 2, 2, 1 | AC134: no data | AE134: 33 | AF134: 24, 4, 2, 1, 0, 2 | AG134: 21 | AH134: 13, 3, 4, 0, 1, 0 | AI134: 4 | AJ134: * | AK134: 7 | AL134: 2, 1, 2, 1, 1, 0 | AM134: 40 | AN134: 23, 10, 4, 0, 2, 1 | AO134: 60 | AP134: 39, 8, 3, 4, 4, 2 | AQ134: 26 | AR134: 18, 7, 0, 0, 0, 1 | AS134: 4 | AT134: * | AU134: 21 | AV134: 19, 2, 0, 0, 0, 0 | AW134: 42 | AX134: 29, 9, 2, 2, 0, 0 | AY134: 18 | AZ134: 15, 3, 0, 0, 0, 0 | BA134: no data | BC134: 2 | BD134: * | BE134: 0 | BF134: 0, 0, 0, 0, 0, 0 | BG134: =VLOOKUP(D134,'[1]Apr-17'!$E$2:$Q$7375,13,FALSE) -> 98 | BH134: 0
A135: Y54 | B135: Q72 | C135: 02V | D135: B86008 | E135: ALWOODLEY MEDICAL CENTRE | F135: SAXON MOUNT, MOORTOWN, LEEDS, WEST YORKSHIRE | G135: LS17 5DT | K135: 316 | L135: 200, 65, 16, 18, 15, 2 | M135: 386 | N135: 252, 76, 19, 14, 19, 6 | O135: 346 | P135: 210, 73, 24, 11, 24, 4 | Q135: 373 | R135: 222, 86, 25, 9, 26, 5 | S135: no data | U135: 375 | V135: 210, 77, 29, 19, 36, 4 | W135: 246 | X135: 159, 46, 15, 8, 14, 4 | Y135: 370 | Z135: 228, 79, 20, 14, 25, 4 | AA135: 390 | AB135: 257, 59, 23, 22, 26, 3 | AC135: 380 | AD135: 245, 70, 18, 21, 22, 4 | AE135: 195 | AF135: 121, 48, 12, 5, 7, 2 | AG135: no data | AI135: 48 | AJ135: 37, 5, 0, 2, 4, 0 | AK135: no data | AM135: no data | AO135: no data | AQ135: no data | AS135: 95 | AT135: 65, 17, 1, 4, 6, 2 | AU135: 74 | AV135: 61, 11, 0, 0, 2, 0 | AW135: 75 | AX135: 60, 6, 1, 3, 5, 0 | AY135: 176 | AZ135: 109, 31, 11, 14, 5, 6 | BA135: 162 | BB135: 109, 40, 5, 5, 3, 0 | BC135: 69 | BD135: 56, 10, 1, 0, 2, 0 | BE135: 71 | BF135: 53, 11, 1, 2, 3, 1 | BG135: =VLOOKUP(D135,'[1]Apr-17'!$E$2:$Q$7375,13,FALSE) -> 316 | BH135: 0
A136: Y54 | B136: Q72 | C136: 02V | D136: B86010 | E136: COLLINGHAM CHURCH VIEW SURGERY | F136: CHURCH VIEW SURGERY, SCHOOL LANE,COLLINGHAM, WETHERBY, WEST YORKSHIRE | G136: LS22 5BQ | K136: 271 | L136: 233, 22, 6, 4, 4, 2 | M136: 374 | N136: 305, 42, 9, 4, 11, 3 | O136: 305 | P136: 257, 37, 6, 0, 5, 0 | Q136: 317 | R136: 263, 35, 7, 2, 8, 2 | S136: no data | U136: 423 | V136: 354, 55, 4, 2, 8, 0 | W136: 8 | X136: 5, 1, 0, 2, 0, 0 | Y136: no data | AA136: 336 | AB136: 287, 35, 4, 6, 4, 0 | AC136: 10 | AD136: 9, 0, 1, 0, 0, 0 | AE136: 4 | AF136: * | AG136: 7 | AH136: 5, 0, 1, 1, 0, 0 | AI136: 6 | AJ136: 5, 0, 0, 0, 1, 0 | AK136: no data | AM136: no data | AO136: no data | AQ136: no data | AS136: 4 | AT136: * | AU136: no data | AW136: 2 | AX136: * | AY136: 7 | AZ136: 5, 1, 0, 1, 0, 0 | BA136: 14 | BB136: 12, 1, 0, 1, 0, 0 | BC136: 7 | BD136: 6, 1, 0, 0, 0, 0 | BE136: 0 | BF136: 0, 0, 0, 0, 0, 0 | BG136: =VLOOKUP(D136,'[1]Apr-17'!$E$2:$Q$7375,13,FALSE) -> 271 | BH136: 0
A137: Y54 | B137: Q72 | C137: 02V | D137: B86013 | E137: THE NORTH LEEDS MEDICAL PRACTICE | F137: 355 HARROGATE ROAD, LEEDS, WEST YORKSHIRE | G137: LS17 6PZ | K137: 26 | L137: 21, 4, 0, 1, 0, 0 | M137: 0 | N137: 0, 0, 0, 0, 0, 0 | O137: 460 | P137: 335, 85, 15, 9, 11, 5 | Q137: 450 | R137: 336, 65, 17, 7, 20, 5 | S137: 442 | T137: 323, 77, 12, 10, 14, 6 | U137: 643 | V137: 501, 88, 12, 12, 23, 7 | W137: no data | Y137: 534 | Z137: 394, 98, 16, 6, 16, 4 | AA137: 505 | AB137: 359, 94, 25, 10, 14, 3 | AC137: 162 | AD137: 119, 27, 5, 6, 4, 1 | AE137: 5 | AF137: 3, 1, 0, 1, 0, 0 | AG137: no data | AI137: 10 | AJ137: 5, 3, 1, 0, 1, 0 | AK137: 8 | AL137: 3, 4, 0, 1, 0, 0 | AM137: 8 | AN137: 4, 0, 2, 1, 1, 0 | AO137: 5 | AP137: 1, 1, 0, 1, 2, 0 | AQ137: no data | AS137: 12 | AT137: 6, 4, 1, 0, 1, 0 | AU137: 6 | AV137: 3, 2, 1, 0, 0, 0 | AW137: 0 | AX137: 0, 0, 0, 0, 0, 0 | AY137: 19 | AZ137: 10, 7, 1, 0, 0, 1 | BA137: no data | BC137: no data | BE137: no data | BG137: =VLOOKUP(D137,'[1]Apr-17'!$E$2:$Q$7375,13,FALSE) -> 26 | BH137: 0
A138: Y54 | B138: Q72 | C138: 02V | D138: B86019 | E138: RUTLAND LODGE MEDICAL CENTRE | F138: RUTLAND LODGE MEDICAL CTR, SCOTT HALL ROAD, LEEDS | G138: LS7 3DR | K138: 115 | L138: 62, 36, 8, 6, 3, 0 | M138: 263 | N138: 142, 65, 27, 8, 18, 3 | O138: 170 | P138: 96, 44, 8, 7, 12, 3 | Q138: 161 | R138: 78, 50, 8, 6, 14, 5 | S138: 150 | T138: 96, 32, 9, 4, 6, 3 | U138: 352 | V138: 200, 90, 22, 16, 14, 10 | W138: 107 | X138: 67, 19, 9, 4, 6, 2 | Y138: 154 | Z138: 89, 39, 9, 5, 9, 3 | AA138: 143 | AB138: 82, 44, 6, 3, 4, 4 | AC138: 128 | AD138: 63, 43, 10, 4, 7, 1 | AE138: 153 | AF138: 104, 35, 7, 0, 6, 1 | AG138: 95 | AH138: 53, 24, 7, 6, 3, 2 | AI138: 58 | AJ138: 36, 11, 1, 2, 7, 1 | AK138: 41 | AL138: 27, 9, 0, 2, 3, 0 | AM138: 84 | AN138: 41, 24, 9, 2, 7, 1 | AO138: 25 | AP138: 7, 13, 4, 1, 0, 0 | AQ138: 53 | AR138: 15, 2, 0, 2, 34, 0 | AS138: 20 | AT138: 9, 3, 4, 0, 3, 1 | AU138: no data | AW138: no data | AY138: no data | BA138: 65 | BB138: 27, 20, 13, 1, 1, 3 | BC138: 12 | BD138: 4, 5, 1, 1, 0, 1 | BE138: 15 | BF138: 9, 4, 0, 0, 1, 1 | BG138: =VLOOKUP(D138,'[1]Apr-17'!$E$2:$Q$7375,13,FALSE) -> 115 | BH138: 0
A139: Y54 | B139: Q72 | C139: 02V | D139: B86022 | E139: OAKWOOD LANE MEDICAL PRACTICE | F139: 2 AMBERTON TERRACE, LEEDS, WEST YORKSHIRE | G139: LS8 3BZ | K139: 168 | L139: 122, 28, 3, 3, 9, 3 | M139: 228 | N139: 155, 44, 8, 9, 11, 1 | O139: 229 | P139: 168, 33, 8, 6, 13, 1 | Q139: 217 | R139: 137, 49, 7, 9, 11, 4 | S139: 215 | T139: 136, 40, 9, 8, 17, 5 | U139: no data | W139: 201 | X139: 133, 47, 6, 13, 2, 0 | Y139: 209 | Z139: 133, 47, 6, 8, 13, 2 | AA139: 215 | AB139: 144, 28, 9, 10, 20, 4 | AC139: 217 | AD139: 142, 34, 10, 8, 22, 1 | AE139: no data | AG139: no data | AI139: no data | AK139: 56 | AL139: 38, 8, 3, 1, 6, 0 | AM139: 87 | AN139: 64, 8, 1, 3, 10, 1 | AO139: 40 | AP139: 26, 8, 4, 1, 1, 0 | AQ139: 62 | AR139: 47, 6, 1, 4, 4, 0 | AS139: no data | AU139: 102 | AV139: 79, 12, 3, 5, 3, 0 | AW139: 67 | AX139: 49, 12, 1, 2, 3, 0 | AY139: 84 | AZ139: 57, 14, 2, 3, 7, 1 | BA139: 86 | BB139: 61, 11, 3, 2, 7, 2 | BC139: 78 | BD139: 54, 12, 1, 3, 6, 2 | BE139: no data | BG139: =VLOOKUP(D139,'[1]Apr-17'!$E$2:$Q$7375,13,FALSE) -> 168 | BH139: 0
A140: Y54 | B140: Q72 | C140: 02V | D140: B86023 | E140: THE AVENUE SURGERY | F140: 24 THE AVENUE, ALWOODLEY, LEEDS | G140: LS17 7BE | K140: 249 | L140: 189, 41, 8, 1, 10, 0 | M140: no data | O140: 196 | P140: 139, 41, 5, 6, 5, 0 | Q140: 175 | R140: 133, 27, 3, 5, 7, 0 | S140: 156 | T140: 105, 41, 4, 5, 1, 0 | U140: 179 | V140: 131, 41, 4, 2, 1, 0 | W140: 118 | X140: 77, 34, 5, 1, 1, 0 | Y140: 160 | Z140: 109, 32, 14, 3, 1, 1 | AA140: 214 | AB140: 146, 40, 19, 6, 2, 1 | AC140: 74 | AD140: 51, 15, 4, 2, 2, 0 | AE140: 37 | AF140: 19, 7, 5, 4, 2, 0 | AG140: 26 | AH140: 19, 5, 1, 0, 1, 0 | AI140: 39 | AJ140: 20, 7, 6, 2, 4, 0 | AK140: no data | AM140: 27 | AN140: 11, 14, 0, 0, 2, 0 | AO140: 42 | AP140: 21, 13, 3, 3, 2, 0 | AQ140: 33 | AR140: 19, 9, 4, 1, 0, 0 | AS140: 58 | AT140: 29, 16, 4, 4, 3, 2 | AU140: 44 | AV140: 26, 13, 2, 2, 1, 0 | AW140: 27 | AX140: 15, 6, 3, 2, 1, 0 | AY140: 48 | AZ140: 26, 20, 1, 1, 0, 0 | BA140: 62 | BB140: 38, 19, 3, 0, 1, 1 | BC140: 43 | BD140: 31, 6, 2, 1, 1, 2 | BE140: 47 | BF140: 33, 8, 2, 1, 1, 2 | BG140: =VLOOKUP(D140,'[1]Apr-17'!$E$2:$Q$7375,13,FALSE) -> 249 | BH140: =BG140-K140 -> 0
A141: Y54 | B141: Q72 | C141: 02V | D141: B86029 | E141: WESTGATE SURGERY | F141: WESTGATE, OTLEY, LEEDS, WEST YORKSHIRE | G141: LS21 3HD | K141: 223 | L141: 180, 37, 4, 0, 1, 1 | M141: 319 | N141: 258, 38, 8, 3, 10, 2 | O141: 269 | P141: 223, 33, 5, 2, 5, 1 | Q141: 165 | R141: 144, 14, 4, 1, 0, 2 | S141: 4 | T141: * | U141: 9 | V141: 7, 0, 1, 0, 1, 0 | W141: 5 | X141: 4, 0, 0, 0, 1, 0 | Y141: 11 | Z141: 10, 1, 0, 0, 0, 0 | AA141: 3 | AB141: * | AC141: 7 | AD141: 6, 1, 0, 0, 0, 0 | AE141: 6 | AF141: 5, 0, 0, 0, 1, 0 | AG141: 14 | AH141: 13, 0, 0, 0, 1, 0 | AI141: 31 | AJ141: 27, 2, 0, 1, 1, 0 | AK141: 10 | AL141: 8, 1, 0, 0, 1, 0 | AM141: 4 | AN141: * | AO141: 5 | AP141: 5, 0, 0, 0, 0, 0 | AQ141: 8 | AR141: 7, 0, 0, 0, 1, 0 | AS141: 16 | AT141: 15, 0, 0, 0, 1, 0 | AU141: 12 | AV141: 11, 1, 0, 0, 0, 0 | AW141: 16 | AX141: 15, 1, 0, 0, 0, 0 | AY141: 32 | AZ141: 27, 4, 0, 0, 1, 0 | BA141: 15 | BB141: 14, 0, 0, 1, 0, 0 | BC141: 23 | BD141: 21, 2, 0, 0, 0, 0 | BE141: 43 | BF141: 40, 2, 0, 1, 0, 0 | BG141: =VLOOKUP(D141,'[1]Apr-17'!$E$2:$Q$7375,13,FALSE) -> 223 | BH141: 0
A142: Y54 | B142: Q72 | C142: 02V | D142: B86031 | E142: WESTFIELD MEDICAL CENTRE | F142: 1ST FLOOR REGINALD CENTRE, 263 CHAPELTOWN ROAD, LEEDS, WEST YORKSHIRE | G142: LS7 3EX | K142: 13 | L142: 8, 5, 0, 0, 0, 0 | M142: 2 | N142: * | O142: no data | Q142: no data | S142: 8 | T142: 6, 1, 0, 0, 1, 0 | U142: no data | W142: 8 | X142: 5, 1, 2, 0, 0, 0 | Y142: no data | AA142: 8 | AB142: 2, 1, 2, 1, 2, 0 | AC142: no data | AE142: 3 | AF142: * | AG142: no data | AI142: 6 | AJ142: 4, 1, 0, 0, 1, 0 | AK142: 15 | AL142: 12, 3, 0, 0, 0, 0 | AM142: 0 | AN142: 0, 0, 0, 0, 0, 0 | AO142: 12 | AP142: 6, 4, 0, 2, 0, 0 | AQ142: no data | AS142: 3 | AT142: * | AU142: no data | AW142: 12 | AX142: 10, 2, 0, 0, 0, 0 | AY142: 10 | AZ142: 5, 3, 1, 0, 0, 1 | BA142: 17 | BB142: 15, 2, 0, 0, 0, 0 | BC142: 12 | BD142: 9, 0, 1, 0, 0, 2 | BE142: 4 | BF142: * | BG142: =VLOOKUP(D142,'[1]Apr-17'!$E$2:$Q$7375,13,FALSE) -> 13 | BH142: 0
A143: Y54 | B143: Q72 | C143: 02V | D143: B86032 | E143: CHEVIN MEDICAL PRACTICE | F143: BRIDGE STREET MED PRACT, 3 BRIDGE STREET, OTLEY, LEEDS, WEST YORKSHIRE | G143: LS21 1BQ | K143: 0 | L143: 0, 0, 0, 0, 0, 0 | M143: 1 | N143: * | O143: no data | Q143: 2 | R143: * | S143: 0 | T143: 0, 0, 0, 0, 0, 0 | U143: 1 | V143: * | W143: 7 | X143: 3, 1, 2, 0, 1, 0 | Y143: no data | AA143: no data | AC143: no data | AE143: no data | AG143: 1 | AH143: * | AI143: 1 | AJ143: * | AK143: no data | AM143: no data | AO143: 1 | AP143: * | AQ143: 1 | AR143: * | AS143: 3 | AT143: * | AU143: 1 | AV143: * | AW143: 10 | AX143: 8, 2, 0, 0, 0, 0 | AY143: 23 | AZ143: 17, 2, 0, 1, 3, 0 | BA143: 12 | BB143: 8, 1, 0, 1, 2, 0 | BC143: 7 | BD143: 6, 0, 0, 0, 1, 0 | BE143: 7 | BF143: 6, 0, 0, 0, 1, 0 | BG143: =VLOOKUP(D143,'[1]Apr-17'!$E$2:$Q$7375,13,FALSE) -> 0 | BH143: 0
A144: Y54 | B144: Q72 | C144: 02V | D144: B86033 | E144: NEW MEDICAL CENTRE | F144: CROSSLEY STREET SURGERY, CROSSLEY STREET, WETHERBY, WEST YORKSHIRE | G144: LS22 6RT | K144: 399 | L144: 339, 45, 4, 2, 8, 1 | M144: 485 | N144: 422, 44, 6, 3, 9, 1 | O144: 400 | P144: 338, 48, 3, 3, 6, 2 | Q144: 353 | R144: 302, 32, 5, 6, 8, 0 | S144: 355 | T144: 307, 35, 2, 1, 10, 0 | U144: 348 | V144: 302, 34, 6, 0, 5, 1 | W144: 278 | X144: 244, 25, 4, 1, 4, 0 | Y144: 371 | Z144: 316, 38, 5, 2, 9, 1 | AA144: 380 | AB144: 315, 47, 6, 5, 6, 1 | AC144: 393 | AD144: 327, 42, 9, 5, 9, 1 | AE144: 335 | AF144: 283, 40, 7, 0, 5, 0 | AG144: 4 | AH144: * | AI144: 11 | AJ144: 8, 1, 0, 0, 2, 0 | AK144: 11 | AL144: 8, 3, 0, 0, 0, 0 | AM144: 4 | AN144: * | AO144: 10 | AP144: 8, 1, 1, 0, 0, 0 | AQ144: 6 | AR144: 3, 2, 0, 0, 1, 0 | AS144: no data | AU144: 6 | AV144: 5, 0, 0, 0, 1, 0 | AW144: 10 | AX144: 10, 0, 0, 0, 0, 0 | AY144: 7 | AZ144: 6, 0, 0, 1, 0, 0 | BA144: 10 | BB144: 5, 4, 0, 0, 1, 0 | BC144: 16 | BD144: 12, 3, 0, 1, 0, 0 | BE144: 20 | BF144: 17, 3, 0, 0, 0, 0 | BG144: =VLOOKUP(D144,'[1]Apr-17'!$E$2:$Q$7375,13,FALSE) -> 399 | BH144: 0
A145: Y54 | B145: Q72 | C145: 02V | D145: B86034 | E145: SPA SURGERY | F145: 205 HIGH STREET, BOSTON SPA, LEEDS | G145: LS23 6PY | K145: 266 | L145: 194, 45, 11, 9, 6, 1 | M145: 312 | N145: 251, 40, 6, 7, 7, 1 | O145: 250 | P145: 202, 33, 6, 4, 5, 0 | Q145: 304 | R145: 244, 43, 4, 5, 8, 0 | S145: 275 | T145: 225, 32, 9, 3, 2, 4 | U145: no data | W145: no data | Y145: 7 | Z145: 7, 0, 0, 0, 0, 0 | AA145: 8 | AB145: 7, 1, 0, 0, 0, 0 | AC145: 5 | AD145: 4, 1, 0, 0, 0, 0 | AE145: 8 | AF145: 7, 1, 0, 0, 0, 0 | AG145: 2 | AH145: * | AI145: 17 | AJ145: 11, 3, 2, 0, 1, 0 | AK145: no data | AM145: no data | AO145: no data | AQ145: 4 | AR145: * | AS145: 3 | AT145: * | AU145: 5 | AV145: 3, 1, 0, 0, 1, 0 | AW145: 4 | AX145: * | AY145: no data | BA145: 50 | BB145: 49, 0, 0, 0, 0, 1 | BC145: no data | BE145: 6 | BF145: 6, 0, 0, 0, 0, 0 | BG145: =VLOOKUP(D145,'[1]Apr-17'!$E$2:$Q$7375,13,FALSE) -> 266 | BH145: 0
A146: Y54 | B146: Q72 | C146: 02V | D146: B86039 | E146: ALLERTON MEDICAL CENTRE | F146: 6 MONTREAL AVENUE, LEEDS, WEST YORKSHIRE | G146: LS7 4LF | K146: 10 | L146: 8, 0, 1, 0, 1, 0 | M146: 20 | N146: 15, 3, 1, 1, 0, 0 | O146: 25 | P146: 18, 5, 1, 1, 0, 0 | Q146: no data | S146: no data | U146: 18 | V146: 11, 5, 0, 2, 0, 0 | W146: no data | Y146: 17 | Z146: 12, 4, 1, 0, 0, 0 | AA146: 16 | AB146: 12, 2, 1, 0, 1, 0 | AC146: 17 | AD146: 14, 3, 0, 0, 0, 0 | AE146: 17 | AF146: 15, 1, 0, 0, 1, 0 | AG146: 58 | AH146: 41, 9, 1, 1, 2, 4 | AI146: 0 | AJ146: 0, 0, 0, 0, 0, 0 | AK146: 2 | AL146: * | AM146: 1 | AN146: * | AO146: 2 | AP146: * | AQ146: 0 | AR146: 0, 0, 0, 0, 0, 0 | AS146: 0 | AT146: 0, 0, 0, 0, 0, 0 | AU146: 2 | AV146: * | AW146: 3 | AX146: * | AY146: 3 | AZ146: * | BA146: no data | BC146: 4 | BD146: * | BE146: 1 | BF146: * | BG146: =VLOOKUP(D146,'[1]Apr-17'!$E$2:$Q$7375,13,FALSE) -> 10 | BH146: 0
A147: Y54 | B147: Q72 | C147: 02V | D147: B86049 | E147: WOODHOUSE MEDICAL PRACTICE | F147: WOODHOUSE HEALTH CENTRE, CAMBRIDGE ROAD, LEEDS, WEST YORKSHIRE | G147: LS6 2SF | K147: 79 | L147: 69, 5, 1, 0, 4, 0 | M147: 143 | N147: 122, 12, 2, 2, 3, 2 | O147: 182 | P147: 149, 29, 2, 2, 0, 0 | Q147: no data | S147: no data | U147: 285 | V147: 222, 38, 11, 6, 1, 7 | W147: no data | Y147: 165 | Z147: 138, 14, 0, 0, 11, 2 | AA147: 184 | AB147: 143, 23, 4, 3, 9, 2 | AC147: 180 | AD147: 145, 18, 5, 2, 8, 2 | AE147: 173 | AF147: 138, 21, 3, 5, 4, 2 | AG147: 131 | AH147: 102, 20, 2, 3, 1, 3 | AI147: 59 | AJ147: 49, 4, 0, 1, 3, 2 | AK147: 84 | AL147: 70, 12, 0, 0, 2, 0 | AM147: 58 | AN147: 50, 8, 0, 0, 0, 0 | AO147: 58 | AP147: 47, 7, 1, 1, 2, 0 | AQ147: 55 | AR147: 45, 8, 0, 0, 1, 1 | AS147: 84 | AT147: 70, 10, 1, 2, 1, 0 | AU147: 63 | AV147: 54, 6, 2, 0, 1, 0 | AW147: 47 | AX147: 39, 4, 3, 1, 0, 0 | AY147: 37 | AZ147: 30, 7, 0, 0, 0, 0 | BA147: 69 | BB147: 57, 9, 0, 2, 1, 0 | BC147: 55 | BD147: 48, 1, 3, 1, 2, 0 | BE147: 54 | BF147: 44, 4, 2, 0, 4, 0 | BG147: =VLOOKUP(D147,'[1]Apr-17'!$E$2:$Q$7375,13,FALSE) -> 79 | BH147: 0
A148: Y54 | B148: Q72 | C148: 02V | D148: B86056 | E148: SHADWELL MEDICAL CENTRE | F148: 137 SHADWELL LANE, LEEDS | G148: LS17 8AE | K148: 0 | L148: 0, 0, 0, 0, 0, 0 | M148: no data | O148: no data | Q148: 14 | R148: 7, 7, 0, 0, 0, 0 | S148: no data | U148: 19 | V148: 9, 6, 2, 1, 1, 0 | W148: no data | Y148: 23 | Z148: 16, 5, 1, 1, 0, 0 | AA148: no data | AC148: 17 | AD148: 2, 8, 4, 2, 1, 0 | AE148: 39 | AF148: 7, 13, 9, 4, 5, 1 | AG148: 22 | AH148: 2, 12, 5, 1, 2, 0 | AI148: 37 | AJ148: 6, 19, 9, 2, 1, 0 | AK148: 23 | AL148: 2, 9, 7, 2, 3, 0 | AM148: no data | AO148: 32 | AP148: 9, 12, 7, 1, 1, 2 | AQ148: 26 | AR148: 2, 12, 5, 4, 1, 2 | AS148: no data | AU148: 121 | AV148: 10, 44, 26, 19, 8, 14 | AW148: no data | AY148: no data | BA148: no data | BC148: 18 | BD148: 4, 4, 3, 3, 1, 3 | BE148: 18 | BF148: 2, 5, 5, 2, 4, 0 | BG148: =VLOOKUP(D148,'[1]Apr-17'!$E$2:$Q$7375,13,FALSE) -> 0 | BH148: 0
A149: Y54 | B149: Q72 | C149: 02V | D149: B86059 | E149: MEANWOOD HEALTH CENTRE | F149: 548 MEANWOOD ROAD, LEEDS, WEST YORKSHIRE | G149: LS6 4JN | K149: 439 | L149: 356, 55, 10, 4, 14, 0 | M149: 579 | N149: 472, 66, 9, 7, 24, 1 | O149: 483 | P149: 386, 70, 9, 5, 12, 1 | Q149: 349 | R149: 279, 47, 5, 6, 11, 1 | S149: 449 | T149: 375, 49, 9, 3, 12, 1 | U149: 421 | V149: 338, 51, 10, 9, 13, 0 | W149: 1281 | X149: 1019, 186, 30, 10, 26, 10 | Y149: no data | AA149: no data | AC149: no data | AE149: no data | AG149: 1 | AH149: * | AI149: 1 | AJ149: * | AK149: 29 | AL149: 13, 13, 2, 1, 0, 0 | AM149: 13 | AN149: 4, 7, 0, 0, 0, 2 | AO149: no data | AQ149: 17 | AR149: 17, 0, 0, 0, 0, 0 | AS149: no data | AU149: 2 | AV149: * | AW149: 20 | AX149: 15, 4, 0, 1, 0, 0 | AY149: 18 | AZ149: 11, 6, 1, 0, 0, 0 | BA149: 253 | BB149: 151, 71, 19, 8, 4, 0 | BC149: 22 | BD149: 15, 5, 0, 1, 1, 0 | BE149: 22 | BF149: 15, 5, 0, 1, 1, 0 | BG149: =VLOOKUP(D149,'[1]Apr-17'!$E$2:$Q$7375,13,FALSE) -> 439 | BH149: 0
A150: Y54 | B150: Q72 | C150: 02V | D150: B86066 | E150: THE STREET LANE PRACTICE | F150: 12 DEVONSHIRE AVENUE, ROUNDHAY, LEEDS | G150: LS8 1AY | H150: Yes | K150: no data | M150: no data | O150: no data | Q150: 486 | R150: 362, 87, 12, 13, 11, 1 | S150: no data | U150: 347 | V150: 268, 56, 6, 3, 8, 6 | W150: 316 | X150: 236, 49, 6, 7, 17, 1 | Y150: no data | AA150: no data | AC150: no data | AE150: 528 | AF150: 401, 86, 8, 17, 12, 4 | AG150: 347 | AH150: 266, 53, 8, 4, 14, 2 | AI150: 129 | AJ150: 100, 17, 1, 3, 8, 0 | AK150: 141 | AL150: 114, 18, 1, 1, 7, 0 | AM150: 135 | AN150: 111, 15, 5, 1, 3, 0 | AO150: 89 | AP150: 81, 4, 0, 3, 1, 0 | AQ150: no data | AS150: no data | AU150: 141 | AV150: 112, 13, 7, 3, 6, 0 | AW150: 5 | AX150: 3, 2, 0, 0, 0, 0 | AY150: no data | BA150: no data | BC150: no data | BE150: no data | BG150: =VLOOKUP(D150,'[1]Apr-17'!$E$2:$Q$7375,13,FALSE) -> 
A151: Y54 | B151: Q72 | C151: 02V | D151: B86070 | E151: AIREBOROUGH FAMILY PRACTICE | F151: SILVER LANE SURGERY, 1 SUFFOLK COURT, SILVER LANE, YEADON,LEEDS | G151: LS19 7JN | K151: 118 | L151: 102, 8, 3, 3, 2, 0 | M151: 172 | N151: 148, 18, 5, 0, 1, 0 | O151: 187 | P151: 157, 19, 5, 0, 6, 0 | Q151: no data | S151: no data | U151: no data | W151: 82 | X151: 69, 9, 2, 0, 1, 1 | Y151: 177 | Z151: 148, 21, 3, 1, 4, 0 | AA151: no data | AC151: 180 | AD151: 149, 21, 4, 1, 4, 1 | AE151: 7 | AF151: 5, 1, 0, 1, 0, 0 | AG151: 1 | AH151: * | AI151: 2 | AJ151: * | AK151: 0 | AL151: 0, 0, 0, 0, 0, 0 | AM151: 3 | AN151: * | AO151: 1 | AP151: * | AQ151: 0 | AR151: 0, 0, 0, 0, 0, 0 | AS151: 7 | AT151: 5, 2, 0, 0, 0, 0 | AU151: 22 | AV151: 16, 6, 0, 0, 0, 0 | AW151: 11 | AX151: 11, 0, 0, 0, 0, 0 | AY151: 26 | AZ151: 24, 2, 0, 0, 0, 0 | BA151: 16 | BB151: 13, 3, 0, 0, 0, 0 | BC151: 22 | BD151: 16, 5, 1, 0, 0, 0 | BE151: 40 | BF151: 34, 6, 0, 0, 0, 0 | BG151: =VLOOKUP(D151,'[1]Apr-17'!$E$2:$Q$7375,13,FALSE) -> 118 | BH151: 0
A152: Y54 | B152: Q72 | C152: 02V | D152: B86100 | E152: ST MARTINS PRACTICE | F152: 319 CHAPELTOWN ROAD, LEEDS | G152: LS7 3JT | K152: 143 | L152: 100, 27, 4, 2, 7, 3 | M152: 192 | N152: 134, 36, 7, 6, 6, 3 | O152: 160 | P152: 122, 22, 7, 3, 6, 0 | Q152: no data | S152: no data | U152: no data | W152: no data | Y152: 119 | Z152: 84, 19, 1, 5, 7, 3 | AA152: 7 | AB152: 7, 0, 0, 0, 0, 0 | AC152: 7 | AD152: 7, 0, 0, 0, 0, 0 | AE152: 1 | AF152: * | AG152: no data | AI152: no data | AK152: no data | AM152: no data | AO152: no data | AQ152: 3 | AR152: * | AS152: no data | AU152: no data | AW152: 4 | AX152: * | AY152: 10 | AZ152: 10, 0, 0, 0, 0, 0 | BA152: 6 | BB152: 6, 0, 0, 0, 0, 0 | BC152: 9 | BD152: 8, 0, 1, 0, 0, 0 | BE152: 1 | BF152: * | BG152: =VLOOKUP(D152,'[1]Apr-17'!$E$2:$Q$7375,13,FALSE) -> 143 | BH152: 0
A153: Y54 | B153: Q72 | C153: 02V | D153: B86106 | E153: FOUNDRY LANE SURGERY | F153: 95 MORESDALE LANE, LEEDS | G153: LS14 6GG | K153: 127 | L153: 90, 21, 6, 5, 3, 2 | M153: no data | O153: 12 | P153: 5, 5, 0, 0, 0, 2 | Q153: no data | S153: no data | U153: no data | W153: no data | Y153: no data | AA153: 1 | AB153: * | AC153: 31 | AD153: 24, 5, 1, 0, 1, 0 | AE153: 11 | AF153: 6, 5, 0, 0, 0, 0 | AG153: 47 | AH153: 30, 14, 3, 0, 0, 0 | AI153: 0 | AJ153: 0, 0, 0, 0, 0, 0 | AK153: 56 | AL153: 33, 18, 3, 1, 1, 0 | AM153: 23 | AN153: 11, 12, 0, 0, 0, 0 | AO153: 77 | AP153: 55, 15, 2, 2, 1, 2 | AQ153: 6 | AR153: 3, 2, 0, 0, 0, 1 | AS153: 28 | AT153: 17, 8, 1, 0, 0, 2 | AU153: 23 | AV153: 12, 9, 0, 0, 1, 1 | AW153: 45 | AX153: 30, 13, 0, 0, 0, 2 | AY153: 20 | AZ153: 13, 7, 0, 0, 0, 0 | BA153: 28 | BB153: 18, 7, 0, 1, 1, 1 | BC153: 11 | BD153: 9, 2, 0, 0, 0, 0 | BE153: 33 | BF153: 22, 10, 0, 0, 1, 0 | BG153: =VLOOKUP(D153,'[1]Apr-17'!$E$2:$Q$7375,13,FALSE) -> 127 | BH153: 0
A154: Y54 | B154: Q72 | C154: 02V | D154: B86108 | E154: CHAPELTOWN FAMILY SURGERY | F154: CHAPELTOWN HEALTH CENTRE, SPENCER PLACE, LEEDS | G154: LS7 4BB | K154: 67 | L154: 42, 15, 3, 2, 4, 1 | M154: 120 | N154: 76, 24, 3, 7, 8, 2 | O154: 86 | P154: 60, 14, 4, 4, 3, 1 | Q154: 76 | R154: 46, 16, 3, 2, 8, 1 | S154: no data | U154: no data | W154: 57 | X154: 33, 12, 1, 2, 9, 0 | Y154: 81 | Z154: 50, 14, 6, 3, 6, 2 | AA154: 102 | AB154: 86, 2, 0, 11, 0, 3 | AC154: 107 | AD154: 52, 34, 8, 8, 5, 0 | AE154: 35 | AF154: 16, 14, 2, 2, 1, 0 | AG154: 0 | AH154: 0, 0, 0, 0, 0, 0 | AI154: 1 | AJ154: * | AK154: 12 | AL154: 7, 4, 1, 0, 0, 0 | AM154: 19 | AN154: 13, 5, 1, 0, 0, 0 | AO154: 0 | AP154: 0, 0, 0, 0, 0, 0 | AQ154: 2 | AR154: * | AS154: 5 | AT154: 3, 2, 0, 0, 0, 0 | AU154: 8 | AV154: 6, 2, 0, 0, 0, 0 | AW154: 0 | AX154: 0, 0, 0, 0, 0, 0 | AY154: 2 | AZ154: * | BA154: 30 | BB154: 22, 8, 0, 0, 0, 0 | BC154: 19 | BD154: 13, 6, 0, 0, 0, 0 | BE154: 9 | BF154: 7, 2, 0, 0, 0, 0 | BG154: =VLOOKUP(D154,'[1]Apr-17'!$E$2:$Q$7375,13,FALSE) -> 67 | BH154: 0
A155: Y54 | B155: Q72 | C155: 02V | D155: B86625 | E155: WETHERBY SURGERY | F155: HALLFIELD LANE, WETHERBY, WEST YORKSHIRE | G155: LS22 6JS | K155: no data | M155: no data | O155: 59 | P155: 41, 13, 2, 0, 3, 0 | Q155: 127 | R155: 83, 20, 5, 8, 9, 2 | S155: 100 | T155: 61, 21, 8, 3, 6, 1 | U155: 143 | V155: 85, 31, 10, 4, 13, 0 | W155: 45 | X155: 33, 8, 2, 2, 0, 0 | Y155: 69 | Z155: 45, 10, 5, 4, 4, 1 | AA155: no data | AC155: 17 | AD155: 12, 3, 0, 2, 0, 0 | AE155: 8 | AF155: 7, 1, 0, 0, 0, 0 | AG155: 4 | AH155: * | AI155: 5 | AJ155: 1, 0, 2, 1, 1, 0 | AK155: 4 | AL155: * | AM155: 18 | AN155: 8, 8, 1, 1, 0, 0 | AO155: no data | AQ155: no data | AS155: no data | AU155: 14 | AV155: 13, 1, 0, 0, 0, 0 | AW155: 5 | AX155: 4, 1, 0, 0, 0, 0 | AY155: 1 | AZ155: * | BA155: 4 | BB155: * | BC155: 9 | BD155: 4, 2, 0, 2, 1, 0 | BE155: 6 | BF155: 3, 2, 1, 0, 0, 0 | BG155: =VLOOKUP(D155,'[1]Apr-17'!$E$2:$Q$7375,13,FALSE) -> 
A156: Y54 | B156: Q72 | C156: 02V | D156: B86654 | E156: OAKWOOD SURGERY | F156: GLEDHOW RISE, LEEDS | G156: LS8 4AA | K156: 255 | L156: 160, 73, 8, 8, 5, 1 | M156: 293 | N156: 186, 86, 6, 2, 13, 0 | O156: 275 | P156: 156, 97, 2, 6, 13, 1 | Q156: 231 | R156: 149, 67, 7, 0, 8, 0 | S156: 313 | T156: 189, 90, 9, 5, 19, 1 | U156: 367 | V156: 197, 144, 14, 4, 6, 2 | W156: 193 | X156: 112, 64, 3, 4, 7, 3 | Y156: 325 | Z156: 202, 102, 7, 4, 6, 4 | AA156: 302 | AB156: 193, 93, 7, 4, 5, 0 | AC156: 349 | AD156: 199, 117, 14, 7, 11, 1 | AE156: 74 | AF156: 8, 57, 8, 0, 1, 0 | AG156: 67 | AH156: 13, 41, 7, 3, 3, 0 | AI156: 67 | AJ156: 39, 25, 3, 0, 0, 0 | AK156: 69 | AL156: 44, 17, 5, 1, 2, 0 | AM156: 60 | AN156: 26, 29, 3, 1, 1, 0 | AO156: 47 | AP156: 29, 11, 4, 0, 3, 0 | AQ156: 79 | AR156: 53, 23, 0, 2, 1, 0 | AS156: 98 | AT156: 75, 13, 8, 2, 0, 0 | AU156: 82 | AV156: 62, 9, 8, 0, 3, 0 | AW156: 70 | AX156: 52, 11, 3, 0, 4, 0 | AY156: 70 | AZ156: 68, 2, 0, 0, 0, 0 | BA156: 86 | BB156: 73, 8, 0, 3, 2, 0 | BC156: 67 | BD156: 57, 10, 0, 0, 0, 0 | BE156: 118 | BF156: 98, 7, 3, 5, 5, 0 | BG156: =VLOOKUP(D156,'[1]Apr-17'!$E$2:$Q$7375,13,FALSE) -> 255 | BH156: 0
A157: Y54 | B157: Q72 | C157: 02V | D157: B86666 | E157: NEWTON SURGERY | F157: 305 CHAPELTOWN ROAD, LEEDS | G157: LS7 3JT | K157: 77 | L157: 54, 9, 1, 3, 8, 2 | M157: 88 | N157: 60, 16, 5, 1, 4, 2 | O157: 82 | P157: 46, 21, 3, 4, 7, 1 | Q157: 76 | R157: 56, 11, 2, 3, 3, 1 | S157: 72 | T157: 47, 18, 3, 1, 2, 1 | U157: 4 | V157: * | W157: 28 | X157: 23, 2, 0, 1, 1, 1 | Y157: 25 | Z157: 20, 5, 0, 0, 0, 0 | AA157: 20 | AB157: 18, 1, 1, 0, 0, 0 | AC157: 5 | AD157: 5, 0, 0, 0, 0, 0 | AE157: 13 | AF157: 9, 2, 0, 1, 0, 1 | AG157: 19 | AH157: 12, 7, 0, 0, 0, 0 | AI157: 21 | AJ157: 14, 4, 0, 0, 2, 1 | AK157: 28 | AL157: 21, 6, 1, 0, 0, 0 | AM157: 13 | AN157: 5, 8, 0, 0, 0, 0 | AO157: 5 | AP157: 4, 1, 0, 0, 0, 0 | AQ157: no data | AS157: 1 | AT157: * | AU157: 2 | AV157: * | AW157: 1 | AX157: * | AY157: 6 | AZ157: 6, 0, 0, 0, 0, 0 | BA157: 4 | BB157: * | BC157: 9 | BD157: 8, 0, 0, 1, 0, 0 | BE157: 6 | BF157: 4, 1, 0, 0, 1, 0 | BG157: =VLOOKUP(D157,'[1]Apr-17'!$E$2:$Q$7375,13,FALSE) -> 77 | BH157: 0
A158: Y54 | B158: Q72 | C158: 02V | D158: B86673 | E158: BRAMHAM MEDICAL CENTRE | F158: CLIFFORD ROAD, BRAMHAM, WETHERBY | G158: LS23 6RN | K158: 3 | L158: * | M158: 1 | N158: * | O158: 12 | P158: 10, 1, 1, 0, 0, 0 | Q158: no data | S158: 5 | T158: 1, 1, 0, 0, 2, 1 | U158: 5 | V158: 2, 0, 0, 1, 2, 0 | W158: no data | Y158: no data | AA158: 1 | AB158: * | AC158: 0 | AD158: 0, 0, 0, 0, 0, 0 | AE158: 3 | AF158: * | AG158: 0 | AH158: 0, 0, 0, 0, 0, 0 | AI158: 1 | AJ158: * | AK158: 3 | AL158: * | AM158: 1 | AN158: * | AO158: 1 | AP158: * | AQ158: 1 | AR158: * | AS158: 3 | AT158: * | AU158: 2 | AV158: * | AW158: 1 | AX158: * | AY158: 2 | AZ158: * | BA158: 4 | BB158: * | BC158: 2 | BD158: * | BE158: 2 | BF158: * | BG158: =VLOOKUP(D158,'[1]Apr-17'!$E$2:$Q$7375,13,FALSE) -> 3 | BH158: 0
A159: Y54 | B159: Q72 | C159: 02V | D159: Y02002 | E159: ONE MEDICARE LLP-THE LIGHT | F159: ONE MEDICARE LLP, BALCONY, LEVEL 7, THE LIGHT, THE HEADROW, LEEDS | G159: LS1 8TL | K159: no data | M159: no data | O159: 221 | P159: 142, 35, 7, 11, 24, 2 | Q159: no data | S159: 176 | T159: 105, 39, 9, 9, 11, 3 | U159: 201 | V159: 130, 37, 6, 8, 19, 1 | W159: 154 | X159: 97, 28, 2, 14, 11, 2 | Y159: no data | AA159: no data | AC159: 211 | AD159: 130, 48, 12, 10, 11, 0 | AE159: no data | AG159: 148 | AH159: 75, 31, 9, 12, 20, 1 | AI159: 64 | AJ159: 33, 11, 1, 2, 16, 1 | AK159: 79 | AL159: 39, 21, 4, 7, 8, 0 | AM159: 66 | AN159: 44, 16, 2, 1, 2, 1 | AO159: no data | AQ159: 85 | AR159: 56, 12, 2, 8, 7, 0 | AS159: 105 | AT159: 60, 26, 9, 6, 4, 0 | AU159: 60 | AV159: 34, 15, 2, 5, 4, 0 | AW159: 85 | AX159: 52, 24, 2, 4, 3, 0 | AY159: 128 | AZ159: 78, 34, 2, 5, 9, 0 | BA159: 75 | BB159: 52, 7, 3, 7, 6, 0 | BC159: 116 | BD159: 56, 32, 12, 5, 8, 3 | BE159: 57 | BF159: 38, 7, 2, 3, 7, 0 | BG159: =VLOOKUP(D159,'[1]Apr-17'!$E$2:$Q$7375,13,FALSE) -> 
A160: Y54 | B160: Q72 | C160: 02W | D160: B83005 | E160: THORNBURY MEDICAL PRACTICE | F160: THORNBURY MED PRACTICE, RUSHTON AVENUE, BRADFORD | G160: BD3 7HZ | K160: 16 | L160: 3, 7, 1, 4, 1, 0 | M160: 15 | N160: 2, 4, 3, 3, 3, 0 | O160: 19 | P160: 8, 4, 4, 3, 0, 0 | Q160: 10 | R160: 4, 3, 2, 1, 0, 0 | S160: 20 | T160: 11, 4, 1, 3, 1, 0 | U160: 44 | V160: 15, 18, 5, 4, 2, 0 | W160: 7 | X160: 1, 2, 1, 1, 2, 0 | Y160: 21 | Z160: 2, 15, 0, 4, 0, 0 | AA160: 81 | AB160: 35, 31, 8, 4, 2, 1 | AC160: 14 | AD160: 9, 2, 1, 1, 1, 0 | AE160: 24 | AF160: 8, 9, 4, 3, 0, 0 | AG160: 46 | AH160: 21, 20, 0, 3, 2, 0 | AI160: 5 | AJ160: 1, 0, 2, 0, 2, 0 | AK160: 6 | AL160: 1, 3, 0, 2, 0, 0 | AM160: 2 | AN160: * | AO160: 4 | AP160: * | AQ160: 3 | AR160: * | AS160: no data | AU160: 3 | AV160: * | AW160: 5 | AX160: 2, 2, 0, 1, 0, 0 | AY160: 5 | AZ160: 3, 1, 0, 1, 0, 0 | BA160: 3 | BB160: * | BC160: 8 | BD160: 1, 0, 1, 0, 6, 0 | BE160: 6 | BF160: 1, 1, 1, 0, 3, 0 | BG160: =VLOOKUP(D160,'[1]Apr-17'!$E$2:$Q$7375,13,FALSE) -> 16 | BH160: 0
A161: Y54 | B161: Q72 | C161: 02W | D161: B83016 | E161: FARROW MEDICAL CENTRE | F161: 177 OTLEY ROAD, BRADFORD, WEST YORKSHIRE | G161: BD3 0HX | K161: 51 | L161: 19, 27, 5, 0, 0, 0 | M161: 56 | N161: 26, 23, 4, 0, 0, 3 | O161: 32 | P161: 9, 15, 1, 0, 0, 7 | Q161: 48 | R161: 17, 22, 3, 0, 0, 6 | S161: 45 | T161: 17, 24, 2, 0, 0, 2 | U161: no data | W161: no data | Y161: no data | AA161: no data | AC161: 35 | AD161: 10, 17, 6, 0, 0, 2 | AE161: 26 | AF161: 9, 12, 3, 0, 0, 2 | AG161: no data | AI161: no data | AK161: no data | AM161: no data | AO161: 25 | AP161: 6, 12, 3, 1, 0, 3 | AQ161: 20 | AR161: 10, 5, 4, 1, 0, 0 | AS161: 13 | AT161: 11, 1, 0, 1, 0, 0 | AU161: 17 | AV161: 11, 5, 1, 0, 0, 0 | AW161: 11 | AX161: 9, 1, 0, 0, 1, 0 | AY161: 20 | AZ161: 16, 4, 0, 0, 0, 0 | BA161: 13 | BB161: 8, 0, 4, 0, 0, 1 | BC161: no data | BE161: no data | BG161: =VLOOKUP(D161,'[1]Apr-17'!$E$2:$Q$7375,13,FALSE) -> 51 | BH161: 0
A162: Y54 | B162: Q72 | C162: 02W | D162: B83025 | E162: LITTLE HORTON LANE MEDICAL CENTRE-MALL | F162: LITTLE HORTON LANE MED CT, 392 LITTLE HORTON LANE, BRADFORD | G162: BD5 0NX | K162: 13 | L162: 10, 2, 0, 1, 0, 0 | M162: 25 | N162: 15, 9, 0, 0, 0, 1 | O162: 20 | P162: 10, 5, 0, 2, 3, 0 | Q162: 7 | R162: 4, 1, 0, 2, 0, 0 | S162: 5 | T162: 4, 1, 0, 0, 0, 0 | U162: no data | W162: 3 | X162: * | Y162: 2 | Z162: * | AA162: 5 | AB162: 5, 0, 0, 0, 0, 0 | AC162: 15 | AD162: 6, 3, 0, 3, 0, 3 | AE162: 12 | AF162: 7, 4, 1, 0, 0, 0 | AG162: 1 | AH162: * | AI162: 1 | AJ162: * | AK162: 0 | AL162: 0, 0, 0, 0, 0, 0 | AM162: no data | AO162: 4 | AP162: * | AQ162: 0 | AR162: 0, 0, 0, 0, 0, 0 | AS162: 5 | AT162: 3, 2, 0, 0, 0, 0 | AU162: no data | AW162: 2 | AX162: * | AY162: 2 | AZ162: * | BA162: 0 | BB162: 0, 0, 0, 0, 0, 0 | BC162: 7 | BD162: 3, 2, 0, 0, 2, 0 | BE162: 1 | BF162: * | BG162: =VLOOKUP(D162,'[1]Apr-17'!$E$2:$Q$7375,13,FALSE) -> 13 | BH162: 0
A163: Y54 | B163: Q72 | C163: 02W | D163: B83026 | E163: PRIMROSE SURGERY | F163: HILLSIDE BRIDGE H/CARE CT, 4 BUTLER STREET WEST, BRADFORD | G163: BD3 0BS | K163: 58 | L163: 18, 22, 17, 0, 0, 1 | M163: 71 | N163: 26, 32, 13, 0, 0, 0 | O163: 41 | P163: 7, 21, 10, 3, 0, 0 | Q163: 27 | R163: 13, 10, 4, 0, 0, 0 | S163: 89 | T163: 36, 29, 24, 0, 0, 0 | U163: 32 | V163: 4, 9, 15, 4, 0, 0 | W163: 66 | X163: 6, 25, 27, 8, 0, 0 | Y163: 113 | Z163: 31, 55, 25, 2, 0, 0 | AA163: 11 | AB163: 2, 8, 1, 0, 0, 0 | AC163: no data | AE163: 3 | AF163: * | AG163: 12 | AH163: 3, 9, 0, 0, 0, 0 | AI163: 104 | AJ163: 38, 50, 8, 5, 0, 3 | AK163: 91 | AL163: 32, 43, 8, 5, 0, 3 | AM163: no data | AO163: 79 | AP163: 4, 58, 14, 3, 0, 0 | AQ163: no data | AS163: 155 | AT163: 32, 41, 60, 11, 4, 7 | AU163: no data | AW163: no data | AY163: no data | BA163: 70 | BB163: 10, 20, 34, 5, 1, 0 | BC163: no data | BE163: no data | BG163: =VLOOKUP(D163,'[1]Apr-17'!$E$2:$Q$7375,13,FALSE) -> 58 | BH163: 0
A164: Y54 | B164: Q72 | C164: 02W | D164: B83034 | E164: GRANGE MEDICAL CENTRE | F164: 1 HORTON GRANGE ROAD, BRADFORD | G164: BD7 3AH | K164: 35 | L164: 23, 10, 2, 0, 0, 0 | M164: no data | O164: 44 | P164: 6, 34, 3, 1, 0, 0 | Q164: 65 | R164: 20, 42, 3, 0, 0, 0 | S164: 94 | T164: 34, 48, 11, 1, 0, 0 | U164: 55 | V164: 18, 32, 4, 0, 0, 1 | W164: 33 | X164: 17, 14, 1, 1, 0, 0 | Y164: 39 | Z164: 14, 22, 3, 0, 0, 0 | AA164: 15 | AB164: 11, 4, 0, 0, 0, 0 | AC164: 12 | AD164: 2, 8, 1, 0, 1, 0 | AE164: 24 | AF164: 10, 9, 3, 1, 0, 1 | AG164: 21 | AH164: 11, 8, 2, 0, 0, 0 | AI164: 30 | AJ164: 12, 13, 3, 2, 0, 0 | AK164: 8 | AL164: 3, 4, 0, 0, 1, 0 | AM164: 19 | AN164: 6, 10, 2, 1, 0, 0 | AO164: no data | AQ164: no data | AS164: 7 | AT164: 1, 5, 0, 1, 0, 0 | AU164: 11 | AV164: 0, 10, 0, 0, 0, 1 | AW164: 10 | AX164: 4, 4, 0, 2, 0, 0 | AY164: 17 | AZ164: 4, 11, 2, 0, 0, 0 | BA164: 60 | BB164: 18, 30, 10, 0, 1, 1 | BC164: 62 | BD164: 18, 30, 10, 2, 1, 1 | BE164: 18 | BF164: 7, 8, 1, 1, 0, 1 | BG164: =VLOOKUP(D164,'[1]Apr-17'!$E$2:$Q$7375,13,FALSE) -> 35 | BH164: 0
A165: Y54 | B165: Q72 | C165: 02W | D165: B83051 | E165: BRADFORD STUDENT HEALTH SERVICE | F165: BRADFORD STUDENT HTH SERV, LAISTERIDGE LANE, BRADFORD | G165: BD5 0HR | K165: 0 | L165: 0, 0, 0, 0, 0, 0 | M165: 22 | N165: 9, 10, 2, 1, 0, 0 | O165: 25 | P165: 12, 12, 0, 1, 0, 0 | Q165: 5 | R165: 4, 1, 0, 0, 0, 0 | S165: 17 | T165: 8, 8, 1, 0, 0, 0 | U165: 28 | V165: 8, 5, 1, 0, 14, 0 | W165: no data | Y165: 0 | Z165: 0, 0, 0, 0, 0, 0 | AA165: 7 | AB165: 5, 2, 0, 0, 0, 0 | AC165: 1 | AD165: * | AE165: 14 | AF165: 3, 8, 2, 0, 0, 1 | AG165: 1 | AH165: * | AI165: 20 | AJ165: 7, 10, 3, 0, 0, 0 | AK165: no data | AM165: 3 | AN165: * | AO165: 3 | AP165: * | AQ165: 15 | AR165: 6, 7, 2, 0, 0, 0 | AS165: no data | AU165: 4 | AV165: * | AW165: 30 | AX165: 18, 11, 0, 1, 0, 0 | AY165: no data | BA165: 34 | BB165: 16, 15, 1, 1, 1, 0 | BC165: no data | BE165: no data | BG165: =VLOOKUP(D165,'[1]Apr-17'!$E$2:$Q$7375,13,FALSE) -> 0 | BH165: 0
A166: Y54 | B166: Q72 | C166: 02W | D166: B83052 | E166: KENSINGTON ST HC - WILSON | F166: KENSINGTON STREET HTH.CTR, WHITEFIELD PLACE, BRADFORD, WEST YORKSHIRE | G166: BD8 9LB | K166: 1 | L166: * | M166: 6 | N166: 1, 2, 0, 0, 2, 1 | O166: 37 | P166: 22, 10, 1, 3, 1, 0 | Q166: 15 | R166: 8, 5, 0, 1, 1, 0 | S166: 24 | T166: 5, 13, 2, 3, 1, 0 | U166: 90 | V166: 36, 36, 10, 1, 5, 2 | W166: no data | Y166: 47 | Z166: 17, 20, 4, 3, 2, 1 | AA166: 55 | AB166: 22, 16, 6, 3, 5, 3 | AC166: 32 | AD166: 12, 9, 1, 5, 5, 0 | AE166: 3 | AF166: * | AG166: no data | AI166: 3 | AJ166: * | AK166: no data | AM166: 3 | AN166: * | AO166: 1 | AP166: * | AQ166: 2 | AR166: * | AS166: 11 | AT166: 8, 3, 0, 0, 0, 0 | AU166: 6 | AV166: 2, 3, 1, 0, 0, 0 | AW166: 39 | AX166: 10, 17, 4, 5, 3, 0 | AY166: 15 | AZ166: 3, 7, 4, 0, 1, 0 | BA166: 10 | BB166: 7, 1, 0, 1, 1, 0 | BC166: 6 | BD166: 4, 2, 0, 0, 0, 0 | BE166: 0 | BF166: 0, 0, 0, 0, 0, 0 | BG166: =VLOOKUP(D166,'[1]Apr-17'!$E$2:$Q$7375,13,FALSE) -> 1 | BH166: 0
A167: Y54 | B167: Q72 | C167: 02W | D167: B83058 | E167: THE AVICENNA MEDICAL PRACTICE | F167: BARKEREND HEALTH CENTRE, BARKEREND ROAD, BRADFORD, WEST YORKSHIRE | G167: BD3 8QH | K167: 18 | L167: 12, 5, 1, 0, 0, 0 | M167: 17 | N167: 7, 8, 2, 0, 0, 0 | O167: 16 | P167: 7, 6, 1, 2, 0, 0 | Q167: 15 | R167: 6, 8, 1, 0, 0, 0 | S167: 10 | T167: 6, 4, 0, 0, 0, 0 | U167: 19 | V167: 11, 4, 1, 0, 2, 1 | W167: 13 | X167: 4, 9, 0, 0, 0, 0 | Y167: 14 | Z167: 8, 5, 1, 0, 0, 0 | AA167: 15 | AB167: 5, 8, 2, 0, 0, 0 | AC167: 24 | AD167: 11, 11, 1, 1, 0, 0 | AE167: 11 | AF167: 4, 5, 2, 0, 0, 0 | AG167: 13 | AH167: 1, 9, 1, 1, 0, 1 | AI167: 29 | AJ167: 12, 14, 2, 1, 0, 0 | AK167: 26 | AL167: 6, 18, 1, 1, 0, 0 | AM167: 31 | AN167: 17, 10, 2, 0, 2, 0 | AO167: 17 | AP167: 8, 7, 0, 1, 1, 0 | AQ167: 8 | AR167: 2, 5, 1, 0, 0, 0 | AS167: 6 | AT167: 1, 3, 2, 0, 0, 0 | AU167: 7 | AV167: 1, 2, 3, 0, 0, 1 | AW167: 3 | AX167: * | AY167: 5 | AZ167: 1, 1, 2, 0, 0, 1 | BA167: 4 | BB167: * | BC167: 4 | BD167: * | BE167: 3 | BF167: * | BG167: =VLOOKUP(D167,'[1]Apr-17'!$E$2:$Q$7375,13,FALSE) -> 18 | BH167: 0
A168: Y54 | B168: Q72 | C168: 02W | D168: B83069 | E168: DR BASU | F168: WHETLEY MEDICAL CENTRE, 2 SAPLIN STREET, BRADFORD, WEST YORKSHIRE | G168: BD8 9DW | K168: 56 | L168: 44, 12, 0, 0, 0, 0 | M168: 35 | N168: 23, 10, 1, 1, 0, 0 | O168: 31 | P168: 23, 6, 1, 1, 0, 0 | Q168: 61 | R168: 34, 20, 7, 0, 0, 0 | S168: 21 | T168: 9, 10, 0, 1, 0, 1 | U168: 52 | V168: 38, 13, 0, 1, 0, 0 | W168: 53 | X168: 39, 13, 1, 0, 0, 0 | Y168: 55 | Z168: 38, 16, 1, 0, 0, 0 | AA168: 48 | AB168: 33, 13, 1, 0, 1, 0 | AC168: 14 | AD168: 11, 3, 0, 0, 0, 0 | AE168: 29 | AF168: 15, 14, 0, 0, 0, 0 | AG168: no data | AI168: 1 | AJ168: * | AK168: no data | AM168: no data | AO168: 5 | AP168: 1, 2, 1, 1, 0, 0 | AQ168: no data | AS168: no data | AU168: no data | AW168: 5 | AX168: 3, 1, 0, 1, 0, 0 | AY168: 2 | AZ168: * | BA168: 6 | BB168: 3, 3, 0, 0, 0, 0 | BC168: 3 | BD168: * | BE168: 13 | BF168: 11, 2, 0, 0, 0, 0 | BG168: =VLOOKUP(D168,'[1]Apr-17'!$E$2:$Q$7375,13,FALSE) -> 56 | BH168: 0
A169: Y54 | B169: Q72 | C169: 02W | D169: B83070 | E169: MUGHAL MEDICAL CENTRE | F169: 55 IVANHOE ROAD, BRADFORD | G169: BD7 3HY | K169: 10 | L169: 3, 6, 0, 1, 0, 0 | M169: 18 | N169: 2, 11, 3, 2, 0, 0 | O169: no data | Q169: 27 | R169: 4, 15, 6, 0, 1, 1 | S169: no data | U169: 42 | V169: 13, 19, 6, 3, 1, 0 | W169: 39 | X169: 13, 15, 5, 5, 1, 0 | Y169: 47 | Z169: 25, 13, 7, 2, 0, 0 | AA169: 26 | AB169: 7, 14, 3, 1, 1, 0 | AC169: 66 | AD169: 9, 15, 5, 3, 1, 33 | AE169: 47 | AF169: 12, 20, 6, 5, 3, 1 | AG169: 76 | AH169: 22, 36, 9, 4, 5, 0 | AI169: 36 | AJ169: 11, 18, 0, 0, 5, 2 | AK169: 51 | AL169: 18, 22, 5, 3, 0, 3 | AM169: no data | AO169: no data | AQ169: no data | AS169: 16 | AT169: 12, 3, 1, 0, 0, 0 | AU169: 11 | AV169: 6, 4, 0, 0, 0, 1 | AW169: no data | AY169: 24 | AZ169: 9, 7, 6, 2, 0, 0 | BA169: 41 | BB169: 9, 23, 4, 1, 2, 2 | BC169: no data | BE169: no data | BG169: =VLOOKUP(D169,'[1]Apr-17'!$E$2:$Q$7375,13,FALSE) -> 10 | BH169: 0
A170: Y54 | B170: Q72 | C170: 02W | D170: B83604 | E170: THE LISTER SURGERY | F170: WESTBOURNE GREEN CHC CTR., 50 HEATON ROAD, BRADFORD, WEST YORKSHIRE | G170: BD8 8RA | K170: 9 | L170: 2, 6, 0, 1, 0, 0 | M170: 8 | N170: 5, 2, 1, 0, 0, 0 | O170: 2 | P170: * | Q170: 15 | R170: 3, 12, 0, 0, 0, 0 | S170: 10 | T170: 4, 2, 1, 1, 2, 0 | U170: 4 | V170: * | W170: 5 | X170: 1, 3, 1, 0, 0, 0 | Y170: 10 | Z170: 0, 6, 0, 2, 0, 2 | AA170: 11 | AB170: 7, 3, 1, 0, 0, 0 | AC170: 17 | AD170: 3, 11, 3, 0, 0, 0 | AE170: 23 | AF170: 14, 6, 2, 1, 0, 0 | AG170: 16 | AH170: 7, 8, 0, 0, 1, 0 | AI170: 12 | AJ170: 1, 4, 1, 0, 0, 6 | AK170: 16 | AL170: 4, 9, 0, 1, 2, 0 | AM170: 9 | AN170: 7, 1, 0, 1, 0, 0 | AO170: no data | AQ170: no data | AS170: 45 | AT170: 6, 32, 3, 2, 0, 2 | AU170: 42 | AV170: 8, 27, 3, 2, 0, 2 | AW170: 52 | AX170: 13, 25, 0, 6, 1, 7 | AY170: 26 | AZ170: 7, 14, 4, 1, 0, 0 | BA170: 14 | BB170: 4, 8, 1, 1, 0, 0 | BC170: 48 | BD170: 11, 23, 2, 9, 1, 2 | BE170: 30 | BF170: 5, 14, 4, 5, 1, 1 | BG170: =VLOOKUP(D170,'[1]Apr-17'!$E$2:$Q$7375,13,FALSE) -> 9 | BH170: 0
A171: Y54 | B171: Q72 | C171: 02W | D171: B83611 | E171: BARKEREND HC - EL ELIWI | F171: THE BLUEBELL BUILDING, BARKEREND HEALTH CENTRE, BARKEREND ROAD, BRADFORD | G171: BD3 8QH | K171: 57 | L171: 16, 22, 8, 5, 0, 6 | M171: 47 | N171: 11, 22, 7, 2, 0, 5 | O171: no data | Q171: 40 | R171: 16, 11, 6, 6, 1, 0 | S171: no data | U171: 31 | V171: 10, 11, 2, 2, 3, 3 | W171: 28 | X171: 4, 13, 1, 6, 3, 1 | Y171: 80 | Z171: 20, 27, 10, 8, 6, 9 | AA171: 57 | AB171: 17, 22, 5, 3, 1, 9 | AC171: 58 | AD171: 14, 21, 5, 5, 6, 7 | AE171: 107 | AF171: 26, 40, 10, 14, 10, 7 | AG171: 53 | AH171: 15, 14, 11, 2, 4, 7 | AI171: 113 | AJ171: 36, 57, 3, 6, 2, 9 | AK171: 58 | AL171: 11, 28, 4, 5, 4, 6 | AM171: 33 | AN171: 17, 11, 3, 2, 0, 0 | AO171: 24 | AP171: 12, 8, 2, 0, 0, 2 | AQ171: 40 | AR171: 5, 14, 8, 10, 1, 2 | AS171: 41 | AT171: 10, 16, 3, 4, 2, 6 | AU171: no data | AW171: 21 | AX171: 7, 6, 2, 3, 1, 2 | AY171: 17 | AZ171: 12, 5, 0, 0, 0, 0 | BA171: no data | BC171: 24 | BD171: 5, 9, 5, 2, 1, 2 | BE171: 27 | BF171: 5, 7, 2, 10, 1, 2 | BG171: =VLOOKUP(D171,'[1]Apr-17'!$E$2:$Q$7375,13,FALSE) -> 57 | BH171: 0
A172: Y54 | B172: Q72 | C172: 02W | D172: B83613 | E172: LCD BRADFORD AT MANNINGHAM MEDICAL CNTRE | F172: MANNINGHAM CLINIC, LUMB LANE, BRADFORD | G172: BD8 7SY | K172: 14 | L172: 2, 6, 4, 1, 1, 0 | M172: 16 | N172: 0, 11, 3, 2, 0, 0 | O172: 18 | P172: 2, 7, 6, 2, 1, 0 | Q172: 17 | R172: 4, 7, 3, 2, 1, 0 | S172: 22 | T172: 18, 4, 0, 0, 0, 0 | U172: 18 | V172: 2, 9, 3, 3, 1, 0 | W172: 18 | X172: 2, 11, 1, 4, 0, 0 | Y172: 21 | Z172: 8, 9, 2, 2, 0, 0 | AA172: 23 | AB172: 4, 11, 5, 2, 1, 0 | AC172: 23 | AD172: 7, 11, 2, 2, 1, 0 | AE172: 30 | AF172: 8, 15, 4, 2, 1, 0 | AG172: 19 | AH172: 8, 6, 1, 1, 2, 1 | AI172: 27 | AJ172: 9, 11, 5, 2, 0, 0 | AK172: 18 | AL172: 5, 9, 2, 1, 1, 0 | AM172: 28 | AN172: 5, 15, 4, 3, 1, 0 | AO172: 20 | AP172: 4, 9, 5, 1, 1, 0 | AQ172: 39 | AR172: 15, 11, 7, 4, 2, 0 | AS172: 41 | AT172: 11, 16, 4, 3, 7, 0 | AU172: 26 | AV172: 9, 7, 5, 4, 1, 0 | AW172: 30 | AX172: 15, 6, 4, 3, 2, 0 | AY172: no data | BA172: 39 | BB172: 11, 17, 6, 5, 0, 0 | BC172: 14 | BD172: 8, 5, 1, 0, 0, 0 | BE172: 42 | BF172: 11, 14, 4, 3, 6, 4 | BG172: =VLOOKUP(D172,'[1]Apr-17'!$E$2:$Q$7375,13,FALSE) -> 14 | BH172: 0
A173: Y54 | B173: Q72 | C173: 02W | D173: B83614 | E173: PICTON MEDICAL CENTRE | F173: WESTBOURNE GREEN CHC CTR., BRADFORD | G173: BD8 8RA | K173: 2 | L173: * | M173: 8 | N173: 4, 4, 0, 0, 0, 0 | O173: 22 | P173: 8, 10, 3, 1, 0, 0 | Q173: 6 | R173: 4, 2, 0, 0, 0, 0 | S173: 24 | T173: 18, 6, 0, 0, 0, 0 | U173: 10 | V173: 2, 7, 1, 0, 0, 0 | W173: 25 | X173: 5, 18, 1, 1, 0, 0 | Y173: 21 | Z173: 9, 11, 0, 1, 0, 0 | AA173: 24 | AB173: 14, 9, 1, 0, 0, 0 | AC173: 29 | AD173: 21, 6, 2, 0, 0, 0 | AE173: 24 | AF173: 21, 2, 1, 0, 0, 0 | AG173: 9 | AH173: 7, 1, 1, 0, 0, 0 | AI173: 19 | AJ173: 17, 2, 0, 0, 0, 0 | AK173: 18 | AL173: 12, 5, 0, 0, 0, 1 | AM173: 8 | AN173: 4, 3, 1, 0, 0, 0 | AO173: 6 | AP173: 3, 2, 1, 0, 0, 0 | AQ173: 7 | AR173: 4, 3, 0, 0, 0, 0 | AS173: 7 | AT173: 3, 4, 0, 0, 0, 0 | AU173: 14 | AV173: 8, 6, 0, 0, 0, 0 | AW173: 45 | AX173: 19, 23, 1, 1, 1, 0 | AY173: no data | BA173: 10 | BB173: 3, 6, 0, 0, 0, 1 | BC173: no data | BE173: 54 | BF173: 19, 27, 6, 1, 1, 0 | BG173: =VLOOKUP(D173,'[1]Apr-17'!$E$2:$Q$7375,13,FALSE) -> 2 | BH173: 0
A174: Y54 | B174: Q72 | C174: 02W | D174: B83617 | E174: DR U AKBAR | F174: WHETLEY MEDICAL CENTRE, 2 SAPLIN STREET, BRADFORD | G174: BD8 9DW | K174: 3 | L174: * | M174: 8 | N174: 4, 3, 1, 0, 0, 0 | O174: 15 | P174: 7, 6, 1, 0, 1, 0 | Q174: 8 | R174: 5, 3, 0, 0, 0, 0 | S174: 9 | T174: 7, 2, 0, 0, 0, 0 | U174: 37 | V174: 33, 4, 0, 0, 0, 0 | W174: 32 | X174: 13, 16, 3, 0, 0, 0 | Y174: 7 | Z174: 0, 5, 1, 0, 1, 0 | AA174: 21 | AB174: 8, 10, 1, 0, 2, 0 | AC174: 3 | AD174: * | AE174: 5 | AF174: 4, 1, 0, 0, 0, 0 | AG174: 5 | AH174: 0, 2, 3, 0, 0, 0 | AI174: 5 | AJ174: 0, 2, 0, 0, 3, 0 | AK174: 10 | AL174: 3, 4, 2, 1, 0, 0 | AM174: 9 | AN174: 7, 1, 0, 1, 0, 0 | AO174: no data | AQ174: no data | AS174: no data | AU174: no data | AW174: 52 | AX174: 13, 25, 0, 6, 1, 7 | AY174: 80 | AZ174: 49, 22, 3, 3, 0, 3 | BA174: 85 | BB174: 57, 22, 3, 2, 0, 1 | BC174: 72 | BD174: 43, 19, 3, 2, 3, 2 | BE174: 79 | BF174: 35, 28, 8, 1, 0, 7 | BG174: =VLOOKUP(D174,'[1]Apr-17'!$E$2:$Q$7375,13,FALSE) -> 3 | BH174: 0
A175: Y54 | B175: Q72 | C175: 02W | D175: B83621 | E175: DR A AZAM & PARTNERS | F175: PARKSIDE MEDICAL PRACTICE, 99 HORTON PARK AVENUE, BRADFORD | G175: BD7 3EG | K175: 350 | L175: 251, 92, 5, 2, 0, 0 | M175: 146 | N175: 76, 63, 4, 3, 0, 0 | O175: 49 | P175: 33, 14, 2, 0, 0, 0 | Q175: 32 | R175: 16, 10, 4, 2, 0, 0 | S175: 75 | T175: 39, 30, 2, 4, 0, 0 | U175: 124 | V175: 55, 56, 9, 4, 0, 0 | W175: 106 | X175: 55, 40, 6, 5, 0, 0 | Y175: 269 | Z175: 135, 104, 18, 12, 0, 0 | AA175: 137 | AB175: 85, 48, 3, 1, 0, 0 | AC175: 47 | AD175: 25, 21, 0, 1, 0, 0 | AE175: 47 | AF175: 24, 21, 1, 1, 0, 0 | AG175: 144 | AH175: 105, 36, 1, 2, 0, 0 | AI175: 61 | AJ175: 35, 24, 2, 0, 0, 0 | AK175: 102 | AL175: 40, 53, 7, 2, 0, 0 | AM175: 110 | AN175: 56, 51, 2, 1, 0, 0 | AO175: 18 | AP175: 10, 4, 3, 1, 0, 0 | AQ175: 8 | AR175: 5, 2, 0, 1, 0, 0 | AS175: 5 | AT175: 5, 0, 0, 0, 0, 0 | AU175: 15 | AV175: 4, 6, 0, 5, 0, 0 | AW175: 6 | AX175: 2, 1, 1, 1, 1, 0 | AY175: 17 | AZ175: 3, 8, 0, 6, 0, 0 | BA175: no data | BC175: 13 | BD175: 9, 2, 0, 2, 0, 0 | BE175: 21 | BF175: 13, 4, 0, 4, 0, 0 | BG175: =VLOOKUP(D175,'[1]Apr-17'!$E$2:$Q$7375,13,FALSE) -> 350 | BH175: 0
A176: Y54 | B176: Q72 | C176: 02W | D176: B83622 | E176: DR IA GILKAR & PARTNERS | F176: KENSINGTON STREET HTH.CTR, WHITEFIELD PLACE, BRADFORD, WEST YORKSHIRE | G176: BD8 9LB | K176: 11 | L176: 2, 6, 3, 0, 0, 0 | M176: 6 | N176: 2, 4, 0, 0, 0, 0 | O176: 5 | P176: 1, 2, 2, 0, 0, 0 | Q176: 8 | R176: 2, 6, 0, 0, 0, 0 | S176: 7 | T176: 2, 4, 1, 0, 0, 0 | U176: 2 | V176: * | W176: 3 | X176: * | Y176: 4 | Z176: * | AA176: 3 | AB176: * | AC176: 0 | AD176: 0, 0, 0, 0, 0, 0 | AE176: 0 | AF176: 0, 0, 0, 0, 0, 0 | AG176: 0 | AH176: 0, 0, 0, 0, 0, 0 | AI176: 0 | AJ176: 0, 0, 0, 0, 0, 0 | AK176: no data | AM176: 2 | AN176: * | AO176: no data | AQ176: 4 | AR176: * | AS176: 2 | AT176: * | AU176: 1 | AV176: * | AW176: no data | AY176: no data | BA176: no data | BC176: 0 | BD176: 0, 0, 0, 0, 0, 0 | BE176: 3 | BF176: * | BG176: =VLOOKUP(D176,'[1]Apr-17'!$E$2:$Q$7375,13,FALSE) -> 11 | BH176: 0
A177: Y54 | B177: Q72 | C177: 02W | D177: B83626 | E177: VALLEY VIEW SURGERY | F177: UNDERCLIFFE H/CARE CENTRE, 17 LOWTHER STREET, BRADFORD | G177: BD2 4RA | K177: 7 | L177: 4, 3, 0, 0, 0, 0 | M177: 0 | N177: 0, 0, 0, 0, 0, 0 | O177: 8 | P177: 4, 4, 0, 0, 0, 0 | Q177: no data | S177: 10 | T177: 7, 3, 0, 0, 0, 0 | U177: 12 | V177: 7, 5, 0, 0, 0, 0 | W177: 31 | X177: 19, 11, 0, 0, 1, 0 | Y177: 0 | Z177: 0, 0, 0, 0, 0, 0 | AA177: 0 | AB177: 0, 0, 0, 0, 0, 0 | AC177: 1 | AD177: * | AE177: 3 | AF177: * | AG177: 17 | AH177: 8, 8, 0, 0, 1, 0 | AI177: 22 | AJ177: 14, 7, 0, 0, 0, 1 | AK177: 9 | AL177: 2, 5, 0, 1, 1, 0 | AM177: 1 | AN177: * | AO177: 0 | AP177: 0, 0, 0, 0, 0, 0 | AQ177: 3 | AR177: * | AS177: 5 | AT177: 0, 0, 0, 2, 3, 0 | AU177: 1 | AV177: * | AW177: 1 | AX177: * | AY177: 4 | AZ177: * | BA177: 0 | BB177: 0, 0, 0, 0, 0, 0 | BC177: 0 | BD177: 0, 0, 0, 0, 0, 0 | BE177: 0 | BF177: 0, 0, 0, 0, 0, 0 | BG177: =VLOOKUP(D177,'[1]Apr-17'!$E$2:$Q$7375,13,FALSE) -> 7 | BH177: 0
A178: Y54 | B178: Q72 | C178: 02W | D178: B83627 | E178: FRIZINGHALL MEDICAL CENTRE | F178: FRIZINGHALL MEDICAL CTR, 274 KEIGHLEY ROAD, BRADFORD | G178: BD9 4LH | K178: 9 | L178: 7, 2, 0, 0, 0, 0 | M178: 26 | N178: 8, 3, 6, 0, 2, 7 | O178: 17 | P178: 11, 6, 0, 0, 0, 0 | Q178: 38 | R178: 17, 21, 0, 0, 0, 0 | S178: no data | U178: no data | W178: 5 | X178: 5, 0, 0, 0, 0, 0 | Y178: 11 | Z178: 4, 6, 1, 0, 0, 0 | AA178: 6 | AB178: 2, 4, 0, 0, 0, 0 | AC178: 4 | AD178: * | AE178: 0 | AF178: 0, 0, 0, 0, 0, 0 | AG178: 0 | AH178: 0, 0, 0, 0, 0, 0 | AI178: 2 | AJ178: * | AK178: no data | AM178: no data | AO178: 6 | AP178: 1, 3, 2, 0, 0, 0 | AQ178: 1 | AR178: * | AS178: 0 | AT178: 0, 0, 0, 0, 0, 0 | AU178: no data | AW178: no data | AY178: no data | BA178: no data | BC178: 2 | BD178: * | BE178: no data | BG178: =VLOOKUP(D178,'[1]Apr-17'!$E$2:$Q$7375,13,FALSE) -> 9 | BH178: 0
A179: Y54 | B179: Q72 | C179: 02W | D179: B83628 | E179: ALICE STREET SURGERY | F179: CLARENDON MEDICAL CENTRE, ALICE ST, OFF LUMB LANE, BRADFORD | G179: BD8 7RT | K179: no data | M179: 24 | N179: 20, 3, 0, 1, 0, 0 | O179: 23 | P179: 15, 7, 0, 0, 1, 0 | Q179: 33 | R179: 28, 5, 0, 0, 0, 0 | S179: 10 | T179: 7, 1, 0, 0, 2, 0 | U179: 67 | V179: 38, 14, 3, 1, 10, 1 | W179: 50 | X179: 30, 9, 0, 3, 6, 2 | Y179: 26 | Z179: 22, 4, 0, 0, 0, 0 | AA179: 49 | AB179: 44, 0, 5, 0, 0, 0 | AC179: 24 | AD179: 18, 6, 0, 0, 0, 0 | AE179: 17 | AF179: 15, 2, 0, 0, 0, 0 | AG179: no data | AI179: 11 | AJ179: 5, 5, 1, 0, 0, 0 | AK179: no data | AM179: no data | AO179: 5 | AP179: 3, 2, 0, 0, 0, 0 | AQ179: no data | AS179: 25 | AT179: 13, 12, 0, 0, 0, 0 | AU179: no data | AW179: 15 | AX179: 8, 6, 0, 1, 0, 0 | AY179: 2 | AZ179: * | BA179: 11 | BB179: 4, 5, 0, 0, 0, 2 | BC179: 13 | BD179: 4, 8, 0, 1, 0, 0 | BE179: 3 | BF179: * | BG179: =VLOOKUP(D179,'[1]Apr-17'!$E$2:$Q$7375,13,FALSE) -> 
A180: Y54 | B180: Q72 | C180: 02W | D180: B83629 | E180: PEEL PARK SURGERY | F180: UNDERCLIFFE HLTH CARE CTR, 17 LOWTHER STREET, BRADFORD | G180: BD2 4RA | K180: 24 | L180: 18, 4, 0, 0, 0, 2 | M180: no data | O180: 26 | P180: 20, 6, 0, 0, 0, 0 | Q180: 7 | R180: 4, 3, 0, 0, 0, 0 | S180: 14 | T180: 5, 7, 1, 1, 0, 0 | U180: 10 | V180: 8, 2, 0, 0, 0, 0 | W180: 15 | X180: 6, 7, 1, 1, 0, 0 | Y180: 16 | Z180: 12, 4, 0, 0, 0, 0 | AA180: 22 | AB180: 18, 4, 0, 0, 0, 0 | AC180: 22 | AD180: 13, 6, 2, 0, 0, 1 | AE180: 14 | AF180: 10, 4, 0, 0, 0, 0 | AG180: 27 | AH180: 12, 14, 1, 0, 0, 0 | AI180: 25 | AJ180: 18, 6, 1, 0, 0, 0 | AK180: 19 | AL180: 14, 5, 0, 0, 0, 0 | AM180: no data | AO180: 23 | AP180: 10, 10, 0, 3, 0, 0 | AQ180: 8 | AR180: 5, 3, 0, 0, 0, 0 | AS180: 12 | AT180: 11, 1, 0, 0, 0, 0 | AU180: 9 | AV180: 9, 0, 0, 0, 0, 0 | AW180: 14 | AX180: 14, 0, 0, 0, 0, 0 | AY180: 6 | AZ180: 5, 1, 0, 0, 0, 0 | BA180: no data | BC180: no data | BE180: no data | BG180: =VLOOKUP(D180,'[1]Apr-17'!$E$2:$Q$7375,13,FALSE) -> 24 | BH180: 0
A181: Y54 | B181: Q72 | C181: 02W | D181: B83638 | E181: LCD BRADFORD | F181: HILLSIDE BRIDGE HC, 4 BUTLER STREET WEST, BRADFORD | G181: BD3 0BS | K181: 10 | L181: 2, 3, 0, 3, 2, 0 | M181: no data | O181: 9 | P181: 2, 4, 1, 2, 0, 0 | Q181: no data | S181: 1 | T181: * | U181: no data | W181: 4 | X181: * | Y181: 5 | Z181: 2, 0, 0, 0, 2, 1 | AA181: 8 | AB181: 0, 1, 2, 1, 3, 1 | AC181: 2 | AD181: * | AE181: no data | AG181: 4 | AH181: * | AI181: 3 | AJ181: * | AK181: 3 | AL181: * | AM181: 5 | AN181: 0, 2, 1, 1, 1, 0 | AO181: no data | AQ181: 2 | AR181: * | AS181: 2 | AT181: * | AU181: no data | AW181: no data | AY181: 4 | AZ181: * | BA181: 1 | BB181: * | BC181: no data | BE181: no data | BG181: =VLOOKUP(D181,'[1]Apr-17'!$E$2:$Q$7375,13,FALSE) -> 10 | BH181: 0
A182: Y54 | B182: Q72 | C182: 02W | D182: B83642 | E182: WHETLEY MEDICAL CENTRE | F182: 2 SAPLIN STREET, BRADFORD | G182: BD8 9DW | K182: 3 | L182: * | M182: 7 | N182: 3, 2, 2, 0, 0, 0 | O182: 5 | P182: 3, 1, 1, 0, 0, 0 | Q182: 6 | R182: 4, 2, 0, 0, 0, 0 | S182: 6 | T182: 2, 3, 0, 0, 0, 1 | U182: 10 | V182: 3, 7, 0, 0, 0, 0 | W182: 41 | X182: 16, 25, 0, 0, 0, 0 | Y182: 34 | Z182: 19, 15, 0, 0, 0, 0 | AA182: 21 | AB182: 8, 10, 1, 0, 2, 0 | AC182: 40 | AD182: 14, 26, 0, 0, 0, 0 | AE182: 30 | AF182: 13, 17, 0, 0, 0, 0 | AG182: 49 | AH182: 32, 17, 0, 0, 0, 0 | AI182: 6 | AJ182: 1, 4, 0, 0, 0, 1 | AK182: 74 | AL182: 52, 22, 0, 0, 0, 0 | AM182: 36 | AN182: 12, 24, 0, 0, 0, 0 | AO182: no data | AQ182: no data | AS182: no data | AU182: 42 | AV182: 8, 27, 3, 2, 0, 2 | AW182: 35 | AX182: 24, 11, 0, 0, 0, 0 | AY182: 49 | AZ182: 28, 21, 0, 0, 0, 0 | BA182: 80 | BB182: 51, 23, 5, 0, 0, 1 | BC182: 39 | BD182: 19, 18, 1, 0, 1, 0 | BE182: 39 | BF182: 27, 11, 1, 0, 0, 0 | BG182: =VLOOKUP(D182,'[1]Apr-17'!$E$2:$Q$7375,13,FALSE) -> 3 | BH182: 0
A183: Y54 | B183: Q72 | C183: 02W | D183: B83653 | E183: DR GILKAR | F183: LITTLE HORTON LANE MED CT, 392 LITTLE HORTON LANE, BRADFORD, WEST YORKSHIRE | G183: BD5 0NX | K183: 13 | L183: 5, 5, 2, 1, 0, 0 | M183: 6 | N183: 2, 3, 1, 0, 0, 0 | O183: 6 | P183: 1, 3, 2, 0, 0, 0 | Q183: 6 | R183: 3, 1, 1, 1, 0, 0 | S183: 12 | T183: 3, 6, 2, 1, 0, 0 | U183: 5 | V183: 1, 3, 0, 1, 0, 0 | W183: 4 | X183: * | Y183: 1 | Z183: * | AA183: 6 | AB183: 5, 1, 0, 0, 0, 0 | AC183: 2 | AD183: * | AE183: 2 | AF183: * | AG183: 2 | AH183: * | AI183: 2 | AJ183: * | AK183: no data | AM183: 1 | AN183: * | AO183: no data | AQ183: no data | AS183: no data | AU183: 2 | AV183: * | AW183: no data | AY183: no data | BA183: no data | BC183: no data | BE183: 10 | BF183: 3, 1, 2, 2, 0, 2 | BG183: =VLOOKUP(D183,'[1]Apr-17'!$E$2:$Q$7375,13,FALSE) -> 13 | BH183: 0
A184: Y54 | B184: Q72 | C184: 02W | D184: B83657 | E184: BEVAN HEALTHCARE CIC | F184: BEVAN HOUSE PRIMARY CARE, 14 PICCADILLY, BRADFORD, WEST YORKSHIRE | G184: BD1 3LS | K184: 2 | L184: * | M184: 5 | N184: 3, 2, 0, 0, 0, 0 | O184: 4 | P184: * | Q184: 21 | R184: 7, 13, 1, 0, 0, 0 | S184: 2 | T184: * | U184: 16 | V184: 11, 4, 1, 0, 0, 0 | W184: 16 | X184: 11, 4, 1, 0, 0, 0 | Y184: 4 | Z184: * | AA184: 0 | AB184: 0, 0, 0, 0, 0, 0 | AC184: 2 | AD184: * | AE184: 6 | AF184: 4, 2, 0, 0, 0, 0 | AG184: 11 | AH184: 1, 9, 0, 1, 0, 0 | AI184: no data | AK184: no data | AM184: no data | AO184: 10 | AP184: 4, 5, 1, 0, 0, 0 | AQ184: 19 | AR184: 7, 6, 1, 2, 1, 2 | AS184: no data | AU184: 46 | AV184: 18, 23, 2, 2, 0, 1 | AW184: no data | AY184: 19 | AZ184: 0, 16, 3, 0, 0, 0 | BA184: 29 | BB184: 10, 15, 3, 1, 0, 0 | BC184: no data | BE184: no data | BG184: =VLOOKUP(D184,'[1]Apr-17'!$E$2:$Q$7375,13,FALSE) -> 2 | BH184: 0
A185: Y54 | B185: Q72 | C185: 02W | D185: B83659 | E185: PARK GRANGE MEDICAL CENTRE | F185: PARK GRANGE MEDICAL CTR., 141 WOODHEAD ROAD, BRADFORD | G185: BD7 2BL | K185: 9 | L185: 4, 4, 0, 0, 0, 1 | M185: 20 | N185: 10, 10, 0, 0, 0, 0 | O185: 26 | P185: 6, 20, 0, 0, 0, 0 | Q185: 13 | R185: 2, 11, 0, 0, 0, 0 | S185: 20 | T185: 10, 10, 0, 0, 0, 0 | U185: 32 | V185: 10, 15, 4, 2, 0, 1 | W185: 40 | X185: 18, 17, 4, 0, 0, 1 | Y185: 40 | Z185: 10, 23, 5, 1, 0, 1 | AA185: 25 | AB185: 7, 14, 3, 0, 0, 1 | AC185: 21 | AD185: 6, 13, 2, 0, 0, 0 | AE185: 40 | AF185: 5, 24, 7, 2, 0, 2 | AG185: 28 | AH185: 4, 20, 4, 0, 0, 0 | AI185: no data | AK185: 12 | AL185: 3, 6, 1, 1, 1, 0 | AM185: no data | AO185: no data | AQ185: no data | AS185: 9 | AT185: 1, 5, 1, 0, 1, 1 | AU185: 12 | AV185: 7, 1, 1, 1, 1, 1 | AW185: no data | AY185: no data | BA185: no data | BC185: 0 | BD185: 0, 0, 0, 0, 0, 0 | BE185: no data | BG185: =VLOOKUP(D185,'[1]Apr-17'!$E$2:$Q$7375,13,FALSE) -> 9 | BH185: 0
A186: Y54 | B186: Q72 | C186: 02W | D186: B83660 | E186: BILTON MEDICAL CENTRE | F186: 120 CITY ROAD, BRADFORD | G186: BD8 8JT | K186: 25 | L186: 13, 11, 0, 1, 0, 0 | M186: 32 | N186: 17, 12, 0, 2, 1, 0 | O186: 37 | P186: 24, 8, 2, 2, 1, 0 | Q186: 47 | R186: 20, 23, 2, 2, 0, 0 | S186: 25 | T186: 7, 12, 2, 1, 2, 1 | U186: 34 | V186: 12, 13, 5, 2, 0, 2 | W186: no data | Y186: 60 | Z186: 11, 16, 2, 0, 1, 30 | AA186: 21 | AB186: 7, 11, 0, 0, 2, 1 | AC186: 23 | AD186: 11, 7, 2, 2, 1, 0 | AE186: 27 | AF186: 8, 10, 4, 2, 1, 2 | AG186: 18 | AH186: 6, 4, 4, 2, 0, 2 | AI186: 18 | AJ186: 7, 5, 3, 1, 2, 0 | AK186: 25 | AL186: 7, 5, 7, 3, 2, 1 | AM186: 26 | AN186: 10, 6, 5, 2, 1, 2 | AO186: 19 | AP186: 6, 8, 3, 2, 0, 0 | AQ186: no data | AS186: no data | AU186: no data | AW186: 13 | AX186: 5, 6, 1, 0, 1, 0 | AY186: 23 | AZ186: 11, 9, 2, 0, 1, 0 | BA186: no data | BC186: no data | BE186: no data | BG186: =VLOOKUP(D186,'[1]Apr-17'!$E$2:$Q$7375,13,FALSE) -> 25 | BH186: 0
A187: Y54 | B187: Q72 | C187: 02W | D187: B83661 | E187: MOOR PARK MEDICAL PRACTICE | F187: THE BLUEBELL BUILDING, BARKEREND HEALTH CENTRE, BRADFORD | G187: BD3 8QH | K187: 71 | L187: 27, 37, 3, 0, 3, 1 | M187: 98 | N187: 46, 48, 3, 0, 0, 1 | O187: 81 | P187: 32, 38, 4, 6, 0, 1 | Q187: 111 | R187: 46, 58, 1, 5, 0, 1 | S187: 119 | T187: 48, 62, 7, 2, 0, 0 | U187: 112 | V187: 63, 36, 3, 4, 0, 6 | W187: 58 | X187: 31, 27, 0, 0, 0, 0 | Y187: 46 | Z187: 19, 21, 2, 1, 0, 3 | AA187: 36 | AB187: 15, 14, 4, 0, 2, 1 | AC187: 35 | AD187: 10, 17, 5, 1, 1, 1 | AE187: 32 | AF187: 12, 16, 2, 2, 0, 0 | AG187: 13 | AH187: 5, 4, 1, 1, 2, 0 | AI187: 19 | AJ187: 4, 4, 3, 3, 4, 1 | AK187: 14 | AL187: 5, 3, 3, 2, 1, 0 | AM187: 18 | AN187: 8, 4, 2, 1, 0, 3 | AO187: 10 | AP187: 3, 5, 0, 0, 1, 1 | AQ187: 10 | AR187: 3, 4, 1, 0, 0, 2 | AS187: 14 | AT187: 5, 7, 2, 0, 0, 0 | AU187: 8 | AV187: 2, 4, 2, 0, 0, 0 | AW187: 7 | AX187: 5, 2, 0, 0, 0, 0 | AY187: 9 | AZ187: 5, 2, 1, 0, 0, 1 | BA187: 10 | BB187: 2, 4, 2, 1, 0, 1 | BC187: 14 | BD187: 4, 4, 3, 1, 2, 0 | BE187: 12 | BF187: 4, 4, 2, 0, 2, 0 | BG187: =VLOOKUP(D187,'[1]Apr-17'!$E$2:$Q$7375,13,FALSE) -> 71 | BH187: 0
A188: Y54 | B188: Q72 | C188: 02W | D188: Y05180 | E188: BRADFORD SAFE HAVEN SERVICE | F188: LOCAL CARE DIRECT, UNIT 2, SHERIDAN TEAL HSE,BRADLEY, HUDDERSFIELD | G188: HD2 1GQ | H188: Yes | K188: no data | M188: no data | O188: no data | Q188: no data | S188: no data | U188: no data | W188: - | X188: - | Y188: - | Z188: - | AA188: - | AB188: - | AC188: - | AD188: - | AE188: - | AF188: - | AG188: - | AH188: - | AI188: - | AJ188: - | AK188: - | AL188: - | AM188: - | AN188: - | AO188: - | AP188: - | AQ188: - | AR188: - | AS188: - | AT188: - | AU188: - | AV188: - | AW188: - | AX188: - | AY188: - | AZ188: - | BA188: - | BB188: - | BC188: - | BD188: - | BE188: - | BF188: - | BG188: =VLOOKUP(D188,'[1]Apr-17'!$E$2:$Q$7375,13,FALSE) -> 
A189: Y54 | B189: Q72 | C189: 02W | D189: Y05548 | E189: PICTON AT SAI | F189: WESTBOURNE GREEN HCC, 50 HEATON ROAD, BRADFORD | G189: BD8 8RA | K189: 43 | L189: 20, 22, 0, 1, 0, 0 | M189: no data | O189: no data | Q189: - | R189: - | S189: - | T189: - | U189: - | V189: - | W189: - | X189: - | Y189: - | Z189: - | AA189: - | AB189: - | AC189: - | AD189: - | AE189: - | AF189: - | AG189: - | AH189: - | AI189: - | AJ189: - | AK189: - | AL189: - | AM189: - | AN189: - | AO189: - | AP189: - | AQ189: - | AR189: - | AS189: - | AT189: - | AU189: - | AV189: - | AW189: - | AX189: - | AY189: - | AZ189: - | BA189: - | BB189: - | BC189: - | BD189: - | BE189: - | BF189: - | BG189: =VLOOKUP(D189,'[1]Apr-17'!$E$2:$Q$7375,13,FALSE) -> 43 | BH189: 0
A190: Y54 | B190: Q72 | C190: 02X | D190: C86001 | E190: CARCROFT DOCTORS GROUP | F190: THE HEALTH CENTRE, CHESTNUT AVENUE, CARCROFT, DONCASTER, SOUTH YORKSHIRE | G190: DN6 8AG | H190: Yes | K190: no data | M190: no data | O190: no data | Q190: no data | S190: no data | U190: no data | W190: no data | Y190: no data | AA190: 20 | AB190: 11, 8, 1, 0, 0, 0 | AC190: no data | AE190: 13 | AF190: 7, 5, 0, 0, 0, 1 | AG190: 16 | AH190: 7, 6, 3, 0, 0, 0 | AI190: 2 | AJ190: * | AK190: no data | AM190: 2 | AN190: * | AO190: 27 | AP190: 18, 7, 1, 0, 0, 1 | AQ190: 31 | AR190: 17, 13, 1, 0, 0, 0 | AS190: 15 | AT190: 8, 5, 2, 0, 0, 0 | AU190: 27 | AV190: 9, 13, 3, 1, 1, 0 | AW190: 4 | AX190: * | AY190: 0 | AZ190: 0, 0, 0, 0, 0, 0 | BA190: 3 | BB190: * | BC190: no data | BE190: no data | BG190: =VLOOKUP(D190,'[1]Apr-17'!$E$2:$Q$7375,13,FALSE) -> 
A191: Y54 | B191: Q72 | C191: 02X | D191: C86002 | E191: THE RANSOME PRACTICE | F191: BENTLEY HEALTH CENTRE, ASKERN RD, BENTLEY, DONCASTER, SOUTH YORKSHIRE | G191: DN5 0JX | H191: Yes | K191: no data | M191: no data | O191: no data | Q191: no data | S191: no data | U191: no data | W191: no data | Y191: no data | AA191: no data | AC191: no data | AE191: no data | AG191: no data | AI191: no data | AK191: no data | AM191: no data | AO191: no data | AQ191: no data | AS191: 20 | AT191: 15, 5, 0, 0, 0, 0 | AU191: 14 | AV191: 7, 7, 0, 0, 0, 0 | AW191: 21 | AX191: 15, 6, 0, 0, 0, 0 | AY191: 10 | AZ191: 8, 2, 0, 0, 0, 0 | BA191: 10 | BB191: 7, 3, 0, 0, 0, 0 | BC191: 14 | BD191: 10, 4, 0, 0, 0, 0 | BE191: 18 | BF191: 12, 5, 1, 0, 0, 0 | BG191: =VLOOKUP(D191,'[1]Apr-17'!$E$2:$Q$7375,13,FALSE) -> 
A192: Y54 | B192: Q72 | C192: 02X | D192: C86003 | E192: HATFIELD HEALTH CENTRE | F192: ASH HILL ROAD, HATFIELD, DONCASTER, SOUTH YORKSHIRE | G192: DN7 6JH | H192: Yes | K192: no data | M192: no data | O192: no data | Q192: no data | S192: no data | U192: no data | W192: no data | Y192: 4 | Z192: * | AA192: 2 | AB192: * | AC192: no data | AE192: 6 | AF192: 4, 2, 0, 0, 0, 0 | AG192: 1 | AH192: * | AI192: 1 | AJ192: * | AK192: 0 | AL192: 0, 0, 0, 0, 0, 0 | AM192: no data | AO192: 5 | AP192: 4, 0, 0, 0, 1, 0 | AQ192: 3 | AR192: * | AS192: 5 | AT192: 0, 2, 2, 1, 0, 0 | AU192: 2 | AV192: * | AW192: 7 | AX192: 3, 1, 1, 0, 1, 1 | AY192: 10 | AZ192: 5, 1, 1, 2, 1, 0 | BA192: 14 | BB192: 5, 1, 3, 3, 2, 0 | BC192: 8 | BD192: 3, 1, 0, 3, 1, 0 | BE192: 17 | BF192: 5, 2, 5, 2, 3, 0 | BG192: =VLOOKUP(D192,'[1]Apr-17'!$E$2:$Q$7375,13,FALSE) -> 
A193: Y54 | B193: Q72 | C193: 02X | D193: C86005 | E193: MEXBOROUGH HEALTH CENTRE | F193: THE HEALTH CENTRE, ADWICK ROAD, MEXBOROUGH, DONCASTER, SOUTH YORKSHIRE | G193: S64 0BY | H193: Yes | K193: no data | M193: no data | O193: no data | Q193: no data | S193: no data | U193: no data | W193: no data | Y193: no data | AA193: no data | AC193: 42 | AD193: 30, 4, 0, 0, 3, 5 | AE193: 49 | AF193: 26, 8, 2, 2, 3, 8 | AG193: 30 | AH193: 17, 5, 1, 3, 2, 2 | AI193: 65 | AJ193: 32, 18, 4, 2, 6, 3 | AK193: 0 | AL193: 0, 0, 0, 0, 0, 0 | AM193: 51 | AN193: 28, 5, 3, 3, 7, 5 | AO193: 33 | AP193: 20, 3, 1, 2, 5, 2 | AQ193: 23 | AR193: 12, 4, 1, 4, 2, 0 | AS193: no data | AU193: 86 | AV193: 40, 18, 8, 8, 3, 9 | AW193: 43 | AX193: 26, 7, 2, 1, 2, 5 | AY193: 33 | AZ193: 18, 5, 2, 3, 4, 1 | BA193: no data | BC193: 11 | BD193: 8, 1, 0, 0, 0, 2 | BE193: no data | BG193: =VLOOKUP(D193,'[1]Apr-17'!$E$2:$Q$7375,13,FALSE) -> 
A194: Y54 | B194: Q72 | C194: 02X | D194: C86006 | E194: REGENT SQUARE GROUP PRACTICE | F194: 8-9 REGENT SQUARE, DONCASTER | G194: DN1 2DS | H194: Yes | K194: no data | M194: no data | O194: no data | Q194: no data | S194: no data | U194: no data | W194: no data | Y194: no data | AA194: no data | AC194: no data | AE194: no data | AG194: no data | AI194: 12 | AJ194: 12, 0, 0, 0, 0, 0 | AK194: 10 | AL194: 10, 0, 0, 0, 0, 0 | AM194: 12 | AN194: 12, 0, 0, 0, 0, 0 | AO194: 14 | AP194: 14, 0, 0, 0, 0, 0 | AQ194: no data | AS194: 5 | AT194: 5, 0, 0, 0, 0, 0 | AU194: 4 | AV194: * | AW194: 6 | AX194: 5, 1, 0, 0, 0, 0 | AY194: 10 | AZ194: 10, 0, 0, 0, 0, 0 | BA194: no data | BC194: 10 | BD194: 10, 0, 0, 0, 0, 0 | BE194: 42 | BF194: 37, 5, 0, 0, 0, 0 | BG194: =VLOOKUP(D194,'[1]Apr-17'!$E$2:$Q$7375,13,FALSE) -> 
A195: Y54 | B195: Q72 | C195: 02X | D195: C86007 | E195: DR P O'HORAN AND PARTNERS | F195: THE BURNS MED. PRACTICE, 4 ALBION PL, BENNETTHORPE, DONCASTER, SOUTH YORKSHIRE | G195: DN1 2EG | K195: no data | M195: no data | O195: 59 | P195: 51, 8, 0, 0, 0, 0 | Q195: no data | S195: no data | U195: no data | W195: no data | Y195: 0 | Z195: 0, 0, 0, 0, 0, 0 | AA195: 3 | AB195: * | AC195: 48 | AD195: 40, 8, 0, 0, 0, 0 | AE195: no data | AG195: 0 | AH195: 0, 0, 0, 0, 0, 0 | AI195: 43 | AJ195: 31, 11, 0, 0, 0, 1 | AK195: 12 | AL195: 7, 5, 0, 0, 0, 0 | AM195: 45 | AN195: 37, 8, 0, 0, 0, 0 | AO195: 0 | AP195: 0, 0, 0, 0, 0, 0 | AQ195: 24 | AR195: 20, 3, 0, 1, 0, 0 | AS195: no data | AU195: 23 | AV195: 21, 2, 0, 0, 0, 0 | AW195: 37 | AX195: 29, 7, 0, 0, 1, 0 | AY195: 79 | AZ195: 59, 15, 2, 2, 1, 0 | BA195: 29 | BB195: 19, 8, 2, 0, 0, 0 | BC195: no data | BE195: no data | BG195: =VLOOKUP(D195,'[1]Apr-17'!$E$2:$Q$7375,13,FALSE) -> 
A196: Y54 | B196: Q72 | C196: 02X | D196: C86009 | E196: THE MAYFLOWER MEDICAL PRACTICE | F196: THE MAYFLOWER MED PRACT, THE HEALTH CENTRE, STATION ROAD, BAWTRY,DONCASTER | G196: DN10 6RQ | K196: 0 | L196: 0, 0, 0, 0, 0, 0 | M196: 2 | N196: * | O196: 1 | P196: * | Q196: no data | S196: 4 | T196: * | U196: 1 | V196: * | W196: 1 | X196: * | Y196: 1 | Z196: * | AA196: 0 | AB196: 0, 0, 0, 0, 0, 0 | AC196: 0 | AD196: 0, 0, 0, 0, 0, 0 | AE196: no data | AG196: 0 | AH196: 0, 0, 0, 0, 0, 0 | AI196: 1 | AJ196: * | AK196: 4 | AL196: * | AM196: 8 | AN196: 5, 1, 1, 1, 0, 0 | AO196: 0 | AP196: 0, 0, 0, 0, 0, 0 | AQ196: no data | AS196: 7 | AT196: 5, 1, 0, 1, 0, 0 | AU196: 10 | AV196: 5, 1, 0, 2, 2, 0 | AW196: 27 | AX196: 17, 4, 1, 3, 2, 0 | AY196: no data | BA196: 5 | BB196: 2, 0, 0, 2, 1, 0 | BC196: 12 | BD196: 8, 2, 1, 1, 0, 0 | BE196: 14 | BF196: 8, 1, 2, 3, 0, 0 | BG196: =VLOOKUP(D196,'[1]Apr-17'!$E$2:$Q$7375,13,FALSE) -> 0 | BH196: 0
A197: Y54 | B197: Q72 | C197: 02X | D197: C86011 | E197: MOUNT GROUP PRACTICE | F197: 54 THORNE ROAD, DONCASTER, SOUTH YORKSHIRE | G197: DN1 2JP | K197: 18 | L197: 16, 2, 0, 0, 0, 0 | M197: 18 | N197: 14, 4, 0, 0, 0, 0 | O197: 18 | P197: 10, 7, 0, 0, 1, 0 | Q197: 19 | R197: 16, 3, 0, 0, 0, 0 | S197: 23 | T197: 17, 6, 0, 0, 0, 0 | U197: 18 | V197: 14, 4, 0, 0, 0, 0 | W197: 20 | X197: 10, 10, 0, 0, 0, 0 | Y197: 21 | Z197: 17, 3, 1, 0, 0, 0 | AA197: 27 | AB197: 21, 6, 0, 0, 0, 0 | AC197: 26 | AD197: 13, 13, 0, 0, 0, 0 | AE197: 29 | AF197: 24, 5, 0, 0, 0, 0 | AG197: 29 | AH197: 22, 7, 0, 0, 0, 0 | AI197: 30 | AJ197: 17, 12, 0, 0, 1, 0 | AK197: 36 | AL197: 22, 14, 0, 0, 0, 0 | AM197: 35 | AN197: 27, 6, 2, 0, 0, 0 | AO197: 24 | AP197: 15, 9, 0, 0, 0, 0 | AQ197: 24 | AR197: 15, 9, 0, 0, 0, 0 | AS197: 61 | AT197: 41, 17, 0, 1, 2, 0 | AU197: 41 | AV197: 19, 19, 2, 0, 0, 1 | AW197: 45 | AX197: 31, 13, 1, 0, 0, 0 | AY197: 35 | AZ197: 29, 6, 0, 0, 0, 0 | BA197: 53 | BB197: 34, 19, 0, 0, 0, 0 | BC197: 37 | BD197: 24, 12, 1, 0, 0, 0 | BE197: 46 | BF197: 34, 10, 1, 0, 0, 1 | BG197: =VLOOKUP(D197,'[1]Apr-17'!$E$2:$Q$7375,13,FALSE) -> 18 | BH197: 0
A198: Y54 | B198: Q72 | C198: 02X | D198: C86012 | E198: THE OAKWOOD SURGERY | F198: MASHAM ROAD, CANTLEY, DONCASTER, SOUTH YORKSHIRE | G198: DN4 6BU | K198: 15 | L198: 9, 5, 0, 0, 1, 0 | M198: 14 | N198: 7, 6, 1, 0, 0, 0 | O198: 47 | P198: 22, 21, 1, 2, 1, 0 | Q198: 1 | R198: * | S198: 5 | T198: 4, 0, 1, 0, 0, 0 | U198: 1 | V198: * | W198: 4 | X198: * | Y198: 14 | Z198: 9, 3, 0, 1, 0, 1 | AA198: 12 | AB198: 9, 2, 0, 0, 1, 0 | AC198: 14 | AD198: 9, 4, 0, 0, 1, 0 | AE198: 23 | AF198: 14, 7, 2, 0, 0, 0 | AG198: 2 | AH198: * | AI198: 5 | AJ198: 3, 2, 0, 0, 0, 0 | AK198: 24 | AL198: 17, 5, 1, 0, 1, 0 | AM198: 23 | AN198: 15, 5, 1, 1, 0, 1 | AO198: 22 | AP198: 15, 7, 0, 0, 0, 0 | AQ198: 17 | AR198: 11, 4, 2, 0, 0, 0 | AS198: 11 | AT198: 6, 5, 0, 0, 0, 0 | AU198: 21 | AV198: 11, 8, 0, 1, 1, 0 | AW198: 51 | AX198: 31, 10, 3, 4, 1, 2 | AY198: 177 | AZ198: 96, 65, 12, 1, 1, 2 | BA198: 49 | BB198: 26, 15, 3, 2, 0, 3 | BC198: 23 | BD198: 13, 8, 0, 1, 0, 1 | BE198: no data | BG198: =VLOOKUP(D198,'[1]Apr-17'!$E$2:$Q$7375,13,FALSE) -> 15 | BH198: 0
A199: Y54 | B199: Q72 | C199: 02X | D199: C86013 | E199: THE TICKHILL & COLLIERY MEDICAL PRACTICE | F199: 25 ST.MARY'S ROAD, TICKHILL, DONCASTER | G199: DN11 9NA | H199: Yes | K199: no data | M199: no data | O199: no data | Q199: no data | S199: no data | U199: no data | W199: no data | Y199: no data | AA199: no data | AC199: no data | AE199: 2 | AF199: * | AG199: no data | AI199: no data | AK199: 9 | AL199: 1, 2, 4, 2, 0, 0 | AM199: 6 | AN199: 1, 1, 3, 1, 0, 0 | AO199: 3 | AP199: * | AQ199: 4 | AR199: * | AS199: no data | AU199: no data | AW199: 0 | AX199: 0, 0, 0, 0, 0, 0 | AY199: 13 | AZ199: 7, 2, 3, 0, 1, 0 | BA199: no data | BC199: no data | BE199: no data | BG199: =VLOOKUP(D199,'[1]Apr-17'!$E$2:$Q$7375,13,FALSE) -> 
A200: Y54 | B200: Q72 | C200: 02X | D200: C86014 | E200: PRINCESS MEDICAL CENTRE | F200: PRINCESS STREET,WOODLANDS, DONCASTER, SOUTH YORKSHIRE | G200: DN6 7LX | H200: Yes | K200: no data | M200: no data | O200: no data | Q200: 2 | R200: * | S200: no data | U200: no data | W200: no data | Y200: no data | AA200: 0 | AB200: 0, 0, 0, 0, 0, 0 | AC200: 1 | AD200: * | AE200: 0 | AF200: 0, 0, 0, 0, 0, 0 | AG200: 1 | AH200: * | AI200: 0 | AJ200: 0, 0, 0, 0, 0, 0 | AK200: 1 | AL200: * | AM200: 0 | AN200: 0, 0, 0, 0, 0, 0 | AO200: 0 | AP200: 0, 0, 0, 0, 0, 0 | AQ200: 0 | AR200: 0, 0, 0, 0, 0, 0 | AS200: 2 | AT200: * | AU200: 0 | AV200: 0, 0, 0, 0, 0, 0 | AW200: 1 | AX200: * | AY200: 3 | AZ200: * | BA200: 1 | BB200: * | BC200: 5 | BD200: 2, 0, 0, 0, 2, 1 | BE200: 1 | BF200: * | BG200: =VLOOKUP(D200,'[1]Apr-17'!$E$2:$Q$7375,13,FALSE) -> 
A201: Y54 | B201: Q72 | C201: 02X | D201: C86015 | E201: THE ROSSINGTON PRACTICE | F201: GRANGE LANE, ROSSINGTON, DONCASTER | G201: DN11 0LP | H201: Yes | K201: no data | M201: no data | O201: no data | Q201: no data | S201: no data | U201: no data | W201: no data | Y201: no data | AA201: no data | AC201: no data | AE201: no data | AG201: 0 | AH201: 0, 0, 0, 0, 0, 0 | AI201: no data | AK201: no data | AM201: 0 | AN201: 0, 0, 0, 0, 0, 0 | AO201: 0 | AP201: 0, 0, 0, 0, 0, 0 | AQ201: 0 | AR201: 0, 0, 0, 0, 0, 0 | AS201: 0 | AT201: 0, 0, 0, 0, 0, 0 | AU201: no data | AW201: 0 | AX201: 0, 0, 0, 0, 0, 0 | AY201: 0 | AZ201: 0, 0, 0, 0, 0, 0 | BA201: 0 | BB201: 0, 0, 0, 0, 0, 0 | BC201: 0 | BD201: 0, 0, 0, 0, 0, 0 | BE201: 0 | BF201: 0, 0, 0, 0, 0, 0 | BG201: =VLOOKUP(D201,'[1]Apr-17'!$E$2:$Q$7375,13,FALSE) -> 
A202: Y54 | B202: Q72 | C202: 02X | D202: C86016 | E202: THE LAKESIDE PRACTICE | F202: SPA POOL ROAD, ASKERN, DONCASTER, SOUTH YORKSHIRE | G202: DN6 0HZ | K202: 43 | L202: 26, 16, 1, 0, 0, 0 | M202: 127 | N202: 76, 39, 6, 2, 2, 2 | O202: 172 | P202: 104, 50, 10, 3, 4, 1 | Q202: 1 | R202: * | S202: no data | U202: no data | W202: 18 | X202: 11, 7, 0, 0, 0, 0 | Y202: 54 | Z202: 40, 11, 1, 1, 0, 1 | AA202: 22 | AB202: 11, 6, 4, 1, 0, 0 | AC202: 68 | AD202: 41, 17, 4, 4, 2, 0 | AE202: 42 | AF202: 22, 19, 0, 1, 0, 0 | AG202: 48 | AH202: 28, 16, 3, 1, 0, 0 | AI202: 153 | AJ202: 83, 43, 16, 4, 6, 1 | AK202: 55 | AL202: 27, 15, 5, 4, 2, 2 | AM202: 75 | AN202: 42, 28, 4, 0, 0, 1 | AO202: 100 | AP202: 42, 38, 10, 5, 2, 3 | AQ202: 57 | AR202: 43, 8, 4, 1, 1, 0 | AS202: 116 | AT202: 84, 26, 4, 2, 0, 0 | AU202: 19 | AV202: 7, 11, 1, 0, 0, 0 | AW202: 64 | AX202: 45, 16, 3, 0, 0, 0 | AY202: 67 | AZ202: 50, 12, 0, 2, 3, 0 | BA202: 78 | BB202: 56, 16, 3, 1, 2, 0 | BC202: 22 | BD202: 14, 7, 0, 1, 0, 0 | BE202: 36 | BF202: 26, 9, 0, 1, 0, 0 | BG202: =VLOOKUP(D202,'[1]Apr-17'!$E$2:$Q$7375,13,FALSE) -> 43 | BH202: 0
A203: Y54 | B203: Q72 | C203: 02X | D203: C86017 | E203: KINGTHORNE GROUP PRACTICE | F203: KINGTHORNE HOUSE, 83A THORNE ROAD, DONCASTER, SOUTH YORKSHIRE | G203: DN1 2EU | H203: Yes | K203: no data | M203: no data | O203: no data | Q203: 0 | R203: 0, 0, 0, 0, 0, 0 | S203: no data | U203: no data | W203: no data | Y203: 0 | Z203: 0, 0, 0, 0, 0, 0 | AA203: 0 | AB203: 0, 0, 0, 0, 0, 0 | AC203: no data | AE203: no data | AG203: 0 | AH203: 0, 0, 0, 0, 0, 0 | AI203: 2 | AJ203: * | AK203: 0 | AL203: 0, 0, 0, 0, 0, 0 | AM203: 0 | AN203: 0, 0, 0, 0, 0, 0 | AO203: 5 | AP203: 4, 1, 0, 0, 0, 0 | AQ203: 0 | AR203: 0, 0, 0, 0, 0, 0 | AS203: 0 | AT203: 0, 0, 0, 0, 0, 0 | AU203: no data | AW203: no data | AY203: 0 | AZ203: 0, 0, 0, 0, 0, 0 | BA203: 0 | BB203: 0, 0, 0, 0, 0, 0 | BC203: 4 | BD203: * | BE203: 2 | BF203: * | BG203: =VLOOKUP(D203,'[1]Apr-17'!$E$2:$Q$7375,13,FALSE) -> 
A204: Y54 | B204: Q72 | C204: 02X | D204: C86018 | E204: NORTHFIELD SURGERY | F204: THE VERMUYDEN CENTRE, FIELDSIDE, THORNE, DONCASTER | G204: DN8 4BQ | K204: 8 | L204: 7, 1, 0, 0, 0, 0 | M204: no data | O204: no data | Q204: no data | S204: no data | U204: no data | W204: 22 | X204: 12, 2, 1, 1, 6, 0 | Y204: no data | AA204: 7 | AB204: 1, 3, 0, 1, 2, 0 | AC204: 8 | AD204: 6, 0, 1, 0, 1, 0 | AE204: no data | AG204: 20 | AH204: 10, 4, 1, 2, 3, 0 | AI204: no data | AK204: 6 | AL204: 1, 2, 2, 0, 1, 0 | AM204: 4 | AN204: * | AO204: 26 | AP204: 8, 7, 4, 3, 3, 1 | AQ204: 112 | AR204: 31, 31, 18, 15, 17, 0 | AS204: 3 | AT204: * | AU204: 10 | AV204: 4, 1, 3, 1, 0, 1 | AW204: 4 | AX204: * | AY204: 10 | AZ204: 1, 4, 0, 1, 4, 0 | BA204: 26 | BB204: 12, 7, 4, 2, 1, 0 | BC204: no data | BE204: 8 | BF204: 0, 2, 0, 1, 4, 1 | BG204: =VLOOKUP(D204,'[1]Apr-17'!$E$2:$Q$7375,13,FALSE) -> 8 | BH204: =BG204-K204 -> 0
A205: Y54 | B205: Q72 | C205: 02X | D205: C86019 | E205: THE SCOTT PRACTICE | F205: GREENFIELD LANE, BALBY, DONCASTER, SOUTH YORKSHIRE | G205: DN4 0TG | K205: 73 | L205: 53, 11, 1, 4, 4, 0 | M205: 101 | N205: 68, 12, 5, 4, 12, 0 | O205: no data | Q205: no data | S205: 53 | T205: 39, 3, 3, 1, 5, 2 | U205: no data | W205: no data | Y205: no data | AA205: 2 | AB205: * | AC205: 4 | AD205: * | AE205: no data | AG205: 3 | AH205: * | AI205: 3 | AJ205: * | AK205: 0 | AL205: 0, 0, 0, 0, 0, 0 | AM205: 1 | AN205: * | AO205: 2 | AP205: * | AQ205: 5 | AR205: 1, 0, 0, 0, 4, 0 | AS205: 4 | AT205: * | AU205: 0 | AV205: 0, 0, 0, 0, 0, 0 | AW205: 4 | AX205: * | AY205: 2 | AZ205: * | BA205: 1 | BB205: * | BC205: 3 | BD205: * | BE205: 2 | BF205: * | BG205: =VLOOKUP(D205,'[1]Apr-17'!$E$2:$Q$7375,13,FALSE) -> 73 | BH205: 0
A206: Y54 | B206: Q72 | C206: 02X | D206: C86020 | E206: ST.JOHNS GROUP PRACTICE | F206: GREENFIELD LANE, BALBY, DONCASTER, SOUTH YORKSHIRE | G206: DN4 0TH | H206: Yes | K206: no data | M206: no data | O206: no data | Q206: no data | S206: no data | U206: no data | W206: 0 | X206: 0, 0, 0, 0, 0, 0 | Y206: no data | AA206: no data | AC206: no data | AE206: no data | AG206: no data | AI206: 0 | AJ206: 0, 0, 0, 0, 0, 0 | AK206: 0 | AL206: 0, 0, 0, 0, 0, 0 | AM206: 4 | AN206: * | AO206: 0 | AP206: 0, 0, 0, 0, 0, 0 | AQ206: 7 | AR206: 5, 2, 0, 0, 0, 0 | AS206: 1 | AT206: * | AU206: 5 | AV206: 4, 1, 0, 0, 0, 0 | AW206: 3 | AX206: * | AY206: 0 | AZ206: 0, 0, 0, 0, 0, 0 | BA206: 6 | BB206: 3, 3, 0, 0, 0, 0 | BC206: 4 | BD206: * | BE206: 6 | BF206: 4, 1, 0, 0, 1, 0 | BG206: =VLOOKUP(D206,'[1]Apr-17'!$E$2:$Q$7375,13,FALSE) -> 
... 919 more rows

Sheet SC BS (hidden)
B1: Summary tab | C1: Practice tab | D1: Sort Lists: | E1: Sort range… | F1: Sort range… | H1: Linked Region List: | I1: Code… | J1: Name… | K1: Fixed Lists: | L1: Code… | M1: Name… | N1: Code… | O1: Name… | Q1: Code… | R1: Name… | S1: Code… | T1: Name… | U1: Code… | V1: Name… | W1: Code… | X1: Name… | Y1: Postcode… | Z1: Postcode… | AB1: Linked Lists: | AC1: Code… | AD1: Name… | AF1: Code… | AG1: Name… | AH1: Code… | AI1: Name… | AJ1: Code… | AK1: Name… | AL1: Postcode… | AM1: Postcode… | AO1: Filtered Fixed Practice List: | AP1: Code… | AQ1: Name…
A2: Sort | B2: 1 | C2: 1 | E2: Region Code | F2: Region Code | G2: yes | I2: Y54 | J2: London Region | L2: Y54 | M2: North of England Region | N2: Q72 | O2: NHS England Yorkshire & Humber | Q2: Y54 | R2: North of England Region | S2: Q72 | T2: NHS England Yorkshire & Humber | U2: 02N | V2: NHS AIREDALE, WHARFEDALE AND CRAVEN CCG | W2: B82007 | X2: TOWNHEAD SURGERY | Y2: BD24 9JA | Z2: BD24 | AC2: Q70 | AD2: NHS England Central Midlands | AF2: Q70 | AG2: NHS England Central Midlands | AH2: 00C | AI2: NHS AIREDALE, WHARFEDALE AND CRAVEN CCG | AJ2: A81001 | AK2: (IRLAM) SALFORD CARE CTRS MEDICAL PRACTI | AL2: AL1 3HD | AM2: AL1 | AP2: B82007 | AQ2: TOWNHEAD SURGERY
A3: Region Code | B3: 1 | C3: 1 | E3: Region Name | F3: Region (Geo) Code | I3: Y55 | J3: Midlands & East Region | L3: Y54 | M3: North of England Region | N3: Q74 | O3: NHS England Cumbria & North East | Q3: Y54 | R3: North of England Region | S3: Q72 | T3: NHS England Yorkshire & Humber | U3: 02N | V3: NHS AIREDALE, WHARFEDALE AND CRAVEN CCG | W3: B82020 | X3: CROSS HILLS GROUP PRACTICE | Y3: BD20 7LG | Z3: BD20 | AC3: Q71 | AD3: NHS England Cheshire & Merseyside | AF3: Q71 | AG3: NHS England Cheshire & Merseyside | AH3: 00D | AI3: NHS ASHFORD CCG | AJ3: A81002 | AK3: 1/LOWER BROUGHTON MEDICAL PRACTICE | AL3: AL1 3JB | AM3: AL10 | AP3: B82020 | AQ3: CROSS HILLS GROUP PRACTICE
A4: Region Name | B4: 1 | C4: 1 | E4: Region (Geo) Code | F4: CCG Code | I4: Y56 | J4: North of England Region | L4: Y54 | M4: North of England Region | N4: Q75 | O4: NHS England Cheshire & Merseyside | Q4: Y54 | R4: North of England Region | S4: Q72 | T4: NHS England Yorkshire & Humber | U4: 02N | V4: NHS AIREDALE, WHARFEDALE AND CRAVEN CCG | W4: B82028 | X4: FISHER MEDICAL CENTRE | Y4: BD23 1EU | Z4: BD23 | AC4: Q72 | AD4: NHS England Cumbria & North East | AF4: Q72 | AG4: NHS England Cumbria & North East | AH4: 00J | AI4: NHS AYLESBURY VALE CCG | AJ4: A81004 | AK4: 1/MONTON MEDICAL PRACTICE | AL4: AL1 4JE | AM4: AL2 | AP4: B82028 | AQ4: FISHER MEDICAL CENTRE
A5: RG Code | B5: 1 | C5: 1 | E5: Region (Geography) | F5: Practice Code | I5: Y57 | J5: South Region | L5: Y54 | M5: North of England Region | N5: Q83 | O5: NHS England Greater Manchester | Q5: Y54 | R5: North of England Region | S5: Q72 | T5: NHS England Yorkshire & Humber | U5: 02N | V5: NHS AIREDALE, WHARFEDALE AND CRAVEN CCG | W5: B82053 | X5: DYNELEY HOUSE SURGERY | Y5: BD23 2HZ | Z5: BD23 | AC5: Q74 | AD5: NHS England East | AF5: Q74 | AG5: NHS England East | AH5: 00K | AI5: NHS BARKING AND DAGENHAM CCG | AJ5: A81005 | AK5: 1/SALFORD MEDICAL PRACTICE | AL5: AL10 0BS | AM5: AL3 | AP5: B82053 | AQ5: DYNELEY HOUSE SURGERY
A6: RG Name | B6: 1 | C6: 1 | E6: "no data" | F6: Name | L6: Y54 | M6: North of England Region | N6: Q84 | O6: NHS England Lancashire | Q6: Y54 | R6: North of England Region | S6: Q72 | T6: NHS England Yorkshire & Humber | U6: 02N | V6: NHS AIREDALE, WHARFEDALE AND CRAVEN CCG | W6: B83002 | X6: ILKLEY & WHARFEDALE MEDICAL PRACTICE | Y6: LS29 8TQ | Z6: LS29 | AC6: Q75 | AD6: NHS England Greater Manchester | AF6: Q75 | AG6: NHS England Greater Manchester | AH6: 00L | AI6: NHS BARNET CCG | AJ6: A81006 | AK6: 108 RAWLING ROAD(RAWLING ROAD PRACTICE) | AL6: AL10 0NL | AM6: AL5 | AP6: B83002 | AQ6: ILKLEY & WHARFEDALE MEDICAL PRACTICE
A7: CCG Code | B7: N/A | C7: 1 | E7: Zero responses | F7: Address | L7: Y55 | M7: Midlands & East Region | N7: Q76 | O7: NHS England North Midlands | Q7: Y54 | R7: North of England Region | S7: Q72 | T7: NHS England Yorkshire & Humber | U7: 02N | V7: NHS AIREDALE, WHARFEDALE AND CRAVEN CCG | W7: B83006 | X7: SILSDEN & STEETON MEDICAL PRACTICE | Y7: BD20 0DG | Z7: BD20 | AC7: Q76 | AD7: NHS England Lancashire | AF7: Q76 | AG7: NHS England Lancashire | AH7: 00M | AI7: NHS BARNSLEY CCG | AJ7: A81007 | AK7: 15 SEFTON ROAD | AL7: AL10 8HP | AM7: AL6 | AP7: B83006 | AQ7: SILSDEN & STEETON MEDICAL PRACTICE
A8: CCG Name | B8: N/A | C8: 1 | E8: Breakdown of responses same | F8: Post Code | L8: Y55 | M8: Midlands & East Region | N8: Q77 | O8: NHS England West Midlands | Q8: Y54 | R8: North of England Region | S8: Q72 | T8: NHS England Yorkshire & Humber | U8: 02N | V8: NHS AIREDALE, WHARFEDALE AND CRAVEN CCG | W8: B83008 | X8: LING HOUSE MEDICAL CENTRE | Y8: BD21 2JH | Z8: BD21 | AC8: Q77 | AD8: NHS England London | AF8: Q77 | AG8: NHS England London | AH8: 00N | AI8: NHS BASILDON AND BRENTWOOD CCG | AJ8: A81009 | AK8: 188 THE PRACTICE | AL8: AL2 1ES | AM8: AL7 | AP8: B83008 | AQ8: LING HOUSE MEDICAL CENTRE
A9: Practice Code | B9: N/A | C9: 1 | F9: "no data" | L9: Y55 | M9: Midlands & East Region | N9: Q78 | O9: NHS England Central Midlands | Q9: Y54 | R9: North of England Region | S9: Q72 | T9: NHS England Yorkshire & Humber | U9: 02N | V9: NHS AIREDALE, WHARFEDALE AND CRAVEN CCG | W9: B83019 | X9: GRANGE PARK SURGERY | Y9: LS29 7HG | Z9: LS29 | AC9: Q78 | AD9: NHS England North Midlands | AF9: Q78 | AG9: NHS England North Midlands | AH9: 00P | AI9: NHS BASSETLAW CCG | AJ9: A81011 | AK9: 19 BEAUMONT STREET SURGERY | AL9: AL2 3JX | AM9: AL8 | AP9: B83019 | AQ9: GRANGE PARK SURGERY
A10: Practice Name | B10: N/A | C10: 1 | F10: Zero responses | L10: Y55 | M10: Midlands & East Region | N10: Q79 | O10: NHS England East | Q10: Y54 | R10: North of England Region | S10: Q72 | T10: NHS England Yorkshire & Humber | U10: 02N | V10: NHS AIREDALE, WHARFEDALE AND CRAVEN CCG | W10: B83021 | X10: FARFIELD GROUP PRACTICE | Y10: BD21 2LD | Z10: BD21 | AC10: Q79 | AD10: NHS England South Central | AF10: Q79 | AG10: NHS England South Central | AH10: 00Q | AI10: NHS BATH AND NORTH EAST SOMERSET CCG | AJ10: A81012 | AK10: 2/IRLAM MEDICAL PRACTICE | AL10: AL3 5ER | AM10: AL9 | AP10: B83021 | AQ10: FARFIELD GROUP PRACTICE
A11: Postcode | B11: N/A | C11: 1 | F11: Breakdown of responses same | L11: Y57 | M11: South Region | N11: Q80 | O11: NHS England South West | Q11: Y54 | R11: North of England Region | S11: Q72 | T11: NHS England Yorkshire & Humber | U11: 02N | V11: NHS AIREDALE, WHARFEDALE AND CRAVEN CCG | W11: B83023 | X11: HOLYCROFT SURGERY | Y11: BD21 1SA | Z11: BD21 | AC11: Q80 | AD11: NHS England South East | AF11: Q80 | AG11: NHS England South East | AH11: 00R | AI11: NHS BEDFORDSHIRE CCG | AJ11: A81013 | AK11: 2/ST ANDREWS MEDICAL PRACTICE | AL11: AL3 5HB | AM11: B1 | AP11: B83023 | AQ11: HOLYCROFT SURGERY
A12: "no data" | B12: N/A | C12: FALSE | L12: Y57 | M12: South Region | N12: Q81 | O12: NHS England South East | Q12: Y54 | R12: North of England Region | S12: Q72 | T12: NHS England Yorkshire & Humber | U12: 02N | V12: NHS AIREDALE, WHARFEDALE AND CRAVEN CCG | W12: B83027 | X12: HAWORTH MEDICAL PRACTICE | Y12: BD22 8DH | Z12: BD22 | AC12: Q81 | AD12: NHS England South West | AF12: Q81 | AG12: NHS England South West | AH12: 00T | AI12: NHS BEXLEY CCG | AJ12: A81014 | AK12: 240 WEXHAM ROAD | AL12: AL3 5NF | AM12: B10 | AP12: B83027 | AQ12: HAWORTH MEDICAL PRACTICE
A13: Zero responses | B13: N/A | C13: FALSE | L13: Y57 | M13: South Region | N13: Q82 | O13: NHS England South Central | Q13: Y54 | R13: North of England Region | S13: Q72 | T13: NHS England Yorkshire & Humber | U13: 02N | V13: NHS AIREDALE, WHARFEDALE AND CRAVEN CCG | W13: B83033 | X13: KILMENY GROUP MEDICAL PRACTICE | Y13: BD21 1LA | Z13: BD21 | AC13: Q82 | AD13: NHS England Wessex | AF13: Q82 | AG13: NHS England Wessex | AH13: 00V | AI13: NHS BIRMINGHAM CROSSCITY CCG | AJ13: A81015 | AK13: 27 BEAUMONT STREET | AL13: AL3 5NP | AM13: B11 | AP13: B83033 | AQ13: KILMENY GROUP MEDICAL PRACTICE
A14: Breakdown of responses same | B14: N/A | C14: FALSE | L14: Y57 | M14: South Region | N14: Q70 | O14: NHS England Wessex | Q14: Y54 | R14: North of England Region | S14: Q72 | T14: NHS England Yorkshire & Humber | U14: 02N | V14: NHS AIREDALE, WHARFEDALE AND CRAVEN CCG | W14: B83061 | X14: OAKWORTH MEDICAL PRACTICE | Y14: BD22 7HN | Z14: BD22 | AC14: Q83 | AD14: NHS England West Midlands | AF14: Q83 | AG14: NHS England West Midlands | AH14: 00X | AI14: NHS BIRMINGHAM SOUTH AND CENTRAL CCG | AJ14: A81016 | AK14: 28 BEAUMONT STREET | AL14: AL3 7BL | AM14: B12 | AP14: B83061 | AQ14: OAKWORTH MEDICAL PRACTICE
L15: Y56 | M15: London Region | N15: Q71 | O15: NHS England London | Q15: Y54 | R15: North of England Region | S15: Q72 | T15: NHS England Yorkshire & Humber | U15: 02N | V15: NHS AIREDALE, WHARFEDALE AND CRAVEN CCG | W15: B83602 | X15: NORTH STREET MEDICAL PRACTICE | Y15: BD21 3AU | Z15: BD21 | AC15: Q84 | AD15: NHS England Yorkshire & Humber | AF15: Q84 | AG15: NHS England Yorkshire & Humber | AH15: 00Y | AI15: NHS BLACKBURN WITH DARWEN CCG | AJ15: A81017 | AK15: 3/LOWER BROUGHTON MEDICAL PRACTICE | AL15: AL3 8LJ | AM15: B13 | AP15: B83602 | AQ15: NORTH STREET MEDICAL PRACTICE
B16: Last column of data for use when filtering: | C16: 58 | Q16: Y54 | R16: North of England Region | S16: Q72 | T16: NHS England Yorkshire & Humber | U16: 02N | V16: NHS AIREDALE, WHARFEDALE AND CRAVEN CCG | W16: B83620 | X16: ADDINGHAM SURGERY | Y16: LS29 0LZ | Z16: LS29 | AH16: 01A | AI16: NHS BLACKPOOL CCG | AJ16: A81018 | AK16: 3/SPRINGFIELD HOUSE MEDICAL PRACTICE | AL16: AL5 2BT | AM16: B14 | AP16: B83620 | AQ16: ADDINGHAM SURGERY
Q17: Y54 | R17: North of England Region | S17: Q72 | T17: NHS England Yorkshire & Humber | U17: 02N | V17: NHS AIREDALE, WHARFEDALE AND CRAVEN CCG | W17: B83624 | X17: I G MEDICAL | Y17: LS29 8TH | Z17: LS29 | AH17: 01C | AI17: NHS BOLTON CCG | AJ17: A81019 | AK17: 3/ST ANDREWS MEDICAL CENTRE | AL17: AL5 4HX | AM17: B15 | AP17: B83624 | AQ17: I G MEDICAL
Q18: Y54 | R18: North of England Region | S18: Q72 | T18: NHS England Yorkshire & Humber | U18: 02P | V18: NHS BARNSLEY CCG | W18: C85001 | X18: GOLDTHORPE MEDICAL CENTRE PMS PRACTICE | Y18: S63 9EH | Z18: S63 | AH18: 01D | AI18: NHS BRACKNELL AND ASCOT CCG | AJ18: A81020 | AK18: 3D MEDICAL CENTRE | AL18: AL5 4QA | AM18: B16 | AP18: C85001 | AQ18: GOLDTHORPE MEDICAL CENTRE PMS PRACTICE
Q19: Y54 | R19: North of England Region | S19: Q72 | T19: NHS England Yorkshire & Humber | U19: 02P | V19: NHS BARNSLEY CCG | W19: C85003 | X19: ASHVILLE MEDICAL CENTRE PMS PRACTICE | Y19: S70 3NE | Z19: S70 | AH19: 01E | AI19: NHS BRADFORD CITY CCG | AJ19: A81021 | AK19: 4 SEASONS MEDICAL CENTRE | AL19: AL6 9EF | AM19: B17 | AP19: C85003 | AQ19: ASHVILLE MEDICAL CENTRE PMS PRACTICE
Q20: Y54 | R20: North of England Region | S20: Q72 | T20: NHS England Yorkshire & Humber | U20: 02P | V20: NHS BARNSLEY CCG | W20: C85004 | X20: PENISTONE GROUP PMS PRACTICE | Y20: S36 6BR | Z20: S36 | AH20: 01F | AI20: NHS BRADFORD DISTRICTS CCG | AJ20: A81022 | AK20: 4/LOWER BROUGHTON MEDICAL PRACTICE | AL20: AL7 3UJ | AM20: B18 | AP20: C85004 | AQ20: PENISTONE GROUP PMS PRACTICE
Q21: Y54 | R21: North of England Region | S21: Q72 | T21: NHS England Yorkshire & Humber | U21: 02P | V21: NHS BARNSLEY CCG | W21: C85005 | X21: ROYSTON GROUP PRACTICE | Y21: S71 4QW | Z21: S71 | AH21: 01G | AI21: NHS BRENT CCG | AJ21: A81023 | AK21: 4/ST ANDREWS MEDICAL PRACTICE | AL21: AL7 4HL | AM21: B19 | AP21: C85005 | AQ21: ROYSTON GROUP PRACTICE
Q22: Y54 | R22: North of England Region | S22: Q72 | T22: NHS England Yorkshire & Humber | U22: 02P | V22: NHS BARNSLEY CCG | W22: C85006 | X22: WOODLAND DRIVE MEDICAL CENTRE | Y22: S70 6QW | Z22: S70 | AH22: 01H | AI22: NHS BRIGHTON AND HOVE CCG | AJ22: A81025 | AK22: 42 KINGSWAY | AL22: AL7 4PL | AM22: B20 | AP22: C85006 | AQ22: WOODLAND DRIVE MEDICAL CENTRE
Q23: Y54 | R23: North of England Region | S23: Q72 | T23: NHS England Yorkshire & Humber | U23: 02P | V23: NHS BARNSLEY CCG | W23: C85007 | X23: THE DOVE VALLEY PMS PRACTICE | Y23: S70 5NZ | Z23: S70 | AH23: 01J | AI23: NHS BRISTOL CCG | AJ23: A81026 | AK23: 49 MARINE AVENUE SURGERY | AL23: AL8 7QG | AM23: B21 | AP23: C85007 | AQ23: THE DOVE VALLEY PMS PRACTICE
Q24: Y54 | R24: North of England Region | S24: Q72 | T24: NHS England Yorkshire & Humber | U24: 02P | V24: NHS BARNSLEY CCG | W24: C85008 | X24: WALDERSLADE SURGERY | Y24: S74 9AF | Z24: S74 | AH24: 01K | AI24: NHS BROMLEY CCG | AJ24: A81027 | AK24: 79 RUSSELL STREET - DR SWAMI | AL24: AL9 7SN | AM24: B23 | AP24: C85008 | AQ24: WALDERSLADE SURGERY
Q25: Y54 | R25: North of England Region | S25: Q72 | T25: NHS England Yorkshire & Humber | U25: 02P | V25: NHS BARNSLEY CCG | W25: C85009 | X25: THE KAKOTY PRACTICE | Y25: S70 4NW | Z25: S70 | AH25: 01R | AI25: NHS BURY CCG | AJ25: A81029 | AK25: 80 TETTENHALL ROAD SURGERY | AL25: B1 3AL | AM25: B24 | AP25: C85009 | AQ25: THE KAKOTY PRACTICE
Q26: Y54 | R26: North of England Region | S26: Q72 | T26: NHS England Yorkshire & Humber | U26: 02P | V26: NHS BARNSLEY CCG | W26: C85010 | X26: HILL BROW SURGERY PMS PRACTICE | Y26: S75 6FH | Z26: S75 | AH26: 01T | AI26: NHS CALDERDALE CCG | AJ26: A81030 | AK26: 9 KING EDWARD STREET | AL26: B10 0BS | AM26: B25 | AP26: C85010 | AQ26: HILL BROW SURGERY PMS PRACTICE
Q27: Y54 | R27: North of England Region | S27: Q72 | T27: NHS England Yorkshire & Humber | U27: 02P | V27: NHS BARNSLEY CCG | W27: C85013 | X27: WOMBWELL GMS PRACTICE | Y27: S73 0AJ | Z27: S73 | AH27: 01V | AI27: NHS CAMBRIDGESHIRE AND PETERBOROUGH CCG | AJ27: A81031 | AK27: ABBEY COURT | AL27: B10 0JL | AM27: B26 | AP27: C85013 | AQ27: WOMBWELL GMS PRACTICE
Q28: Y54 | R28: North of England Region | S28: Q72 | T28: NHS England Yorkshire & Humber | U28: 02P | V28: NHS BARNSLEY CCG | W28: C85014 | X28: THE ROSE TREE PMS PRACTICE | Y28: S72 8SU | Z28: S72 | AH28: 01W | AI28: NHS CAMDEN CCG | AJ28: A81032 | AK28: ABBEY DALE MEDICAL CENTRE | AL28: B10 0TU | AM28: B27 | AP28: C85014 | AQ28: THE ROSE TREE PMS PRACTICE
Q29: Y54 | R29: North of England Region | S29: Q72 | T29: NHS England Yorkshire & Humber | U29: 02P | V29: NHS BARNSLEY CCG | W29: C85015 | X29: ROTHERHAM ROAD MED CENTRE PMS | Y29: S71 1UT | Z29: S71 | AH29: 01X | AI29: NHS CANNOCK CHASE CCG | AJ29: A81033 | AK29: ABBEY FIELD MEDICAL CENTRE | AL29: B10 0UG | AM29: B28 | AP29: C85015 | AQ29: ROTHERHAM ROAD MED CENTRE PMS
Q30: Y54 | R30: North of England Region | S30: Q72 | T30: NHS England Yorkshire & Humber | U30: 02P | V30: NHS BARNSLEY CCG | W30: C85016 | X30: DR MELLOR & PARTNERS | Y30: S73 9JX | Z30: S73 | AH30: 01Y | AI30: NHS CANTERBURY AND COASTAL CCG | AJ30: A81034 | AK30: ABBEY GRANGE MEDICAL PRACTICE | AL30: B10 9AB | AM30: B29 | AP30: C85016 | AQ30: DR MELLOR & PARTNERS
Q31: Y54 | R31: North of England Region | S31: Q72 | T31: NHS England Yorkshire & Humber | U31: 02P | V31: NHS BARNSLEY CCG | W31: C85017 | X31: PARK GROVE SURGERY | Y31: S70 1QE | Z31: S70 | AH31: 02A | AI31: NHS CASTLE POINT AND ROCHFORD CCG | AJ31: A81035 | AK31: ABBEY HOUSE MEDICAL PRACTICE | AL31: B10 9QE | AM31: B30 | AP31: C85017 | AQ31: PARK GROVE SURGERY
Q32: Y54 | R32: North of England Region | S32: Q72 | T32: NHS England Yorkshire & Humber | U32: 02P | V32: NHS BARNSLEY CCG | W32: C85018 | X32: GRIMETHORPE SURGERY | Y32: S72 7NZ | Z32: S72 | AH32: 02D | AI32: NHS CENTRAL LONDON (WESTMINSTER) CCG | AJ32: A81036 | AK32: ABBEY LANE SURGERY | AL32: B11 1LU | AM32: B31 | AP32: C85018 | AQ32: GRIMETHORPE SURGERY
Q33: Y54 | R33: North of England Region | S33: Q72 | T33: NHS England Yorkshire & Humber | U33: 02P | V33: NHS BARNSLEY CCG | W33: C85019 | X33: THE GROVE MEDICAL PRACTICE | Y33: S70 1QE | Z33: S70 | AH33: 02E | AI33: NHS CHILTERN CCG | AJ33: A81037 | AK33: ABBEY MANOR MEDICAL PRACTICE | AL33: B11 1TX | AM33: B32 | AP33: C85019 | AQ33: THE GROVE MEDICAL PRACTICE
Q34: Y54 | R34: North of England Region | S34: Q72 | T34: NHS England Yorkshire & Humber | U34: 02P | V34: NHS BARNSLEY CCG | W34: C85020 | X34: HUDDERSFIELD ROAD SURGERY | Y34: S70 2LT | Z34: S70 | AH34: 02F | AI34: NHS CHORLEY AND SOUTH RIBBLE CCG | AJ34: A81038 | AK34: ABBEY MEADS MEDICAL PRACT | AL34: B11 3ND | AM34: B33 | AP34: C85020 | AQ34: HUDDERSFIELD ROAD SURGERY
Q35: Y54 | R35: North of England Region | S35: Q72 | T35: NHS England Yorkshire & Humber | U35: 02P | V35: NHS BARNSLEY CCG | W35: C85022 | X35: HOYLAND MEDICAL PRACTICE | Y35: S74 9AF | Z35: S74 | AH35: 02G | AI35: NHS CITY AND HACKNEY CCG | AJ35: A81039 | AK35: ABBEY MEDICAL CENTRE | AL35: B11 4AN | AM35: B34 | AP35: C85022 | AQ35: HOYLAND MEDICAL PRACTICE
Q36: Y54 | R36: North of England Region | S36: Q72 | T36: NHS England Yorkshire & Humber | U36: 02P | V36: NHS BARNSLEY CCG | W36: C85023 | X36: HOLLYGREEN PRACTICE | Y36: S63 9EH | Z36: S63 | AH36: 02H | AI36: NHS COASTAL WEST SUSSEX CCG | AJ36: A81040 | AK36: ABBEY MEDICAL GROUP | AL36: B11 4BW | AM36: B35 | AP36: C85023 | AQ36: HOLLYGREEN PRACTICE
Q37: Y54 | R37: North of England Region | S37: Q72 | T37: NHS England Yorkshire & Humber | U37: 02P | V37: NHS BARNSLEY CCG | W37: C85024 | X37: HIGH STREET PRACTICE | Y37: S71 4RF | Z37: S71 | AH37: 02M | AI37: NHS CORBY CCG | AJ37: A81041 | AK37: ABBEY MEDICAL PRACTICE | AL37: B11 4DG | AM37: B36 | AP37: C85024 | AQ37: HIGH STREET PRACTICE
Q38: Y54 | R38: North of England Region | S38: Q72 | T38: NHS England Yorkshire & Humber | U38: 02P | V38: NHS BARNSLEY CCG | W38: C85026 | X38: APOLLO COURT MEDICAL CENTRE | Y38: S75 3RF | Z38: S75 | AH38: 02N | AI38: NHS COVENTRY AND RUGBY CCG | AJ38: A81042 | AK38: ABBEY PRACTICE | AL38: B11 4RA | AM38: B37 | AP38: C85026 | AQ38: APOLLO COURT MEDICAL CENTRE
Q39: Y54 | R39: North of England Region | S39: Q72 | T39: NHS England Yorkshire & Humber | U39: 02P | V39: NHS BARNSLEY CCG | W39: C85028 | X39: LUNDWOOD MEDICAL CENTRE PMS PRACTICE | Y39: S71 5PN | Z39: S71 | AH39: 02P | AI39: NHS CRAWLEY CCG | AJ39: A81043 | AK39: ABBEY ROAD MEDICAL PRACTICE | AL39: B12 0UF | AM39: B38 | AP39: C85028 | AQ39: LUNDWOOD MEDICAL CENTRE PMS PRACTICE
Q40: Y54 | R40: North of England Region | S40: Q72 | T40: NHS England Yorkshire & Humber | U40: 02P | V40: NHS BARNSLEY CCG | W40: C85030 | X40: WOMBWELL MEDICAL CENTRE PRACTICE | Y40: S73 0DD | Z40: S73 | AH40: 02Q | AI40: NHS CROYDON CCG | AJ40: A81044 | AK40: ABBEY ROAD SURGERY | AL40: B12 0YA | AM40: B4 | AP40: C85030 | AQ40: WOMBWELL MEDICAL CENTRE PRACTICE
Q41: Y54 | R41: North of England Region | S41: Q72 | T41: NHS England Yorkshire & Humber | U41: 02P | V41: NHS BARNSLEY CCG | W41: C85033 | X41: VICTORIA MEDICAL CENTRE PMS PRACTICE | Y41: S75 2AE | Z41: S75 | AH41: 02R | AI41: NHS DARLINGTON CCG | AJ41: A81045 | AK41: ABBEY SURGERY | AL41: B12 8HE | AM41: B42 | AP41: C85033 | AQ41: VICTORIA MEDICAL CENTRE PMS PRACTICE
Q42: Y54 | R42: North of England Region | S42: Q72 | T42: NHS England Yorkshire & Humber | U42: 02P | V42: NHS BARNSLEY CCG | W42: C85614 | X42: DARTON HEALTH CENTRE PRACTICE | Y42: S75 5HQ | Z42: S75 | AH42: 02T | AI42: NHS DARTFORD, GRAVESHAM AND SWANLEY CCG | AJ42: A81046 | AK42: ABBEY WOOD SURGERY | AL42: B12 8QE | AM42: B43 | AP42: C85614 | AQ42: DARTON HEALTH CENTRE PRACTICE
Q43: Y54 | R43: North of England Region | S43: Q72 | T43: NHS England Yorkshire & Humber | U43: 02P | V43: NHS BARNSLEY CCG | W43: C85619 | X43: ST GEORGE'S MEDICAL CENTRE PMS PRACTICE | Y43: S71 1RY | Z43: S71 | AH43: 02V | AI43: NHS DONCASTER CCG | AJ43: A81047 | AK43: ABBEYSLADE PMS (DR CHAND) | AL43: B12 9LP | AM43: B44 | AP43: C85619 | AQ43: ST GEORGE'S MEDICAL CENTRE PMS PRACTICE
Q44: Y54 | R44: North of England Region | S44: Q72 | T44: NHS England Yorkshire & Humber | U44: 02P | V44: NHS BARNSLEY CCG | W44: C85622 | X44: MONK BRETTON HEALTH CENTRE PRACTICE | Y44: S71 2EQ | Z44: S71 | AH44: 02W | AI44: NHS DORSET CCG | AJ44: A81048 | AK44: ABBEYVIEW SURGERY | AL44: B12 9RR | AM44: B45 | AP44: C85622 | AQ44: MONK BRETTON HEALTH CENTRE PRACTICE
Q45: Y54 | R45: North of England Region | S45: Q72 | T45: NHS England Yorkshire & Humber | U45: 02P | V45: NHS BARNSLEY CCG | W45: C85623 | X45: KINGSWELL SURGERY PMS PRACTICE | Y45: S36 6DY | Z45: S36 | AH45: 02X | AI45: NHS DUDLEY CCG | AJ45: A81049 | AK45: ABBEYWELL SURGERY | AL45: B13 0HN | AM45: B46 | AP45: C85623 | AQ45: KINGSWELL SURGERY PMS PRACTICE
Q46: Y54 | R46: North of England Region | S46: Q72 | T46: NHS England Yorkshire & Humber | U46: 02P | V46: NHS BARNSLEY CCG | W46: C85628 | X46: CAXTON HOUSE SURGERY | Y46: S72 7BB | Z46: S72 | AH46: 02Y | AI46: NHS DURHAM DALES, EASINGTON AND SEDGEFIELD CCG | AJ46: A81051 | AK46: ABBOTS BROMLEY SURGERY | AL46: B13 8JS | AM46: B47 | AP46: C85628 | AQ46: CAXTON HOUSE SURGERY
Q47: Y54 | R47: North of England Region | S47: Q72 | T47: NHS England Yorkshire & Humber | U47: 02P | V47: NHS BARNSLEY CCG | W47: Y00411 | X47: DEARNE VALLEY GROUP PRACTICE | Y47: S63 0LT | Z47: S63 | AH47: 03A | AI47: NHS EALING CCG | AJ47: A81052 | AK47: ABBOTSBURY ROAD SURGERY | AL47: B13 8QS | AM47: B49 | AP47: Y00411 | AQ47: DEARNE VALLEY GROUP PRACTICE
Q48: Y54 | R48: North of England Region | S48: Q72 | T48: NHS England Yorkshire & Humber | U48: 02P | V48: NHS BARNSLEY CCG | W48: Y04809 | X48: LAKESIDE SURGERY | Y48: S63 9EH | Z48: S63 | AH48: 03C | AI48: NHS EAST AND NORTH HERTFORDSHIRE CCG | AJ48: A81053 | AK48: ABBOTSWOOD MEDICAL CENTRE | AL48: B13 9HD | AM48: B5 | AP48: Y04809 | AQ48: LAKESIDE SURGERY
Q49: Y54 | R49: North of England Region | S49: Q72 | T49: NHS England Yorkshire & Humber | U49: 02P | V49: NHS BARNSLEY CCG | W49: Y05248 | X49: BRIERLEY MEDICAL CENTRE | Y49: S72 9HZ | Z49: S72 | AH49: 03D | AI49: NHS EAST LANCASHIRE CCG | AJ49: A81054 | AK49: ABBOTTSWOOD MEDICAL CENTRE | AL49: B13 9LH | AM49: B50 | AP49: Y05248 | AQ49: BRIERLEY MEDICAL CENTRE
Q50: Y54 | R50: North of England Region | S50: Q72 | T50: NHS England Yorkshire & Humber | U50: 02P | V50: NHS BARNSLEY CCG | W50: Y05363 | X50: BHF HIGHGATE SURGERY | Y50: S72 7NZ | Z50: S72 | AH50: 03E | AI50: NHS EAST LEICESTERSHIRE AND RUTLAND CCG | AJ50: A81056 | AK50: ABERCROMBY FAMILY PRACTICE | AL50: B14 4DU | AM50: B6 | AP50: Y05363 | AQ50: BHF HIGHGATE SURGERY
Q51: Y54 | R51: North of England Region | S51: Q72 | T51: NHS England Yorkshire & Humber | U51: 02P | V51: NHS BARNSLEY CCG | W51: Y05364 | X51: BHF LUNDWOOD SURGERY | Y51: S71 5PN | Z51: S71 | AH51: 03F | AI51: NHS EAST RIDING OF YORKSHIRE CCG | AJ51: A81057 | AK51: ABERFELDY PRACTICE | AL51: B14 4JU | AM51: B60 | AP51: Y05364 | AQ51: BHF LUNDWOOD SURGERY
Q52: Y54 | R52: North of England Region | S52: Q72 | T52: NHS England Yorkshire & Humber | U52: 02Q | V52: NHS BASSETLAW CCG | W52: C84001 | X52: LARWOOD SURGERY | Y52: S81 0HH | Z52: S81 | AH52: 03G | AI52: NHS EAST STAFFORDSHIRE CCG | AJ52: A81058 | AK52: ABERNETHY HOUSE SURGERY | AL52: B14 5DJ | AM52: B61 | AP52: C84001 | AQ52: LARWOOD SURGERY
Q53: Y54 | R53: North of England Region | S53: Q72 | T53: NHS England Yorkshire & Humber | U53: 02Q | V53: NHS BASSETLAW CCG | W53: C84008 | X53: TUXFORD MEDICAL CENTRE | Y53: NG22 0HT | Z53: NG22 | AH53: 03H | AI53: NHS EAST SURREY CCG | AJ53: A81060 | AK53: ABINGDON FAMILY HEALTH CARE CENTRE | AL53: B14 5NG | AM53: B62 | AP53: C84008 | AQ53: TUXFORD MEDICAL CENTRE
Q54: Y54 | R54: North of England Region | S54: Q72 | T54: NHS England Yorkshire & Humber | U54: 02Q | V54: NHS BASSETLAW CCG | W54: C84013 | X54: KINGFISHER FAMILY PRACTICE | Y54: DN22 7XF | Z54: DN22 | AH54: 03J | AI54: NHS EASTBOURNE, HAILSHAM AND SEAFORD CCG | AJ54: A81063 | AK54: ABINGTON MEDICAL CENTRE | AL54: B14 5SB | AM54: B63 | AP54: C84013 | AQ54: KINGFISHER FAMILY PRACTICE
Q55: Y54 | R55: North of England Region | S55: Q72 | T55: NHS England Yorkshire & Humber | U55: 02Q | V55: NHS BASSETLAW CCG | W55: C84024 | X55: NEWGATE MEDICAL GROUP | Y55: S80 1HP | Z55: S80 | AH55: 03K | AI55: NHS EASTERN CHESHIRE CCG | AJ55: A81064 | AK55: ABINGTON PARK SURGERY | AL55: B14 6AA | AM55: B64 | AP55: C84024 | AQ55: NEWGATE MEDICAL GROUP
Q56: Y54 | R56: North of England Region | S56: Q72 | T56: NHS England Yorkshire & Humber | U56: 02Q | V56: NHS BASSETLAW CCG | W56: C84035 | X56: CROWN HOUSE SURGERY | Y56: DN22 7XF | Z56: DN22 | AH56: 03L | AI56: NHS ENFIELD CCG | AJ56: A81065 | AK56: ABNEY HOUSE MEDICAL CENTRE | AL56: B14 7AG | AM56: B65 | AP56: C84035 | AQ56: CROWN HOUSE SURGERY
Q57: Y54 | R57: North of England Region | S57: Q72 | T57: NHS England Yorkshire & Humber | U57: 02Q | V57: NHS BASSETLAW CCG | W57: C84052 | X57: THE MISTERTON GROUP PRACT | Y57: DN10 4DL | Z57: DN10 | AH57: 03M | AI57: NHS EREWASH CCG | AJ57: A81066 | AK57: ABRIDGE SURGERY | AL57: B14 7NH | AM57: B66 | AP57: C84052 | AQ57: THE MISTERTON GROUP PRACT
Q58: Y54 | R58: North of England Region | S58: Q72 | T58: NHS England Yorkshire & Humber | U58: 02Q | V58: NHS BASSETLAW CCG | W58: C84094 | X58: RIVERSIDE HEALTH CENTRE | Y58: DN22 6FB | Z58: DN22 | AH58: 03N | AI58: NHS FAREHAM AND GOSPORT CCG | AJ58: A81067 | AK58: ACLE MEDICAL PARTNERSHIP | AL58: B15 1LZ | AM58: B67 | AP58: C84094 | AQ58: RIVERSIDE HEALTH CENTRE
Q59: Y54 | R59: North of England Region | S59: Q72 | T59: NHS England Yorkshire & Humber | U59: 02Q | V59: NHS BASSETLAW CCG | W59: C84101 | X59: BAWTRY AND BLYTH MEDICAL | Y59: DN10 6RQ | Z59: DN10 | AH59: 03Q | AI59: NHS FYLDE & WYRE CCG | AJ59: A81070 | AK59: ACOCKS GREEN MEDICAL CENTRE | AL59: B15 2QU | AM59: B68 | AP59: C84101 | AQ59: BAWTRY AND BLYTH MEDICAL
Q60: Y54 | R60: North of England Region | S60: Q72 | T60: NHS England Yorkshire & Humber | U60: 02Q | V60: NHS BASSETLAW CCG | W60: C84692 | X60: NORTH LEVERTON SURGERY | Y60: DN22 0AB | Z60: DN22 | AH60: 03R | AI60: NHS GLOUCESTERSHIRE CCG | AJ60: A81602 | AK60: ACORN MEDICAL CENTRE | AL60: B16 0HH | AM60: B69 | AP60: C84692 | AQ60: NORTH LEVERTON SURGERY
Q61: Y54 | R61: North of England Region | S61: Q72 | T61: NHS England Yorkshire & Humber | U61: 02Q | V61: NHS BASSETLAW CCG | W61: Y05346 | X61: WESTWOOD PRIMARY CARE CENTRE | Y61: S80 2TR | Z61: S80 | AH61: 03T | AI61: NHS GREAT YARMOUTH AND WAVENEY CCG | AJ61: A81608 | AK61: ACORN MEDICAL PRACTICE | AL61: B16 0HZ | AM61: B7 | AP61: Y05346 | AQ61: WESTWOOD PRIMARY CARE CENTRE
Q62: Y54 | R62: North of England Region | S62: Q72 | T62: NHS England Yorkshire & Humber | U62: 02R | V62: NHS BRADFORD DISTRICTS CCG | W62: B83007 | X62: THE HEATON MEDICAL PRACTICE | Y62: BD9 6LL | Z62: BD9 | AH62: 03V | AI62: NHS GREATER HUDDERSFIELD CCG | AJ62: A81610 | AK62: ACORN PRACTICE | AL62: B16 0LU | AM62: B70 | AP62: B83007 | AQ62: THE HEATON MEDICAL PRACTICE
Q63: Y54 | R63: North of England Region | S63: Q72 | T63: NHS England Yorkshire & Humber | U63: 02R | V63: NHS BRADFORD DISTRICTS CCG | W63: B83009 | X63: SUNNYBANK MEDICAL CENTRE | Y63: BD12 9NG | Z63: BD12 | AH63: 03W | AI63: NHS GREATER PRESTON CCG | AJ63: A81611 | AK63: ACORN SURGERY | AL63: B16 8HA | AM63: B71 | AP63: B83009 | AQ63: SUNNYBANK MEDICAL CENTRE
Q64: Y54 | R64: North of England Region | S64: Q72 | T64: NHS England Yorkshire & Humber | U64: 02R | V64: NHS BRADFORD DISTRICTS CCG | W64: B83010 | X64: PARKLANDS MEDICAL PRACTICE | Y64: BD6 2DD | Z64: BD6 | AH64: 03X | AI64: NHS GREENWICH CCG | AJ64: A81612 | AK64: ACORNS | AL64: B16 9AL | AM64: B72 | AP64: B83010 | AQ64: PARKLANDS MEDICAL PRACTICE
Q65: Y54 | R65: North of England Region | S65: Q72 | T65: NHS England Yorkshire & Humber | U65: 02R | V65: NHS BRADFORD DISTRICTS CCG | W65: B83011 | X65: WOODROYD MEDICAL PRACTICE | Y65: BD5 8EL | Z65: BD5 | AH65: 03Y | AI65: NHS GUILDFORD AND WAVERLEY CCG | AJ65: A81618 | AK65: ACRE SURGERY | AL65: B17 0HG | AM65: B73 | AP65: B83011 | AQ65: WOODROYD MEDICAL PRACTICE
Q66: Y54 | R66: North of England Region | S66: Q72 | T66: NHS England Yorkshire & Humber | U66: 02R | V66: NHS BRADFORD DISTRICTS CCG | W66: B83012 | X66: CARLTON MEDICAL PRACTICE | Y66: BD8 9PB | Z66: BD8 | AH66: 04C | AI66: NHS HALTON CCG | AJ66: A81621 | AK66: ACREFIELD SURGERY | AL66: B17 8DP | AM66: B74 | AP66: B83012 | AQ66: CARLTON MEDICAL PRACTICE
Q67: Y54 | R67: North of England Region | S67: Q72 | T67: NHS England Yorkshire & Humber | U67: 02R | V67: NHS BRADFORD DISTRICTS CCG | W67: B83013 | X67: WESTCLIFFE MEDICAL CENTRE | Y67: BD18 3EE | Z67: BD18 | AH67: 04D | AI67: NHS HAMBLETON, RICHMONDSHIRE AND WHITBY CCG | AJ67: A81622 | AK67: ACTON LANE MEDICAL CENTRE | AL67: B17 8LG | AM67: B75 | AP67: B83013 | AQ67: WESTCLIFFE MEDICAL CENTRE
Q68: Y54 | R68: North of England Region | S68: Q72 | T68: NHS England Yorkshire & Humber | U68: 02R | V68: NHS BRADFORD DISTRICTS CCG | W68: B83014 | X68: BINGLEY MEDICAL PRACTICE | Y68: BD16 4RP | Z68: BD16 | AH68: 04E | AI68: NHS HAMMERSMITH AND FULHAM CCG | AJ68: A81629 | AK68: ACTON LANE SURGERY | AL68: B17 9DB | AM68: B76 | AP68: B83014 | AQ68: BINGLEY MEDICAL PRACTICE
Q69: Y54 | R69: North of England Region | S69: Q72 | T69: NHS England Yorkshire & Humber | U69: 02R | V69: NHS BRADFORD DISTRICTS CCG | W69: B83015 | X69: TONG MEDICAL PRACTICE | Y69: BD4 9QA | Z69: BD4 | AH69: 04F | AI69: NHS HARDWICK CCG | AJ69: A81630 | AK69: ACTON TOWN MEDICAL CENTRE | AL69: B18 7AL | AM69: B77 | AP69: B83015 | AQ69: TONG MEDICAL PRACTICE
Q70: Y54 | R70: North of England Region | S70: Q72 | T70: NHS England Yorkshire & Humber | U70: 02R | V70: NHS BRADFORD DISTRICTS CCG | W70: B83017 | X70: HORTON BANK PRACTICE | Y70: BD7 4PL | Z70: BD7 | AH70: 04G | AI70: NHS HARINGEY CCG | AJ70: A81631 | AK70: ADAM HOUSE MEDICAL CENTRE | AL70: B18 7BA | AM70: B78 | AP70: B83017 | AQ70: HORTON BANK PRACTICE
Q71: Y54 | R71: North of England Region | S71: Q72 | T71: NHS England Yorkshire & Humber | U71: 02R | V71: NHS BRADFORD DISTRICTS CCG | W71: B83018 | X71: IDLE MEDICAL CENTRE | Y71: BD10 8RU | Z71: BD10 | AH71: 04H | AI71: NHS HARROGATE AND RURAL DISTRICT CCG | AJ71: A81632 | AK71: ADCROFT SURGERY | AL71: B19 1BP | AM71: B79 | AP71: B83018 | AQ71: IDLE MEDICAL CENTRE
Q72: Y54 | R72: North of England Region | S72: Q72 | T72: NHS England Yorkshire & Humber | U72: 02R | V72: NHS BRADFORD DISTRICTS CCG | W72: B83020 | X72: THE WILLOWS MEDICAL CTR. | Y72: BD13 2GD | Z72: BD13 | AH72: 04J | AI72: NHS HARROW CCG | AJ72: A81633 | AK72: ADDERLEY GREEN SURGERY | AL72: B19 1HL | AM72: B8 | AP72: B83020 | AQ72: THE WILLOWS MEDICAL CTR.
Q73: Y54 | R73: North of England Region | S73: Q72 | T73: NHS England Yorkshire & Humber | U73: 02R | V73: NHS BRADFORD DISTRICTS CCG | W73: B83022 | X73: DR N DRIVER & PARTNERS | Y73: BD17 5NH | Z73: BD17 | AH73: 04K | AI73: NHS HARTLEPOOL AND STOCKTON-ON-TEES CCG | AJ73: A81634 | AK73: ADDINGHAM SURGERY | AL73: B19 1HS | AM73: B80 | AP73: B83022 | AQ73: DR N DRIVER & PARTNERS
Q74: Y54 | R74: North of England Region | S74: Q72 | T74: NHS England Yorkshire & Humber | U74: 02R | V74: NHS BRADFORD DISTRICTS CCG | W74: B83028 | X74: WIBSEY & QUEENSBURY MED P | Y74: BD6 1TD | Z74: BD6 | AH74: 04L | AI74: NHS HASTINGS AND ROTHER CCG | AJ74: A82003 | AK74: ADDINGTON MEDICAL CENTRE | AL74: B19 1TT | AM74: B9 | AP74: B83028 | AQ74: WIBSEY & QUEENSBURY MED P
Q75: Y54 | R75: North of England Region | S75: Q72 | T75: NHS England Yorkshire & Humber | U75: 02R | V75: NHS BRADFORD DISTRICTS CCG | W75: B83029 | X75: LOW MOOR SURGERY | Y75: BD12 0TH | Z75: BD12 | AH75: 04M | AI75: NHS HAVERING CCG | AJ75: A82004 | AK75: ADDINGTON ROAD SURGERY | AL75: B19 2JA | AM75: B90 | AP75: B83029 | AQ75: LOW MOOR SURGERY
Q76: Y54 | R76: North of England Region | S76: Q72 | T76: NHS England Yorkshire & Humber | U76: 02R | V76: NHS BRADFORD DISTRICTS CCG | W76: B83030 | X76: THORNTON & DENHOLME MEDICAL PRACTICE | Y76: BD13 3LG | Z76: BD13 | AH76: 04N | AI76: NHS HEREFORDSHIRE CCG | AJ76: A82005 | AK76: ADDISON HOUSE - HAQUE PRACTICE | AL76: B20 2BT | AM76: B91 | AP76: B83030 | AQ76: THORNTON & DENHOLME MEDICAL PRACTICE
Q77: Y54 | R77: North of England Region | S77: Q72 | T77: NHS England Yorkshire & Humber | U77: 02R | V77: NHS BRADFORD DISTRICTS CCG | W77: B83031 | X77: OAK GLEN SURGERY | Y77: BD16 3PA | Z77: BD16 | AH77: 04Q | AI77: NHS HERTS VALLEYS CCG | AJ77: A82006 | AK77: ADDISON ROAD MEDICAL PRACTICE | AL77: B20 2ES | AM77: B92 | AP77: B83031 | AQ77: OAK GLEN SURGERY
Q78: Y54 | R78: North of England Region | S78: Q72 | T78: NHS England Yorkshire & Humber | U78: 02R | V78: NHS BRADFORD DISTRICTS CCG | W78: B83032 | X78: BRADFORD MOOR PRACTICE | Y78: BD3 8QH | Z78: BD3 | AH78: 04R | AI78: NHS HEYWOOD, MIDDLETON AND ROCHDALE CCG | AJ78: A82007 | AK78: ADELAIDE MEDICAL CENTRE | AL78: B20 2NR | AM78: B93 | AP78: B83032 | AQ78: BRADFORD MOOR PRACTICE
Q79: Y54 | R79: North of England Region | S79: Q72 | T79: NHS England Yorkshire & Humber | U79: 02R | V79: NHS BRADFORD DISTRICTS CCG | W79: B83035 | X79: HORTON PARK MEDICAL PRACTICE | Y79: BD7 3EG | Z79: BD7 | AH79: 04V | AI79: NHS HIGH WEALD LEWES HAVENS CCG | AJ79: A82008 | AK79: ADELAIDE STREET SURGERY | AL79: B20 2QR | AM79: B94 | AP79: B83035 | AQ79: HORTON PARK MEDICAL PRACTICE
Q80: Y54 | R80: North of England Region | S80: Q72 | T80: NHS England Yorkshire & Humber | U80: 02R | V80: NHS BRADFORD DISTRICTS CCG | W80: B83037 | X80: THE WILSDEN MEDICAL PRACTICE | Y80: BD15 0NJ | Z80: BD15 | AH80: 04X | AI80: NHS HILLINGDON CCG | AJ80: A82009 | AK80: ADLER JS-THE SURGERY | AL80: B20 3HE | AM80: B95 | AP80: B83037 | AQ80: THE WILSDEN MEDICAL PRACTICE
Q81: Y54 | R81: North of England Region | S81: Q72 | T81: NHS England Yorkshire & Humber | U81: 02R | V81: NHS BRADFORD DISTRICTS CCG | W81: B83038 | X81: LEYLANDS LANE MEDICAL PRACTICE | Y81: BD9 5PZ | Z81: BD9 | AH81: 04Y | AI81: NHS HORSHAM AND MID SUSSEX CCG | AJ81: A82010 | AK81: ADLINGTON MEDICAL CENTRE | AL81: B20 3QP | AM81: B96 | AP81: B83038 | AQ81: LEYLANDS LANE MEDICAL PRACTICE
Q82: Y54 | R82: North of England Region | S82: Q72 | T82: NHS England Yorkshire & Humber | U82: 02R | V82: NHS BRADFORD DISTRICTS CCG | W82: B83039 | X82: WINDHILL GREEN MEDICAL CENTRE | Y82: BD18 1QB | Z82: BD18 | AH82: 05A | AI82: NHS HOUNSLOW CCG | AJ82: A82012 | AK82: ADSHALL ROAD MEDICAL PRAC | AL82: B21 0HL | AM82: B97 | AP82: B83039 | AQ82: WINDHILL GREEN MEDICAL CENTRE
Q83: Y54 | R83: North of England Region | S83: Q72 | T83: NHS England Yorkshire & Humber | U83: 02R | V83: NHS BRADFORD DISTRICTS CCG | W83: B83040 | X83: SALTAIRE MEDICAL PRACTICE | Y83: BD18 4RX | Z83: BD18 | AH83: 05C | AI83: NHS HULL CCG | AJ83: A82013 | AK83: ADSWOOD ROAD SURGERY | AL83: B21 0HR | AM83: B98 | AP83: B83040 | AQ83: SALTAIRE MEDICAL PRACTICE
Q84: Y54 | R84: North of England Region | S84: Q72 | T84: NHS England Yorkshire & Humber | U84: 02R | V84: NHS BRADFORD DISTRICTS CCG | W84: B83041 | X84: BOWLING HALL MED PRACTICE | Y84: BD4 7SS | Z84: BD4 | AH84: 05D | AI84: NHS IPSWICH AND EAST SUFFOLK CCG | AJ84: A82014 | AK84: AEGIS MEDICAL CENTRE | AL84: B21 9NH | AM84: BA1 | AP84: B83041 | AQ84: BOWLING HALL MED PRACTICE
Q85: Y54 | R85: North of England Region | S85: Q72 | T85: NHS England Yorkshire & Humber | U85: 02R | V85: NHS BRADFORD DISTRICTS CCG | W85: B83042 | X85: ROOLEY LANE MED. CENTRE | Y85: BD4 7SS | Z85: BD4 | AH85: 05F | AI85: NHS ISLE OF WIGHT CCG | AJ85: A82015 | AK85: AELFGAR SURGERY | AL85: B21 9RY | AM85: BA10 | AP85: B83042 | AQ85: ROOLEY LANE MED. CENTRE
Q86: Y54 | R86: North of England Region | S86: Q72 | T86: NHS England Yorkshire & Humber | U86: 02R | V86: NHS BRADFORD DISTRICTS CCG | W86: B83043 | X86: WOODROYD CENTRE - DE HAAR | Y86: BD5 8EL | Z86: BD5 | AH86: 05G | AI86: NHS ISLINGTON CCG | AJ86: A82016 | AK86: AHMED N QUEENS PARK HEALTH CENTRE | AL86: B23 5DD | AM86: BA11 | AP86: B83043 | AQ86: WOODROYD CENTRE - DE HAAR
Q87: Y54 | R87: North of England Region | S87: Q72 | T87: NHS England Yorkshire & Humber | U87: 02R | V87: NHS BRADFORD DISTRICTS CCG | W87: B83044 | X87: DR HUTCHINGS & PARTNERS | Y87: BD4 9QA | Z87: BD4 | AH87: 05H | AI87: NHS KERNOW CCG | AJ87: A82018 | AK87: AILSA CRAIG MEDICAL CENTRE | AL87: B23 5TJ | AM87: BA12 | AP87: B83044 | AQ87: DR HUTCHINGS & PARTNERS
Q88: Y54 | R88: North of England Region | S88: Q72 | T88: NHS England Yorkshire & Humber | U88: 02R | V88: NHS BRADFORD DISTRICTS CCG | W88: B83045 | X88: MAYFIELD MEDICAL CENTRE | Y88: BD14 6NF | Z88: BD14 | AH88: 05J | AI88: NHS KINGSTON CCG | AJ88: A82019 | AK88: AILSWORTH MEDICAL CENTRE | AL88: B23 6DJ | AM88: BA13 | AP88: B83045 | AQ88: MAYFIELD MEDICAL CENTRE
Q89: Y54 | R89: North of England Region | S89: Q72 | T89: NHS England Yorkshire & Humber | U89: 02R | V89: NHS BRADFORD DISTRICTS CCG | W89: B83049 | X89: COWGILL SURGERY | Y89: BD14 6ES | Z89: BD14 | AH89: 05L | AI89: NHS KNOWSLEY CCG | AJ89: A82020 | AK89: AINSDALE MEDICAL CENTRE | AL89: B24 0SY | AM89: BA14 | AP89: B83049 | AQ89: COWGILL SURGERY
Q90: Y54 | R90: North of England Region | S90: Q72 | T90: NHS England Yorkshire & Humber | U90: 02R | V90: NHS BRADFORD DISTRICTS CCG | W90: B83050 | X90: THE GRANGE PRACTICE | Y90: BD15 7WA | Z90: BD15 | AH90: 05N | AI90: NHS LAMBETH CCG | AJ90: A82021 | AK90: AINSDALE VILLAGE SURGERY | AL90: B24 8RD | AM90: BA15 | AP90: B83050 | AQ90: THE GRANGE PRACTICE
Q91: Y54 | R91: North of England Region | S91: Q72 | T91: NHS England Yorkshire & Humber | U91: 02R | V91: NHS BRADFORD DISTRICTS CCG | W91: B83054 | X91: DR WSG PASSANT'S PRACTICE | Y91: BD10 9AZ | Z91: BD10 | AH91: 05P | AI91: NHS LEEDS NORTH CCG | AJ91: A82022 | AK91: AINTREE PARK | AL91: B24 9JN | AM91: BA16 | AP91: B83054 | AQ91: DR WSG PASSANT'S PRACTICE
Q92: Y54 | R92: North of England Region | S92: Q72 | T92: NHS England Yorkshire & Humber | U92: 02R | V92: NHS BRADFORD DISTRICTS CCG | W92: B83055 | X92: THE RIDGE MEDICAL PRACT. | Y92: BD7 3JX | Z92: BD7 | AH92: 05Q | AI92: NHS LEEDS SOUTH AND EAST CCG | AJ92: A82023 | AK92: AINTREE ROAD MEDICAL CENTRE | AL92: B25 8AA | AM92: BA2 | AP92: B83055 | AQ92: THE RIDGE MEDICAL PRACT.
Q93: Y54 | R93: North of England Region | S93: Q72 | T93: NHS England Yorkshire & Humber | U93: 02R | V93: NHS BRADFORD DISTRICTS CCG | W93: B83056 | X93: MOORSIDE SURGERY | Y93: BD2 3AA | Z93: BD2 | AH93: 05R | AI93: NHS LEEDS WEST CCG | AJ93: A82024 | AK93: AIR BALLOON SURGERY | AL93: B25 8BY | AM93: BA20 | AP93: B83056 | AQ93: MOORSIDE SURGERY
Q94: Y54 | R94: North of England Region | S94: Q72 | T94: NHS England Yorkshire & Humber | U94: 02R | V94: NHS BRADFORD DISTRICTS CCG | W94: B83062 | X94: ASHCROFT SURGERY | Y94: BD10 0JE | Z94: BD10 | AH94: 05T | AI94: NHS LEICESTER CITY CCG | AJ94: A82025 | AK94: AIREBOROUGH FAMILY PRACTICE | AL94: B25 8TH | AM94: BA21 | AP94: B83062 | AQ94: ASHCROFT SURGERY
Q95: Y54 | R95: North of England Region | S95: Q72 | T95: NHS England Yorkshire & Humber | U95: 02R | V95: NHS BRADFORD DISTRICTS CCG | W95: B83063 | X95: DR NSE HAYWARD & PARTNERS | Y95: BD18 3EG | Z95: BD18 | AH95: 05V | AI95: NHS LEWISHAM CCG | AJ95: A82026 | AK95: AKERMAN MEDICAL PRACTICE | AL95: B26 1AT | AM95: BA22 | AP95: B83063 | AQ95: DR NSE HAYWARD & PARTNERS
Q96: Y54 | R96: North of England Region | S96: Q72 | T96: NHS England Yorkshire & Humber | U96: 02R | V96: NHS BRADFORD DISTRICTS CCG | W96: B83064 | X96: THE ROCKWELL AND WROSE PRACTICE | Y96: BD2 1QG | Z96: BD2 | AH96: 05W | AI96: NHS LINCOLNSHIRE EAST CCG | AJ96: A82027 | AK96: AKSYR MEDICAL PRACTICE | AL96: B26 1PE | AM96: BA3 | AP96: B83064 | AQ96: THE ROCKWELL AND WROSE PRACTICE
Q97: Y54 | R97: North of England Region | S97: Q72 | T97: NHS England Yorkshire & Humber | U97: 02R | V97: NHS BRADFORD DISTRICTS CCG | W97: B83067 | X97: THE SPRINGFIELD SURGERY (BINGLEY) | Y97: BD16 4RP | Z97: BD16 | AH97: 05X | AI97: NHS LINCOLNSHIRE WEST CCG | AJ97: A82028 | AK97: AL FAL MEDICAL GROUP | AL97: B26 2SB | AM97: BA4 | AP97: B83067 | AQ97: THE SPRINGFIELD SURGERY (BINGLEY)
Q98: Y54 | R98: North of England Region | S98: Q72 | T98: NHS England Yorkshire & Humber | U98: 02R | V98: NHS BRADFORD DISTRICTS CCG | W98: B83641 | X98: ASHWELL MEDICAL CENTRE | Y98: BD8 9DP | Z98: BD8 | AH98: 05Y | AI98: NHS LIVERPOOL CCG | AJ98: A82029 | AK98: ALBANY HOUSE MEDICAL CENTRE | AL98: B26 2TY | AM98: BA5 | AP98: B83641 | AQ98: ASHWELL MEDICAL CENTRE
Q99: Y54 | R99: North of England Region | S99: Q72 | T99: NHS England Yorkshire & Humber | U99: 02R | V99: NHS BRADFORD DISTRICTS CCG | W99: Y01118 | X99: ECCLESHILL VILLAGE SURGERY | Y99: BD2 2HX | Z99: BD2 | AH99: 06A | AI99: NHS LUTON CCG | AJ99: A82030 | AK99: ALBANY HOUSE SURGERY | AL99: B26 3JS | AM99: BA6 | AP99: Y01118 | AQ99: ECCLESHILL VILLAGE SURGERY
Q100: Y54 | R100: North of England Region | S100: Q72 | T100: NHS England Yorkshire & Humber | U100: 02T | V100: NHS CALDERDALE CCG | W100: B84001 | X100: STATION ROAD SURGERY | Y100: HX6 3AB | Z100: HX6 | AH100: 06D | AI100: NHS MANCHESTER CCG | AJ100: A82031 | AK100: ALBANY PRACTICE | AL100: B26 3SE | AM100: BA7 | AP100: B84001 | AQ100: STATION ROAD SURGERY
Q101: Y54 | R101: North of England Region | S101: Q72 | T101: NHS England Yorkshire & Humber | U101: 02T | V101: NHS CALDERDALE CCG | W101: B84002 | X101: QUEENS ROAD SURGERY | Y101: HX1 4NJ | Z101: HX1 | AH101: 06F | AI101: NHS MANSFIELD AND ASHFIELD CCG | AJ101: A82032 | AK101: ALBANY SURGERY | AL101: B26 3TP | AM101: BA9 | AP101: B84002 | AQ101: QUEENS ROAD SURGERY
Q102: Y54 | R102: North of England Region | S102: Q72 | T102: NHS England Yorkshire & Humber | U102: 02T | V102: NHS CALDERDALE CCG | W102: B84003 | X102: RYDINGS HALL SURGERY | Y102: HD6 1AT | Z102: HD6 | AH102: 06H | AI102: NHS MEDWAY CCG | AJ102: A82033 | AK102: ALBERT ROAD SURGERY | AL102: B26 3TT | AM102: BB1 | AP102: B84003 | AQ102: RYDINGS HALL SURGERY
Q103: Y54 | R103: North of England Region | S103: Q72 | T103: NHS England Yorkshire & Humber | U103: 02T | V103: NHS CALDERDALE CCG | W103: B84004 | X103: HEBDEN BRIDGE GROUP PRACTICE | Y103: HX7 7BZ | Z103: HX7 | AH103: 06K | AI103: NHS MERTON CCG | AJ103: A82034 | AK103: ALBION HEALTH CENTRE | AL103: B27 6QJ | AM103: BB10 | AP103: B84004 | AQ103: HEBDEN BRIDGE GROUP PRACTICE
Q104: Y54 | R104: North of England Region | S104: Q72 | T104: NHS England Yorkshire & Humber | U104: 02T | V104: NHS CALDERDALE CCG | W104: B84005 | X104: ROSEGARTH SURGERY | Y104: HX1 2HB | Z104: HX1 | AH104: 06L | AI104: NHS MID ESSEX CCG | AJ104: A82035 | AK104: ALBION MEDICAL PRACTICE | AL104: B27 7AL | AM104: BB11 | AP104: B84005 | AQ104: ROSEGARTH SURGERY
Q105: Y54 | R105: North of England Region | S105: Q72 | T105: NHS England Yorkshire & Humber | U105: 02T | V105: NHS CALDERDALE CCG | W105: B84006 | X105: TODMORDEN GROUP PRACTICE | Y105: OL14 5RN | Z105: OL14 | AH105: 06M | AI105: NHS MILTON KEYNES CCG | AJ105: A82036 | AK105: ALBION PLACE MEDICAL PRACTICE | AL105: B27 7XZ | AM105: BB12 | AP105: B84006 | AQ105: TODMORDEN GROUP PRACTICE
Q106: Y54 | R106: North of England Region | S106: Q72 | T106: NHS England Yorkshire & Humber | U106: 02T | V106: NHS CALDERDALE CCG | W106: B84007 | X106: BRIG ROYD SURGERY | Y106: HX6 4BN | Z106: HX6 | AH106: 06N | AI106: NHS MORECAMBE BAY CCG | AJ106: A82037 | AK106: ALBION STREET GROUP PRACTICE | AL106: B28 0RF | AM106: BB18 | AP106: B84007 | AQ106: BRIG ROYD SURGERY
Q107: Y54 | R107: North of England Region | S107: Q72 | T107: NHS England Yorkshire & Humber | U107: 02T | V107: NHS CALDERDALE CCG | W107: B84008 | X107: DR CHIN AND PARTNERS | Y107: HX3 8AF | Z107: HX3 | AH107: 06P | AI107: NHS NENE CCG | AJ107: A82038 | AK107: ALBION STREET SURGERY | AL107: B28 8BG | AM107: BB2 | AP107: B84008 | AQ107: DR CHIN AND PARTNERS
Q108: Y54 | R108: North of England Region | S108: Q72 | T108: NHS England Yorkshire & Humber | U108: 02T | V108: NHS CALDERDALE CCG | W108: B84009 | X108: STAINLAND ROAD MEDICAL CENTRE | Y108: HX4 8BD | Z108: HX4 | AH108: 06Q | AI108: NHS NEWARK & SHERWOOD CCG | AJ108: A82039 | AK108: ALBION SURGERY | AL108: B29 4HH | AM108: BB3 | AP108: B84009 | AQ108: STAINLAND ROAD MEDICAL CENTRE
Q109: Y54 | R109: North of England Region | S109: Q72 | T109: NHS England Yorkshire & Humber | U109: 02T | V109: NHS CALDERDALE CCG | W109: B84010 | X109: KEIGHLEY ROAD SURGERY | Y109: HX2 9LL | Z109: HX2 | AH109: 06T | AI109: NHS NEWBURY AND DISTRICT CCG | AJ109: A82041 | AK109: ALBRIGHTON MEDICAL PRACT | AL109: B29 5HA | AM109: BB4 | AP109: B84010 | AQ109: KEIGHLEY ROAD SURGERY
Q110: Y54 | R110: North of England Region | S110: Q72 | T110: NHS England Yorkshire & Humber | U110: 02T | V110: NHS CALDERDALE CCG | W110: B84011 | X110: CHURCH LANE SURGERY | Y110: HD6 1AT | Z110: HD6 | AH110: 06V | AI110: NHS NEWCASTLE GATESHEAD CCG | AJ110: A82044 | AK110: ALCESTER HEALTH CENTRE | AL110: B29 5QD | AM110: BB5 | AP110: B84011 | AQ110: CHURCH LANE SURGERY
Q111: Y54 | R111: North of England Region | S111: Q72 | T111: NHS England Yorkshire & Humber | U111: 02T | V111: NHS CALDERDALE CCG | W111: B84012 | X111: SPRING HALL GROUP PRACTICE | Y111: HX1 4JG | Z111: HX1 | AH111: 06W | AI111: NHS NEWHAM CCG | AJ111: A82045 | AK111: ALCHESTER MEDICAL GROUP | AL111: B29 6JG | AM111: BB6 | AP111: B84012 | AQ111: SPRING HALL GROUP PRACTICE
Q112: Y54 | R112: North of England Region | S112: Q72 | T112: NHS England Yorkshire & Humber | U112: 02T | V112: NHS CALDERDALE CCG | W112: B84013 | X112: PLANE TREES GROUP PRACTICE | Y112: HX2 0QL | Z112: HX2 | AH112: 06Y | AI112: NHS NORTH & WEST READING CCG | AJ112: A82046 | AK112: ALCONBURY SURGERY | AL112: B29 7BL | AM112: BB7 | AP112: B84013 | AQ112: PLANE TREES GROUP PRACTICE
Q113: Y54 | R113: North of England Region | S113: Q72 | T113: NHS England Yorkshire & Humber | U113: 02T | V113: NHS CALDERDALE CCG | W113: B84014 | X113: RASTRICK HEALTH CENTRE | Y113: HD6 3NA | Z113: HD6 | AH113: 07G | AI113: NHS NORTH CUMBRIA CCG | AJ113: A82047 | AK113: ALDBOROUGH SURGERY | AL113: B29 7DU | AM113: BB8 | AP113: B84014 | AQ113: RASTRICK HEALTH CENTRE
Q114: Y54 | R114: North of England Region | S114: Q72 | T114: NHS England Yorkshire & Humber | U114: 02T | V114: NHS CALDERDALE CCG | W114: B84016 | X114: BANKFIELD SURGERY | Y114: HX5 9BA | Z114: HX5 | AH114: 07H | AI114: NHS NORTH DERBYSHIRE CCG | AJ114: A82048 | AK114: ALDBROUGH ST JOHN SURGERY | AL114: B29 7NT | AM114: BB9 | AP114: B84016 | AQ114: BANKFIELD SURGERY
Q115: Y54 | R115: North of England Region | S115: Q72 | T115: NHS England Yorkshire & Humber | U115: 02T | V115: NHS CALDERDALE CCG | W115: B84017 | X115: BURLEY STREET SURGERY | Y115: HX5 0AQ | Z115: HX5 | AH115: 07J | AI115: NHS NORTH DURHAM CCG | AJ115: A82049 | AK115: ALDERLEY EDGE MEDICAL CENTRE | AL115: B30 1BY | AM115: BD1 | AP115: B84017 | AQ115: BURLEY STREET SURGERY
Q116: Y54 | R116: North of England Region | S116: Q72 | T116: NHS England Yorkshire & Humber | U116: 02T | V116: NHS CALDERDALE CCG | W116: B84019 | X116: THE BOULEVARD MEDICAL PRACTICE | Y116: HX1 2ES | Z116: HX1 | AH116: 07K | AI116: NHS NORTH EAST ESSEX CCG | AJ116: A82050 | AK116: ALDERMOOR SURGERY | AL116: B30 1DH | AM116: BD10 | AP116: B84019 | AQ116: THE BOULEVARD MEDICAL PRACTICE
Q117: Y54 | R117: North of England Region | S117: Q72 | T117: NHS England Yorkshire & Humber | U117: 02T | V117: NHS CALDERDALE CCG | W117: B84021 | X117: KING CROSS PRACTICE | Y117: HX1 3LW | Z117: HX1 | AH117: 07L | AI117: NHS NORTH EAST HAMPSHIRE AND FARNHAM CCG | AJ117: A82053 | AK117: ALDERSBROOK MEDICAL CENTRE | AL117: B30 2AA | AM117: BD11 | AP117: B84021 | AQ117: KING CROSS PRACTICE
Q118: Y54 | R118: North of England Region | S118: Q72 | T118: NHS England Yorkshire & Humber | U118: 02T | V118: NHS CALDERDALE CCG | W118: B84610 | X118: HORNE STREET SURGERY | Y118: HX1 5UA | Z118: HX1 | AH118: 07M | AI118: NHS NORTH EAST LINCOLNSHIRE CCG | AJ118: A82055 | AK118: ALDERWOOD MEDICAL PRACTICE | AL118: B30 2SH | AM118: BD12 | AP118: B84610 | AQ118: HORNE STREET SURGERY
Q119: Y54 | R119: North of England Region | S119: Q72 | T119: NHS England Yorkshire & Humber | U119: 02T | V119: NHS CALDERDALE CCG | W119: B84612 | X119: LISTER LANE SURGERY | Y119: HX1 5AX | Z119: HX1 | AH119: 07N | AI119: NHS NORTH HAMPSHIRE CCG | AJ119: A82058 | AK119: ALEESHAN MEDICAL CENTRE | AL119: B30 3QT | AM119: BD13 | AP119: B84612 | AQ119: LISTER LANE SURGERY
Q120: Y54 | R120: North of England Region | S120: Q72 | T120: NHS England Yorkshire & Humber | U120: 02T | V120: NHS CALDERDALE CCG | W120: B84613 | X120: BEECHWOOD MEDICAL CENTRE | Y120: HX2 8AL | Z120: HX2 | AH120: 07P | AI120: NHS NORTH KIRKLEES CCG | AJ120: A82060 | AK120: ALEXANDER HOUSE SURGERY | AL120: B31 1QT | AM120: BD14 | AP120: B84613 | AQ120: BEECHWOOD MEDICAL CENTRE
Q121: Y54 | R121: North of England Region | S121: Q72 | T121: NHS England Yorkshire & Humber | U121: 02T | V121: NHS CALDERDALE CCG | W121: B84615 | X121: SOUTHOWRAM SURGERY | Y121: HX3 9QB | Z121: HX3 | AH121: 07Q | AI121: NHS NORTH LINCOLNSHIRE CCG | AJ121: A82062 | AK121: ALEXANDRA & CRESTVIEW SURGERIES | AL121: B31 1TR | AM121: BD15 | AP121: B84615 | AQ121: SOUTHOWRAM SURGERY
Q122: Y54 | R122: North of England Region | S122: Q72 | T122: NHS England Yorkshire & Humber | U122: 02T | V122: NHS CALDERDALE CCG | W122: B84618 | X122: CARITAS GROUP PRACTICE | Y122: HX2 8RQ | Z122: HX2 | AH122: 07R | AI122: NHS NORTH NORFOLK CCG | AJ122: A82063 | AK122: ALEXANDRA GROUP MED PRACT | AL122: B31 2DN | AM122: BD16 | AP122: B84618 | AQ122: CARITAS GROUP PRACTICE
Q123: Y54 | R123: North of England Region | S123: Q72 | T123: NHS England Yorkshire & Humber | U123: 02T | V123: NHS CALDERDALE CCG | W123: B84623 | X123: LONGROYDE SURGERY | Y123: HD6 3HT | Z123: HD6 | AH123: 07T | AI123: NHS NORTH SOMERSET CCG | AJ123: A82064 | AK123: ALEXANDRA MEDICAL CENTRE | AL123: B31 2HZ | AM123: BD17 | AP123: B84623 | AQ123: LONGROYDE SURGERY
Q124: Y54 | R124: North of England Region | S124: Q72 | T124: NHS England Yorkshire & Humber | U124: 02T | V124: NHS CALDERDALE CCG | W124: Y02572 | X124: PARK COMMUNITY PRACTICE | Y124: HX1 5UA | Z124: HX1 | AH124: 07V | AI124: NHS NORTH STAFFORDSHIRE CCG | AJ124: A82065 | AK124: ALEXANDRA SURGERY | AL124: B31 3HB | AM124: BD18 | AP124: Y02572 | AQ124: PARK COMMUNITY PRACTICE
Q125: Y54 | R125: North of England Region | S125: Q72 | T125: NHS England Yorkshire & Humber | U125: 02T | V125: NHS CALDERDALE CCG | W125: Y03112 | X125: MEADOW DALE GROUP PRACTICE | Y125: HX3 5SX | Z125: HX3 | AH125: 07W | AI125: NHS NORTH TYNESIDE CCG | AJ125: A82068 | AK125: ALICE STREET SURGERY | AL125: B31 4TU | AM125: BD19 | AP125: Y03112 | AQ125: MEADOW DALE GROUP PRACTICE
Q126: Y54 | R126: North of England Region | S126: Q72 | T126: NHS England Yorkshire & Humber | U126: 02V | V126: NHS LEEDS NORTH CCG | W126: B86008 | X126: ALWOODLEY MEDICAL CENTRE | Y126: LS17 5DT | Z126: LS17 | AH126: 07X | AI126: NHS NORTH WEST SURREY CCG | AJ126: A82070 | AK126: ALL SAINTS MEDICAL CENTRE PMS | AL126: B31 5ER | AM126: BD2 | AP126: B86008 | AQ126: ALWOODLEY MEDICAL CENTRE
Q127: Y54 | R127: North of England Region | S127: Q72 | T127: NHS England Yorkshire & Humber | U127: 02V | V127: NHS LEEDS NORTH CCG | W127: B86010 | X127: COLLINGHAM CHURCH VIEW SURGERY | Y127: LS22 5BQ | Z127: LS22 | AH127: 07Y | AI127: NHS NORTHERN, EASTERN AND WESTERN DEVON CCG | AJ127: A82071 | AK127: ALL SAINTS PRACTICE | AL127: B32 2TJ | AM127: BD20 | AP127: B86010 | AQ127: COLLINGHAM CHURCH VIEW SURGERY
Q128: Y54 | R128: North of England Region | S128: Q72 | T128: NHS England Yorkshire & Humber | U128: 02V | V128: NHS LEEDS NORTH CCG | W128: B86013 | X128: THE NORTH LEEDS MEDICAL PRACTICE | Y128: LS17 6PZ | Z128: LS17 | AH128: 08A | AI128: NHS NORTHUMBERLAND CCG | AJ128: A82072 | AK128: ALL SAINTS SURGERY | AL128: B32 3LE | AM128: BD21 | AP128: B86013 | AQ128: THE NORTH LEEDS MEDICAL PRACTICE
Q129: Y54 | R129: North of England Region | S129: Q72 | T129: NHS England Yorkshire & Humber | U129: 02V | V129: NHS LEEDS NORTH CCG | W129: B86019 | X129: RUTLAND LODGE MEDICAL CENTRE | Y129: LS7 3DR | Z129: LS7 | AH129: 08C | AI129: NHS NORWICH CCG | AJ129: A82074 | AK129: ALLENBY CLINIC | AL129: B32 3PR | AM129: BD22 | AP129: B86019 | AQ129: RUTLAND LODGE MEDICAL CENTRE
Q130: Y54 | R130: North of England Region | S130: Q72 | T130: NHS England Yorkshire & Humber | U130: 02V | V130: NHS LEEDS NORTH CCG | W130: B86022 | X130: OAKWOOD LANE MEDICAL PRACTICE | Y130: LS8 3BZ | Z130: LS8 | AH130: 08D | AI130: NHS NOTTINGHAM CITY CCG | AJ130: A82075 | AK130: ALLENSON HOUSE MEDICAL CENTRE | AL130: B32 3SD | AM130: BD23 | AP130: B86022 | AQ130: OAKWOOD LANE MEDICAL PRACTICE
Q131: Y54 | R131: North of England Region | S131: Q72 | T131: NHS England Yorkshire & Humber | U131: 02V | V131: NHS LEEDS NORTH CCG | W131: B86023 | X131: THE AVENUE SURGERY | Y131: LS17 7BE | Z131: LS17 | AH131: 08E | AI131: NHS NOTTINGHAM NORTH AND EAST CCG | AJ131: A82077 | AK131: ALLERTON MEDICAL CENTRE | AL131: B33 0SA | AM131: BD24 | AP131: B86023 | AQ131: THE AVENUE SURGERY
Q132: Y54 | R132: North of England Region | S132: Q72 | T132: NHS England Yorkshire & Humber | U132: 02V | V132: NHS LEEDS NORTH CCG | W132: B86029 | X132: WESTGATE SURGERY | Y132: LS21 3HD | Z132: LS21 | AH132: 08F | AI132: NHS NOTTINGHAM WEST CCG | AJ132: A82608 | AK132: ALLESLEY PARK MEDICAL CTR | AL132: B33 8NF | AM132: BD3 | AP132: B86029 | AQ132: WESTGATE SURGERY
Q133: Y54 | R133: North of England Region | S133: Q72 | T133: NHS England Yorkshire & Humber | U133: 02V | V133: NHS LEEDS NORTH CCG | W133: B86031 | X133: WESTFIELD MEDICAL CENTRE | Y133: LS7 3EX | Z133: LS7 | AH133: 08G | AI133: NHS OLDHAM CCG | AJ133: A82613 | AK133: ALLESLEY VILLAGE SURGERY | AL133: B33 8TA | AM133: BD4 | AP133: B86031 | AQ133: WESTFIELD MEDICAL CENTRE
Q134: Y54 | R134: North of England Region | S134: Q72 | T134: NHS England Yorkshire & Humber | U134: 02V | V134: NHS LEEDS NORTH CCG | W134: B86032 | X134: CHEVIN MEDICAL PRACTICE | Y134: LS21 1BQ | Z134: LS21 | AH134: 08H | AI134: NHS OXFORDSHIRE CCG | AJ134: A82617 | AK134: ALLINGTON CLINIC | AL134: B33 9EJ | AM134: BD5 | AP134: B86032 | AQ134: CHEVIN MEDICAL PRACTICE
Q135: Y54 | R135: North of England Region | S135: Q72 | T135: NHS England Yorkshire & Humber | U135: 02V | V135: NHS LEEDS NORTH CCG | W135: B86033 | X135: NEW MEDICAL CENTRE | Y135: LS22 6RT | Z135: LS22 | AH135: 08J | AI135: NHS PORTSMOUTH CCG | AJ135: A82620 | AK135: ALLINGTON PARK | AL135: B33 9SD | AM135: BD6 | AP135: B86033 | AQ135: NEW MEDICAL CENTRE
Q136: Y54 | R136: North of England Region | S136: Q72 | T136: NHS England Yorkshire & Humber | U136: 02V | V136: NHS LEEDS NORTH CCG | W136: B86034 | X136: SPA SURGERY | Y136: LS23 6PY | Z136: LS23 | AH136: 08K | AI136: NHS REDBRIDGE CCG | AJ136: A82621 | AK136: ALLPORT MEDICAL CENTRE | AL136: B34 6BP | AM136: BD7 | AP136: B86034 | AQ136: SPA SURGERY
Q137: Y54 | R137: North of England Region | S137: Q72 | T137: NHS England Yorkshire & Humber | U137: 02V | V137: NHS LEEDS NORTH CCG | W137: B86039 | X137: ALLERTON MEDICAL CENTRE | Y137: LS7 4LF | Z137: LS7 | AH137: 08L | AI137: NHS REDDITCH AND BROMSGROVE CCG | AJ137: A82623 | AK137: ALMA MEDICAL CENTRE | AL137: B34 6RB | AM137: BD8 | AP137: B86039 | AQ137: ALLERTON MEDICAL CENTRE
Q138: Y54 | R138: North of England Region | S138: Q72 | T138: NHS England Yorkshire & Humber | U138: 02V | V138: NHS LEEDS NORTH CCG | W138: B86049 | X138: WOODHOUSE MEDICAL PRACTICE | Y138: LS6 2SF | Z138: LS6 | AH138: 08M | AI138: NHS RICHMOND CCG | AJ138: A82629 | AK138: ALMA PARTNERSHIP | AL138: B34 7BP | AM138: BD9 | AP138: B86049 | AQ138: WOODHOUSE MEDICAL PRACTICE
Q139: Y54 | R139: North of England Region | S139: Q72 | T139: NHS England Yorkshire & Humber | U139: 02V | V139: NHS LEEDS NORTH CCG | W139: B86056 | X139: SHADWELL MEDICAL CENTRE | Y139: LS17 8AE | Z139: LS17 | AH139: 08N | AI139: NHS ROTHERHAM CCG | AJ139: A82631 | AK139: ALMA ROAD SURGERY | AL139: B35 6EE | AM139: BH1 | AP139: B86056 | AQ139: SHADWELL MEDICAL CENTRE
Q140: Y54 | R140: North of England Region | S140: Q72 | T140: NHS England Yorkshire & Humber | U140: 02V | V140: NHS LEEDS NORTH CCG | W140: B86059 | X140: MEANWOOD HEALTH CENTRE | Y140: LS6 4JN | Z140: LS6 | AH140: 08P | AI140: NHS RUSHCLIFFE CCG | AJ140: A82646 | AK140: ALMOND ROAD SURGERY | AL140: B35 7QX | AM140: BH10 | AP140: B86059 | AQ140: MEANWOOD HEALTH CENTRE
Q141: Y54 | R141: North of England Region | S141: Q72 | T141: NHS England Yorkshire & Humber | U141: 02V | V141: NHS LEEDS NORTH CCG | W141: B86066 | X141: THE STREET LANE PRACTICE | Y141: LS8 1AY | Z141: LS8 | AH141: 08Q | AI141: NHS SALFORD CCG | AJ141: A82647 | AK141: ALMONDSBURY SURGERY | AL141: B36 0BU | AM141: BH11 | AP141: B86066 | AQ141: THE STREET LANE PRACTICE
Q142: Y54 | R142: North of England Region | S142: Q72 | T142: NHS England Yorkshire & Humber | U142: 02V | V142: NHS LEEDS NORTH CCG | W142: B86070 | X142: AIREBOROUGH FAMILY PRACTICE | Y142: LS19 7JN | Z142: LS19 | AH142: 08R | AI142: NHS SANDWELL AND WEST BIRMINGHAM CCG | AJ142: A82650 | AK142: ALMSHOUSE | AL142: B36 0HH | AM142: BH12 | AP142: B86070 | AQ142: AIREBOROUGH FAMILY PRACTICE
Q143: Y54 | R143: North of England Region | S143: Q72 | T143: NHS England Yorkshire & Humber | U143: 02V | V143: NHS LEEDS NORTH CCG | W143: B86100 | X143: ST MARTINS PRACTICE | Y143: LS7 3JT | Z143: LS7 | AH143: 08T | AI143: NHS SCARBOROUGH AND RYEDALE CCG | AJ143: A82651 | AK143: ALPERTON MEDICAL CENTRE | AL143: B36 0LF | AM143: BH14 | AP143: B86100 | AQ143: ST MARTINS PRACTICE
Q144: Y54 | R144: North of England Region | S144: Q72 | T144: NHS England Yorkshire & Humber | U144: 02V | V144: NHS LEEDS NORTH CCG | W144: B86106 | X144: FOUNDRY LANE SURGERY | Y144: LS14 6GG | Z144: LS14 | AH144: 08V | AI144: NHS SHEFFIELD CCG | AJ144: A82654 | AK144: ALPHA MEDICAL PRACTICE | AL144: B36 0PU | AM144: BH15 | AP144: B86106 | AQ144: FOUNDRY LANE SURGERY
Q145: Y54 | R145: North of England Region | S145: Q72 | T145: NHS England Yorkshire & Humber | U145: 02V | V145: NHS LEEDS NORTH CCG | W145: B86108 | X145: CHAPELTOWN FAMILY SURGERY | Y145: LS7 4BB | Z145: LS7 | AH145: 08W | AI145: NHS SHROPSHIRE CCG | AJ145: A83001 | AK145: ALPINE HOUSE SURGERY | AL145: B36 8LR | AM145: BH16 | AP145: B86108 | AQ145: CHAPELTOWN FAMILY SURGERY
Q146: Y54 | R146: North of England Region | S146: Q72 | T146: NHS England Yorkshire & Humber | U146: 02V | V146: NHS LEEDS NORTH CCG | W146: B86625 | X146: WETHERBY SURGERY | Y146: LS22 6JS | Z146: LS22 | AH146: 08X | AI146: NHS SLOUGH CCG | AJ146: A83003 | AK146: ALRESFORD SURGERY | AL146: B36 8ND | AM146: BH17 | AP146: B86625 | AQ146: WETHERBY SURGERY
Q147: Y54 | R147: North of England Region | S147: Q72 | T147: NHS England Yorkshire & Humber | U147: 02V | V147: NHS LEEDS NORTH CCG | W147: B86654 | X147: OAKWOOD SURGERY | Y147: LS8 4AA | Z147: LS8 | AH147: 08Y | AI147: NHS SOLIHULL CCG | AJ147: A83004 | AK147: ALREWAS | AL147: B36 9EJ | AM147: BH18 | AP147: B86654 | AQ147: OAKWOOD SURGERY
Q148: Y54 | R148: North of England Region | S148: Q72 | T148: NHS England Yorkshire & Humber | U148: 02V | V148: NHS LEEDS NORTH CCG | W148: B86666 | X148: NEWTON SURGERY | Y148: LS7 3JT | Z148: LS7 | AH148: 09A | AI148: NHS SOMERSET CCG | AJ148: A83005 | AK148: AL-SHAFA MEDICAL CENTRE | AL148: B37 5BU | AM148: BH19 | AP148: B86666 | AQ148: NEWTON SURGERY
Q149: Y54 | R149: North of England Region | S149: Q72 | T149: NHS England Yorkshire & Humber | U149: 02V | V149: NHS LEEDS NORTH CCG | W149: B86673 | X149: BRAMHAM MEDICAL CENTRE | Y149: LS23 6RN | Z149: LS23 | AH149: 09C | AI149: NHS SOUTH CHESHIRE CCG | AJ149: A83006 | AK149: AL-SHIFA MEDICAL CENTRE | AL149: B37 6BE | AM149: BH2 | AP149: B86673 | AQ149: BRAMHAM MEDICAL CENTRE
Q150: Y54 | R150: North of England Region | S150: Q72 | T150: NHS England Yorkshire & Humber | U150: 02V | V150: NHS LEEDS NORTH CCG | W150: Y02002 | X150: ONE MEDICARE LLP-THE LIGHT | Y150: LS1 8TL | Z150: LS1 | AH150: 09D | AI150: NHS SOUTH DEVON AND TORBAY CCG | AJ150: A83007 | AK150: ALSTON MEDICAL PRACTICE | AL150: B37 7WB | AM150: BH20 | AP150: Y02002 | AQ150: ONE MEDICARE LLP-THE LIGHT
Q151: Y54 | R151: North of England Region | S151: Q72 | T151: NHS England Yorkshire & Humber | U151: 02W | V151: NHS BRADFORD CITY CCG | W151: B83005 | X151: THORNBURY MEDICAL PRACTICE | Y151: BD3 7HZ | Z151: BD3 | AH151: 09E | AI151: NHS SOUTH EAST STAFFORDSHIRE AND SEISDON PENINSULA CCG | AJ151: A83008 | AK151: ALTON STREET SURGERY | AL151: B38 8AX | AM151: BH21 | AP151: B83005 | AQ151: THORNBURY MEDICAL PRACTICE
Q152: Y54 | R152: North of England Region | S152: Q72 | T152: NHS England Yorkshire & Humber | U152: 02W | V152: NHS BRADFORD CITY CCG | W152: B83016 | X152: FARROW MEDICAL CENTRE | Y152: BD3 0HX | Z152: BD3 | AH152: 09F | AI152: NHS SOUTH EASTERN HAMPSHIRE CCG | AJ152: A83009 | AK152: ALTON SURGERY | AL152: B38 8QS | AM152: BH22 | AP152: B83016 | AQ152: FARROW MEDICAL CENTRE
Q153: Y54 | R153: North of England Region | S153: Q72 | T153: NHS England Yorkshire & Humber | U153: 02W | V153: NHS BRADFORD CITY CCG | W153: B83025 | X153: LITTLE HORTON LANE MEDICAL CENTRE-MALL | Y153: BD5 0NX | Z153: BD5 | AH153: 09G | AI153: NHS SOUTH GLOUCESTERSHIRE CCG | AJ153: A83010 | AK153: ALTRINCHAM MEDICAL PRACTICE | AL153: B38 8RF | AM153: BH23 | AP153: B83025 | AQ153: LITTLE HORTON LANE MEDICAL CENTRE-MALL
Q154: Y54 | R154: North of England Region | S154: Q72 | T154: NHS England Yorkshire & Humber | U154: 02W | V154: NHS BRADFORD CITY CCG | W154: B83026 | X154: PRIMROSE SURGERY | Y154: BD3 0BS | Z154: BD3 | AH154: 09H | AI154: NHS SOUTH KENT COAST CCG | AJ154: A83011 | AK154: ALUM ROCK MEDICAL CENTRE | AL154: B38 8TE | AM154: BH24 | AP154: B83026 | AQ154: PRIMROSE SURGERY
Q155: Y54 | R155: North of England Region | S155: Q72 | T155: NHS England Yorkshire & Humber | U155: 02W | V155: NHS BRADFORD CITY CCG | W155: B83034 | X155: GRANGE MEDICAL CENTRE | Y155: BD7 3AH | Z155: BD7 | AH155: 09J | AI155: NHS SOUTH LINCOLNSHIRE CCG | AJ155: A83012 | AK155: ALVANLEY FAMILY PRACTICE | AL155: B38 9TJ | AM155: BH25 | AP155: B83034 | AQ155: GRANGE MEDICAL CENTRE
Q156: Y54 | R156: North of England Region | S156: Q72 | T156: NHS England Yorkshire & Humber | U156: 02W | V156: NHS BRADFORD CITY CCG | W156: B83051 | X156: BRADFORD STUDENT HEALTH SERVICE | Y156: BD5 0HR | Z156: BD5 | AH156: 09L | AI156: NHS SOUTH NORFOLK CCG | AJ156: A83013 | AK156: ALVASTON MEDICAL CENTRE | AL156: B4 7TA | AM156: BH31 | AP156: B83051 | AQ156: BRADFORD STUDENT HEALTH SERVICE
Q157: Y54 | R157: North of England Region | S157: Q72 | T157: NHS England Yorkshire & Humber | U157: 02W | V157: NHS BRADFORD CITY CCG | W157: B83052 | X157: KENSINGTON ST HC - WILSON | Y157: BD8 9LB | Z157: BD8 | AH157: 09N | AI157: NHS SOUTH READING CCG | AJ157: A83014 | AK157: ALVELEY MEDICAL PRACTICE | AL157: B42 1BT | AM157: BH4 | AP157: B83052 | AQ157: KENSINGTON ST HC - WILSON
Q158: Y54 | R158: North of England Region | S158: Q72 | T158: NHS England Yorkshire & Humber | U158: 02W | V158: NHS BRADFORD CITY CCG | W158: B83058 | X158: THE AVICENNA MEDICAL PRACTICE | Y158: BD3 8QH | Z158: BD3 | AH158: 09P | AI158: NHS SOUTH SEFTON CCG | AJ158: A83015 | AK158: ALVERTHORPE | AL158: B42 1TG | AM158: BH5 | AP158: B83058 | AQ158: THE AVICENNA MEDICAL PRACTICE
Q159: Y54 | R159: North of England Region | S159: Q72 | T159: NHS England Yorkshire & Humber | U159: 02W | V159: NHS BRADFORD CITY CCG | W159: B83069 | X159: DR BASU | Y159: BD8 9DW | Z159: BD8 | AH159: 09W | AI159: NHS SOUTH TEES CCG | AJ159: A83016 | AK159: ALVERTON PRACTICE | AL159: B42 1TY | AM159: BH6 | AP159: B83069 | AQ159: DR BASU
Q160: Y54 | R160: North of England Region | S160: Q72 | T160: NHS England Yorkshire & Humber | U160: 02W | V160: NHS BRADFORD CITY CCG | W160: B83070 | X160: MUGHAL MEDICAL CENTRE | Y160: BD7 3HY | Z160: BD7 | AH160: 09X | AI160: NHS SOUTH TYNESIDE CCG | AJ160: A83017 | AK160: AL-WAQAS MEDICAL CENTRE | AL160: B43 6AA | AM160: BH7 | AP160: B83070 | AQ160: MUGHAL MEDICAL CENTRE
Q161: Y54 | R161: North of England Region | S161: Q72 | T161: NHS England Yorkshire & Humber | U161: 02W | V161: NHS BRADFORD CITY CCG | W161: B83604 | X161: THE LISTER SURGERY | Y161: BD8 8RA | Z161: BD8 | AH161: 09Y | AI161: NHS SOUTH WARWICKSHIRE CCG | AJ161: A83018 | AK161: ALWOODLEY MEDICAL CENTRE | AL161: B43 6BT | AM161: BH8 | AP161: B83604 | AQ161: THE LISTER SURGERY
Q162: Y54 | R162: North of England Region | S162: Q72 | T162: NHS England Yorkshire & Humber | U162: 02W | V162: NHS BRADFORD CITY CCG | W162: B83611 | X162: BARKEREND HC - EL ELIWI | Y162: BD3 8QH | Z162: BD3 | AH162: 10A | AI162: NHS SOUTH WEST LINCOLNSHIRE CCG | AJ162: A83019 | AK162: AMAANAH MEDICAL PRACTICE | AL162: B43 6PA | AM162: BH9 | AP162: B83611 | AQ162: BARKEREND HC - EL ELIWI
Q163: Y54 | R163: North of England Region | S163: Q72 | T163: NHS England Yorkshire & Humber | U163: 02W | V163: NHS BRADFORD CITY CCG | W163: B83613 | X163: LCD BRADFORD AT MANNINGHAM MEDICAL CNTRE | Y163: BD8 7SY | Z163: BD8 | AH163: 10C | AI163: NHS SOUTH WORCESTERSHIRE CCG | AJ163: A83020 | AK163: AMBAR MEDICAL CENTRE | AL163: B43 7DY | AM163: BL0 | AP163: B83613 | AQ163: LCD BRADFORD AT MANNINGHAM MEDICAL CNTRE
Q164: Y54 | R164: North of England Region | S164: Q72 | T164: NHS England Yorkshire & Humber | U164: 02W | V164: NHS BRADFORD CITY CCG | W164: B83614 | X164: PICTON MEDICAL CENTRE | Y164: BD8 8RA | Z164: BD8 | AH164: 10D | AI164: NHS SOUTHAMPTON CCG | AJ164: A83021 | AK164: AMBLESIDE HEALTH CENTRE | AL164: B43 7NF | AM164: BL1 | AP164: B83614 | AQ164: PICTON MEDICAL CENTRE
Q165: Y54 | R165: North of England Region | S165: Q72 | T165: NHS England Yorkshire & Humber | U165: 02W | V165: NHS BRADFORD CITY CCG | W165: B83617 | X165: DR U AKBAR | Y165: BD8 9DW | Z165: BD8 | AH165: 10E | AI165: NHS SOUTHEND CCG | AJ165: A83022 | AK165: AMBROSE AVENUE GROUP PRACTICE | AL165: B44 0DX | AM165: BL2 | AP165: B83617 | AQ165: DR U AKBAR
Q166: Y54 | R166: North of England Region | S166: Q72 | T166: NHS England Yorkshire & Humber | U166: 02W | V166: NHS BRADFORD CITY CCG | W166: B83621 | X166: DR A AZAM & PARTNERS | Y166: BD7 3EG | Z166: BD7 | AH166: 10G | AI166: NHS SOUTHERN DERBYSHIRE CCG | AJ166: A83023 | AK166: AMERSHAM HEALTH CENTRE | AL166: B44 0HL | AM166: BL3 | AP166: B83621 | AQ166: DR A AZAM & PARTNERS
Q167: Y54 | R167: North of England Region | S167: Q72 | T167: NHS England Yorkshire & Humber | U167: 02W | V167: NHS BRADFORD CITY CCG | W167: B83622 | X167: DR IA GILKAR & PARTNERS | Y167: BD8 9LB | Z167: BD8 | AH167: 10H | AI167: NHS SOUTHPORT AND FORMBY CCG | AJ167: A83024 | AK167: AMERSHAM VALE TRAINING PRACTICE | AL167: B44 0NN | AM167: BL4 | AP167: B83622 | AQ167: DR IA GILKAR & PARTNERS
Q168: Y54 | R168: North of England Region | S168: Q72 | T168: NHS England Yorkshire & Humber | U168: 02W | V168: NHS BRADFORD CITY CCG | W168: B83626 | X168: VALLEY VIEW SURGERY | Y168: BD2 4RA | Z168: BD2 | AH168: 10J | AI168: NHS SOUTHWARK CCG | AJ168: A83025 | AK168: AMHERST MEDICAL PRACTICE | AL168: B44 0UY | AM168: BL5 | AP168: B83626 | AQ168: VALLEY VIEW SURGERY
Q169: Y54 | R169: North of England Region | S169: Q72 | T169: NHS England Yorkshire & Humber | U169: 02W | V169: NHS BRADFORD CITY CCG | W169: B83627 | X169: FRIZINGHALL MEDICAL CENTRE | Y169: BD9 4LH | Z169: BD9 | AH169: 10K | AI169: NHS ST HELENS CCG | AJ169: A83026 | AK169: AMPLEFORTH SURGERY | AL169: B44 8TU | AM169: BL6 | AP169: B83627 | AQ169: FRIZINGHALL MEDICAL CENTRE
Q170: Y54 | R170: North of England Region | S170: Q72 | T170: NHS England Yorkshire & Humber | U170: 02W | V170: NHS BRADFORD CITY CCG | W170: B83628 | X170: ALICE STREET SURGERY | Y170: BD8 7RT | Z170: BD8 | AH170: 10L | AI170: NHS STAFFORD AND SURROUNDS CCG | AJ170: A83027 | AK170: AMPTHILL PRACTICE | AL170: B44 9ER | AM170: BL7 | AP170: B83628 | AQ170: ALICE STREET SURGERY
Q171: Y54 | R171: North of England Region | S171: Q72 | T171: NHS England Yorkshire & Humber | U171: 02W | V171: NHS BRADFORD CITY CCG | W171: B83629 | X171: PEEL PARK SURGERY | Y171: BD2 4RA | Z171: BD2 | AH171: 10M | AI171: NHS STOCKPORT CCG | AJ171: A83028 | AK171: AMWELL GROUP PRACTICE | AL171: B44 9HW | AM171: BL8 | AP171: B83629 | AQ171: PEEL PARK SURGERY
Q172: Y54 | R172: North of England Region | S172: Q72 | T172: NHS England Yorkshire & Humber | U172: 02W | V172: NHS BRADFORD CITY CCG | W172: B83638 | X172: LCD BRADFORD | Y172: BD3 0BS | Z172: BD3 | AH172: 10N | AI172: NHS STOKE ON TRENT CCG | AJ172: A83029 | AK172: AMWELL STREET SURGERY | AL172: B45 0EU | AM172: BL9 | AP172: B83638 | AQ172: LCD BRADFORD
Q173: Y54 | R173: North of England Region | S173: Q72 | T173: NHS England Yorkshire & Humber | U173: 02W | V173: NHS BRADFORD CITY CCG | W173: B83642 | X173: WHETLEY MEDICAL CENTRE | Y173: BD8 9DW | Z173: BD8 | AH173: 10Q | AI173: NHS SUNDERLAND CCG | AJ173: A83030 | AK173: ANCASTER SURGERY | AL173: B45 8NF | AM173: BN1 | AP173: B83642 | AQ173: WHETLEY MEDICAL CENTRE
Q174: Y54 | R174: North of England Region | S174: Q72 | T174: NHS England Yorkshire & Humber | U174: 02W | V174: NHS BRADFORD CITY CCG | W174: B83653 | X174: DR GILKAR | Y174: BD5 0NX | Z174: BD5 | AH174: 10R | AI174: NHS SURREY DOWNS CCG | AJ174: A83031 | AK174: ANCOATS URBAN VILLAGE MEDICAL PRACTICE | AL174: B45 9BU | AM174: BN10 | AP174: B83653 | AQ174: DR GILKAR
Q175: Y54 | R175: North of England Region | S175: Q72 | T175: NHS England Yorkshire & Humber | U175: 02W | V175: NHS BRADFORD CITY CCG | W175: B83657 | X175: BEVAN HEALTHCARE CIC | Y175: BD1 3LS | Z175: BD1 | AH175: 10T | AI175: NHS SURREY HEATH CCG | AJ175: A83032 | AK175: ANCORA MEDICAL PRACTICE | AL175: B45 9HY | AM175: BN11 | AP175: B83657 | AQ175: BEVAN HEALTHCARE CIC
Q176: Y54 | R176: North of England Region | S176: Q72 | T176: NHS England Yorkshire & Humber | U176: 02W | V176: NHS BRADFORD CITY CCG | W176: B83659 | X176: PARK GRANGE MEDICAL CENTRE | Y176: BD7 2BL | Z176: BD7 | AH176: 10V | AI176: NHS SUTTON CCG | AJ176: A83033 | AK176: ANDAMAN SURGERY | AL176: B45 9JT | AM176: BN12 | AP176: B83659 | AQ176: PARK GRANGE MEDICAL CENTRE
Q177: Y54 | R177: North of England Region | S177: Q72 | T177: NHS England Yorkshire & Humber | U177: 02W | V177: NHS BRADFORD CITY CCG | W177: B83660 | X177: BILTON MEDICAL CENTRE | Y177: BD8 8JT | Z177: BD8 | AH177: 10W | AI177: NHS SWALE CCG | AJ177: A83034 | AK177: ANDOVER MEDICAL CENTRE | AL177: B46 1TH | AM177: BN14 | AP177: B83660 | AQ177: BILTON MEDICAL CENTRE
Q178: Y54 | R178: North of England Region | S178: Q72 | T178: NHS England Yorkshire & Humber | U178: 02W | V178: NHS BRADFORD CITY CCG | W178: B83661 | X178: MOOR PARK MEDICAL PRACTICE | Y178: BD3 8QH | Z178: BD3 | AH178: 10X | AI178: NHS SWINDON CCG | AJ178: A83035 | AK178: ANERLEY SURGERY | AL178: B46 3LD | AM178: BN15 | AP178: B83661 | AQ178: MOOR PARK MEDICAL PRACTICE
Q179: Y54 | R179: North of England Region | S179: Q72 | T179: NHS England Yorkshire & Humber | U179: 02W | V179: NHS BRADFORD CITY CCG | W179: Y05180 | X179: BRADFORD SAFE HAVEN SERVICE | Y179: HD2 1GQ | Z179: HD2 | AH179: 10Y | AI179: NHS TAMESIDE AND GLOSSOP CCG | AJ179: A83036 | AK179: ANFIELD GROUP PRACTICE | AL179: B47 5DP | AM179: BN16 | AP179: Y05180 | AQ179: BRADFORD SAFE HAVEN SERVICE
Q180: Y54 | R180: North of England Region | S180: Q72 | T180: NHS England Yorkshire & Humber | U180: 02W | V180: NHS BRADFORD CITY CCG | W180: Y05548 | X180: PICTON AT SAI | Y180: BD8 8RA | Z180: BD8 | AH180: 11A | AI180: NHS TELFORD AND WREKIN CCG | AJ180: A83037 | AK180: ANFIELD HEALTH | AL180: B47 6ET | AM180: BN17 | AP180: Y05548 | AQ180: PICTON AT SAI
Q181: Y54 | R181: North of England Region | S181: Q72 | T181: NHS England Yorkshire & Humber | U181: 02X | V181: NHS DONCASTER CCG | W181: C86001 | X181: CARCROFT DOCTORS GROUP | Y181: DN6 8AG | Z181: DN6 | AH181: 11C | AI181: NHS THANET CCG | AJ181: A83038 | AK181: ANGEL HILL SURGERY | AL181: B49 6QR | AM181: BN18 | AP181: C86001 | AQ181: CARCROFT DOCTORS GROUP
Q182: Y54 | R182: North of England Region | S182: Q72 | T182: NHS England Yorkshire & Humber | U182: 02X | V182: NHS DONCASTER CCG | W182: C86002 | X182: THE RANSOME PRACTICE | Y182: DN5 0JX | Z182: DN5 | AH182: 11D | AI182: NHS THURROCK CCG | AJ182: A83040 | AK182: ANGEL LANE SURGERY | AL182: B5 7LX | AM182: BN2 | AP182: C86002 | AQ182: THE RANSOME PRACTICE
Q183: Y54 | R183: North of England Region | S183: Q72 | T183: NHS England Yorkshire & Humber | U183: 02X | V183: NHS DONCASTER CCG | W183: C86003 | X183: HATFIELD HEALTH CENTRE | Y183: DN7 6JH | Z183: DN7 | AH183: 11E | AI183: NHS TOWER HAMLETS CCG | AJ183: A83041 | AK183: ANGEL SURGERY | AL183: B50 4LX | AM183: BN21 | AP183: C86003 | AQ183: HATFIELD HEALTH CENTRE
Q184: Y54 | R184: North of England Region | S184: Q72 | T184: NHS England Yorkshire & Humber | U184: 02X | V184: NHS DONCASTER CCG | W184: C86005 | X184: MEXBOROUGH HEALTH CENTRE | Y184: S64 0BY | Z184: S64 | AH184: 11H | AI184: NHS TRAFFORD CCG | AJ184: A83042 | AK184: ANNANDALE MEDICAL CENTRE | AL184: B6 5HA | AM184: BN22 | AP184: C86005 | AQ184: MEXBOROUGH HEALTH CENTRE
Q185: Y54 | R185: North of England Region | S185: Q72 | T185: NHS England Yorkshire & Humber | U185: 02X | V185: NHS DONCASTER CCG | W185: C86006 | X185: REGENT SQUARE GROUP PRACTICE | Y185: DN1 2DS | Z185: DN1 | AH185: 11J | AI185: NHS VALE OF YORK CCG | AJ185: A83043 | AK185: ANNFIELD PLAIN SURGERY | AL185: B6 5HP | AM185: BN23 | AP185: C86006 | AQ185: REGENT SQUARE GROUP PRACTICE
Q186: Y54 | R186: North of England Region | S186: Q72 | T186: NHS England Yorkshire & Humber | U186: 02X | V186: NHS DONCASTER CCG | W186: C86007 | X186: DR P O'HORAN AND PARTNERS | Y186: DN1 2EG | Z186: DN1 | AH186: 11M | AI186: NHS VALE ROYAL CCG | AJ186: A83044 | AK186: ANSDELL MEDICAL CENTRE | AL186: B6 5UP | AM186: BN24 | AP186: C86007 | AQ186: DR P O'HORAN AND PARTNERS
Q187: Y54 | R187: North of England Region | S187: Q72 | T187: NHS England Yorkshire & Humber | U187: 02X | V187: NHS DONCASTER CCG | W187: C86009 | X187: THE MAYFLOWER MEDICAL PRACTICE | Y187: DN10 6RQ | Z187: DN10 | AH187: 11N | AI187: NHS WAKEFIELD CCG | AJ187: A83045 | AK187: APEX MEDICAL CENTRE | AL187: B6 6BB | AM187: BN25 | AP187: C86009 | AQ187: THE MAYFLOWER MEDICAL PRACTICE
Q188: Y54 | R188: North of England Region | S188: Q72 | T188: NHS England Yorkshire & Humber | U188: 02X | V188: NHS DONCASTER CCG | W188: C86011 | X188: MOUNT GROUP PRACTICE | Y188: DN1 2JP | Z188: DN1 | AH188: 11T | AI188: NHS WALSALL CCG | AJ188: A83046 | AK188: APOLLO COURT MEDICAL CENTRE | AL188: B6 6JY | AM188: BN26 | AP188: C86011 | AQ188: MOUNT GROUP PRACTICE
Q189: Y54 | R189: North of England Region | S189: Q72 | T189: NHS England Yorkshire & Humber | U189: 02X | V189: NHS DONCASTER CCG | W189: C86012 | X189: THE OAKWOOD SURGERY | Y189: DN4 6BU | Z189: DN4 | AH189: 11X | AI189: NHS WALTHAM FOREST CCG | AJ189: A83047 | AK189: APPLE TREE MEDICAL PRACTICE | AL189: B60 2JS | AM189: BN27 | AP189: C86012 | AQ189: THE OAKWOOD SURGERY
Q190: Y54 | R190: North of England Region | S190: Q72 | T190: NHS England Yorkshire & Humber | U190: 02X | V190: NHS DONCASTER CCG | W190: C86013 | X190: THE TICKHILL & COLLIERY MEDICAL PRACTICE | Y190: DN11 9NA | Z190: DN11 | AH190: 12A | AI190: NHS WANDSWORTH CCG | AJ190: A83048 | AK190: APPLEBY MEDICAL PRACTICE | AL190: B61 0AZ | AM190: BN3 | AP190: C86013 | AQ190: THE TICKHILL & COLLIERY MEDICAL PRACTICE
Q191: Y54 | R191: North of England Region | S191: Q72 | T191: NHS England Yorkshire & Humber | U191: 02X | V191: NHS DONCASTER CCG | W191: C86014 | X191: PRINCESS MEDICAL CENTRE | Y191: DN6 7LX | Z191: DN6 | AH191: 12D | AI191: NHS WARRINGTON CCG | AJ191: A83049 | AK191: APPLEBY SURGERY | AL191: B61 0DD | AM191: BN41 | AP191: C86014 | AQ191: PRINCESS MEDICAL CENTRE
Q192: Y54 | R192: North of England Region | S192: Q72 | T192: NHS England Yorkshire & Humber | U192: 02X | V192: NHS DONCASTER CCG | W192: C86015 | X192: THE ROSSINGTON PRACTICE | Y192: DN11 0LP | Z192: DN11 | AH192: 12F | AI192: NHS WARWICKSHIRE NORTH CCG | AJ192: A83050 | AK192: APPLETON VILLAGE SURGERY | AL192: B61 0PU | AM192: BN42 | AP192: C86015 | AQ192: THE ROSSINGTON PRACTICE
Q193: Y54 | R193: North of England Region | S193: Q72 | T193: NHS England Yorkshire & Humber | U193: 02X | V193: NHS DONCASTER CCG | W193: C86016 | X193: THE LAKESIDE PRACTICE | Y193: DN6 0HZ | Z193: DN6 | AH193: 13P | AI193: NHS WEST CHESHIRE CCG | AJ193: A83051 | AK193: APPLETREE MEDICAL PRACTICE | AL193: B62 0HP | AM193: BN43 | AP193: C86016 | AQ193: THE LAKESIDE PRACTICE
Q194: Y54 | R194: North of England Region | S194: Q72 | T194: NHS England Yorkshire & Humber | U194: 02X | V194: NHS DONCASTER CCG | W194: C86017 | X194: KINGTHORNE GROUP PRACTICE | Y194: DN1 2EU | Z194: DN1 | AH194: 13T | AI194: NHS WEST ESSEX CCG | AJ194: A83052 | AK194: APSLEY SURGERY | AL194: B62 9DR | AM194: BN44 | AP194: C86017 | AQ194: KINGTHORNE GROUP PRACTICE
Q195: Y54 | R195: North of England Region | S195: Q72 | T195: NHS England Yorkshire & Humber | U195: 02X | V195: NHS DONCASTER CCG | W195: C86018 | X195: NORTHFIELD SURGERY | Y195: DN8 4BQ | Z195: DN8 | AH195: 14L | AI195: NHS WEST HAMPSHIRE CCG | AJ195: A83054 | AK195: ARBURY MEDICAL CENTRE | AL195: B62 9LR | AM195: BN5 | AP195: C86018 | AQ195: NORTHFIELD SURGERY
Q196: Y54 | R196: North of England Region | S196: Q72 | T196: NHS England Yorkshire & Humber | U196: 02X | V196: NHS DONCASTER CCG | W196: C86019 | X196: THE SCOTT PRACTICE | Y196: DN4 0TG | Z196: DN4 | AH196: 99A | AI196: NHS WEST KENT CCG | AJ196: A83055 | AK196: ARBURY ROAD SURGERY | AL196: B63 1AB | AM196: BN6 | AP196: C86019 | AQ196: THE SCOTT PRACTICE
Q197: Y54 | R197: North of England Region | S197: Q72 | T197: NHS England Yorkshire & Humber | U197: 02X | V197: NHS DONCASTER CCG | W197: C86020 | X197: ST.JOHNS GROUP PRACTICE | Y197: DN4 0TH | Z197: DN4 | AH197: 99C | AI197: NHS WEST LANCASHIRE CCG | AJ197: A83057 | AK197: ARCADIAN GARDENS SURGERY | AL197: B63 2DH | AM197: BN7 | AP197: C86020 | AQ197: ST.JOHNS GROUP PRACTICE
Q198: Y54 | R198: North of England Region | S198: Q72 | T198: NHS England Yorkshire & Humber | U198: 02X | V198: NHS DONCASTER CCG | W198: C86021 | X198: WHITE HOUSE FARM MEDICAL CENTRE | Y198: DN3 3AH | Z198: DN3 | AH198: 99D | AI198: NHS WEST LEICESTERSHIRE CCG | AJ198: A83060 | AK198: ARCHERS PRACTICE | AL198: B63 3HN | AM198: BN8 | AP198: C86021 | AQ198: WHITE HOUSE FARM MEDICAL CENTRE
Q199: Y54 | R199: North of England Region | S199: Q72 | T199: NHS England Yorkshire & Humber | U199: 02X | V199: NHS DONCASTER CCG | W199: C86022 | X199: THE SANDRINGHAM PRACTICE | Y199: DN2 5JH | Z199: DN2 | AH199: 99E | AI199: NHS WEST LONDON CCG | AJ199: A83061 | AK199: ARCHWAY MEDICAL CENTRE | AL199: B63 3UH | AM199: BN9 | AP199: C86022 | AQ199: THE SANDRINGHAM PRACTICE
Q200: Y54 | R200: North of England Region | S200: Q72 | T200: NHS England Yorkshire & Humber | U200: 02X | V200: NHS DONCASTER CCG | W200: C86023 | X200: BENTLEY SURGERY | Y200: DN5 0AT | Z200: DN5 | AH200: 99F | AI200: NHS WEST NORFOLK CCG | AJ200: A83066 | AK200: ARCHWAY SURGERY | AL200: B63 4WD | AM200: BR1 | AP200: C86023 | AQ200: BENTLEY SURGERY
... 2050 more rows
